Workbook

Sheet INTRO
C1: Cette version sera utilisée par les pays endémiques à la Loase
B2: Formulaire de Rapport Commun v.3.1 (L)
B4: Le but de ce formulaire de rapport commun - disponible sous forme de fichier Excel - est de mettre à disposition des autorités sanitaires nationales et des gestionnaires de données un outil standardisé qui réponde aux défis, facilite l'intégration et par conséquent contribue à améliorer la gestion de programme. Ce formulaire tend à standardiser le rapport de résultats des programmes nationaux, améliore la disponibilité et la coordination des données de chimioprévention à travers les Bureaux des Régions de l'Organisation mondiale de la Santé. Les autorités nationales sont priées de compléter ce formulaire et de le soumettre à l'Organisation mondiale de la Santé avant le 15 août de l'année en cours pour rapporter les données des activités de chimioprévention mises en oeuvre l'année précédente.
B6: Structure de l'application (feuilles de travail) :
B8: INTRO | C8: Cette feuille contient des instructions pour compléter le formulaire de rapport commun et des informations sur le statut de la chimioprévention pour les maladies d'endémie du pays.
B9: COUNTRY_INFO | C9: Cette feuille contient des informations sur la structure administrative du pays, la population par groupe d'âge, le statut d'endémicité pour chaque maladie, la population devant être traitée par chimioprévention, les interventions prévues et les interventions mises en oeuvre.
B10: MDA1, MDA2, MDA3, T1, T2 et T3 | C10: Ces feuilles contiennent des informations sur l'endémicité des districts ciblés pour le traitement aux médicaments spécifiques pour la chimioprévention, les plans de traitement, et le nombre de personnes traitées par groupe d'âge.
B11: DISTRICT | C11: Cette feuille contient un résumé sur les personnes traitées, par maladie, au niveau de mise en oeuvre. Si les données par genre (sexe) sont disponibles, merci de les saisir.
B12: SUMMARY | C12: Cette feuille contient un résumé sur les personnes traitées, par maladie et par type d'intervention de chimioprévention. Avant de générer le rapport (exécuter macro), veuillez sélectionner la maladie pour laquelle vous souhaitez un rapport. Veuillez suivre le même processus pour générer les divers rapports. Cette feuille doit être imprimée et soumise comme formulaire de rapport commun (voir les instructions pour la soumission du formulaire sous la feuille SUMMARY).
B14: Instructions pour la saisie des données
B16: La plupart des cellules des feuilles de travail mentionnées ci-dessus contiennent des formules calculées automatiquement en fonction du protocole de traitement recommandé par l'OMS pour chaque maladie. Voir : http://www.who.int/neglected_diseases/preventive_chemotherapy/pct_manual/en/index.html
B18: Veuillez entrer vos données dans les cellules en fonction de leur code de couleur :
C20: Blanc - la cellule n'est pas protégée. Veuillez entrer la valeur de l'indicateur demandé.
C22: Jaune - la cellule est protégée et inclut le nom de l'indicateur. Aucune entrée de données requise.
C24: Orange - la cellule n'est pas protégée et contient un menu déroulant. Veuillez sélectionner la valeur dans le menu déroulant.
C27: Vert - la cellule n'est pas protégée et contient des formules. Veuillez changer la valeur indiquée uniquement si vos données sont différentes de celles calculées automatiquement.
C30: Bleu - la cellule est protégée et contient des formules. Aucune entrée de données requise.
B32: Données pays
B34: PAYS | E34: Cameroon | G34: CM | H34: CMR
B36: Année de rapport des données | E36: 2022
B38: Le pays est-il endémique à la filariose lymphatique (FL) ? | E38: Endémique
B40: Le pays est-il endémique à l'onchocercose (ONCHO) ? | E40: Endémique
B42: Le pays est-il endémique aux géohelminthiases (STH) ? | E42: Endémique
B44: Le pays est-il endémique à la schistosomiase (SCH) ? | E44: Endémique
B46: Combien d'unités administratives compte le pays ? | E46: 197
B47: Si les données démographiques par groupe d'âge ne sont pas disponibles au second niveau administratif, veuillez entrer la proportion (%) de population, par groupe d'âge, du pays. Si les données sont disponibles, veuillez laisser les cellules vierges.
B48: 1-4 ans | C48: Enfants d'âge pré-scolaire (EAPréS) | E48: 0.1264
B49: 5-14 ans | C49: Enfants d'âge scolaire (EAS) | E49: 0.2645
B50: 15 ans et plus | C50: Adultes | E50: 0.5757

Sheet COUNTRY_INFO
A1: INFORMATIONS PAYS
A2: Structure administrative, population par groupe d'âge, statut d'endémicité, interventions planifiées et interventions mises en oeuvre | N2: 149695 | V2: 1.026
A4: TOTAL | D4: =SUM(D$9:D$1000) -> 27686430 | E4: =SUM(E$9:E$1000) -> 5089848.618 | F4: =SUM(F$9:F$1000) -> 7323059 | G4: =SUM(G$9:G$1000) -> 15939066 | M4: =SUM(M$9:M$1000) -> 60644 | N4: =SUM(N$9:N$1000) -> 11789268 | O4: =SUM(O$9:O$1000) -> 3943226.427 | P4: =SUM(P$9:P$1000) -> 5567888.21
A6: Structure administrative du pays | D6: Population | H6: Endémicité | M6: Population nécessitant la CP | Q6: Nombre de tournées de traitement prévues pour l'année | U6: Mise en oeuvre de la chimioprévention | AF6: t1 | AG6: t2 | AH6: t3r1 | AI6: mda3 | AK6: SAC pop
A7: Pays | B7: Région/Département | C7: District | D7: Total | E7: EAPréS | F7: EAS | G7: Adultes | H7: FL | I7: Oncho | J7: STH | K7: SCH | L7: Loa | M7: FL | N7: Oncho | O7: STH | P7: SCH | Q7: FL | R7: Oncho | S7: STH | T7: SCH | U7: TOURNEE 1 | V7: TOURNEE 2 | Y7: IU_ID | Z7: IU_NAME | AF7: x | AG7: x | AH7: x | AI7: x | AT7: x | AU7: x | AX7: x | AY7: x | AZ7: x | BA7: x | BB7: x | BC7: x
A9: =IF(INTRO!$E$34<>0,INTRO!$E$34,"") -> Cameroon | B9: Adamaoua | C9: Bankim | D9: 121756 | E9: 28012.67057 | F9: =IF(INTRO!$E$49="","",ROUND($D9*INTRO!$E$49,0)) -> 32204 | G9: =IF(INTRO!$E$50="","",ROUND($D9*INTRO!$E$50,0)) -> 70095 | H9: 99 | I9: 1 | J9: 2 | K9: 2 | L9: 1 | M9: =IF(INTRO!$E$38="Endémique", IF($H9>0, IF($H9=4,"Inconnu", IF($H9=99,"Interrompu", $D9)), 0),"Non requis") -> Interrompu | N9: 100819 | O9: =IF(INTRO!$E$42="Endémique", IF(AND($J9>1,$J9<5), IF($J9=4, "Inconnu", E9+F9), 0),"Non requis") -> 60216.67057 | P9: =IF(INTRO!$E$44="Endémique", IF(AND($K9>0,$K9<5), IF($K9=4,"Inconnu", IF($K9=1, $F9*0.33, IF($K9=2, $F9*0.5+$G9*0.2, SUM(F9:G9)))), 0),"Non requis") -> 30121 | Q9: 0 | R9: 1 | S9: 1 | T9: 1 | U9: MDA3 (IVM) | V9: T1 (PZQ+ALB/MBD) | Y9: 7420 | Z9: BANKIM | AF9: ='T1'!M9 -> 27080 | AG9: ='T2'!M9 -> 0 | AH9: =T3_R1!L9 -> 15773 | AI9: ='MDA3'!K9 -> 87553 | AJ9: ='MDA3'!N9 -> 0 | AK9: =F9 -> 32204 | AL9: =(AF9+AH9)/AK9*100 -> 133.0673208 | AN9: ='T1'!F9 -> DECEMBRE 2022 | AO9: =T3_R1!F9 -> 44896 | AS9: =_xlfn.XLOOKUP($Y9,[1]COUNTRY_INFO!$Y$9:$Y$197,[1]COUNTRY_INFO!H$9:H$197) -> 99 | AT9: =_xlfn.XLOOKUP($Y9,[1]COUNTRY_INFO!$Y$9:$Y$197,[1]COUNTRY_INFO!I$9:I$197) -> 1 | AU9: =_xlfn.XLOOKUP($Y9,[1]COUNTRY_INFO!$Y$9:$Y$197,[1]COUNTRY_INFO!J$9:J$197) -> 2 | AV9: =_xlfn.XLOOKUP($Y9,[1]COUNTRY_INFO!$Y$9:$Y$197,[1]COUNTRY_INFO!K$9:K$197) -> 2 | AW9: =_xlfn.XLOOKUP($Y9,[1]COUNTRY_INFO!$Y$9:$Y$197,[1]COUNTRY_INFO!L$9:L$197) -> 1 | AX9: =AS9=H9 -> TRUE | AY9: =AT9=I9 -> TRUE | AZ9: =AU9=J9 -> TRUE | BA9: =AV9=K9 -> TRUE | BB9: =AW9=L9 -> TRUE | BE9: =_xlfn.XLOOKUP($Y9,[2]COUNTRY_INFO!$Y$9,[2]COUNTRY_INFO!H$9:H$205) -> 99 | BF9: =_xlfn.XLOOKUP($Y9,[2]COUNTRY_INFO!$Y$9,[2]COUNTRY_INFO!I$9:I$205) -> 1 | BG9: =_xlfn.XLOOKUP($Y9,[2]COUNTRY_INFO!$Y$9,[2]COUNTRY_INFO!J$9:J$205) -> 2 | BH9: =_xlfn.XLOOKUP($Y9,[2]COUNTRY_INFO!$Y$9,[2]COUNTRY_INFO!K$9:K$205) -> 2 | BI9: =BE9=H9 -> TRUE | BJ9: =BF9=I9 -> TRUE | BK9: TRUE | BL9: TRUE
A10: =IF(INTRO!$E$34<>0,INTRO!$E$34,"") -> Cameroon | B10: Adamaoua | C10: Banyo | D10: 167923 | E10: 91598.44055 | F10: =IF(INTRO!$E$49="","",ROUND($D10*INTRO!$E$49,0)) -> 44416 | G10: =IF(INTRO!$E$50="","",ROUND($D10*INTRO!$E$50,0)) -> 96673 | H10: 99 | I10: 1 | J10: 1 | K10: 3 | L10: 1 | M10: =IF(INTRO!$E$38="Endémique", IF($H10>0, IF($H10=4,"Inconnu", IF($H10=99,"Interrompu", $D10)), 0),"Non requis") -> Interrompu | N10: 145146 | O10: =IF(INTRO!$E$42="Endémique", IF(AND($J10>1,$J10<5), IF($J10=4, "Inconnu", E10+F10), 0),"Non requis") -> 0 | P10: =IF(INTRO!$E$44="Endémique", IF(AND($K10>0,$K10<5), IF($K10=4,"Inconnu", IF($K10=1, $F10*0.33, IF($K10=2, $F10*0.5+$G10*0.2, SUM(F10:G10)))), 0),"Non requis") -> 141089 | Q10: 0 | R10: 1 | S10: 1 | T10: 1 | U10: MDA3 (IVM) | V10: T1 (PZQ+ALB/MBD) | Y10: 7421 | Z10: BANYO | AF10: ='T1'!M10 -> 20670 | AG10: ='T2'!M10 -> 0 | AH10: =T3_R1!L10 -> 26332 | AI10: ='MDA3'!K10 -> 140494 | AJ10: ='MDA3'!N10 -> 0 | AK10: =F10 -> 44416 | AL10: =(AF10+AH10)/AK10*100 -> 105.8222262 | AN10: ='T1'!F10 -> DECEMBRE 2022 | AO10: =T3_R1!F10 -> 44896 | AP10: =AN10=AO10 -> FALSE | AS10: =_xlfn.XLOOKUP($Y10,[1]COUNTRY_INFO!$Y$9:$Y$197,[1]COUNTRY_INFO!H$9:H$197) -> 99 | AT10: =_xlfn.XLOOKUP($Y10,[1]COUNTRY_INFO!$Y$9:$Y$197,[1]COUNTRY_INFO!I$9:I$197) -> 1 | AU10: =_xlfn.XLOOKUP($Y10,[1]COUNTRY_INFO!$Y$9:$Y$197,[1]COUNTRY_INFO!J$9:J$197) -> 1 | AV10: =_xlfn.XLOOKUP($Y10,[1]COUNTRY_INFO!$Y$9:$Y$197,[1]COUNTRY_INFO!K$9:K$197) -> 3 | AW10: =_xlfn.XLOOKUP($Y10,[1]COUNTRY_INFO!$Y$9:$Y$197,[1]COUNTRY_INFO!L$9:L$197) -> 1 | AX10: =AS10=H10 -> TRUE | AY10: =AT10=I10 -> TRUE | AZ10: =AU10=J10 -> TRUE | BA10: =AV10=K10 -> TRUE | BB10: =AW10=L10 -> TRUE | BE10: 99 | BF10: 1 | BG10: 1 | BH10: 3 | BI10: =BE10=H10 -> TRUE | BJ10: =BF10=I10 -> TRUE | BK10: =BG10=J10 -> TRUE | BL10: =BH10=K10 -> TRUE
A11: =IF(INTRO!$E$34<>0,INTRO!$E$34,"") -> Cameroon | B11: Adamaoua | C11: Dang | D11: 90593 | E11: 21044.83431 | F11: =IF(INTRO!$E$49="","",ROUND($D11*INTRO!$E$49,0)) -> 23962 | G11: =IF(INTRO!$E$50="","",ROUND($D11*INTRO!$E$50,0)) -> 52154 | H11: 99 | I11: 1 | J11: 1 | K11: 2 | L11: 1 | M11: =IF(INTRO!$E$38="Endémique", IF($H11>0, IF($H11=4,"Inconnu", IF($H11=99,"Interrompu", $D11)), 0),"Non requis") -> Interrompu | N11: 75014 | O11: =IF(INTRO!$E$42="Endémique", IF(AND($J11>1,$J11<5), IF($J11=4, "Inconnu", E11+F11), 0),"Non requis") -> 0 | P11: =IF(INTRO!$E$44="Endémique", IF(AND($K11>0,$K11<5), IF($K11=4,"Inconnu", IF($K11=1, $F11*0.33, IF($K11=2, $F11*0.5+$G11*0.2, SUM(F11:G11)))), 0),"Non requis") -> 22411.8 | Q11: 0 | R11: 1 | S11: 1 | T11: 1 | U11: MDA3 (IVM) | V11: T1 (PZQ+ALB/MBD) | Y11: 7613 | Z11: Dang | AF11: ='T1'!M11 -> 23119 | AG11: ='T2'!M11 -> 0 | AH11: =T3_R1!L11 -> 8096 | AI11: ='MDA3'!K11 -> 69739 | AJ11: ='MDA3'!N11 -> 0 | AK11: 23962 | AL11: 130.2687589 | AN11: ='T1'!F11 -> DECEMBRE 2022 | AO11: =T3_R1!F11 -> 44896 | AP11: =AN11=AO11 -> FALSE | AS11: =_xlfn.XLOOKUP($Y11,[1]COUNTRY_INFO!$Y$9:$Y$197,[1]COUNTRY_INFO!H$9:H$197) ->  | AT11: =_xlfn.XLOOKUP($Y11,[1]COUNTRY_INFO!$Y$9:$Y$197,[1]COUNTRY_INFO!I$9:I$197) ->  | AU11: =_xlfn.XLOOKUP($Y11,[1]COUNTRY_INFO!$Y$9:$Y$197,[1]COUNTRY_INFO!J$9:J$197) ->  | AV11: =_xlfn.XLOOKUP($Y11,[1]COUNTRY_INFO!$Y$9:$Y$197,[1]COUNTRY_INFO!K$9:K$197) ->  | AW11: =_xlfn.XLOOKUP($Y11,[1]COUNTRY_INFO!$Y$9:$Y$197,[1]COUNTRY_INFO!L$9:L$197) ->  | BE11: 99 | BF11: 1 | BG11: 1 | BH11: 2 | BI11: TRUE | BJ11: TRUE | BK11: TRUE | BL11: TRUE
A12: =IF(INTRO!$E$34<>0,INTRO!$E$34,"") -> Cameroon | B12: Adamaoua | C12: Djohong | D12: 83571 | E12: 44451.26706 | F12: =IF(INTRO!$E$49="","",ROUND($D12*INTRO!$E$49,0)) -> 22105 | G12: =IF(INTRO!$E$50="","",ROUND($D12*INTRO!$E$50,0)) -> 48112 | H12: 0 | I12: 1 | J12: 1 | K12: 2 | L12: 1 | M12: =IF(INTRO!$E$38="Endémique", IF($H12>0, IF($H12=4,"Inconnu", IF($H12=99,"Interrompu", $D12)), 0),"Non requis") -> 0 | N12: 69200 | O12: =IF(INTRO!$E$42="Endémique", IF(AND($J12>1,$J12<5), IF($J12=4, "Inconnu", E12+F12), 0),"Non requis") -> 0 | P12: =IF(INTRO!$E$44="Endémique", IF(AND($K12>0,$K12<5), IF($K12=4,"Inconnu", IF($K12=1, $F12*0.33, IF($K12=2, $F12*0.5+$G12*0.2, SUM(F12:G12)))), 0),"Non requis") -> 20674.9 | Q12: 0 | R12: 1 | S12: 1 | T12: 1 | U12: MDA3 (IVM) | V12: T1 (PZQ+ALB/MBD) | Y12: 7422 | Z12: DJOHONG | AF12: ='T1'!M12 -> 21990 | AG12: ='T2'!M12 -> 0 | AH12: =T3_R1!L12 -> 10389 | AI12: ='MDA3'!K12 -> 61392 | AJ12: ='MDA3'!N12 -> 0 | AK12: 22105 | AL12: 146.4781724 | AN12: ='T1'!F12 -> DECEMBRE 2022 | AO12: =T3_R1!F12 -> 44896 | AS12: =_xlfn.XLOOKUP($Y12,[1]COUNTRY_INFO!$Y$9:$Y$197,[1]COUNTRY_INFO!H$9:H$197) -> 0 | AT12: =_xlfn.XLOOKUP($Y12,[1]COUNTRY_INFO!$Y$9:$Y$197,[1]COUNTRY_INFO!I$9:I$197) -> 1 | AU12: =_xlfn.XLOOKUP($Y12,[1]COUNTRY_INFO!$Y$9:$Y$197,[1]COUNTRY_INFO!J$9:J$197) -> 1 | AV12: =_xlfn.XLOOKUP($Y12,[1]COUNTRY_INFO!$Y$9:$Y$197,[1]COUNTRY_INFO!K$9:K$197) -> 2 | AW12: =_xlfn.XLOOKUP($Y12,[1]COUNTRY_INFO!$Y$9:$Y$197,[1]COUNTRY_INFO!L$9:L$197) -> 1 | AX12: TRUE | AY12: TRUE | AZ12: TRUE | BA12: TRUE | BB12: TRUE | BE12: 0 | BF12: 1 | BG12: 1 | BH12: 2 | BI12: TRUE | BJ12: TRUE | BK12: TRUE | BL12: TRUE
A13: =IF(INTRO!$E$34<>0,INTRO!$E$34,"") -> Cameroon | B13: Adamaoua | C13: Meiganga | D13: 174374 | E13: 40624.75634 | F13: =IF(INTRO!$E$49="","",ROUND($D13*INTRO!$E$49,0)) -> 46122 | G13: =IF(INTRO!$E$50="","",ROUND($D13*INTRO!$E$50,0)) -> 100387 | H13: 99 | I13: 1 | J13: 1 | K13: 2 | L13: 1 | M13: =IF(INTRO!$E$38="Endémique", IF($H13>0, IF($H13=4,"Inconnu", IF($H13=99,"Interrompu", $D13)), 0),"Non requis") -> Interrompu | N13: 144388 | O13: =IF(INTRO!$E$42="Endémique", IF(AND($J13>1,$J13<5), IF($J13=4, "Inconnu", E13+F13), 0),"Non requis") -> 0 | P13: =IF(INTRO!$E$44="Endémique", IF(AND($K13>0,$K13<5), IF($K13=4,"Inconnu", IF($K13=1, $F13*0.33, IF($K13=2, $F13*0.5+$G13*0.2, SUM(F13:G13)))), 0),"Non requis") -> 43138.4 | Q13: 0 | R13: 1 | S13: 1 | T13: 1 | U13: MDA3 (IVM) | V13: T1 (PZQ+ALB/MBD) | Y13: 7423 | Z13: MEIGANGA | AF13: ='T1'!M13 -> 27293 | AG13: ='T2'!M13 -> 0 | AH13: =T3_R1!L13 -> 16850 | AI13: ='MDA3'!K13 -> 118993 | AJ13: ='MDA3'!N13 -> 0 | AK13: 46122 | AL13: 95.70920602 | AN13: ='T1'!F13 -> DECEMBRE 2022 | AO13: =T3_R1!F13 -> 44896 | AS13: =_xlfn.XLOOKUP($Y13,[1]COUNTRY_INFO!$Y$9:$Y$197,[1]COUNTRY_INFO!H$9:H$197) -> 99 | AT13: =_xlfn.XLOOKUP($Y13,[1]COUNTRY_INFO!$Y$9:$Y$197,[1]COUNTRY_INFO!I$9:I$197) -> 1 | AU13: =_xlfn.XLOOKUP($Y13,[1]COUNTRY_INFO!$Y$9:$Y$197,[1]COUNTRY_INFO!J$9:J$197) -> 1 | AV13: =_xlfn.XLOOKUP($Y13,[1]COUNTRY_INFO!$Y$9:$Y$197,[1]COUNTRY_INFO!K$9:K$197) -> 2 | AW13: =_xlfn.XLOOKUP($Y13,[1]COUNTRY_INFO!$Y$9:$Y$197,[1]COUNTRY_INFO!L$9:L$197) -> 1 | AX13: TRUE | AY13: TRUE | AZ13: TRUE | BA13: TRUE | BB13: TRUE | BE13: 99 | BF13: 1 | BG13: 1 | BH13: 2 | BI13: TRUE | BJ13: TRUE | BK13: TRUE | BL13: TRUE
A14: =IF(INTRO!$E$34<>0,INTRO!$E$34,"") -> Cameroon | B14: Adamaoua | C14: Ngaoundal | D14: 96482 | E14: 17898.63548 | F14: =IF(INTRO!$E$49="","",ROUND($D14*INTRO!$E$49,0)) -> 25519 | G14: =IF(INTRO!$E$50="","",ROUND($D14*INTRO!$E$50,0)) -> 55545 | H14: 0 | I14: 1 | J14: 1 | K14: 1 | L14: 1 | M14: =IF(INTRO!$E$38="Endémique", IF($H14>0, IF($H14=4,"Inconnu", IF($H14=99,"Interrompu", $D14)), 0),"Non requis") -> 0 | N14: 79891 | O14: =IF(INTRO!$E$42="Endémique", IF(AND($J14>1,$J14<5), IF($J14=4, "Inconnu", E14+F14), 0),"Non requis") -> 0 | P14: =IF(INTRO!$E$44="Endémique", IF(AND($K14>0,$K14<5), IF($K14=4,"Inconnu", IF($K14=1, $F14*0.33, IF($K14=2, $F14*0.5+$G14*0.2, SUM(F14:G14)))), 0),"Non requis") -> 8421.27 | Q14: 0 | R14: 1 | S14: 1 | T14: 1 | U14: MDA3 (IVM) | V14: T1 (PZQ+ALB/MBD) | Y14: 7424 | Z14: NGAOUNDAL | AF14: ='T1'!M14 -> 21392 | AG14: ='T2'!M14 -> 0 | AH14: =T3_R1!L14 -> 3214 | AI14: ='MDA3'!K14 -> 59250 | AJ14: ='MDA3'!N14 -> 0 | AK14: 25519 | AL14: 96.4222736 | AN14: ='T1'!F14 -> DECEMBRE 2022 | AO14: =T3_R1!F14 -> 44896 | AP14: =AN14=AO14 -> FALSE | AS14: =_xlfn.XLOOKUP($Y14,[1]COUNTRY_INFO!$Y$9:$Y$197,[1]COUNTRY_INFO!H$9:H$197) -> 0 | AT14: =_xlfn.XLOOKUP($Y14,[1]COUNTRY_INFO!$Y$9:$Y$197,[1]COUNTRY_INFO!I$9:I$197) -> 1 | AU14: =_xlfn.XLOOKUP($Y14,[1]COUNTRY_INFO!$Y$9:$Y$197,[1]COUNTRY_INFO!J$9:J$197) -> 1 | AV14: =_xlfn.XLOOKUP($Y14,[1]COUNTRY_INFO!$Y$9:$Y$197,[1]COUNTRY_INFO!K$9:K$197) -> 1 | AW14: =_xlfn.XLOOKUP($Y14,[1]COUNTRY_INFO!$Y$9:$Y$197,[1]COUNTRY_INFO!L$9:L$197) -> 1 | AX14: TRUE | AY14: TRUE | AZ14: TRUE | BA14: TRUE | BB14: TRUE | BE14: 0 | BF14: 1 | BG14: 1 | BH14: 1 | BI14: TRUE | BJ14: TRUE | BK14: TRUE | BL14: TRUE
A15: =IF(INTRO!$E$34<>0,INTRO!$E$34,"") -> Cameroon | B15: Adamaoua | C15: Ngaoundere Rural | D15: 169278 | E15: 36191.69795 | F15: =IF(INTRO!$E$49="","",ROUND($D15*INTRO!$E$49,0)) -> 44774 | G15: =IF(INTRO!$E$50="","",ROUND($D15*INTRO!$E$50,0)) -> 97453 | H15: 99 | I15: 1 | J15: 1 | K15: 2 | L15: 1 | M15: =IF(INTRO!$E$38="Endémique", IF($H15>0, IF($H15=4,"Inconnu", IF($H15=99,"Interrompu", $D15)), 0),"Non requis") -> Interrompu | N15: 140169 | O15: =IF(INTRO!$E$42="Endémique", IF(AND($J15>1,$J15<5), IF($J15=4, "Inconnu", E15+F15), 0),"Non requis") -> 0 | P15: =IF(INTRO!$E$44="Endémique", IF(AND($K15>0,$K15<5), IF($K15=4,"Inconnu", IF($K15=1, $F15*0.33, IF($K15=2, $F15*0.5+$G15*0.2, SUM(F15:G15)))), 0),"Non requis") -> 41877.6 | Q15: 0 | R15: 1 | S15: 1 | T15: 1 | U15: MDA3 (IVM) | V15: T1 (PZQ+ALB/MBD) | Y15: 7425 | Z15: NGAOUNDERE RURAL | AF15: ='T1'!M15 -> 24764 | AG15: ='T2'!M15 -> 0 | AH15: =T3_R1!L15 -> 17601 | AI15: ='MDA3'!K15 -> 122212 | AJ15: ='MDA3'!N15 -> 0 | AK15: 44774 | AL15: 94.61964533 | AN15: ='T1'!F15 -> DECEMBRE 2022 | AO15: =T3_R1!F15 -> 44896 | AP15: =AN15=AO15 -> FALSE | AS15: =_xlfn.XLOOKUP($Y15,[1]COUNTRY_INFO!$Y$9:$Y$197,[1]COUNTRY_INFO!H$9:H$197) -> 99 | AT15: =_xlfn.XLOOKUP($Y15,[1]COUNTRY_INFO!$Y$9:$Y$197,[1]COUNTRY_INFO!I$9:I$197) -> 1 | AU15: =_xlfn.XLOOKUP($Y15,[1]COUNTRY_INFO!$Y$9:$Y$197,[1]COUNTRY_INFO!J$9:J$197) -> 1 | AV15: =_xlfn.XLOOKUP($Y15,[1]COUNTRY_INFO!$Y$9:$Y$197,[1]COUNTRY_INFO!K$9:K$197) -> 2 | AW15: =_xlfn.XLOOKUP($Y15,[1]COUNTRY_INFO!$Y$9:$Y$197,[1]COUNTRY_INFO!L$9:L$197) -> 1 | AX15: TRUE | AY15: TRUE | AZ15: TRUE | BA15: TRUE | BB15: TRUE | BE15: 99 | BF15: 1 | BG15: 1 | BH15: 2 | BI15: TRUE | BJ15: TRUE | BK15: TRUE | BL15: TRUE
A16: =IF(INTRO!$E$34<>0,INTRO!$E$34,"") -> Cameroon | B16: Adamaoua | C16: Ngaoundere Urbain | D16: 378641 | E16: 68715.39961 | F16: =IF(INTRO!$E$49="","",ROUND($D16*INTRO!$E$49,0)) -> 100151 | G16: =IF(INTRO!$E$50="","",ROUND($D16*INTRO!$E$50,0)) -> 217984 | H16: 99 | I16: 1 | J16: 1 | K16: 1 | L16: 1 | M16: =IF(INTRO!$E$38="Endémique", IF($H16>0, IF($H16=4,"Inconnu", IF($H16=99,"Interrompu", $D16)), 0),"Non requis") -> Interrompu | N16: 345291 | O16: =IF(INTRO!$E$42="Endémique", IF(AND($J16>1,$J16<5), IF($J16=4, "Inconnu", E16+F16), 0),"Non requis") -> 0 | P16: =IF(INTRO!$E$44="Endémique", IF(AND($K16>0,$K16<5), IF($K16=4,"Inconnu", IF($K16=1, $F16*0.33, IF($K16=2, $F16*0.5+$G16*0.2, SUM(F16:G16)))), 0),"Non requis") -> 33049.83 | Q16: 0 | R16: 1 | S16: 1 | T16: 1 | U16: MDA3 (IVM) | V16: T1 (PZQ+ALB/MBD) | Y16: 7426 | Z16: NGAOUNDERE URBAIN | AF16: ='T1'!M16 -> 31777 | AG16: ='T2'!M16 -> 0 | AH16: =T3_R1!L16 -> 17821 | AI16: ='MDA3'!K16 -> 156252 | AJ16: ='MDA3'!N16 -> 0 | AK16: 100151 | AL16: 49.52321994 | AN16: ='T1'!F16 -> DECEMBRE 2022 | AO16: =T3_R1!F16 -> 44896 | AP16: =AN16=AO16 -> FALSE | AS16: =_xlfn.XLOOKUP($Y16,[1]COUNTRY_INFO!$Y$9:$Y$197,[1]COUNTRY_INFO!H$9:H$197) -> 99 | AT16: =_xlfn.XLOOKUP($Y16,[1]COUNTRY_INFO!$Y$9:$Y$197,[1]COUNTRY_INFO!I$9:I$197) -> 1 | AU16: =_xlfn.XLOOKUP($Y16,[1]COUNTRY_INFO!$Y$9:$Y$197,[1]COUNTRY_INFO!J$9:J$197) -> 1 | AV16: =_xlfn.XLOOKUP($Y16,[1]COUNTRY_INFO!$Y$9:$Y$197,[1]COUNTRY_INFO!K$9:K$197) -> 1 | AW16: =_xlfn.XLOOKUP($Y16,[1]COUNTRY_INFO!$Y$9:$Y$197,[1]COUNTRY_INFO!L$9:L$197) -> 1 | AX16: TRUE | AY16: TRUE | AZ16: TRUE | BA16: TRUE | BB16: TRUE | BE16: 99 | BF16: 1 | BG16: 1 | BH16: 1 | BI16: TRUE | BJ16: TRUE | BK16: TRUE | BL16: TRUE
A17: =IF(INTRO!$E$34<>0,INTRO!$E$34,"") -> Cameroon | B17: Adamaoua | C17: Tibati | D17: 113607 | E17: 23759.25926 | F17: =IF(INTRO!$E$49="","",ROUND($D17*INTRO!$E$49,0)) -> 30049 | G17: =IF(INTRO!$E$50="","",ROUND($D17*INTRO!$E$50,0)) -> 65404 | H17: 0 | I17: 1 | J17: 1 | K17: 1 | L17: 1 | M17: =IF(INTRO!$E$38="Endémique", IF($H17>0, IF($H17=4,"Inconnu", IF($H17=99,"Interrompu", $D17)), 0),"Non requis") -> 0 | N17: 94845 | O17: =IF(INTRO!$E$42="Endémique", IF(AND($J17>1,$J17<5), IF($J17=4, "Inconnu", E17+F17), 0),"Non requis") -> 0 | P17: =IF(INTRO!$E$44="Endémique", IF(AND($K17>0,$K17<5), IF($K17=4,"Inconnu", IF($K17=1, $F17*0.33, IF($K17=2, $F17*0.5+$G17*0.2, SUM(F17:G17)))), 0),"Non requis") -> 9916.17 | Q17: 0 | R17: 1 | S17: 1 | T17: 1 | U17: MDA3 (IVM) | V17: T1 (PZQ+ALB/MBD) | Y17: 7427 | Z17: TIBATI | AF17: ='T1'!M17 -> 30104 | AG17: ='T2'!M17 -> 0 | AH17: =T3_R1!L17 -> 11817 | AI17: ='MDA3'!K17 -> 95746 | AJ17: ='MDA3'!N17 -> 0 | AK17: 30049 | AL17: 139.5088023 | AN17: ='T1'!F17 -> DECEMBRE 2022 | AO17: =T3_R1!F17 -> 44896 | AS17: =_xlfn.XLOOKUP($Y17,[1]COUNTRY_INFO!$Y$9:$Y$197,[1]COUNTRY_INFO!H$9:H$197) -> 0 | AT17: =_xlfn.XLOOKUP($Y17,[1]COUNTRY_INFO!$Y$9:$Y$197,[1]COUNTRY_INFO!I$9:I$197) -> 1 | AU17: =_xlfn.XLOOKUP($Y17,[1]COUNTRY_INFO!$Y$9:$Y$197,[1]COUNTRY_INFO!J$9:J$197) -> 1 | AV17: =_xlfn.XLOOKUP($Y17,[1]COUNTRY_INFO!$Y$9:$Y$197,[1]COUNTRY_INFO!K$9:K$197) -> 1 | AW17: =_xlfn.XLOOKUP($Y17,[1]COUNTRY_INFO!$Y$9:$Y$197,[1]COUNTRY_INFO!L$9:L$197) -> 1 | AX17: TRUE | AY17: TRUE | AZ17: TRUE | BA17: TRUE | BB17: TRUE | BE17: 0 | BF17: 1 | BG17: 1 | BH17: 1 | BI17: TRUE | BJ17: TRUE | BK17: TRUE | BL17: TRUE
A18: =IF(INTRO!$E$34<>0,INTRO!$E$34,"") -> Cameroon | B18: Adamaoua | C18: Tignere | D18: 126770 | E18: 32222.22222 | F18: =IF(INTRO!$E$49="","",ROUND($D18*INTRO!$E$49,0)) -> 33531 | G18: =IF(INTRO!$E$50="","",ROUND($D18*INTRO!$E$50,0)) -> 72981 | H18: 99 | I18: 1 | J18: 1 | K18: 3 | L18: 0 | M18: =IF(INTRO!$E$38="Endémique", IF($H18>0, IF($H18=4,"Inconnu", IF($H18=99,"Interrompu", $D18)), 0),"Non requis") -> Interrompu | N18: 114946 | O18: =IF(INTRO!$E$42="Endémique", IF(AND($J18>1,$J18<5), IF($J18=4, "Inconnu", E18+F18), 0),"Non requis") -> 0 | P18: =IF(INTRO!$E$44="Endémique", IF(AND($K18>0,$K18<5), IF($K18=4,"Inconnu", IF($K18=1, $F18*0.33, IF($K18=2, $F18*0.5+$G18*0.2, SUM(F18:G18)))), 0),"Non requis") -> 106512 | Q18: 0 | R18: 1 | S18: 1 | T18: 1 | U18: MDA3 (IVM) | V18: T1 (PZQ+ALB/MBD) | Y18: 7428 | Z18: TIGNERE | AF18: ='T1'!M18 -> 27539 | AG18: ='T2'!M18 -> 0 | AH18: =T3_R1!L18 -> 13827 | AI18: ='MDA3'!K18 -> 112619 | AJ18: ='MDA3'!N18 -> 0 | AK18: 33531 | AL18: 123.366437 | AN18: ='T1'!F18 -> DECEMBRE 2022 | AO18: =T3_R1!F18 -> 44896 | AS18: =_xlfn.XLOOKUP($Y18,[1]COUNTRY_INFO!$Y$9:$Y$197,[1]COUNTRY_INFO!H$9:H$197) -> 99 | AT18: =_xlfn.XLOOKUP($Y18,[1]COUNTRY_INFO!$Y$9:$Y$197,[1]COUNTRY_INFO!I$9:I$197) -> 1 | AU18: =_xlfn.XLOOKUP($Y18,[1]COUNTRY_INFO!$Y$9:$Y$197,[1]COUNTRY_INFO!J$9:J$197) -> 1 | AV18: =_xlfn.XLOOKUP($Y18,[1]COUNTRY_INFO!$Y$9:$Y$197,[1]COUNTRY_INFO!K$9:K$197) -> 3 | AW18: =_xlfn.XLOOKUP($Y18,[1]COUNTRY_INFO!$Y$9:$Y$197,[1]COUNTRY_INFO!L$9:L$197) -> 0 | AX18: TRUE | AY18: TRUE | AZ18: TRUE | BA18: TRUE | BB18: TRUE | BE18: 99 | BF18: 1 | BG18: 1 | BH18: 3 | BI18: TRUE | BJ18: TRUE | BK18: TRUE | BL18: TRUE
A19: =IF(INTRO!$E$34<>0,INTRO!$E$34,"") -> Cameroon | B19: Centre | C19: Akonolinga | D19: 90565 | E19: 29495.12671 | F19: =IF(INTRO!$E$49="","",ROUND($D19*INTRO!$E$49,0)) -> 23954 | G19: =IF(INTRO!$E$50="","",ROUND($D19*INTRO!$E$50,0)) -> 52138 | H19: 0 | I19: 4 | J19: 3 | K19: 1 | L19: 1 | M19: =IF(INTRO!$E$38="Endémique", IF($H19>0, IF($H19=4,"Inconnu", IF($H19=99,"Interrompu", $D19)), 0),"Non requis") -> 0 | N19: 0 | O19: =IF(INTRO!$E$42="Endémique", IF(AND($J19>1,$J19<5), IF($J19=4, "Inconnu", E19+F19), 0),"Non requis") -> 53449.12671 | P19: =IF(INTRO!$E$44="Endémique", IF(AND($K19>0,$K19<5), IF($K19=4,"Inconnu", IF($K19=1, $F19*0.33, IF($K19=2, $F19*0.5+$G19*0.2, SUM(F19:G19)))), 0),"Non requis") -> 7904.82 | Q19: 0 | R19: 0 | S19: 0 | T19: 0 | V19: T3 (ALB/MBD) | Y19: 7429 | Z19: AKONOLINGA | AF19: ='T1'!M19 -> 0 | AG19: ='T2'!M19 -> 0 | AH19: =T3_R1!L19 -> 0 | AI19: ='MDA3'!K19 -> 0 | AJ19: ='MDA3'!N19 -> 0 | AK19: 23954 | AL19: 0 | AN19: ='T1'!F19 -> 0 | AO19: =T3_R1!F19 -> 44896 | AS19: =_xlfn.XLOOKUP($Y19,[1]COUNTRY_INFO!$Y$9:$Y$197,[1]COUNTRY_INFO!H$9:H$197) -> 0 | AT19: =_xlfn.XLOOKUP($Y19,[1]COUNTRY_INFO!$Y$9:$Y$197,[1]COUNTRY_INFO!I$9:I$197) -> 4 | AU19: =_xlfn.XLOOKUP($Y19,[1]COUNTRY_INFO!$Y$9:$Y$197,[1]COUNTRY_INFO!J$9:J$197) -> 3 | AV19: =_xlfn.XLOOKUP($Y19,[1]COUNTRY_INFO!$Y$9:$Y$197,[1]COUNTRY_INFO!K$9:K$197) -> 1 | AW19: =_xlfn.XLOOKUP($Y19,[1]COUNTRY_INFO!$Y$9:$Y$197,[1]COUNTRY_INFO!L$9:L$197) -> 1 | AX19: TRUE | AY19: TRUE | AZ19: TRUE | BA19: TRUE | BB19: TRUE | BE19: 0 | BF19: 4 | BG19: 3 | BH19: 1 | BI19: TRUE | BJ19: TRUE | BK19: TRUE | BL19: TRUE
A20: =IF(INTRO!$E$34<>0,INTRO!$E$34,"") -> Cameroon | B20: Centre | C20: Awae | D20: 29362 | E20: 6325.536062 | F20: =IF(INTRO!$E$49="","",ROUND($D20*INTRO!$E$49,0)) -> 7766 | G20: =IF(INTRO!$E$50="","",ROUND($D20*INTRO!$E$50,0)) -> 16904 | H20: 0 | I20: 4 | J20: 2 | K20: 0 | L20: 1 | M20: =IF(INTRO!$E$38="Endémique", IF($H20>0, IF($H20=4,"Inconnu", IF($H20=99,"Interrompu", $D20)), 0),"Non requis") -> 0 | N20: 0 | O20: =IF(INTRO!$E$42="Endémique", IF(AND($J20>1,$J20<5), IF($J20=4, "Inconnu", E20+F20), 0),"Non requis") -> 14091.53606 | P20: =IF(INTRO!$E$44="Endémique", IF(AND($K20>0,$K20<5), IF($K20=4,"Inconnu", IF($K20=1, $F20*0.33, IF($K20=2, $F20*0.5+$G20*0.2, SUM(F20:G20)))), 0),"Non requis") -> 0 | Q20: 0 | R20: 0 | S20: 0 | T20: 0 | V20: T3 (ALB/MBD) | Y20: 7430 | Z20: AWAE | AF20: ='T1'!M20 -> 0 | AG20: ='T2'!M20 -> 0 | AH20: =T3_R1!L20 -> 0 | AI20: ='MDA3'!K20 -> 0 | AJ20: ='MDA3'!N20 -> 0 | AK20: 7766 | AL20: 0 | AN20: ='T1'!F20 -> 0 | AO20: =T3_R1!F20 -> 44896 | AS20: =_xlfn.XLOOKUP($Y20,[1]COUNTRY_INFO!$Y$9:$Y$197,[1]COUNTRY_INFO!H$9:H$197) -> 0 | AT20: =_xlfn.XLOOKUP($Y20,[1]COUNTRY_INFO!$Y$9:$Y$197,[1]COUNTRY_INFO!I$9:I$197) -> 4 | AU20: =_xlfn.XLOOKUP($Y20,[1]COUNTRY_INFO!$Y$9:$Y$197,[1]COUNTRY_INFO!J$9:J$197) -> 2 | AV20: =_xlfn.XLOOKUP($Y20,[1]COUNTRY_INFO!$Y$9:$Y$197,[1]COUNTRY_INFO!K$9:K$197) -> 0 | AW20: =_xlfn.XLOOKUP($Y20,[1]COUNTRY_INFO!$Y$9:$Y$197,[1]COUNTRY_INFO!L$9:L$197) -> 1 | AX20: TRUE | AY20: TRUE | AZ20: TRUE | BA20: TRUE | BB20: TRUE | BE20: 0 | BF20: 4 | BG20: 2 | BH20: 0 | BI20: TRUE | BJ20: TRUE | BK20: TRUE | BL20: TRUE
A21: =IF(INTRO!$E$34<>0,INTRO!$E$34,"") -> Cameroon | B21: Centre | C21: Ayos | D21: 44153 | E21: 11691.03314 | F21: =IF(INTRO!$E$49="","",ROUND($D21*INTRO!$E$49,0)) -> 11678 | G21: =IF(INTRO!$E$50="","",ROUND($D21*INTRO!$E$50,0)) -> 25419 | H21: 0 | I21: 4 | J21: 2 | K21: 0 | L21: 1 | M21: =IF(INTRO!$E$38="Endémique", IF($H21>0, IF($H21=4,"Inconnu", IF($H21=99,"Interrompu", $D21)), 0),"Non requis") -> 0 | N21: 0 | O21: =IF(INTRO!$E$42="Endémique", IF(AND($J21>1,$J21<5), IF($J21=4, "Inconnu", E21+F21), 0),"Non requis") -> 23369.03314 | P21: =IF(INTRO!$E$44="Endémique", IF(AND($K21>0,$K21<5), IF($K21=4,"Inconnu", IF($K21=1, $F21*0.33, IF($K21=2, $F21*0.5+$G21*0.2, SUM(F21:G21)))), 0),"Non requis") -> 0 | Q21: 0 | R21: 0 | S21: 1 | T21: 1 | V21: T1 (PZQ+ALB/MBD) | Y21: 7431 | Z21: AYOS | AF21: ='T1'!M21 -> 10448 | AG21: ='T2'!M21 -> 0 | AH21: =T3_R1!L21 -> 1636 | AI21: ='MDA3'!K21 -> 0 | AJ21: ='MDA3'!N21 -> 0 | AK21: 11678 | AL21: 103.4766227 | AN21: ='T1'!F21 -> DECEMBRE 2022 | AO21: =T3_R1!F21 -> 44896 | AP21: =AN21=AO21 -> FALSE | AS21: =_xlfn.XLOOKUP($Y21,[1]COUNTRY_INFO!$Y$9:$Y$197,[1]COUNTRY_INFO!H$9:H$197) -> 0 | AT21: =_xlfn.XLOOKUP($Y21,[1]COUNTRY_INFO!$Y$9:$Y$197,[1]COUNTRY_INFO!I$9:I$197) -> 4 | AU21: =_xlfn.XLOOKUP($Y21,[1]COUNTRY_INFO!$Y$9:$Y$197,[1]COUNTRY_INFO!J$9:J$197) -> 2 | AV21: =_xlfn.XLOOKUP($Y21,[1]COUNTRY_INFO!$Y$9:$Y$197,[1]COUNTRY_INFO!K$9:K$197) -> 0 | AW21: =_xlfn.XLOOKUP($Y21,[1]COUNTRY_INFO!$Y$9:$Y$197,[1]COUNTRY_INFO!L$9:L$197) -> 1 | AX21: TRUE | AY21: TRUE | AZ21: TRUE | BA21: TRUE | BB21: TRUE | BE21: 0 | BF21: 4 | BG21: 2 | BH21: 0 | BI21: TRUE | BJ21: TRUE | BK21: TRUE | BL21: TRUE
A22: =IF(INTRO!$E$34<>0,INTRO!$E$34,"") -> Cameroon | B22: Centre | C22: Bafia | D22: 175129 | E22: 23989.27875 | F22: =IF(INTRO!$E$49="","",ROUND($D22*INTRO!$E$49,0)) -> 46322 | G22: =IF(INTRO!$E$50="","",ROUND($D22*INTRO!$E$50,0)) -> 100822 | H22: 99 | I22: 1 | J22: 1 | K22: 3 | L22: 1 | M22: =IF(INTRO!$E$38="Endémique", IF($H22>0, IF($H22=4,"Inconnu", IF($H22=99,"Interrompu", $D22)), 0),"Non requis") -> Interrompu | N22: 229891 | O22: =IF(INTRO!$E$42="Endémique", IF(AND($J22>1,$J22<5), IF($J22=4, "Inconnu", E22+F22), 0),"Non requis") -> 0 | P22: =IF(INTRO!$E$44="Endémique", IF(AND($K22>0,$K22<5), IF($K22=4,"Inconnu", IF($K22=1, $F22*0.33, IF($K22=2, $F22*0.5+$G22*0.2, SUM(F22:G22)))), 0),"Non requis") -> 147144 | Q22: 0 | R22: 1 | S22: 1 | T22: 1 | U22: MDA3 (IVM) | V22: T1 (PZQ+ALB/MBD) | Y22: 7432 | Z22: BAFIA | AF22: ='T1'!M22 -> 44092 | AG22: ='T2'!M22 -> 0 | AH22: =T3_R1!L22 -> 0 | AI22: ='MDA3'!K22 -> 213379 | AJ22: ='MDA3'!N22 -> 0 | AK22: 46322 | AL22: 95.1858728 | AN22: ='T1'!F22 -> DECEMBRE 2022 | AO22: =T3_R1!F22 -> 44896 | AP22: =AN22=AO22 -> FALSE | AS22: =_xlfn.XLOOKUP($Y22,[1]COUNTRY_INFO!$Y$9:$Y$197,[1]COUNTRY_INFO!H$9:H$197) -> 99 | AT22: =_xlfn.XLOOKUP($Y22,[1]COUNTRY_INFO!$Y$9:$Y$197,[1]COUNTRY_INFO!I$9:I$197) -> 1 | AU22: =_xlfn.XLOOKUP($Y22,[1]COUNTRY_INFO!$Y$9:$Y$197,[1]COUNTRY_INFO!J$9:J$197) -> 1 | AV22: =_xlfn.XLOOKUP($Y22,[1]COUNTRY_INFO!$Y$9:$Y$197,[1]COUNTRY_INFO!K$9:K$197) -> 3 | AW22: =_xlfn.XLOOKUP($Y22,[1]COUNTRY_INFO!$Y$9:$Y$197,[1]COUNTRY_INFO!L$9:L$197) -> 1 | AX22: TRUE | AY22: TRUE | AZ22: TRUE | BA22: TRUE | BB22: TRUE | BE22: 99 | BF22: 1 | BG22: 1 | BH22: 3 | BI22: TRUE | BJ22: TRUE | BK22: TRUE | BL22: TRUE
A23: =IF(INTRO!$E$34<>0,INTRO!$E$34,"") -> Cameroon | B23: Centre | C23: Biyem Assi | D23: 410370 | E23: 91890.83821 | F23: =IF(INTRO!$E$49="","",ROUND($D23*INTRO!$E$49,0)) -> 108543 | G23: =IF(INTRO!$E$50="","",ROUND($D23*INTRO!$E$50,0)) -> 236250 | H23: 0 | I23: 4 | J23: 2 | K23: 1 | L23: 1 | M23: =IF(INTRO!$E$38="Endémique", IF($H23>0, IF($H23=4,"Inconnu", IF($H23=99,"Interrompu", $D23)), 0),"Non requis") -> 0 | N23: 0 | O23: =IF(INTRO!$E$42="Endémique", IF(AND($J23>1,$J23<5), IF($J23=4, "Inconnu", E23+F23), 0),"Non requis") -> 200433.8382 | P23: =IF(INTRO!$E$44="Endémique", IF(AND($K23>0,$K23<5), IF($K23=4,"Inconnu", IF($K23=1, $F23*0.33, IF($K23=2, $F23*0.5+$G23*0.2, SUM(F23:G23)))), 0),"Non requis") -> 35819.19 | Q23: 0 | R23: 0 | S23: 0 | T23: 0 | V23: T3 (ALB/MBD) | Y23: 7433 | Z23: BIYEM ASSI | AF23: ='T1'!M23 -> 0 | AG23: ='T2'!M23 -> 0 | AH23: =T3_R1!L23 -> 0 | AI23: ='MDA3'!K23 -> 0 | AJ23: ='MDA3'!N23 -> 0 | AK23: 108543 | AL23: 0 | AN23: ='T1'!F23 -> 0 | AO23: =T3_R1!F23 -> 44896 | AP23: =AN23=AO23 -> FALSE | AS23: =_xlfn.XLOOKUP($Y23,[1]COUNTRY_INFO!$Y$9:$Y$197,[1]COUNTRY_INFO!H$9:H$197) -> 0 | AT23: =_xlfn.XLOOKUP($Y23,[1]COUNTRY_INFO!$Y$9:$Y$197,[1]COUNTRY_INFO!I$9:I$197) -> 4 | AU23: =_xlfn.XLOOKUP($Y23,[1]COUNTRY_INFO!$Y$9:$Y$197,[1]COUNTRY_INFO!J$9:J$197) -> 2 | AV23: =_xlfn.XLOOKUP($Y23,[1]COUNTRY_INFO!$Y$9:$Y$197,[1]COUNTRY_INFO!K$9:K$197) -> 1 | AW23: =_xlfn.XLOOKUP($Y23,[1]COUNTRY_INFO!$Y$9:$Y$197,[1]COUNTRY_INFO!L$9:L$197) -> 1 | AX23: TRUE | AY23: TRUE | AZ23: TRUE | BA23: TRUE | BB23: TRUE | BE23: 0 | BF23: 4 | BG23: 2 | BH23: 1 | BI23: TRUE | BJ23: TRUE | BK23: TRUE | BL23: TRUE
A24: =IF(INTRO!$E$34<>0,INTRO!$E$34,"") -> Cameroon | B24: Centre | C24: Cite Verte | D24: 458714 | E24: 73812.8655 | F24: =IF(INTRO!$E$49="","",ROUND($D24*INTRO!$E$49,0)) -> 121330 | G24: =IF(INTRO!$E$50="","",ROUND($D24*INTRO!$E$50,0)) -> 264082 | H24: 0 | I24: 4 | J24: 2 | K24: 0 | L24: 1 | M24: =IF(INTRO!$E$38="Endémique", IF($H24>0, IF($H24=4,"Inconnu", IF($H24=99,"Interrompu", $D24)), 0),"Non requis") -> 0 | N24: 0 | O24: =IF(INTRO!$E$42="Endémique", IF(AND($J24>1,$J24<5), IF($J24=4, "Inconnu", E24+F24), 0),"Non requis") -> 195142.8655 | P24: =IF(INTRO!$E$44="Endémique", IF(AND($K24>0,$K24<5), IF($K24=4,"Inconnu", IF($K24=1, $F24*0.33, IF($K24=2, $F24*0.5+$G24*0.2, SUM(F24:G24)))), 0),"Non requis") -> 0 | Q24: 0 | R24: 0 | S24: 1 | T24: 1 | V24: T1 (PZQ+ALB/MBD) | Y24: 7434 | Z24: CITE VERTE | AF24: ='T1'!M24 -> 83678 | AG24: ='T2'!M24 -> 0 | AH24: =T3_R1!L24 -> 13621 | AI24: ='MDA3'!K24 -> 0 | AJ24: ='MDA3'!N24 -> 0 | AK24: 121330 | AL24: 80.19368664 | AN24: ='T1'!F24 -> DECEMBRE 2022 | AO24: =T3_R1!F24 -> 44896 | AS24: =_xlfn.XLOOKUP($Y24,[1]COUNTRY_INFO!$Y$9:$Y$197,[1]COUNTRY_INFO!H$9:H$197) -> 0 | AT24: =_xlfn.XLOOKUP($Y24,[1]COUNTRY_INFO!$Y$9:$Y$197,[1]COUNTRY_INFO!I$9:I$197) -> 4 | AU24: =_xlfn.XLOOKUP($Y24,[1]COUNTRY_INFO!$Y$9:$Y$197,[1]COUNTRY_INFO!J$9:J$197) -> 2 | AV24: =_xlfn.XLOOKUP($Y24,[1]COUNTRY_INFO!$Y$9:$Y$197,[1]COUNTRY_INFO!K$9:K$197) -> 0 | AW24: =_xlfn.XLOOKUP($Y24,[1]COUNTRY_INFO!$Y$9:$Y$197,[1]COUNTRY_INFO!L$9:L$197) -> 1 | AX24: TRUE | AY24: TRUE | AZ24: TRUE | BA24: TRUE | BB24: TRUE | BE24: 0 | BF24: 4 | BG24: 2 | BH24: 0 | BI24: TRUE | BJ24: TRUE | BK24: TRUE | BL24: TRUE
A25: =IF(INTRO!$E$34<>0,INTRO!$E$34,"") -> Cameroon | B25: Centre | C25: Djoungolo | D25: 559193 | E25: 109269.9805 | F25: =IF(INTRO!$E$49="","",ROUND($D25*INTRO!$E$49,0)) -> 147907 | G25: =IF(INTRO!$E$50="","",ROUND($D25*INTRO!$E$50,0)) -> 321927 | H25: 0 | I25: 4 | J25: 1 | K25: 1 | L25: 1 | M25: =IF(INTRO!$E$38="Endémique", IF($H25>0, IF($H25=4,"Inconnu", IF($H25=99,"Interrompu", $D25)), 0),"Non requis") -> 0 | N25: 0 | O25: =IF(INTRO!$E$42="Endémique", IF(AND($J25>1,$J25<5), IF($J25=4, "Inconnu", E25+F25), 0),"Non requis") -> 0 | P25: =IF(INTRO!$E$44="Endémique", IF(AND($K25>0,$K25<5), IF($K25=4,"Inconnu", IF($K25=1, $F25*0.33, IF($K25=2, $F25*0.5+$G25*0.2, SUM(F25:G25)))), 0),"Non requis") -> 48809.31 | Q25: 0 | R25: 0 | S25: 1 | T25: 1 | V25: T1 (PZQ+ALB/MBD) | Y25: 7435 | Z25: DJOUNGOLO | AF25: ='T1'!M25 -> 85410 | AG25: ='T2'!M25 -> 0 | AH25: =T3_R1!L25 -> 2784 | AI25: ='MDA3'!K25 -> 0 | AJ25: ='MDA3'!N25 -> 0 | AK25: 147907 | AL25: 59.62800949 | AN25: ='T1'!F25 -> DECEMBRE 2022 | AO25: =T3_R1!F25 -> 44896 | AP25: =AN25=AO25 -> FALSE | AS25: =_xlfn.XLOOKUP($Y25,[1]COUNTRY_INFO!$Y$9:$Y$197,[1]COUNTRY_INFO!H$9:H$197) -> 0 | AT25: =_xlfn.XLOOKUP($Y25,[1]COUNTRY_INFO!$Y$9:$Y$197,[1]COUNTRY_INFO!I$9:I$197) -> 4 | AU25: =_xlfn.XLOOKUP($Y25,[1]COUNTRY_INFO!$Y$9:$Y$197,[1]COUNTRY_INFO!J$9:J$197) -> 1 | AV25: =_xlfn.XLOOKUP($Y25,[1]COUNTRY_INFO!$Y$9:$Y$197,[1]COUNTRY_INFO!K$9:K$197) -> 1 | AW25: =_xlfn.XLOOKUP($Y25,[1]COUNTRY_INFO!$Y$9:$Y$197,[1]COUNTRY_INFO!L$9:L$197) -> 1 | AX25: TRUE | AY25: TRUE | AZ25: TRUE | BA25: TRUE | BB25: TRUE | BE25: 0 | BF25: 4 | BG25: 1 | BH25: 1 | BI25: TRUE | BJ25: TRUE | BK25: TRUE | BL25: TRUE
A26: =IF(INTRO!$E$34<>0,INTRO!$E$34,"") -> Cameroon | B26: Centre | C26: Ebebda | D26: 23230 | E26: 2993.177388 | F26: =IF(INTRO!$E$49="","",ROUND($D26*INTRO!$E$49,0)) -> 6144 | G26: =IF(INTRO!$E$50="","",ROUND($D26*INTRO!$E$50,0)) -> 13374 | H26: 99 | I26: 1 | J26: 2 | K26: 0 | L26: 1 | M26: =IF(INTRO!$E$38="Endémique", IF($H26>0, IF($H26=4,"Inconnu", IF($H26=99,"Interrompu", $D26)), 0),"Non requis") -> Interrompu | N26: 29986 | O26: =IF(INTRO!$E$42="Endémique", IF(AND($J26>1,$J26<5), IF($J26=4, "Inconnu", E26+F26), 0),"Non requis") -> 9137.177388 | P26: =IF(INTRO!$E$44="Endémique", IF(AND($K26>0,$K26<5), IF($K26=4,"Inconnu", IF($K26=1, $F26*0.33, IF($K26=2, $F26*0.5+$G26*0.2, SUM(F26:G26)))), 0),"Non requis") -> 0 | Q26: 0 | R26: 1 | S26: 0 | T26: 0 | U26: MDA3 (IVM) | V26: T3 (ALB/MBD) | Y26: 7436 | Z26: EBEBDA | AF26: ='T1'!M26 -> 0 | AG26: ='T2'!M26 -> 0 | AH26: =T3_R1!L26 -> 0 | AI26: ='MDA3'!K26 -> 28149 | AJ26: ='MDA3'!N26 -> 0 | AK26: 6144 | AL26: 0 | AN26: ='T1'!F26 -> 0 | AO26: =T3_R1!F26 -> 44896 | AS26: =_xlfn.XLOOKUP($Y26,[1]COUNTRY_INFO!$Y$9:$Y$197,[1]COUNTRY_INFO!H$9:H$197) -> 99 | AT26: =_xlfn.XLOOKUP($Y26,[1]COUNTRY_INFO!$Y$9:$Y$197,[1]COUNTRY_INFO!I$9:I$197) -> 1 | AU26: =_xlfn.XLOOKUP($Y26,[1]COUNTRY_INFO!$Y$9:$Y$197,[1]COUNTRY_INFO!J$9:J$197) -> 2 | AV26: =_xlfn.XLOOKUP($Y26,[1]COUNTRY_INFO!$Y$9:$Y$197,[1]COUNTRY_INFO!K$9:K$197) -> 0 | AW26: =_xlfn.XLOOKUP($Y26,[1]COUNTRY_INFO!$Y$9:$Y$197,[1]COUNTRY_INFO!L$9:L$197) -> 1 | AX26: TRUE | AY26: TRUE | AZ26: TRUE | BA26: TRUE | BB26: TRUE | BE26: 99 | BF26: 1 | BG26: 2 | BH26: 0 | BI26: TRUE | BJ26: TRUE | BK26: TRUE | BL26: TRUE
A27: =IF(INTRO!$E$34<>0,INTRO!$E$34,"") -> Cameroon | B27: Centre | C27: Efoulan | D27: 466577 | E27: 49225.1462 | F27: =IF(INTRO!$E$49="","",ROUND($D27*INTRO!$E$49,0)) -> 123410 | G27: =IF(INTRO!$E$50="","",ROUND($D27*INTRO!$E$50,0)) -> 268608 | H27: 0 | I27: 4 | J27: 1 | K27: 1 | L27: 1 | M27: =IF(INTRO!$E$38="Endémique", IF($H27>0, IF($H27=4,"Inconnu", IF($H27=99,"Interrompu", $D27)), 0),"Non requis") -> 0 | N27: 0 | O27: =IF(INTRO!$E$42="Endémique", IF(AND($J27>1,$J27<5), IF($J27=4, "Inconnu", E27+F27), 0),"Non requis") -> 0 | P27: =IF(INTRO!$E$44="Endémique", IF(AND($K27>0,$K27<5), IF($K27=4,"Inconnu", IF($K27=1, $F27*0.33, IF($K27=2, $F27*0.5+$G27*0.2, SUM(F27:G27)))), 0),"Non requis") -> 40725.3 | Q27: 0 | R27: 0 | S27: 1 | T27: 1 | V27: T1 (PZQ+ALB/MBD) | Y27: 7437 | Z27: EFOULAN | AF27: ='T1'!M27 -> 58561 | AG27: ='T2'!M27 -> 0 | AH27: =T3_R1!L27 -> 4808 | AI27: ='MDA3'!K27 -> 0 | AJ27: ='MDA3'!N27 -> 0 | AK27: 123410 | AL27: 51.34835103 | AN27: ='T1'!F27 -> DECEMBRE 2022 | AO27: =T3_R1!F27 -> 44896 | AP27: =AN27=AO27 -> FALSE | AS27: =_xlfn.XLOOKUP($Y27,[1]COUNTRY_INFO!$Y$9:$Y$197,[1]COUNTRY_INFO!H$9:H$197) -> 0 | AT27: =_xlfn.XLOOKUP($Y27,[1]COUNTRY_INFO!$Y$9:$Y$197,[1]COUNTRY_INFO!I$9:I$197) -> 4 | AU27: =_xlfn.XLOOKUP($Y27,[1]COUNTRY_INFO!$Y$9:$Y$197,[1]COUNTRY_INFO!J$9:J$197) -> 1 | AV27: =_xlfn.XLOOKUP($Y27,[1]COUNTRY_INFO!$Y$9:$Y$197,[1]COUNTRY_INFO!K$9:K$197) -> 1 | AW27: =_xlfn.XLOOKUP($Y27,[1]COUNTRY_INFO!$Y$9:$Y$197,[1]COUNTRY_INFO!L$9:L$197) -> 1 | AX27: TRUE | AY27: TRUE | AZ27: TRUE | BA27: TRUE | BB27: TRUE | BE27: 0 | BF27: 4 | BG27: 1 | BH27: 1 | BI27: TRUE | BJ27: TRUE | BK27: TRUE | BL27: TRUE
A28: =IF(INTRO!$E$34<>0,INTRO!$E$34,"") -> Cameroon | B28: Centre | C28: Elig Mfomo | D28: 17619 | E28: 2302.14425 | F28: =IF(INTRO!$E$49="","",ROUND($D28*INTRO!$E$49,0)) -> 4660 | G28: =IF(INTRO!$E$50="","",ROUND($D28*INTRO!$E$50,0)) -> 10143 | H28: 0 | I28: 1 | J28: 2 | K28: 1 | L28: 1 | M28: =IF(INTRO!$E$38="Endémique", IF($H28>0, IF($H28=4,"Inconnu", IF($H28=99,"Interrompu", $D28)), 0),"Non requis") -> 0 | N28: 17213 | O28: =IF(INTRO!$E$42="Endémique", IF(AND($J28>1,$J28<5), IF($J28=4, "Inconnu", E28+F28), 0),"Non requis") -> 6962.14425 | P28: =IF(INTRO!$E$44="Endémique", IF(AND($K28>0,$K28<5), IF($K28=4,"Inconnu", IF($K28=1, $F28*0.33, IF($K28=2, $F28*0.5+$G28*0.2, SUM(F28:G28)))), 0),"Non requis") -> 1537.8 | Q28: 0 | R28: 1 | S28: 0 | T28: 0 | U28: MDA3 (IVM) | V28: T3 (ALB/MBD) | Y28: 7438 | Z28: ELIG MFOMO | AF28: ='T1'!M28 -> 0 | AG28: ='T2'!M28 -> 0 | AH28: =T3_R1!L28 -> 0 | AI28: ='MDA3'!K28 -> 15942 | AJ28: ='MDA3'!N28 -> 0 | AK28: 4660 | AL28: 0 | AN28: ='T1'!F28 -> 0 | AO28: =T3_R1!F28 -> 44896 | AS28: =_xlfn.XLOOKUP($Y28,[1]COUNTRY_INFO!$Y$9:$Y$197,[1]COUNTRY_INFO!H$9:H$197) -> 0 | AT28: =_xlfn.XLOOKUP($Y28,[1]COUNTRY_INFO!$Y$9:$Y$197,[1]COUNTRY_INFO!I$9:I$197) -> 1 | AU28: =_xlfn.XLOOKUP($Y28,[1]COUNTRY_INFO!$Y$9:$Y$197,[1]COUNTRY_INFO!J$9:J$197) -> 2 | AV28: =_xlfn.XLOOKUP($Y28,[1]COUNTRY_INFO!$Y$9:$Y$197,[1]COUNTRY_INFO!K$9:K$197) -> 1 | AW28: =_xlfn.XLOOKUP($Y28,[1]COUNTRY_INFO!$Y$9:$Y$197,[1]COUNTRY_INFO!L$9:L$197) -> 1 | AX28: TRUE | AY28: TRUE | AZ28: TRUE | BA28: TRUE | BB28: TRUE | BE28: 0 | BF28: 1 | BG28: 2 | BH28: 1 | BI28: TRUE | BJ28: TRUE | BK28: TRUE | BL28: TRUE
A29: =IF(INTRO!$E$34<>0,INTRO!$E$34,"") -> Cameroon | B29: Centre | C29: Eseka | D29: 87046 | E29: 13870.37037 | F29: =IF(INTRO!$E$49="","",ROUND($D29*INTRO!$E$49,0)) -> 23024 | G29: =IF(INTRO!$E$50="","",ROUND($D29*INTRO!$E$50,0)) -> 50112 | H29: 0 | I29: 1 | J29: 1 | K29: 2 | L29: 1 | M29: =IF(INTRO!$E$38="Endémique", IF($H29>0, IF($H29=4,"Inconnu", IF($H29=99,"Interrompu", $D29)), 0),"Non requis") -> 0 | N29: 72898 | O29: =IF(INTRO!$E$42="Endémique", IF(AND($J29>1,$J29<5), IF($J29=4, "Inconnu", E29+F29), 0),"Non requis") -> 0 | P29: =IF(INTRO!$E$44="Endémique", IF(AND($K29>0,$K29<5), IF($K29=4,"Inconnu", IF($K29=1, $F29*0.33, IF($K29=2, $F29*0.5+$G29*0.2, SUM(F29:G29)))), 0),"Non requis") -> 21534.4 | Q29: 0 | R29: 1 | S29: 1 | T29: 1 | U29: MDA3 (IVM) | V29: T1 (PZQ+ALB/MBD) | Y29: 7439 | Z29: ESEKA | AF29: ='T1'!M29 -> 14508 | AG29: ='T2'!M29 -> 0 | AH29: =T3_R1!L29 -> 167 | AI29: ='MDA3'!K29 -> 40584 | AJ29: ='MDA3'!N29 -> 0 | AK29: 23024 | AL29: 63.73783878 | AN29: ='T1'!F29 -> DECEMBRE 2022 | AO29: =T3_R1!F29 -> 44896 | AP29: =AN29=AO29 -> FALSE | AS29: =_xlfn.XLOOKUP($Y29,[1]COUNTRY_INFO!$Y$9:$Y$197,[1]COUNTRY_INFO!H$9:H$197) -> 0 | AT29: =_xlfn.XLOOKUP($Y29,[1]COUNTRY_INFO!$Y$9:$Y$197,[1]COUNTRY_INFO!I$9:I$197) -> 1 | AU29: =_xlfn.XLOOKUP($Y29,[1]COUNTRY_INFO!$Y$9:$Y$197,[1]COUNTRY_INFO!J$9:J$197) -> 1 | AV29: =_xlfn.XLOOKUP($Y29,[1]COUNTRY_INFO!$Y$9:$Y$197,[1]COUNTRY_INFO!K$9:K$197) -> 2 | AW29: =_xlfn.XLOOKUP($Y29,[1]COUNTRY_INFO!$Y$9:$Y$197,[1]COUNTRY_INFO!L$9:L$197) -> 1 | AX29: TRUE | AY29: TRUE | AZ29: TRUE | BA29: TRUE | BB29: TRUE | BE29: 0 | BF29: 1 | BG29: 1 | BH29: 2 | BI29: TRUE | BJ29: TRUE | BK29: TRUE | BL29: TRUE
A30: =IF(INTRO!$E$34<>0,INTRO!$E$34,"") -> Cameroon | B30: Centre | C30: Esse | D30: 27860 | E30: 3977.582846 | F30: =IF(INTRO!$E$49="","",ROUND($D30*INTRO!$E$49,0)) -> 7369 | G30: =IF(INTRO!$E$50="","",ROUND($D30*INTRO!$E$50,0)) -> 16039 | H30: 99 | I30: 1 | J30: 2 | K30: 0 | L30: 1 | M30: =IF(INTRO!$E$38="Endémique", IF($H30>0, IF($H30=4,"Inconnu", IF($H30=99,"Interrompu", $D30)), 0),"Non requis") -> Interrompu | N30: 23332 | O30: =IF(INTRO!$E$42="Endémique", IF(AND($J30>1,$J30<5), IF($J30=4, "Inconnu", E30+F30), 0),"Non requis") -> 11346.58285 | P30: =IF(INTRO!$E$44="Endémique", IF(AND($K30>0,$K30<5), IF($K30=4,"Inconnu", IF($K30=1, $F30*0.33, IF($K30=2, $F30*0.5+$G30*0.2, SUM(F30:G30)))), 0),"Non requis") -> 0 | Q30: 0 | R30: 1 | S30: 0 | T30: 0 | U30: MDA3 (IVM) | V30: T3 (ALB/MBD) | Y30: 7440 | Z30: ESSE | AF30: ='T1'!M30 -> 0 | AG30: ='T2'!M30 -> 0 | AH30: =T3_R1!L30 -> 0 | AI30: ='MDA3'!K30 -> 11917 | AJ30: ='MDA3'!N30 -> 0 | AK30: 7369 | AL30: 0 | AN30: ='T1'!F30 -> 0 | AO30: =T3_R1!F30 -> 44896 | AS30: =_xlfn.XLOOKUP($Y30,[1]COUNTRY_INFO!$Y$9:$Y$197,[1]COUNTRY_INFO!H$9:H$197) -> 99 | AT30: =_xlfn.XLOOKUP($Y30,[1]COUNTRY_INFO!$Y$9:$Y$197,[1]COUNTRY_INFO!I$9:I$197) -> 1 | AU30: =_xlfn.XLOOKUP($Y30,[1]COUNTRY_INFO!$Y$9:$Y$197,[1]COUNTRY_INFO!J$9:J$197) -> 2 | AV30: =_xlfn.XLOOKUP($Y30,[1]COUNTRY_INFO!$Y$9:$Y$197,[1]COUNTRY_INFO!K$9:K$197) -> 0 | AW30: =_xlfn.XLOOKUP($Y30,[1]COUNTRY_INFO!$Y$9:$Y$197,[1]COUNTRY_INFO!L$9:L$197) -> 1 | AX30: TRUE | AY30: TRUE | AZ30: TRUE | BA30: TRUE | BB30: TRUE | BE30: 99 | BF30: 1 | BG30: 2 | BH30: 0 | BI30: TRUE | BJ30: TRUE | BK30: TRUE | BL30: TRUE
A31: =IF(INTRO!$E$34<>0,INTRO!$E$34,"") -> Cameroon | B31: Centre | C31: Evodoula | D31: 21819 | E31: 3836.25731 | F31: =IF(INTRO!$E$49="","",ROUND($D31*INTRO!$E$49,0)) -> 5771 | G31: =IF(INTRO!$E$50="","",ROUND($D31*INTRO!$E$50,0)) -> 12561 | H31: 99 | I31: 1 | J31: 2 | K31: 0 | L31: 1 | M31: =IF(INTRO!$E$38="Endémique", IF($H31>0, IF($H31=4,"Inconnu", IF($H31=99,"Interrompu", $D31)), 0),"Non requis") -> Interrompu | N31: 26226 | O31: =IF(INTRO!$E$42="Endémique", IF(AND($J31>1,$J31<5), IF($J31=4, "Inconnu", E31+F31), 0),"Non requis") -> 9607.25731 | P31: =IF(INTRO!$E$44="Endémique", IF(AND($K31>0,$K31<5), IF($K31=4,"Inconnu", IF($K31=1, $F31*0.33, IF($K31=2, $F31*0.5+$G31*0.2, SUM(F31:G31)))), 0),"Non requis") -> 0 | Q31: 0 | R31: 1 | S31: 0 | T31: 0 | U31: MDA3 (IVM) | V31: T3 (ALB/MBD) | Y31: 7441 | Z31: EVODOULA | AF31: ='T1'!M31 -> 0 | AG31: ='T2'!M31 -> 0 | AH31: =T3_R1!L31 -> 0 | AI31: ='MDA3'!K31 -> 24781 | AJ31: ='MDA3'!N31 -> 0 | AK31: 5771 | AL31: 0 | AN31: ='T1'!F31 -> 0 | AO31: =T3_R1!F31 -> 44896 | AS31: =_xlfn.XLOOKUP($Y31,[1]COUNTRY_INFO!$Y$9:$Y$197,[1]COUNTRY_INFO!H$9:H$197) -> 99 | AT31: =_xlfn.XLOOKUP($Y31,[1]COUNTRY_INFO!$Y$9:$Y$197,[1]COUNTRY_INFO!I$9:I$197) -> 1 | AU31: =_xlfn.XLOOKUP($Y31,[1]COUNTRY_INFO!$Y$9:$Y$197,[1]COUNTRY_INFO!J$9:J$197) -> 2 | AV31: =_xlfn.XLOOKUP($Y31,[1]COUNTRY_INFO!$Y$9:$Y$197,[1]COUNTRY_INFO!K$9:K$197) -> 0 | AW31: =_xlfn.XLOOKUP($Y31,[1]COUNTRY_INFO!$Y$9:$Y$197,[1]COUNTRY_INFO!L$9:L$197) -> 1 | AX31: TRUE | AY31: TRUE | AZ31: TRUE | BA31: TRUE | BB31: TRUE | BE31: 99 | BF31: 1 | BG31: 2 | BH31: 0 | BI31: TRUE | BJ31: TRUE | BK31: TRUE | BL31: TRUE
A32: =IF(INTRO!$E$34<>0,INTRO!$E$34,"") -> Cameroon | B32: Centre | C32: Mbalmayo | D32: 130398 | E32: 19539.96101 | F32: =IF(INTRO!$E$49="","",ROUND($D32*INTRO!$E$49,0)) -> 34490 | G32: =IF(INTRO!$E$50="","",ROUND($D32*INTRO!$E$50,0)) -> 75070 | H32: 0 | I32: 4 | J32: 2 | K32: 1 | L32: 1 | M32: =IF(INTRO!$E$38="Endémique", IF($H32>0, IF($H32=4,"Inconnu", IF($H32=99,"Interrompu", $D32)), 0),"Non requis") -> 0 | N32: 0 | O32: =IF(INTRO!$E$42="Endémique", IF(AND($J32>1,$J32<5), IF($J32=4, "Inconnu", E32+F32), 0),"Non requis") -> 54029.96101 | P32: =IF(INTRO!$E$44="Endémique", IF(AND($K32>0,$K32<5), IF($K32=4,"Inconnu", IF($K32=1, $F32*0.33, IF($K32=2, $F32*0.5+$G32*0.2, SUM(F32:G32)))), 0),"Non requis") -> 11381.7 | Q32: 0 | R32: 0 | S32: 1 | T32: 1 | V32: T1 (PZQ+ALB/MBD) | Y32: 7442 | Z32: MBALMAYO | AF32: ='T1'!M32 -> 26272 | AG32: ='T2'!M32 -> 0 | AH32: =T3_R1!L32 -> 323 | AI32: ='MDA3'!K32 -> 0 | AJ32: ='MDA3'!N32 -> 0 | AK32: 34490 | AL32: 77.10930705 | AN32: ='T1'!F32 -> DECEMBRE 2022 | AO32: =T3_R1!F32 -> 44896 | AP32: =AN32=AO32 -> FALSE | AS32: =_xlfn.XLOOKUP($Y32,[1]COUNTRY_INFO!$Y$9:$Y$197,[1]COUNTRY_INFO!H$9:H$197) -> 0 | AT32: =_xlfn.XLOOKUP($Y32,[1]COUNTRY_INFO!$Y$9:$Y$197,[1]COUNTRY_INFO!I$9:I$197) -> 4 | AU32: =_xlfn.XLOOKUP($Y32,[1]COUNTRY_INFO!$Y$9:$Y$197,[1]COUNTRY_INFO!J$9:J$197) -> 2 | AV32: =_xlfn.XLOOKUP($Y32,[1]COUNTRY_INFO!$Y$9:$Y$197,[1]COUNTRY_INFO!K$9:K$197) -> 1 | AW32: =_xlfn.XLOOKUP($Y32,[1]COUNTRY_INFO!$Y$9:$Y$197,[1]COUNTRY_INFO!L$9:L$197) -> 1 | AX32: TRUE | AY32: TRUE | AZ32: TRUE | BA32: TRUE | BB32: TRUE | BE32: 0 | BF32: 4 | BG32: 2 | BH32: 1 | BI32: TRUE | BJ32: TRUE | BK32: TRUE | BL32: TRUE
A33: =IF(INTRO!$E$34<>0,INTRO!$E$34,"") -> Cameroon | B33: Centre | C33: Mbandjock | D33: 63470 | E33: 8465.88694 | F33: =IF(INTRO!$E$49="","",ROUND($D33*INTRO!$E$49,0)) -> 16788 | G33: =IF(INTRO!$E$50="","",ROUND($D33*INTRO!$E$50,0)) -> 36540 | H33: 99 | I33: 1 | J33: 1 | K33: 1 | L33: 1 | M33: =IF(INTRO!$E$38="Endémique", IF($H33>0, IF($H33=4,"Inconnu", IF($H33=99,"Interrompu", $D33)), 0),"Non requis") -> Interrompu | N33: 65823 | O33: =IF(INTRO!$E$42="Endémique", IF(AND($J33>1,$J33<5), IF($J33=4, "Inconnu", E33+F33), 0),"Non requis") -> 0 | P33: =IF(INTRO!$E$44="Endémique", IF(AND($K33>0,$K33<5), IF($K33=4,"Inconnu", IF($K33=1, $F33*0.33, IF($K33=2, $F33*0.5+$G33*0.2, SUM(F33:G33)))), 0),"Non requis") -> 5540.04 | Q33: 0 | R33: 1 | S33: 0 | T33: 0 | U33: MDA3 (IVM) | V33: T3 (ALB/MBD) | Y33: 7443 | Z33: MBANDJOCK | AF33: ='T1'!M33 -> 0 | AG33: ='T2'!M33 -> 0 | AH33: =T3_R1!L33 -> 0 | AI33: ='MDA3'!K33 -> 64828 | AJ33: ='MDA3'!N33 -> 0 | AK33: 16788 | AL33: 0 | AN33: ='T1'!F33 -> 0 | AO33: =T3_R1!F33 -> 44896 | AS33: =_xlfn.XLOOKUP($Y33,[1]COUNTRY_INFO!$Y$9:$Y$197,[1]COUNTRY_INFO!H$9:H$197) -> 99 | AT33: =_xlfn.XLOOKUP($Y33,[1]COUNTRY_INFO!$Y$9:$Y$197,[1]COUNTRY_INFO!I$9:I$197) -> 1 | AU33: =_xlfn.XLOOKUP($Y33,[1]COUNTRY_INFO!$Y$9:$Y$197,[1]COUNTRY_INFO!J$9:J$197) -> 1 | AV33: =_xlfn.XLOOKUP($Y33,[1]COUNTRY_INFO!$Y$9:$Y$197,[1]COUNTRY_INFO!K$9:K$197) -> 1 | AW33: =_xlfn.XLOOKUP($Y33,[1]COUNTRY_INFO!$Y$9:$Y$197,[1]COUNTRY_INFO!L$9:L$197) -> 1 | AX33: TRUE | AY33: TRUE | AZ33: TRUE | BA33: TRUE | BB33: TRUE | BE33: 99 | BF33: 1 | BG33: 1 | BH33: 1 | BI33: TRUE | BJ33: TRUE | BK33: TRUE | BL33: TRUE
A34: =IF(INTRO!$E$34<>0,INTRO!$E$34,"") -> Cameroon | B34: Centre | C34: Mbankomo | D34: 33575 | E34: 5866.471735 | F34: =IF(INTRO!$E$49="","",ROUND($D34*INTRO!$E$49,0)) -> 8881 | G34: =IF(INTRO!$E$50="","",ROUND($D34*INTRO!$E$50,0)) -> 19329 | H34: 0 | I34: 4 | J34: 2 | K34: 1 | L34: 1 | M34: =IF(INTRO!$E$38="Endémique", IF($H34>0, IF($H34=4,"Inconnu", IF($H34=99,"Interrompu", $D34)), 0),"Non requis") -> 0 | N34: 0 | O34: =IF(INTRO!$E$42="Endémique", IF(AND($J34>1,$J34<5), IF($J34=4, "Inconnu", E34+F34), 0),"Non requis") -> 14747.47173 | P34: =IF(INTRO!$E$44="Endémique", IF(AND($K34>0,$K34<5), IF($K34=4,"Inconnu", IF($K34=1, $F34*0.33, IF($K34=2, $F34*0.5+$G34*0.2, SUM(F34:G34)))), 0),"Non requis") -> 2930.73 | Q34: 0 | R34: 0 | S34: 1 | T34: 1 | V34: T1 (PZQ+ALB/MBD) | Y34: 7444 | Z34: MBANKOMO | AF34: ='T1'!M34 -> 7841 | AG34: ='T2'!M34 -> 0 | AH34: =T3_R1!L34 -> 0 | AI34: ='MDA3'!K34 -> 0 | AJ34: ='MDA3'!N34 -> 0 | AK34: 8881 | AL34: 88.28960703 | AN34: ='T1'!F34 -> DECEMBRE 2022 | AO34: =T3_R1!F34 -> 44896 | AP34: =AN34=AO34 -> FALSE | AS34: =_xlfn.XLOOKUP($Y34,[1]COUNTRY_INFO!$Y$9:$Y$197,[1]COUNTRY_INFO!H$9:H$197) -> 0 | AT34: =_xlfn.XLOOKUP($Y34,[1]COUNTRY_INFO!$Y$9:$Y$197,[1]COUNTRY_INFO!I$9:I$197) -> 4 | AU34: =_xlfn.XLOOKUP($Y34,[1]COUNTRY_INFO!$Y$9:$Y$197,[1]COUNTRY_INFO!J$9:J$197) -> 2 | AV34: =_xlfn.XLOOKUP($Y34,[1]COUNTRY_INFO!$Y$9:$Y$197,[1]COUNTRY_INFO!K$9:K$197) -> 1 | AW34: =_xlfn.XLOOKUP($Y34,[1]COUNTRY_INFO!$Y$9:$Y$197,[1]COUNTRY_INFO!L$9:L$197) -> 1 | AX34: TRUE | AY34: TRUE | AZ34: TRUE | BA34: TRUE | BB34: TRUE | BE34: 0 | BF34: 4 | BG34: 2 | BH34: 1 | BI34: TRUE | BJ34: TRUE | BK34: TRUE | BL34: TRUE
A35: =IF(INTRO!$E$34<>0,INTRO!$E$34,"") -> Cameroon | B35: Centre | C35: Mfou | D35: 110442 | E35: 26277.77778 | F35: =IF(INTRO!$E$49="","",ROUND($D35*INTRO!$E$49,0)) -> 29212 | G35: =IF(INTRO!$E$50="","",ROUND($D35*INTRO!$E$50,0)) -> 63581 | H35: 0 | I35: 4 | J35: 2 | K35: 1 | L35: 1 | M35: =IF(INTRO!$E$38="Endémique", IF($H35>0, IF($H35=4,"Inconnu", IF($H35=99,"Interrompu", $D35)), 0),"Non requis") -> 0 | N35: 0 | O35: =IF(INTRO!$E$42="Endémique", IF(AND($J35>1,$J35<5), IF($J35=4, "Inconnu", E35+F35), 0),"Non requis") -> 55489.77778 | P35: =IF(INTRO!$E$44="Endémique", IF(AND($K35>0,$K35<5), IF($K35=4,"Inconnu", IF($K35=1, $F35*0.33, IF($K35=2, $F35*0.5+$G35*0.2, SUM(F35:G35)))), 0),"Non requis") -> 9639.96 | Q35: 0 | R35: 0 | S35: 1 | T35: 1 | V35: T1 (PZQ+ALB/MBD) | Y35: 7445 | Z35: MFOU | AF35: ='T1'!M35 -> 24183 | AG35: ='T2'!M35 -> 0 | AH35: =T3_R1!L35 -> 2189 | AI35: ='MDA3'!K35 -> 0 | AJ35: ='MDA3'!N35 -> 0 | AK35: 29212 | AL35: 90.27796796 | AN35: ='T1'!F35 -> DECEMBRE 2022 | AO35: =T3_R1!F35 -> 44896 | AP35: =AN35=AO35 -> FALSE | AS35: =_xlfn.XLOOKUP($Y35,[1]COUNTRY_INFO!$Y$9:$Y$197,[1]COUNTRY_INFO!H$9:H$197) -> 0 | AT35: =_xlfn.XLOOKUP($Y35,[1]COUNTRY_INFO!$Y$9:$Y$197,[1]COUNTRY_INFO!I$9:I$197) -> 4 | AU35: =_xlfn.XLOOKUP($Y35,[1]COUNTRY_INFO!$Y$9:$Y$197,[1]COUNTRY_INFO!J$9:J$197) -> 2 | AV35: =_xlfn.XLOOKUP($Y35,[1]COUNTRY_INFO!$Y$9:$Y$197,[1]COUNTRY_INFO!K$9:K$197) -> 1 | AW35: =_xlfn.XLOOKUP($Y35,[1]COUNTRY_INFO!$Y$9:$Y$197,[1]COUNTRY_INFO!L$9:L$197) -> 1 | AX35: TRUE | AY35: TRUE | AZ35: TRUE | BA35: TRUE | BB35: TRUE | BE35: 0 | BF35: 4 | BG35: 2 | BH35: 1 | BI35: TRUE | BJ35: TRUE | BK35: TRUE | BL35: TRUE
A36: =IF(INTRO!$E$34<>0,INTRO!$E$34,"") -> Cameroon | B36: Centre | C36: Monatele | D36: 52622 | E36: 6354.775828 | F36: =IF(INTRO!$E$49="","",ROUND($D36*INTRO!$E$49,0)) -> 13919 | G36: =IF(INTRO!$E$50="","",ROUND($D36*INTRO!$E$50,0)) -> 30294 | H36: 99 | I36: 1 | J36: 2 | K36: 0 | L36: 1 | M36: =IF(INTRO!$E$38="Endémique", IF($H36>0, IF($H36=4,"Inconnu", IF($H36=99,"Interrompu", $D36)), 0),"Non requis") -> Interrompu | N36: 64754 | O36: =IF(INTRO!$E$42="Endémique", IF(AND($J36>1,$J36<5), IF($J36=4, "Inconnu", E36+F36), 0),"Non requis") -> 20273.77583 | P36: =IF(INTRO!$E$44="Endémique", IF(AND($K36>0,$K36<5), IF($K36=4,"Inconnu", IF($K36=1, $F36*0.33, IF($K36=2, $F36*0.5+$G36*0.2, SUM(F36:G36)))), 0),"Non requis") -> 0 | Q36: 0 | R36: 1 | S36: 0 | T36: 0 | U36: MDA3 (IVM) | V36: T3 (ALB/MBD) | Y36: 7446 | Z36: MONATELE | AF36: ='T1'!M36 -> 0 | AG36: ='T2'!M36 -> 0 | AH36: =T3_R1!L36 -> 0 | AI36: ='MDA3'!K36 -> 60489 | AJ36: ='MDA3'!N36 -> 0 | AK36: 13919 | AL36: 0 | AN36: ='T1'!F36 -> 0 | AO36: =T3_R1!F36 -> 44896 | AS36: =_xlfn.XLOOKUP($Y36,[1]COUNTRY_INFO!$Y$9:$Y$197,[1]COUNTRY_INFO!H$9:H$197) -> 99 | AT36: =_xlfn.XLOOKUP($Y36,[1]COUNTRY_INFO!$Y$9:$Y$197,[1]COUNTRY_INFO!I$9:I$197) -> 1 | AU36: =_xlfn.XLOOKUP($Y36,[1]COUNTRY_INFO!$Y$9:$Y$197,[1]COUNTRY_INFO!J$9:J$197) -> 2 | AV36: =_xlfn.XLOOKUP($Y36,[1]COUNTRY_INFO!$Y$9:$Y$197,[1]COUNTRY_INFO!K$9:K$197) -> 0 | AW36: =_xlfn.XLOOKUP($Y36,[1]COUNTRY_INFO!$Y$9:$Y$197,[1]COUNTRY_INFO!L$9:L$197) -> 1 | AX36: TRUE | AY36: TRUE | AZ36: TRUE | BA36: TRUE | BB36: TRUE | BE36: 99 | BF36: 1 | BG36: 2 | BH36: 0 | BI36: TRUE | BJ36: TRUE | BK36: TRUE | BL36: TRUE
A37: =IF(INTRO!$E$34<>0,INTRO!$E$34,"") -> Cameroon | B37: Centre | C37: Mvog-Ada | D37: 400358 | E37: 76820.66277 | F37: =IF(INTRO!$E$49="","",ROUND($D37*INTRO!$E$49,0)) -> 105895 | G37: =IF(INTRO!$E$50="","",ROUND($D37*INTRO!$E$50,0)) -> 230486 | H37: 0 | I37: 4 | J37: 1 | K37: 1 | L37: 1 | M37: =IF(INTRO!$E$38="Endémique", IF($H37>0, IF($H37=4,"Inconnu", IF($H37=99,"Interrompu", $D37)), 0),"Non requis") -> 0 | N37: 0 | O37: =IF(INTRO!$E$42="Endémique", IF(AND($J37>1,$J37<5), IF($J37=4, "Inconnu", E37+F37), 0),"Non requis") -> 0 | P37: =IF(INTRO!$E$44="Endémique", IF(AND($K37>0,$K37<5), IF($K37=4,"Inconnu", IF($K37=1, $F37*0.33, IF($K37=2, $F37*0.5+$G37*0.2, SUM(F37:G37)))), 0),"Non requis") -> 34945.35 | Q37: 0 | R37: 0 | S37: 1 | T37: 1 | V37: T1 (PZQ+ALB/MBD) | Y37: 7610 | Z37: Mvog-Ada | AF37: ='T1'!M37 -> 48463 | AG37: ='T2'!M37 -> 0 | AH37: =T3_R1!L37 -> 2668 | AI37: ='MDA3'!K37 -> 0 | AJ37: ='MDA3'!N37 -> 0 | AK37: 105895 | AL37: 48.28462156 | AN37: ='T1'!F37 -> DECEMBRE 2022 | AO37: =T3_R1!F37 -> 44896 | AP37: =AN37=AO37 -> FALSE | AS37: =_xlfn.XLOOKUP($Y37,[1]COUNTRY_INFO!$Y$9:$Y$197,[1]COUNTRY_INFO!H$9:H$197) ->  | AT37: =_xlfn.XLOOKUP($Y37,[1]COUNTRY_INFO!$Y$9:$Y$197,[1]COUNTRY_INFO!I$9:I$197) ->  | AU37: =_xlfn.XLOOKUP($Y37,[1]COUNTRY_INFO!$Y$9:$Y$197,[1]COUNTRY_INFO!J$9:J$197) ->  | AV37: =_xlfn.XLOOKUP($Y37,[1]COUNTRY_INFO!$Y$9:$Y$197,[1]COUNTRY_INFO!K$9:K$197) ->  | AW37: =_xlfn.XLOOKUP($Y37,[1]COUNTRY_INFO!$Y$9:$Y$197,[1]COUNTRY_INFO!L$9:L$197) ->  | BE37: 0 | BF37: 4 | BG37: 1 | BH37: 1 | BI37: TRUE | BJ37: TRUE | BK37: TRUE | BL37: TRUE
A38: =IF(INTRO!$E$34<>0,INTRO!$E$34,"") -> Cameroon | B38: Centre | C38: Nanga Eboko | D38: 68444 | E38: 17219.29825 | F38: =IF(INTRO!$E$49="","",ROUND($D38*INTRO!$E$49,0)) -> 18103 | G38: =IF(INTRO!$E$50="","",ROUND($D38*INTRO!$E$50,0)) -> 39403 | H38: 99 | I38: 1 | J38: 2 | K38: 1 | L38: 1 | M38: =IF(INTRO!$E$38="Endémique", IF($H38>0, IF($H38=4,"Inconnu", IF($H38=99,"Interrompu", $D38)), 0),"Non requis") -> Interrompu | N38: 72876 | O38: =IF(INTRO!$E$42="Endémique", IF(AND($J38>1,$J38<5), IF($J38=4, "Inconnu", E38+F38), 0),"Non requis") -> 35322.29825 | P38: =IF(INTRO!$E$44="Endémique", IF(AND($K38>0,$K38<5), IF($K38=4,"Inconnu", IF($K38=1, $F38*0.33, IF($K38=2, $F38*0.5+$G38*0.2, SUM(F38:G38)))), 0),"Non requis") -> 5973.99 | Q38: 0 | R38: 1 | S38: 0 | T38: 0 | U38: MDA3 (IVM) | V38: T3 (ALB/MBD) | Y38: 7447 | Z38: NANGA EBOKO | AF38: ='T1'!M38 -> 0 | AG38: ='T2'!M38 -> 0 | AH38: =T3_R1!L38 -> 0 | AI38: ='MDA3'!K38 -> 67128 | AJ38: ='MDA3'!N38 -> 0 | AK38: 18103 | AL38: 0 | AN38: ='T1'!F38 -> 0 | AO38: =T3_R1!F38 -> 44896 | AS38: =_xlfn.XLOOKUP($Y38,[1]COUNTRY_INFO!$Y$9:$Y$197,[1]COUNTRY_INFO!H$9:H$197) -> 99 | AT38: =_xlfn.XLOOKUP($Y38,[1]COUNTRY_INFO!$Y$9:$Y$197,[1]COUNTRY_INFO!I$9:I$197) -> 1 | AU38: =_xlfn.XLOOKUP($Y38,[1]COUNTRY_INFO!$Y$9:$Y$197,[1]COUNTRY_INFO!J$9:J$197) -> 2 | AV38: =_xlfn.XLOOKUP($Y38,[1]COUNTRY_INFO!$Y$9:$Y$197,[1]COUNTRY_INFO!K$9:K$197) -> 1 | AW38: =_xlfn.XLOOKUP($Y38,[1]COUNTRY_INFO!$Y$9:$Y$197,[1]COUNTRY_INFO!L$9:L$197) -> 1 | AX38: TRUE | AY38: TRUE | AZ38: TRUE | BA38: TRUE | BB38: TRUE | BE38: 99 | BF38: 1 | BG38: 2 | BH38: 1 | BI38: TRUE | BJ38: TRUE | BK38: TRUE | BL38: TRUE
A39: =IF(INTRO!$E$34<>0,INTRO!$E$34,"") -> Cameroon | B39: Centre | C39: Ndikinimeki | D39: 48306 | E39: 6509.746589 | F39: =IF(INTRO!$E$49="","",ROUND($D39*INTRO!$E$49,0)) -> 12777 | G39: =IF(INTRO!$E$50="","",ROUND($D39*INTRO!$E$50,0)) -> 27810 | H39: 99 | I39: 1 | J39: 2 | K39: 3 | L39: 1 | M39: =IF(INTRO!$E$38="Endémique", IF($H39>0, IF($H39=4,"Inconnu", IF($H39=99,"Interrompu", $D39)), 0),"Non requis") -> Interrompu | N39: 40455 | O39: =IF(INTRO!$E$42="Endémique", IF(AND($J39>1,$J39<5), IF($J39=4, "Inconnu", E39+F39), 0),"Non requis") -> 19286.74659 | P39: =IF(INTRO!$E$44="Endémique", IF(AND($K39>0,$K39<5), IF($K39=4,"Inconnu", IF($K39=1, $F39*0.33, IF($K39=2, $F39*0.5+$G39*0.2, SUM(F39:G39)))), 0),"Non requis") -> 40587 | Q39: 0 | R39: 1 | S39: 1 | T39: 1 | U39: MDA3 (IVM) | V39: T1 (PZQ+ALB/MBD) | Y39: 7448 | Z39: NDIKINIMEKI | AF39: ='T1'!M39 -> 10108 | AG39: ='T2'!M39 -> 0 | AH39: =T3_R1!L39 -> 0 | AI39: ='MDA3'!K39 -> 31215 | AJ39: ='MDA3'!N39 -> 0 | AK39: 12777 | AL39: 79.1109024 | AN39: ='T1'!F39 -> DECEMBRE 2022 | AO39: =T3_R1!F39 -> 44896 | AS39: =_xlfn.XLOOKUP($Y39,[1]COUNTRY_INFO!$Y$9:$Y$197,[1]COUNTRY_INFO!H$9:H$197) -> 99 | AT39: =_xlfn.XLOOKUP($Y39,[1]COUNTRY_INFO!$Y$9:$Y$197,[1]COUNTRY_INFO!I$9:I$197) -> 1 | AU39: =_xlfn.XLOOKUP($Y39,[1]COUNTRY_INFO!$Y$9:$Y$197,[1]COUNTRY_INFO!J$9:J$197) -> 2 | AV39: =_xlfn.XLOOKUP($Y39,[1]COUNTRY_INFO!$Y$9:$Y$197,[1]COUNTRY_INFO!K$9:K$197) -> 3 | AW39: =_xlfn.XLOOKUP($Y39,[1]COUNTRY_INFO!$Y$9:$Y$197,[1]COUNTRY_INFO!L$9:L$197) -> 1 | AX39: TRUE | AY39: TRUE | AZ39: TRUE | BA39: TRUE | BB39: TRUE | BE39: 99 | BF39: 1 | BG39: 2 | BH39: 3 | BI39: TRUE | BJ39: TRUE | BK39: TRUE | BL39: TRUE
A40: =IF(INTRO!$E$34<>0,INTRO!$E$34,"") -> Cameroon | B40: Centre | C40: Ngog Mapubi | D40: 57701 | E40: 8298.245614 | F40: =IF(INTRO!$E$49="","",ROUND($D40*INTRO!$E$49,0)) -> 15262 | G40: =IF(INTRO!$E$50="","",ROUND($D40*INTRO!$E$50,0)) -> 33218 | H40: 99 | I40: 1 | J40: 1 | K40: 1 | L40: 1 | M40: =IF(INTRO!$E$38="Endémique", IF($H40>0, IF($H40=4,"Inconnu", IF($H40=99,"Interrompu", $D40)), 0),"Non requis") -> Interrompu | N40: 50583 | O40: =IF(INTRO!$E$42="Endémique", IF(AND($J40>1,$J40<5), IF($J40=4, "Inconnu", E40+F40), 0),"Non requis") -> 0 | P40: =IF(INTRO!$E$44="Endémique", IF(AND($K40>0,$K40<5), IF($K40=4,"Inconnu", IF($K40=1, $F40*0.33, IF($K40=2, $F40*0.5+$G40*0.2, SUM(F40:G40)))), 0),"Non requis") -> 5036.46 | Q40: 0 | R40: 1 | S40: 0 | T40: 0 | U40: MDA3 (IVM) | V40: T3 (ALB/MBD) | Y40: 7449 | Z40: NGOG MAPUBI | AF40: ='T1'!M40 -> 0 | AG40: ='T2'!M40 -> 0 | AH40: =T3_R1!L40 -> 0 | AI40: ='MDA3'!K40 -> 47623 | AJ40: ='MDA3'!N40 -> 0 | AK40: 15262 | AL40: 0 | AN40: ='T1'!F40 -> 0 | AO40: =T3_R1!F40 -> 44896 | AS40: =_xlfn.XLOOKUP($Y40,[1]COUNTRY_INFO!$Y$9:$Y$197,[1]COUNTRY_INFO!H$9:H$197) -> 99 | AT40: =_xlfn.XLOOKUP($Y40,[1]COUNTRY_INFO!$Y$9:$Y$197,[1]COUNTRY_INFO!I$9:I$197) -> 1 | AU40: =_xlfn.XLOOKUP($Y40,[1]COUNTRY_INFO!$Y$9:$Y$197,[1]COUNTRY_INFO!J$9:J$197) -> 1 | AV40: =_xlfn.XLOOKUP($Y40,[1]COUNTRY_INFO!$Y$9:$Y$197,[1]COUNTRY_INFO!K$9:K$197) -> 1 | AW40: =_xlfn.XLOOKUP($Y40,[1]COUNTRY_INFO!$Y$9:$Y$197,[1]COUNTRY_INFO!L$9:L$197) -> 1 | AX40: TRUE | AY40: TRUE | AZ40: TRUE | BA40: TRUE | BB40: TRUE | BE40: 99 | BF40: 1 | BG40: 1 | BH40: 1 | BI40: TRUE | BJ40: TRUE | BK40: TRUE | BL40: TRUE
A41: =IF(INTRO!$E$34<>0,INTRO!$E$34,"") -> Cameroon | B41: Centre | C41: Ngoumou | D41: 46897 | E41: 7064.327485 | F41: =IF(INTRO!$E$49="","",ROUND($D41*INTRO!$E$49,0)) -> 12404 | G41: =IF(INTRO!$E$50="","",ROUND($D41*INTRO!$E$50,0)) -> 26999 | H41: 0 | I41: 4 | J41: 2 | K41: 0 | L41: 1 | M41: =IF(INTRO!$E$38="Endémique", IF($H41>0, IF($H41=4,"Inconnu", IF($H41=99,"Interrompu", $D41)), 0),"Non requis") -> 0 | N41: 0 | O41: =IF(INTRO!$E$42="Endémique", IF(AND($J41>1,$J41<5), IF($J41=4, "Inconnu", E41+F41), 0),"Non requis") -> 19468.32749 | P41: =IF(INTRO!$E$44="Endémique", IF(AND($K41>0,$K41<5), IF($K41=4,"Inconnu", IF($K41=1, $F41*0.33, IF($K41=2, $F41*0.5+$G41*0.2, SUM(F41:G41)))), 0),"Non requis") -> 0 | Q41: 0 | R41: 0 | S41: 1 | T41: 1 | V41: T1 (PZQ+ALB/MBD) | Y41: 7450 | Z41: NGOUMOU | AF41: ='T1'!M41 -> 8886 | AG41: ='T2'!M41 -> 0 | AH41: =T3_R1!L41 -> 0 | AI41: ='MDA3'!K41 -> 0 | AJ41: ='MDA3'!N41 -> 0 | AK41: 12404 | AL41: 71.63818123 | AN41: ='T1'!F41 -> DECEMBRE 2022 | AO41: =T3_R1!F41 -> 44896 | AS41: =_xlfn.XLOOKUP($Y41,[1]COUNTRY_INFO!$Y$9:$Y$197,[1]COUNTRY_INFO!H$9:H$197) -> 0 | AT41: =_xlfn.XLOOKUP($Y41,[1]COUNTRY_INFO!$Y$9:$Y$197,[1]COUNTRY_INFO!I$9:I$197) -> 4 | AU41: =_xlfn.XLOOKUP($Y41,[1]COUNTRY_INFO!$Y$9:$Y$197,[1]COUNTRY_INFO!J$9:J$197) -> 2 | AV41: =_xlfn.XLOOKUP($Y41,[1]COUNTRY_INFO!$Y$9:$Y$197,[1]COUNTRY_INFO!K$9:K$197) -> 0 | AW41: =_xlfn.XLOOKUP($Y41,[1]COUNTRY_INFO!$Y$9:$Y$197,[1]COUNTRY_INFO!L$9:L$197) -> 1 | AX41: TRUE | AY41: TRUE | AZ41: TRUE | BA41: TRUE | BB41: TRUE | BE41: 0 | BF41: 4 | BG41: 2 | BH41: 0 | BI41: TRUE | BJ41: TRUE | BK41: TRUE | BL41: TRUE
A42: =IF(INTRO!$E$34<>0,INTRO!$E$34,"") -> Cameroon | B42: Centre | C42: Nkolbisson | D42: 187016 | E42: 53883.04094 | F42: =IF(INTRO!$E$49="","",ROUND($D42*INTRO!$E$49,0)) -> 49466 | G42: =IF(INTRO!$E$50="","",ROUND($D42*INTRO!$E$50,0)) -> 107665 | H42: 0 | I42: 4 | J42: 2 | K42: 2 | L42: 1 | M42: =IF(INTRO!$E$38="Endémique", IF($H42>0, IF($H42=4,"Inconnu", IF($H42=99,"Interrompu", $D42)), 0),"Non requis") -> 0 | N42: 0 | O42: =IF(INTRO!$E$42="Endémique", IF(AND($J42>1,$J42<5), IF($J42=4, "Inconnu", E42+F42), 0),"Non requis") -> 103349.0409 | P42: =IF(INTRO!$E$44="Endémique", IF(AND($K42>0,$K42<5), IF($K42=4,"Inconnu", IF($K42=1, $F42*0.33, IF($K42=2, $F42*0.5+$G42*0.2, SUM(F42:G42)))), 0),"Non requis") -> 46266 | Q42: 0 | R42: 0 | S42: 1 | T42: 1 | V42: T1 (PZQ+ALB/MBD) | Y42: 7451 | Z42: NKOLBISSON | AF42: ='T1'!M42 -> 33101 | AG42: ='T2'!M42 -> 0 | AH42: =T3_R1!L42 -> 1620 | AI42: ='MDA3'!K42 -> 0 | AJ42: ='MDA3'!N42 -> 0 | AK42: 49466 | AL42: 70.19164679 | AN42: ='T1'!F42 -> DECEMBRE 2022 | AO42: =T3_R1!F42 -> 44896 | AP42: =AN42=AO42 -> FALSE | AS42: =_xlfn.XLOOKUP($Y42,[1]COUNTRY_INFO!$Y$9:$Y$197,[1]COUNTRY_INFO!H$9:H$197) -> 0 | AT42: =_xlfn.XLOOKUP($Y42,[1]COUNTRY_INFO!$Y$9:$Y$197,[1]COUNTRY_INFO!I$9:I$197) -> 4 | AU42: =_xlfn.XLOOKUP($Y42,[1]COUNTRY_INFO!$Y$9:$Y$197,[1]COUNTRY_INFO!J$9:J$197) -> 2 | AV42: =_xlfn.XLOOKUP($Y42,[1]COUNTRY_INFO!$Y$9:$Y$197,[1]COUNTRY_INFO!K$9:K$197) -> 2 | AW42: =_xlfn.XLOOKUP($Y42,[1]COUNTRY_INFO!$Y$9:$Y$197,[1]COUNTRY_INFO!L$9:L$197) -> 1 | AX42: TRUE | AY42: TRUE | AZ42: TRUE | BA42: TRUE | BB42: TRUE | BE42: 0 | BF42: 4 | BG42: 2 | BH42: 2 | BI42: TRUE | BJ42: TRUE | BK42: TRUE | BL42: TRUE
A43: =IF(INTRO!$E$34<>0,INTRO!$E$34,"") -> Cameroon | B43: Centre | C43: Nkolndongo | D43: 570601 | E43: 43934.69786 | F43: =IF(INTRO!$E$49="","",ROUND($D43*INTRO!$E$49,0)) -> 150924 | G43: =IF(INTRO!$E$50="","",ROUND($D43*INTRO!$E$50,0)) -> 328495 | H43: 0 | I43: 4 | J43: 2 | K43: 1 | L43: 1 | M43: =IF(INTRO!$E$38="Endémique", IF($H43>0, IF($H43=4,"Inconnu", IF($H43=99,"Interrompu", $D43)), 0),"Non requis") -> 0 | N43: 0 | O43: =IF(INTRO!$E$42="Endémique", IF(AND($J43>1,$J43<5), IF($J43=4, "Inconnu", E43+F43), 0),"Non requis") -> 194858.6979 | P43: =IF(INTRO!$E$44="Endémique", IF(AND($K43>0,$K43<5), IF($K43=4,"Inconnu", IF($K43=1, $F43*0.33, IF($K43=2, $F43*0.5+$G43*0.2, SUM(F43:G43)))), 0),"Non requis") -> 49804.92 | Q43: 0 | R43: 0 | S43: 1 | T43: 1 | V43: T1 (PZQ+ALB/MBD) | Y43: 7452 | Z43: NKOLNDONGO | AF43: ='T1'!M43 -> 96569 | AG43: ='T2'!M43 -> 0 | AH43: =T3_R1!L43 -> 1575 | AI43: ='MDA3'!K43 -> 0 | AJ43: ='MDA3'!N43 -> 0 | AK43: 150924 | AL43: 65.0287562 | AN43: ='T1'!F43 -> DECEMBRE 2022 | AO43: =T3_R1!F43 -> 44896 | AP43: =AN43=AO43 -> FALSE | AS43: =_xlfn.XLOOKUP($Y43,[1]COUNTRY_INFO!$Y$9:$Y$197,[1]COUNTRY_INFO!H$9:H$197) -> 0 | AT43: =_xlfn.XLOOKUP($Y43,[1]COUNTRY_INFO!$Y$9:$Y$197,[1]COUNTRY_INFO!I$9:I$197) -> 4 | AU43: =_xlfn.XLOOKUP($Y43,[1]COUNTRY_INFO!$Y$9:$Y$197,[1]COUNTRY_INFO!J$9:J$197) -> 2 | AV43: =_xlfn.XLOOKUP($Y43,[1]COUNTRY_INFO!$Y$9:$Y$197,[1]COUNTRY_INFO!K$9:K$197) -> 1 | AW43: =_xlfn.XLOOKUP($Y43,[1]COUNTRY_INFO!$Y$9:$Y$197,[1]COUNTRY_INFO!L$9:L$197) -> 1 | AX43: TRUE | AY43: TRUE | AZ43: TRUE | BA43: TRUE | BB43: TRUE | BE43: 0 | BF43: 4 | BG43: 2 | BH43: 1 | BI43: TRUE | BJ43: TRUE | BK43: TRUE | BL43: TRUE
A44: =IF(INTRO!$E$34<>0,INTRO!$E$34,"") -> Cameroon | B44: Centre | C44: Ntui | D44: 139186 | E44: 26210.52632 | F44: =IF(INTRO!$E$49="","",ROUND($D44*INTRO!$E$49,0)) -> 36815 | G44: =IF(INTRO!$E$50="","",ROUND($D44*INTRO!$E$50,0)) -> 80129 | H44: 99 | I44: 1 | J44: 1 | K44: 2 | L44: 1 | M44: =IF(INTRO!$E$38="Endémique", IF($H44>0, IF($H44=4,"Inconnu", IF($H44=99,"Interrompu", $D44)), 0),"Non requis") -> Interrompu | N44: 171940 | O44: =IF(INTRO!$E$42="Endémique", IF(AND($J44>1,$J44<5), IF($J44=4, "Inconnu", E44+F44), 0),"Non requis") -> 0 | P44: =IF(INTRO!$E$44="Endémique", IF(AND($K44>0,$K44<5), IF($K44=4,"Inconnu", IF($K44=1, $F44*0.33, IF($K44=2, $F44*0.5+$G44*0.2, SUM(F44:G44)))), 0),"Non requis") -> 34433.3 | Q44: 0 | R44: 1 | S44: 1 | T44: 1 | U44: MDA3 (IVM) | V44: T1 (PZQ+ALB/MBD) | Y44: 7453 | Z44: NTUI | AF44: ='T1'!M44 -> 14451 | AG44: ='T2'!M44 -> 0 | AH44: =T3_R1!L44 -> 479 | AI44: ='MDA3'!K44 -> 164076 | AJ44: ='MDA3'!N44 -> 0 | AK44: 36815 | AL44: 40.55412196 | AN44: ='T1'!F44 -> DECEMBRE 2022 | AO44: =T3_R1!F44 -> 44896 | AP44: =AN44=AO44 -> FALSE | AS44: =_xlfn.XLOOKUP($Y44,[1]COUNTRY_INFO!$Y$9:$Y$197,[1]COUNTRY_INFO!H$9:H$197) -> 99 | AT44: =_xlfn.XLOOKUP($Y44,[1]COUNTRY_INFO!$Y$9:$Y$197,[1]COUNTRY_INFO!I$9:I$197) -> 1 | AU44: =_xlfn.XLOOKUP($Y44,[1]COUNTRY_INFO!$Y$9:$Y$197,[1]COUNTRY_INFO!J$9:J$197) -> 1 | AV44: =_xlfn.XLOOKUP($Y44,[1]COUNTRY_INFO!$Y$9:$Y$197,[1]COUNTRY_INFO!K$9:K$197) -> 2 | AW44: =_xlfn.XLOOKUP($Y44,[1]COUNTRY_INFO!$Y$9:$Y$197,[1]COUNTRY_INFO!L$9:L$197) -> 1 | AX44: TRUE | AY44: TRUE | AZ44: TRUE | BA44: TRUE | BB44: TRUE | BE44: 99 | BF44: 1 | BG44: 1 | BH44: 2 | BI44: TRUE | BJ44: TRUE | BK44: TRUE | BL44: TRUE
A45: =IF(INTRO!$E$34<>0,INTRO!$E$34,"") -> Cameroon | B45: Centre | C45: Obala | D45: 145228 | E45: 25375.24366 | F45: =IF(INTRO!$E$49="","",ROUND($D45*INTRO!$E$49,0)) -> 38413 | G45: =IF(INTRO!$E$50="","",ROUND($D45*INTRO!$E$50,0)) -> 83608 | H45: 99 | I45: 1 | J45: 2 | K45: 1 | L45: 1 | M45: =IF(INTRO!$E$38="Endémique", IF($H45>0, IF($H45=4,"Inconnu", IF($H45=99,"Interrompu", $D45)), 0),"Non requis") -> Interrompu | N45: 121969 | O45: =IF(INTRO!$E$42="Endémique", IF(AND($J45>1,$J45<5), IF($J45=4, "Inconnu", E45+F45), 0),"Non requis") -> 63788.24366 | P45: =IF(INTRO!$E$44="Endémique", IF(AND($K45>0,$K45<5), IF($K45=4,"Inconnu", IF($K45=1, $F45*0.33, IF($K45=2, $F45*0.5+$G45*0.2, SUM(F45:G45)))), 0),"Non requis") -> 12676.29 | Q45: 0 | R45: 1 | S45: 0 | T45: 0 | U45: MDA3 (IVM) | V45: T3 (ALB/MBD) | Y45: 7454 | Z45: OBALA | AF45: ='T1'!M45 -> 0 | AG45: ='T2'!M45 -> 0 | AH45: =T3_R1!L45 -> 0 | AI45: ='MDA3'!K45 -> 118016 | AJ45: ='MDA3'!N45 -> 0 | AK45: 38413 | AL45: 0 | AN45: ='T1'!F45 -> 0 | AO45: =T3_R1!F45 -> 44896 | AS45: =_xlfn.XLOOKUP($Y45,[1]COUNTRY_INFO!$Y$9:$Y$197,[1]COUNTRY_INFO!H$9:H$197) -> 99 | AT45: =_xlfn.XLOOKUP($Y45,[1]COUNTRY_INFO!$Y$9:$Y$197,[1]COUNTRY_INFO!I$9:I$197) -> 1 | AU45: =_xlfn.XLOOKUP($Y45,[1]COUNTRY_INFO!$Y$9:$Y$197,[1]COUNTRY_INFO!J$9:J$197) -> 2 | AV45: =_xlfn.XLOOKUP($Y45,[1]COUNTRY_INFO!$Y$9:$Y$197,[1]COUNTRY_INFO!K$9:K$197) -> 1 | AW45: =_xlfn.XLOOKUP($Y45,[1]COUNTRY_INFO!$Y$9:$Y$197,[1]COUNTRY_INFO!L$9:L$197) -> 1 | AX45: TRUE | AY45: TRUE | AZ45: TRUE | BA45: TRUE | BB45: TRUE | BE45: 99 | BF45: 1 | BG45: 2 | BH45: 1 | BI45: TRUE | BJ45: TRUE | BK45: TRUE | BL45: TRUE
A46: =IF(INTRO!$E$34<>0,INTRO!$E$34,"") -> Cameroon | B46: Centre | C46: Odza | D46: 420807 | E46: 33202.72904 | F46: =IF(INTRO!$E$49="","",ROUND($D46*INTRO!$E$49,0)) -> 111303 | G46: =IF(INTRO!$E$50="","",ROUND($D46*INTRO!$E$50,0)) -> 242259 | H46: 0 | I46: 4 | J46: 2 | K46: 1 | L46: 1 | M46: =IF(INTRO!$E$38="Endémique", IF($H46>0, IF($H46=4,"Inconnu", IF($H46=99,"Interrompu", $D46)), 0),"Non requis") -> 0 | N46: 0 | O46: =IF(INTRO!$E$42="Endémique", IF(AND($J46>1,$J46<5), IF($J46=4, "Inconnu", E46+F46), 0),"Non requis") -> 144505.729 | P46: =IF(INTRO!$E$44="Endémique", IF(AND($K46>0,$K46<5), IF($K46=4,"Inconnu", IF($K46=1, $F46*0.33, IF($K46=2, $F46*0.5+$G46*0.2, SUM(F46:G46)))), 0),"Non requis") -> 36729.99 | Q46: 0 | R46: 0 | S46: 1 | T46: 1 | V46: T1 (PZQ+ALB/MBD) | Y46: 7611 | Z46: Odza | AF46: ='T1'!M46 -> 71268 | AG46: ='T2'!M46 -> 0 | AH46: =T3_R1!L46 -> 0 | AI46: ='MDA3'!K46 -> 0 | AJ46: ='MDA3'!N46 -> 0 | AK46: 111303 | AL46: 64.03061912 | AN46: ='T1'!F46 -> DECEMBRE 2022 | AO46: =T3_R1!F46 -> 44896 | AP46: =AN46=AO46 -> FALSE | AS46: =_xlfn.XLOOKUP($Y46,[1]COUNTRY_INFO!$Y$9:$Y$197,[1]COUNTRY_INFO!H$9:H$197) ->  | AT46: =_xlfn.XLOOKUP($Y46,[1]COUNTRY_INFO!$Y$9:$Y$197,[1]COUNTRY_INFO!I$9:I$197) ->  | AU46: =_xlfn.XLOOKUP($Y46,[1]COUNTRY_INFO!$Y$9:$Y$197,[1]COUNTRY_INFO!J$9:J$197) ->  | AV46: =_xlfn.XLOOKUP($Y46,[1]COUNTRY_INFO!$Y$9:$Y$197,[1]COUNTRY_INFO!K$9:K$197) ->  | AW46: =_xlfn.XLOOKUP($Y46,[1]COUNTRY_INFO!$Y$9:$Y$197,[1]COUNTRY_INFO!L$9:L$197) ->  | BE46: 0 | BF46: 4 | BG46: 2 | BH46: 1 | BI46: TRUE | BJ46: TRUE | BK46: TRUE | BL46: TRUE
A47: =IF(INTRO!$E$34<>0,INTRO!$E$34,"") -> Cameroon | B47: Centre | C47: Okola | D47: 59537 | E47: 8479.532164 | F47: =IF(INTRO!$E$49="","",ROUND($D47*INTRO!$E$49,0)) -> 15748 | G47: =IF(INTRO!$E$50="","",ROUND($D47*INTRO!$E$50,0)) -> 34275 | H47: 99 | I47: 1 | J47: 2 | K47: 1 | L47: 1 | M47: =IF(INTRO!$E$38="Endémique", IF($H47>0, IF($H47=4,"Inconnu", IF($H47=99,"Interrompu", $D47)), 0),"Non requis") -> Interrompu | N47: 49861 | O47: =IF(INTRO!$E$42="Endémique", IF(AND($J47>1,$J47<5), IF($J47=4, "Inconnu", E47+F47), 0),"Non requis") -> 24227.53216 | P47: =IF(INTRO!$E$44="Endémique", IF(AND($K47>0,$K47<5), IF($K47=4,"Inconnu", IF($K47=1, $F47*0.33, IF($K47=2, $F47*0.5+$G47*0.2, SUM(F47:G47)))), 0),"Non requis") -> 5196.84 | Q47: 0 | R47: 1 | S47: 0 | T47: 0 | U47: MDA3 (IVM) | V47: T3 (ALB/MBD) | Y47: 7455 | Z47: OKOLA | AF47: ='T1'!M47 -> 0 | AG47: ='T2'!M47 -> 0 | AH47: =T3_R1!L47 -> 0 | AI47: ='MDA3'!K47 -> 13175 | AJ47: ='MDA3'!N47 -> 0 | AK47: 15748 | AL47: 0 | AN47: ='T1'!F47 -> 0 | AO47: =T3_R1!F47 -> 44896 | AS47: =_xlfn.XLOOKUP($Y47,[1]COUNTRY_INFO!$Y$9:$Y$197,[1]COUNTRY_INFO!H$9:H$197) -> 99 | AT47: =_xlfn.XLOOKUP($Y47,[1]COUNTRY_INFO!$Y$9:$Y$197,[1]COUNTRY_INFO!I$9:I$197) -> 1 | AU47: =_xlfn.XLOOKUP($Y47,[1]COUNTRY_INFO!$Y$9:$Y$197,[1]COUNTRY_INFO!J$9:J$197) -> 2 | AV47: =_xlfn.XLOOKUP($Y47,[1]COUNTRY_INFO!$Y$9:$Y$197,[1]COUNTRY_INFO!K$9:K$197) -> 1 | AW47: =_xlfn.XLOOKUP($Y47,[1]COUNTRY_INFO!$Y$9:$Y$197,[1]COUNTRY_INFO!L$9:L$197) -> 1 | AX47: TRUE | AY47: TRUE | AZ47: TRUE | BA47: TRUE | BB47: TRUE | BE47: 99 | BF47: 1 | BG47: 2 | BH47: 1 | BI47: TRUE | BJ47: TRUE | BK47: TRUE | BL47: TRUE
A48: =IF(INTRO!$E$34<>0,INTRO!$E$34,"") -> Cameroon | B48: Centre | C48: Sa'a | D48: 75748 | E48: 9904.483431 | F48: =IF(INTRO!$E$49="","",ROUND($D48*INTRO!$E$49,0)) -> 20035 | G48: =IF(INTRO!$E$50="","",ROUND($D48*INTRO!$E$50,0)) -> 43608 | H48: 99 | I48: 1 | J48: 2 | K48: 1 | L48: 1 | M48: =IF(INTRO!$E$38="Endémique", IF($H48>0, IF($H48=4,"Inconnu", IF($H48=99,"Interrompu", $D48)), 0),"Non requis") -> Interrompu | N48: 63438 | O48: =IF(INTRO!$E$42="Endémique", IF(AND($J48>1,$J48<5), IF($J48=4, "Inconnu", E48+F48), 0),"Non requis") -> 29939.48343 | P48: =IF(INTRO!$E$44="Endémique", IF(AND($K48>0,$K48<5), IF($K48=4,"Inconnu", IF($K48=1, $F48*0.33, IF($K48=2, $F48*0.5+$G48*0.2, SUM(F48:G48)))), 0),"Non requis") -> 6611.55 | Q48: 0 | R48: 1 | S48: 0 | T48: 0 | U48: MDA3 (IVM) | V48: T3 (ALB/MBD) | Y48: 7456 | Z48: SAA | AF48: ='T1'!M48 -> 0 | AG48: ='T2'!M48 -> 0 | AH48: =T3_R1!L48 -> 0 | AI48: ='MDA3'!K48 -> 51264 | AJ48: ='MDA3'!N48 -> 0 | AK48: 20035 | AL48: 0 | AN48: ='T1'!F48 -> 0 | AO48: =T3_R1!F48 -> 44896 | AS48: =_xlfn.XLOOKUP($Y48,[1]COUNTRY_INFO!$Y$9:$Y$197,[1]COUNTRY_INFO!H$9:H$197) -> 99 | AT48: =_xlfn.XLOOKUP($Y48,[1]COUNTRY_INFO!$Y$9:$Y$197,[1]COUNTRY_INFO!I$9:I$197) -> 1 | AU48: =_xlfn.XLOOKUP($Y48,[1]COUNTRY_INFO!$Y$9:$Y$197,[1]COUNTRY_INFO!J$9:J$197) -> 2 | AV48: =_xlfn.XLOOKUP($Y48,[1]COUNTRY_INFO!$Y$9:$Y$197,[1]COUNTRY_INFO!K$9:K$197) -> 1 | AW48: =_xlfn.XLOOKUP($Y48,[1]COUNTRY_INFO!$Y$9:$Y$197,[1]COUNTRY_INFO!L$9:L$197) -> 1 | AX48: TRUE | AY48: TRUE | AZ48: TRUE | BA48: TRUE | BB48: TRUE | BE48: 99 | BF48: 1 | BG48: 2 | BH48: 1 | BI48: TRUE | BJ48: TRUE | BK48: TRUE | BL48: TRUE
A49: =IF(INTRO!$E$34<>0,INTRO!$E$34,"") -> Cameroon | B49: Centre | C49: Soa | D49: 48592 | E49: 13195.90643 | F49: =IF(INTRO!$E$49="","",ROUND($D49*INTRO!$E$49,0)) -> 12853 | G49: =IF(INTRO!$E$50="","",ROUND($D49*INTRO!$E$50,0)) -> 27974 | H49: 0 | I49: 4 | J49: 1 | K49: 1 | L49: 1 | M49: =IF(INTRO!$E$38="Endémique", IF($H49>0, IF($H49=4,"Inconnu", IF($H49=99,"Interrompu", $D49)), 0),"Non requis") -> 0 | N49: 0 | O49: =IF(INTRO!$E$42="Endémique", IF(AND($J49>1,$J49<5), IF($J49=4, "Inconnu", E49+F49), 0),"Non requis") -> 0 | P49: =IF(INTRO!$E$44="Endémique", IF(AND($K49>0,$K49<5), IF($K49=4,"Inconnu", IF($K49=1, $F49*0.33, IF($K49=2, $F49*0.5+$G49*0.2, SUM(F49:G49)))), 0),"Non requis") -> 4241.49 | Q49: 0 | R49: 0 | S49: 0 | T49: 0 | V49: T3 (ALB/MBD) | Y49: 7457 | Z49: SOA | AF49: ='T1'!M49 -> 0 | AG49: ='T2'!M49 -> 0 | AH49: =T3_R1!L49 -> 0 | AI49: ='MDA3'!K49 -> 0 | AJ49: ='MDA3'!N49 -> 0 | AK49: 12853 | AL49: 0 | AN49: ='T1'!F49 -> 0 | AO49: =T3_R1!F49 -> 44896 | AP49: =AN49=AO49 -> FALSE | AS49: =_xlfn.XLOOKUP($Y49,[1]COUNTRY_INFO!$Y$9:$Y$197,[1]COUNTRY_INFO!H$9:H$197) -> 0 | AT49: =_xlfn.XLOOKUP($Y49,[1]COUNTRY_INFO!$Y$9:$Y$197,[1]COUNTRY_INFO!I$9:I$197) -> 4 | AU49: =_xlfn.XLOOKUP($Y49,[1]COUNTRY_INFO!$Y$9:$Y$197,[1]COUNTRY_INFO!J$9:J$197) -> 1 | AV49: =_xlfn.XLOOKUP($Y49,[1]COUNTRY_INFO!$Y$9:$Y$197,[1]COUNTRY_INFO!K$9:K$197) -> 1 | AW49: =_xlfn.XLOOKUP($Y49,[1]COUNTRY_INFO!$Y$9:$Y$197,[1]COUNTRY_INFO!L$9:L$197) -> 1 | AX49: TRUE | AY49: TRUE | AZ49: TRUE | BA49: TRUE | BB49: TRUE | BE49: 0 | BF49: 4 | BG49: 1 | BH49: 1 | BI49: TRUE | BJ49: TRUE | BK49: TRUE | BL49: TRUE
A50: =IF(INTRO!$E$34<>0,INTRO!$E$34,"") -> Cameroon | B50: Centre | C50: Yoko | D50: 46089 | E50: 11530.21442 | F50: =IF(INTRO!$E$49="","",ROUND($D50*INTRO!$E$49,0)) -> 12191 | G50: =IF(INTRO!$E$50="","",ROUND($D50*INTRO!$E$50,0)) -> 26533 | H50: 99 | I50: 1 | J50: 2 | K50: 0 | L50: 1 | M50: =IF(INTRO!$E$38="Endémique", IF($H50>0, IF($H50=4,"Inconnu", IF($H50=99,"Interrompu", $D50)), 0),"Non requis") -> Interrompu | N50: 43374 | O50: =IF(INTRO!$E$42="Endémique", IF(AND($J50>1,$J50<5), IF($J50=4, "Inconnu", E50+F50), 0),"Non requis") -> 23721.21442 | P50: =IF(INTRO!$E$44="Endémique", IF(AND($K50>0,$K50<5), IF($K50=4,"Inconnu", IF($K50=1, $F50*0.33, IF($K50=2, $F50*0.5+$G50*0.2, SUM(F50:G50)))), 0),"Non requis") -> 0 | Q50: 0 | R50: 1 | S50: 0 | T50: 0 | U50: MDA3 (IVM) | V50: T3 (ALB/MBD) | Y50: 7458 | Z50: YOKO | AF50: ='T1'!M50 -> 0 | AG50: ='T2'!M50 -> 0 | AH50: =T3_R1!L50 -> 0 | AI50: ='MDA3'!K50 -> 34135 | AJ50: ='MDA3'!N50 -> 0 | AK50: 12191 | AL50: 0 | AN50: ='T1'!F50 -> 0 | AO50: =T3_R1!F50 -> 44896 | AS50: =_xlfn.XLOOKUP($Y50,[1]COUNTRY_INFO!$Y$9:$Y$197,[1]COUNTRY_INFO!H$9:H$197) -> 99 | AT50: =_xlfn.XLOOKUP($Y50,[1]COUNTRY_INFO!$Y$9:$Y$197,[1]COUNTRY_INFO!I$9:I$197) -> 1 | AU50: =_xlfn.XLOOKUP($Y50,[1]COUNTRY_INFO!$Y$9:$Y$197,[1]COUNTRY_INFO!J$9:J$197) -> 2 | AV50: =_xlfn.XLOOKUP($Y50,[1]COUNTRY_INFO!$Y$9:$Y$197,[1]COUNTRY_INFO!K$9:K$197) -> 0 | AW50: =_xlfn.XLOOKUP($Y50,[1]COUNTRY_INFO!$Y$9:$Y$197,[1]COUNTRY_INFO!L$9:L$197) -> 1 | AX50: TRUE | AY50: TRUE | AZ50: TRUE | BA50: TRUE | BB50: TRUE | BE50: 99 | BF50: 1 | BG50: 2 | BH50: 0 | BI50: TRUE | BJ50: TRUE | BK50: TRUE | BL50: TRUE
A51: =IF(INTRO!$E$34<>0,INTRO!$E$34,"") -> Cameroon | B51: Est | C51: Abong Mbang | D51: 85692 | E51: 18173.48928 | F51: =IF(INTRO!$E$49="","",ROUND($D51*INTRO!$E$49,0)) -> 22666 | G51: =IF(INTRO!$E$50="","",ROUND($D51*INTRO!$E$50,0)) -> 49333 | H51: 0 | I51: 4 | J51: 2 | K51: 0 | L51: 1 | M51: =IF(INTRO!$E$38="Endémique", IF($H51>0, IF($H51=4,"Inconnu", IF($H51=99,"Interrompu", $D51)), 0),"Non requis") -> 0 | N51: 0 | O51: =IF(INTRO!$E$42="Endémique", IF(AND($J51>1,$J51<5), IF($J51=4, "Inconnu", E51+F51), 0),"Non requis") -> 40839.48928 | P51: =IF(INTRO!$E$44="Endémique", IF(AND($K51>0,$K51<5), IF($K51=4,"Inconnu", IF($K51=1, $F51*0.33, IF($K51=2, $F51*0.5+$G51*0.2, SUM(F51:G51)))), 0),"Non requis") -> 0 | Q51: 0 | R51: 0 | S51: 1 | T51: 0 | V51: T3 (ALB/MBD) | Y51: 7459 | Z51: ABONG MBANG | AF51: ='T1'!M51 -> 0 | AG51: ='T2'!M51 -> 0 | AH51: =T3_R1!L51 -> 24567 | AI51: ='MDA3'!K51 -> 0 | AJ51: ='MDA3'!N51 -> 0 | AK51: 22666 | AL51: 108.3870114 | AN51: ='T1'!F51 -> 0 | AO51: =T3_R1!F51 -> 44896 | AS51: =_xlfn.XLOOKUP($Y51,[1]COUNTRY_INFO!$Y$9:$Y$197,[1]COUNTRY_INFO!H$9:H$197) -> 0 | AT51: =_xlfn.XLOOKUP($Y51,[1]COUNTRY_INFO!$Y$9:$Y$197,[1]COUNTRY_INFO!I$9:I$197) -> 4 | AU51: =_xlfn.XLOOKUP($Y51,[1]COUNTRY_INFO!$Y$9:$Y$197,[1]COUNTRY_INFO!J$9:J$197) -> 2 | AV51: =_xlfn.XLOOKUP($Y51,[1]COUNTRY_INFO!$Y$9:$Y$197,[1]COUNTRY_INFO!K$9:K$197) -> 0 | AW51: =_xlfn.XLOOKUP($Y51,[1]COUNTRY_INFO!$Y$9:$Y$197,[1]COUNTRY_INFO!L$9:L$197) -> 1 | AX51: TRUE | AY51: TRUE | AZ51: TRUE | BA51: TRUE | BB51: TRUE | BE51: 0 | BF51: 4 | BG51: 2 | BH51: 0 | BI51: TRUE | BJ51: TRUE | BK51: TRUE | BL51: TRUE
A52: =IF(INTRO!$E$34<>0,INTRO!$E$34,"") -> Cameroon | B52: Est | C52: Batouri | D52: 121199 | E52: 25846.97856 | F52: =IF(INTRO!$E$49="","",ROUND($D52*INTRO!$E$49,0)) -> 32057 | G52: =IF(INTRO!$E$50="","",ROUND($D52*INTRO!$E$50,0)) -> 69774 | H52: 0 | I52: 4 | J52: 2 | K52: 1 | L52: 1 | M52: =IF(INTRO!$E$38="Endémique", IF($H52>0, IF($H52=4,"Inconnu", IF($H52=99,"Interrompu", $D52)), 0),"Non requis") -> 0 | N52: 0 | O52: =IF(INTRO!$E$42="Endémique", IF(AND($J52>1,$J52<5), IF($J52=4, "Inconnu", E52+F52), 0),"Non requis") -> 57903.97856 | P52: =IF(INTRO!$E$44="Endémique", IF(AND($K52>0,$K52<5), IF($K52=4,"Inconnu", IF($K52=1, $F52*0.33, IF($K52=2, $F52*0.5+$G52*0.2, SUM(F52:G52)))), 0),"Non requis") -> 10578.81 | Q52: 0 | R52: 0 | S52: 1 | T52: 0 | V52: T3 (ALB/MBD) | Y52: 7460 | Z52: BATOURI | AF52: ='T1'!M52 -> 0 | AG52: ='T2'!M52 -> 0 | AH52: =T3_R1!L52 -> 31042 | AI52: ='MDA3'!K52 -> 0 | AJ52: ='MDA3'!N52 -> 0 | AK52: 32057 | AL52: 96.83376486 | AN52: ='T1'!F52 -> 0 | AO52: =T3_R1!F52 -> 44896 | AS52: =_xlfn.XLOOKUP($Y52,[1]COUNTRY_INFO!$Y$9:$Y$197,[1]COUNTRY_INFO!H$9:H$197) -> 0 | AT52: =_xlfn.XLOOKUP($Y52,[1]COUNTRY_INFO!$Y$9:$Y$197,[1]COUNTRY_INFO!I$9:I$197) -> 4 | AU52: =_xlfn.XLOOKUP($Y52,[1]COUNTRY_INFO!$Y$9:$Y$197,[1]COUNTRY_INFO!J$9:J$197) -> 2 | AV52: =_xlfn.XLOOKUP($Y52,[1]COUNTRY_INFO!$Y$9:$Y$197,[1]COUNTRY_INFO!K$9:K$197) -> 1 | AW52: =_xlfn.XLOOKUP($Y52,[1]COUNTRY_INFO!$Y$9:$Y$197,[1]COUNTRY_INFO!L$9:L$197) -> 1 | AX52: TRUE | AY52: TRUE | AZ52: TRUE | BA52: TRUE | BB52: TRUE | BE52: 0 | BF52: 4 | BG52: 2 | BH52: 1 | BI52: TRUE | BJ52: TRUE | BK52: TRUE | BL52: TRUE
A53: =IF(INTRO!$E$34<>0,INTRO!$E$34,"") -> Cameroon | B53: Est | C53: Belabo | D53: 82822 | E53: 14437.62183 | F53: =IF(INTRO!$E$49="","",ROUND($D53*INTRO!$E$49,0)) -> 21906 | G53: =IF(INTRO!$E$50="","",ROUND($D53*INTRO!$E$50,0)) -> 47681 | H53: 99 | I53: 1 | J53: 2 | K53: 2 | L53: 1 | M53: =IF(INTRO!$E$38="Endémique", IF($H53>0, IF($H53=4,"Inconnu", IF($H53=99,"Interrompu", $D53)), 0),"Non requis") -> Interrompu | N53: 103073 | O53: =IF(INTRO!$E$42="Endémique", IF(AND($J53>1,$J53<5), IF($J53=4, "Inconnu", E53+F53), 0),"Non requis") -> 36343.62183 | P53: =IF(INTRO!$E$44="Endémique", IF(AND($K53>0,$K53<5), IF($K53=4,"Inconnu", IF($K53=1, $F53*0.33, IF($K53=2, $F53*0.5+$G53*0.2, SUM(F53:G53)))), 0),"Non requis") -> 20489.2 | Q53: 0 | R53: 1 | S53: 1 | T53: 1 | U53: MDA3 (IVM) | V53: T1 (PZQ+ALB/MBD) | Y53: 7612 | Z53: BELABO | AF53: ='T1'!M53 -> 23717 | AG53: ='T2'!M53 -> 0 | AH53: =T3_R1!L53 -> 371 | AI53: ='MDA3'!K53 -> 65734 | AJ53: ='MDA3'!N53 -> 0 | AK53: 21906 | AL53: 109.9607413 | AN53: ='T1'!F53 -> DECEMBRE 2022 | AO53: =T3_R1!F53 -> 44896 | AP53: =AN53=AO53 -> FALSE | AS53: =_xlfn.XLOOKUP($Y53,[1]COUNTRY_INFO!$Y$9:$Y$197,[1]COUNTRY_INFO!H$9:H$197) ->  | AT53: =_xlfn.XLOOKUP($Y53,[1]COUNTRY_INFO!$Y$9:$Y$197,[1]COUNTRY_INFO!I$9:I$197) ->  | AU53: =_xlfn.XLOOKUP($Y53,[1]COUNTRY_INFO!$Y$9:$Y$197,[1]COUNTRY_INFO!J$9:J$197) ->  | AV53: =_xlfn.XLOOKUP($Y53,[1]COUNTRY_INFO!$Y$9:$Y$197,[1]COUNTRY_INFO!K$9:K$197) ->  | AW53: =_xlfn.XLOOKUP($Y53,[1]COUNTRY_INFO!$Y$9:$Y$197,[1]COUNTRY_INFO!L$9:L$197) ->  | BE53: 99 | BF53: 1 | BG53: 2 | BH53: 2 | BI53: TRUE | BJ53: TRUE | BK53: TRUE | BL53: TRUE
A54: =IF(INTRO!$E$34<>0,INTRO!$E$34,"") -> Cameroon | B54: Est | C54: Bertoua | D54: 283330 | E54: 55351.85185 | F54: =IF(INTRO!$E$49="","",ROUND($D54*INTRO!$E$49,0)) -> 74941 | G54: =IF(INTRO!$E$50="","",ROUND($D54*INTRO!$E$50,0)) -> 163113 | H54: 99 | I54: 4 | J54: 2 | K54: 2 | L54: 1 | M54: =IF(INTRO!$E$38="Endémique", IF($H54>0, IF($H54=4,"Inconnu", IF($H54=99,"Interrompu", $D54)), 0),"Non requis") -> Interrompu | N54: 0 | O54: =IF(INTRO!$E$42="Endémique", IF(AND($J54>1,$J54<5), IF($J54=4, "Inconnu", E54+F54), 0),"Non requis") -> 130292.8519 | P54: =IF(INTRO!$E$44="Endémique", IF(AND($K54>0,$K54<5), IF($K54=4,"Inconnu", IF($K54=1, $F54*0.33, IF($K54=2, $F54*0.5+$G54*0.2, SUM(F54:G54)))), 0),"Non requis") -> 70093.1 | Q54: 0 | R54: 0 | S54: 1 | T54: 1 | V54: T1 (PZQ+ALB/MBD) | Y54: 7461 | Z54: BERTOUA | AF54: ='T1'!M54 -> 26614 | AG54: ='T2'!M54 -> 0 | AH54: =T3_R1!L54 -> 42068 | AI54: ='MDA3'!K54 -> 0 | AJ54: ='MDA3'!N54 -> 0 | AK54: 74941 | AL54: 91.6480965 | AN54: ='T1'!F54 -> DECEMBRE 2022 | AO54: =T3_R1!F54 -> 44896 | AP54: =AN54=AO54 -> FALSE | AS54: =_xlfn.XLOOKUP($Y54,[1]COUNTRY_INFO!$Y$9:$Y$197,[1]COUNTRY_INFO!H$9:H$197) -> 99 | AT54: =_xlfn.XLOOKUP($Y54,[1]COUNTRY_INFO!$Y$9:$Y$197,[1]COUNTRY_INFO!I$9:I$197) -> 1 | AU54: =_xlfn.XLOOKUP($Y54,[1]COUNTRY_INFO!$Y$9:$Y$197,[1]COUNTRY_INFO!J$9:J$197) -> 2 | AV54: =_xlfn.XLOOKUP($Y54,[1]COUNTRY_INFO!$Y$9:$Y$197,[1]COUNTRY_INFO!K$9:K$197) -> 2 | AW54: =_xlfn.XLOOKUP($Y54,[1]COUNTRY_INFO!$Y$9:$Y$197,[1]COUNTRY_INFO!L$9:L$197) -> 1 | AX54: TRUE | AY54: FALSE | AZ54: TRUE | BA54: TRUE | BB54: TRUE | BE54: 99 | BF54: 4 | BG54: 2 | BH54: 2 | BI54: TRUE | BJ54: TRUE | BK54: TRUE | BL54: TRUE
A55: =IF(INTRO!$E$34<>0,INTRO!$E$34,"") -> Cameroon | B55: Est | C55: Betare Oya | D55: 141401 | E55: 38671.53996 | F55: =IF(INTRO!$E$49="","",ROUND($D55*INTRO!$E$49,0)) -> 37401 | G55: =IF(INTRO!$E$50="","",ROUND($D55*INTRO!$E$50,0)) -> 81405 | H55: 99 | I55: 1 | J55: 1 | K55: 1 | L55: 1 | M55: =IF(INTRO!$E$38="Endémique", IF($H55>0, IF($H55=4,"Inconnu", IF($H55=99,"Interrompu", $D55)), 0),"Non requis") -> Interrompu | N55: 117659 | O55: =IF(INTRO!$E$42="Endémique", IF(AND($J55>1,$J55<5), IF($J55=4, "Inconnu", E55+F55), 0),"Non requis") -> 0 | P55: =IF(INTRO!$E$44="Endémique", IF(AND($K55>0,$K55<5), IF($K55=4,"Inconnu", IF($K55=1, $F55*0.33, IF($K55=2, $F55*0.5+$G55*0.2, SUM(F55:G55)))), 0),"Non requis") -> 12342.33 | Q55: 0 | R55: 1 | S55: 1 | T55: 0 | U55: MDA3 (IVM) | V55: T3 (ALB/MBD) | Y55: 7462 | Z55: BETARE OYA | AF55: ='T1'!M55 -> 0 | AG55: ='T2'!M55 -> 0 | AH55: =T3_R1!L55 -> 31211 | AI55: ='MDA3'!K55 -> 27492 | AJ55: ='MDA3'!N55 -> 0 | AK55: 37401 | AL55: 83.44964038 | AN55: ='T1'!F55 -> 0 | AO55: =T3_R1!F55 -> 44896 | AS55: =_xlfn.XLOOKUP($Y55,[1]COUNTRY_INFO!$Y$9:$Y$197,[1]COUNTRY_INFO!H$9:H$197) -> 99 | AT55: =_xlfn.XLOOKUP($Y55,[1]COUNTRY_INFO!$Y$9:$Y$197,[1]COUNTRY_INFO!I$9:I$197) -> 1 | AU55: =_xlfn.XLOOKUP($Y55,[1]COUNTRY_INFO!$Y$9:$Y$197,[1]COUNTRY_INFO!J$9:J$197) -> 1 | AV55: =_xlfn.XLOOKUP($Y55,[1]COUNTRY_INFO!$Y$9:$Y$197,[1]COUNTRY_INFO!K$9:K$197) -> 1 | AW55: =_xlfn.XLOOKUP($Y55,[1]COUNTRY_INFO!$Y$9:$Y$197,[1]COUNTRY_INFO!L$9:L$197) -> 1 | AX55: TRUE | AY55: TRUE | AZ55: TRUE | BA55: TRUE | BB55: TRUE | BE55: 99 | BF55: 1 | BG55: 1 | BH55: 1 | BI55: TRUE | BJ55: TRUE | BK55: TRUE | BL55: TRUE
A56: =IF(INTRO!$E$34<>0,INTRO!$E$34,"") -> Cameroon | B56: Est | C56: Doume | D56: 53286 | E56: 8546.783626 | F56: =IF(INTRO!$E$49="","",ROUND($D56*INTRO!$E$49,0)) -> 14094 | G56: =IF(INTRO!$E$50="","",ROUND($D56*INTRO!$E$50,0)) -> 30677 | H56: 0 | I56: 4 | J56: 2 | K56: 2 | L56: 1 | M56: =IF(INTRO!$E$38="Endémique", IF($H56>0, IF($H56=4,"Inconnu", IF($H56=99,"Interrompu", $D56)), 0),"Non requis") -> 0 | N56: 0 | O56: =IF(INTRO!$E$42="Endémique", IF(AND($J56>1,$J56<5), IF($J56=4, "Inconnu", E56+F56), 0),"Non requis") -> 22640.78363 | P56: =IF(INTRO!$E$44="Endémique", IF(AND($K56>0,$K56<5), IF($K56=4,"Inconnu", IF($K56=1, $F56*0.33, IF($K56=2, $F56*0.5+$G56*0.2, SUM(F56:G56)))), 0),"Non requis") -> 13182.4 | Q56: 0 | R56: 0 | S56: 1 | T56: 1 | V56: T1 (PZQ+ALB/MBD) | Y56: 7463 | Z56: DOUME | AF56: ='T1'!M56 -> 13077 | AG56: ='T2'!M56 -> 0 | AH56: =T3_R1!L56 -> 1856 | AI56: ='MDA3'!K56 -> 0 | AJ56: ='MDA3'!N56 -> 0 | AK56: 14094 | AL56: 105.9528878 | AN56: ='T1'!F56 -> DECEMBRE 2022 | AO56: =T3_R1!F56 -> 44896 | AP56: =AN56=AO56 -> FALSE | AS56: =_xlfn.XLOOKUP($Y56,[1]COUNTRY_INFO!$Y$9:$Y$197,[1]COUNTRY_INFO!H$9:H$197) -> 0 | AT56: =_xlfn.XLOOKUP($Y56,[1]COUNTRY_INFO!$Y$9:$Y$197,[1]COUNTRY_INFO!I$9:I$197) -> 4 | AU56: =_xlfn.XLOOKUP($Y56,[1]COUNTRY_INFO!$Y$9:$Y$197,[1]COUNTRY_INFO!J$9:J$197) -> 2 | AV56: =_xlfn.XLOOKUP($Y56,[1]COUNTRY_INFO!$Y$9:$Y$197,[1]COUNTRY_INFO!K$9:K$197) -> 2 | AW56: =_xlfn.XLOOKUP($Y56,[1]COUNTRY_INFO!$Y$9:$Y$197,[1]COUNTRY_INFO!L$9:L$197) -> 1 | AX56: TRUE | AY56: TRUE | AZ56: TRUE | BA56: TRUE | BB56: TRUE | BE56: 0 | BF56: 4 | BG56: 2 | BH56: 2 | BI56: TRUE | BJ56: TRUE | BK56: TRUE | BL56: TRUE
A57: =IF(INTRO!$E$34<>0,INTRO!$E$34,"") -> Cameroon | B57: Est | C57: Garoua Boulai | D57: 122331 | E57: 37768.03119 | F57: =IF(INTRO!$E$49="","",ROUND($D57*INTRO!$E$49,0)) -> 32357 | G57: =IF(INTRO!$E$50="","",ROUND($D57*INTRO!$E$50,0)) -> 70426 | H57: 0 | I57: 4 | J57: 1 | K57: 1 | L57: 1 | M57: =IF(INTRO!$E$38="Endémique", IF($H57>0, IF($H57=4,"Inconnu", IF($H57=99,"Interrompu", $D57)), 0),"Non requis") -> 0 | N57: 0 | O57: =IF(INTRO!$E$42="Endémique", IF(AND($J57>1,$J57<5), IF($J57=4, "Inconnu", E57+F57), 0),"Non requis") -> 0 | P57: =IF(INTRO!$E$44="Endémique", IF(AND($K57>0,$K57<5), IF($K57=4,"Inconnu", IF($K57=1, $F57*0.33, IF($K57=2, $F57*0.5+$G57*0.2, SUM(F57:G57)))), 0),"Non requis") -> 10677.81 | Q57: 0 | R57: 0 | S57: 1 | T57: 0 | V57: T3 (ALB/MBD) | Y57: 7464 | Z57: GAROUA BOULAI | AF57: ='T1'!M57 -> 0 | AG57: ='T2'!M57 -> 0 | AH57: =T3_R1!L57 -> 43263 | AI57: ='MDA3'!K57 -> 0 | AJ57: ='MDA3'!N57 -> 0 | AK57: 32357 | AL57: 133.7052261 | AN57: ='T1'!F57 -> 0 | AO57: =T3_R1!F57 -> 44896 | AS57: =_xlfn.XLOOKUP($Y57,[1]COUNTRY_INFO!$Y$9:$Y$197,[1]COUNTRY_INFO!H$9:H$197) -> 0 | AT57: =_xlfn.XLOOKUP($Y57,[1]COUNTRY_INFO!$Y$9:$Y$197,[1]COUNTRY_INFO!I$9:I$197) -> 4 | AU57: =_xlfn.XLOOKUP($Y57,[1]COUNTRY_INFO!$Y$9:$Y$197,[1]COUNTRY_INFO!J$9:J$197) -> 1 | AV57: =_xlfn.XLOOKUP($Y57,[1]COUNTRY_INFO!$Y$9:$Y$197,[1]COUNTRY_INFO!K$9:K$197) -> 1 | AW57: =_xlfn.XLOOKUP($Y57,[1]COUNTRY_INFO!$Y$9:$Y$197,[1]COUNTRY_INFO!L$9:L$197) -> 1 | AX57: TRUE | AY57: TRUE | AZ57: TRUE | BA57: TRUE | BB57: TRUE | BE57: 0 | BF57: 4 | BG57: 1 | BH57: 1 | BI57: TRUE | BJ57: TRUE | BK57: TRUE | BL57: TRUE
A58: =IF(INTRO!$E$34<>0,INTRO!$E$34,"") -> Cameroon | B58: Est | C58: Kette | D58: 79630 | E58: 38938.59649 | F58: =IF(INTRO!$E$49="","",ROUND($D58*INTRO!$E$49,0)) -> 21062 | G58: =IF(INTRO!$E$50="","",ROUND($D58*INTRO!$E$50,0)) -> 45843 | H58: 0 | I58: 4 | J58: 1 | K58: 1 | L58: 1 | M58: =IF(INTRO!$E$38="Endémique", IF($H58>0, IF($H58=4,"Inconnu", IF($H58=99,"Interrompu", $D58)), 0),"Non requis") -> 0 | N58: 0 | O58: =IF(INTRO!$E$42="Endémique", IF(AND($J58>1,$J58<5), IF($J58=4, "Inconnu", E58+F58), 0),"Non requis") -> 0 | P58: =IF(INTRO!$E$44="Endémique", IF(AND($K58>0,$K58<5), IF($K58=4,"Inconnu", IF($K58=1, $F58*0.33, IF($K58=2, $F58*0.5+$G58*0.2, SUM(F58:G58)))), 0),"Non requis") -> 6950.46 | Q58: 0 | R58: 0 | S58: 1 | T58: 1 | V58: T1 (PZQ+ALB/MBD) | Y58: 7465 | Z58: KETTE | AF58: ='T1'!M58 -> 17657 | AG58: ='T2'!M58 -> 0 | AH58: =T3_R1!L58 -> 2260 | AI58: ='MDA3'!K58 -> 0 | AJ58: ='MDA3'!N58 -> 0 | AK58: 21062 | AL58: 94.56366917 | AN58: ='T1'!F58 -> DECEMBRE 2022 | AO58: =T3_R1!F58 -> 44896 | AS58: =_xlfn.XLOOKUP($Y58,[1]COUNTRY_INFO!$Y$9:$Y$197,[1]COUNTRY_INFO!H$9:H$197) -> 0 | AT58: =_xlfn.XLOOKUP($Y58,[1]COUNTRY_INFO!$Y$9:$Y$197,[1]COUNTRY_INFO!I$9:I$197) -> 4 | AU58: =_xlfn.XLOOKUP($Y58,[1]COUNTRY_INFO!$Y$9:$Y$197,[1]COUNTRY_INFO!J$9:J$197) -> 1 | AV58: =_xlfn.XLOOKUP($Y58,[1]COUNTRY_INFO!$Y$9:$Y$197,[1]COUNTRY_INFO!K$9:K$197) -> 1 | AW58: =_xlfn.XLOOKUP($Y58,[1]COUNTRY_INFO!$Y$9:$Y$197,[1]COUNTRY_INFO!L$9:L$197) -> 1 | AX58: TRUE | AY58: TRUE | AZ58: TRUE | BA58: TRUE | BB58: TRUE | BE58: 0 | BF58: 4 | BG58: 1 | BH58: 1 | BI58: TRUE | BJ58: TRUE | BK58: TRUE | BL58: TRUE
A59: =IF(INTRO!$E$34<>0,INTRO!$E$34,"") -> Cameroon | B59: Est | C59: Lomie | D59: 47695 | E59: 7236.842105 | F59: =IF(INTRO!$E$49="","",ROUND($D59*INTRO!$E$49,0)) -> 12615 | G59: =IF(INTRO!$E$50="","",ROUND($D59*INTRO!$E$50,0)) -> 27458 | H59: 99 | I59: 1 | J59: 3 | K59: 1 | L59: 1 | M59: =IF(INTRO!$E$38="Endémique", IF($H59>0, IF($H59=4,"Inconnu", IF($H59=99,"Interrompu", $D59)), 0),"Non requis") -> Interrompu | N59: 39687 | O59: =IF(INTRO!$E$42="Endémique", IF(AND($J59>1,$J59<5), IF($J59=4, "Inconnu", E59+F59), 0),"Non requis") -> 19851.84211 | P59: =IF(INTRO!$E$44="Endémique", IF(AND($K59>0,$K59<5), IF($K59=4,"Inconnu", IF($K59=1, $F59*0.33, IF($K59=2, $F59*0.5+$G59*0.2, SUM(F59:G59)))), 0),"Non requis") -> 4162.95 | Q59: 0 | R59: 1 | S59: 1 | T59: 0 | U59: MDA3 (IVM) | V59: T3 (ALB/MBD) | Y59: 7466 | Z59: LOMIE | AF59: ='T1'!M59 -> 0 | AG59: ='T2'!M59 -> 0 | AH59: =T3_R1!L59 -> 12210 | AI59: ='MDA3'!K59 -> 15167 | AJ59: ='MDA3'!N59 -> 0 | AK59: 12615 | AL59: 96.78953627 | AN59: ='T1'!F59 -> 0 | AO59: =T3_R1!F59 -> 44896 | AS59: =_xlfn.XLOOKUP($Y59,[1]COUNTRY_INFO!$Y$9:$Y$197,[1]COUNTRY_INFO!H$9:H$197) -> 99 | AT59: =_xlfn.XLOOKUP($Y59,[1]COUNTRY_INFO!$Y$9:$Y$197,[1]COUNTRY_INFO!I$9:I$197) -> 1 | AU59: =_xlfn.XLOOKUP($Y59,[1]COUNTRY_INFO!$Y$9:$Y$197,[1]COUNTRY_INFO!J$9:J$197) -> 3 | AV59: =_xlfn.XLOOKUP($Y59,[1]COUNTRY_INFO!$Y$9:$Y$197,[1]COUNTRY_INFO!K$9:K$197) -> 1 | AW59: =_xlfn.XLOOKUP($Y59,[1]COUNTRY_INFO!$Y$9:$Y$197,[1]COUNTRY_INFO!L$9:L$197) -> 1 | AX59: TRUE | AY59: TRUE | AZ59: TRUE | BA59: TRUE | BB59: TRUE | BE59: 99 | BF59: 1 | BG59: 3 | BH59: 1 | BI59: TRUE | BJ59: TRUE | BK59: TRUE | BL59: TRUE
A60: =IF(INTRO!$E$34<>0,INTRO!$E$34,"") -> Cameroon | B60: Est | C60: Mbang | D60: 34318 | E60: 7564.327485 | F60: =IF(INTRO!$E$49="","",ROUND($D60*INTRO!$E$49,0)) -> 9077 | G60: =IF(INTRO!$E$50="","",ROUND($D60*INTRO!$E$50,0)) -> 19757 | H60: 0 | I60: 4 | J60: 3 | K60: 1 | L60: 1 | M60: =IF(INTRO!$E$38="Endémique", IF($H60>0, IF($H60=4,"Inconnu", IF($H60=99,"Interrompu", $D60)), 0),"Non requis") -> 0 | N60: 0 | O60: =IF(INTRO!$E$42="Endémique", IF(AND($J60>1,$J60<5), IF($J60=4, "Inconnu", E60+F60), 0),"Non requis") -> 16641.32749 | P60: =IF(INTRO!$E$44="Endémique", IF(AND($K60>0,$K60<5), IF($K60=4,"Inconnu", IF($K60=1, $F60*0.33, IF($K60=2, $F60*0.5+$G60*0.2, SUM(F60:G60)))), 0),"Non requis") -> 2995.41 | Q60: 0 | R60: 0 | S60: 1 | T60: 0 | V60: T3 (ALB/MBD) | Y60: 7467 | Z60: MBANG | AF60: ='T1'!M60 -> 0 | AG60: ='T2'!M60 -> 0 | AH60: =T3_R1!L60 -> 9389 | AI60: ='MDA3'!K60 -> 0 | AJ60: ='MDA3'!N60 -> 0 | AK60: 9077 | AL60: 103.437259 | AN60: ='T1'!F60 -> 0 | AO60: =T3_R1!F60 -> 44896 | AS60: =_xlfn.XLOOKUP($Y60,[1]COUNTRY_INFO!$Y$9:$Y$197,[1]COUNTRY_INFO!H$9:H$197) -> 0 | AT60: =_xlfn.XLOOKUP($Y60,[1]COUNTRY_INFO!$Y$9:$Y$197,[1]COUNTRY_INFO!I$9:I$197) -> 4 | AU60: =_xlfn.XLOOKUP($Y60,[1]COUNTRY_INFO!$Y$9:$Y$197,[1]COUNTRY_INFO!J$9:J$197) -> 3 | AV60: =_xlfn.XLOOKUP($Y60,[1]COUNTRY_INFO!$Y$9:$Y$197,[1]COUNTRY_INFO!K$9:K$197) -> 1 | AW60: =_xlfn.XLOOKUP($Y60,[1]COUNTRY_INFO!$Y$9:$Y$197,[1]COUNTRY_INFO!L$9:L$197) -> 1 | AX60: TRUE | AY60: TRUE | AZ60: TRUE | BA60: TRUE | BB60: TRUE | BE60: 0 | BF60: 4 | BG60: 3 | BH60: 1 | BI60: TRUE | BJ60: TRUE | BK60: TRUE | BL60: TRUE
A61: =IF(INTRO!$E$34<>0,INTRO!$E$34,"") -> Cameroon | B61: Est | C61: Messamena | D61: 32231 | E61: 4272.904483 | F61: =IF(INTRO!$E$49="","",ROUND($D61*INTRO!$E$49,0)) -> 8525 | G61: =IF(INTRO!$E$50="","",ROUND($D61*INTRO!$E$50,0)) -> 18555 | H61: 99 | I61: 1 | J61: 3 | K61: 0 | L61: 1 | M61: =IF(INTRO!$E$38="Endémique", IF($H61>0, IF($H61=4,"Inconnu", IF($H61=99,"Interrompu", $D61)), 0),"Non requis") -> Interrompu | N61: 26820 | O61: =IF(INTRO!$E$42="Endémique", IF(AND($J61>1,$J61<5), IF($J61=4, "Inconnu", E61+F61), 0),"Non requis") -> 12797.90448 | P61: =IF(INTRO!$E$44="Endémique", IF(AND($K61>0,$K61<5), IF($K61=4,"Inconnu", IF($K61=1, $F61*0.33, IF($K61=2, $F61*0.5+$G61*0.2, SUM(F61:G61)))), 0),"Non requis") -> 0 | Q61: 0 | R61: 1 | S61: 1 | T61: 0 | U61: MDA3 (IVM) | V61: T3 (ALB/MBD) | Y61: 7468 | Z61: MESSAMENA | AF61: ='T1'!M61 -> 0 | AG61: ='T2'!M61 -> 0 | AH61: =T3_R1!L61 -> 7705 | AI61: ='MDA3'!K61 -> 27215 | AJ61: ='MDA3'!N61 -> 0 | AK61: 8525 | AL61: 90.38123167 | AN61: ='T1'!F61 -> 0 | AO61: =T3_R1!F61 -> 44896 | AS61: =_xlfn.XLOOKUP($Y61,[1]COUNTRY_INFO!$Y$9:$Y$197,[1]COUNTRY_INFO!H$9:H$197) -> 99 | AT61: =_xlfn.XLOOKUP($Y61,[1]COUNTRY_INFO!$Y$9:$Y$197,[1]COUNTRY_INFO!I$9:I$197) -> 1 | AU61: =_xlfn.XLOOKUP($Y61,[1]COUNTRY_INFO!$Y$9:$Y$197,[1]COUNTRY_INFO!J$9:J$197) -> 3 | AV61: =_xlfn.XLOOKUP($Y61,[1]COUNTRY_INFO!$Y$9:$Y$197,[1]COUNTRY_INFO!K$9:K$197) -> 0 | AW61: =_xlfn.XLOOKUP($Y61,[1]COUNTRY_INFO!$Y$9:$Y$197,[1]COUNTRY_INFO!L$9:L$197) -> 1 | AX61: TRUE | AY61: TRUE | AZ61: TRUE | BA61: TRUE | BB61: TRUE | BE61: 99 | BF61: 1 | BG61: 3 | BH61: 0 | BI61: TRUE | BJ61: TRUE | BK61: TRUE | BL61: TRUE
A62: =IF(INTRO!$E$34<>0,INTRO!$E$34,"") -> Cameroon | B62: Est | C62: Moloundou | D62: 51043 | E62: 7817.738791 | F62: =IF(INTRO!$E$49="","",ROUND($D62*INTRO!$E$49,0)) -> 13501 | G62: =IF(INTRO!$E$50="","",ROUND($D62*INTRO!$E$50,0)) -> 29385 | H62: 0 | I62: 4 | J62: 3 | K62: 1 | L62: 1 | M62: =IF(INTRO!$E$38="Endémique", IF($H62>0, IF($H62=4,"Inconnu", IF($H62=99,"Interrompu", $D62)), 0),"Non requis") -> 0 | N62: 0 | O62: =IF(INTRO!$E$42="Endémique", IF(AND($J62>1,$J62<5), IF($J62=4, "Inconnu", E62+F62), 0),"Non requis") -> 21318.73879 | P62: =IF(INTRO!$E$44="Endémique", IF(AND($K62>0,$K62<5), IF($K62=4,"Inconnu", IF($K62=1, $F62*0.33, IF($K62=2, $F62*0.5+$G62*0.2, SUM(F62:G62)))), 0),"Non requis") -> 4455.33 | Q62: 0 | R62: 0 | S62: 1 | T62: 0 | V62: T3 (ALB/MBD) | Y62: 7469 | Z62: MOLOUNDOU | AF62: ='T1'!M62 -> 0 | AG62: ='T2'!M62 -> 0 | AH62: =T3_R1!L62 -> 14167 | AI62: ='MDA3'!K62 -> 0 | AJ62: ='MDA3'!N62 -> 0 | AK62: 13501 | AL62: 104.9329679 | AN62: ='T1'!F62 -> 0 | AO62: =T3_R1!F62 -> 44896 | AS62: =_xlfn.XLOOKUP($Y62,[1]COUNTRY_INFO!$Y$9:$Y$197,[1]COUNTRY_INFO!H$9:H$197) -> 0 | AT62: =_xlfn.XLOOKUP($Y62,[1]COUNTRY_INFO!$Y$9:$Y$197,[1]COUNTRY_INFO!I$9:I$197) -> 4 | AU62: =_xlfn.XLOOKUP($Y62,[1]COUNTRY_INFO!$Y$9:$Y$197,[1]COUNTRY_INFO!J$9:J$197) -> 3 | AV62: =_xlfn.XLOOKUP($Y62,[1]COUNTRY_INFO!$Y$9:$Y$197,[1]COUNTRY_INFO!K$9:K$197) -> 1 | AW62: =_xlfn.XLOOKUP($Y62,[1]COUNTRY_INFO!$Y$9:$Y$197,[1]COUNTRY_INFO!L$9:L$197) -> 1 | AX62: TRUE | AY62: TRUE | AZ62: TRUE | BA62: TRUE | BB62: TRUE | BE62: 0 | BF62: 4 | BG62: 3 | BH62: 1 | BI62: TRUE | BJ62: TRUE | BK62: TRUE | BL62: TRUE
A63: =IF(INTRO!$E$34<>0,INTRO!$E$34,"") -> Cameroon | B63: Est | C63: Ndelele | D63: 101689 | E63: 19468.81092 | F63: =IF(INTRO!$E$49="","",ROUND($D63*INTRO!$E$49,0)) -> 26897 | G63: =IF(INTRO!$E$50="","",ROUND($D63*INTRO!$E$50,0)) -> 58542 | H63: 0 | I63: 4 | J63: 2 | K63: 1 | L63: 1 | M63: =IF(INTRO!$E$38="Endémique", IF($H63>0, IF($H63=4,"Inconnu", IF($H63=99,"Interrompu", $D63)), 0),"Non requis") -> 0 | N63: 0 | O63: =IF(INTRO!$E$42="Endémique", IF(AND($J63>1,$J63<5), IF($J63=4, "Inconnu", E63+F63), 0),"Non requis") -> 46365.81092 | P63: =IF(INTRO!$E$44="Endémique", IF(AND($K63>0,$K63<5), IF($K63=4,"Inconnu", IF($K63=1, $F63*0.33, IF($K63=2, $F63*0.5+$G63*0.2, SUM(F63:G63)))), 0),"Non requis") -> 8876.01 | Q63: 0 | R63: 0 | S63: 1 | T63: 0 | V63: T3 (ALB/MBD) | Y63: 7470 | Z63: NDELELE | AF63: ='T1'!M63 -> 0 | AG63: ='T2'!M63 -> 0 | AH63: =T3_R1!L63 -> 18800 | AI63: ='MDA3'!K63 -> 0 | AJ63: ='MDA3'!N63 -> 0 | AK63: 26897 | AL63: 69.89627096 | AN63: ='T1'!F63 -> 0 | AO63: =T3_R1!F63 -> 44896 | AS63: =_xlfn.XLOOKUP($Y63,[1]COUNTRY_INFO!$Y$9:$Y$197,[1]COUNTRY_INFO!H$9:H$197) -> 0 | AT63: =_xlfn.XLOOKUP($Y63,[1]COUNTRY_INFO!$Y$9:$Y$197,[1]COUNTRY_INFO!I$9:I$197) -> 4 | AU63: =_xlfn.XLOOKUP($Y63,[1]COUNTRY_INFO!$Y$9:$Y$197,[1]COUNTRY_INFO!J$9:J$197) -> 2 | AV63: =_xlfn.XLOOKUP($Y63,[1]COUNTRY_INFO!$Y$9:$Y$197,[1]COUNTRY_INFO!K$9:K$197) -> 1 | AW63: =_xlfn.XLOOKUP($Y63,[1]COUNTRY_INFO!$Y$9:$Y$197,[1]COUNTRY_INFO!L$9:L$197) -> 1 | AX63: TRUE | AY63: TRUE | AZ63: TRUE | BA63: TRUE | BB63: TRUE | BE63: 0 | BF63: 4 | BG63: 2 | BH63: 1 | BI63: TRUE | BJ63: TRUE | BK63: TRUE | BL63: TRUE
A64: =IF(INTRO!$E$34<>0,INTRO!$E$34,"") -> Cameroon | B64: Est | C64: Nguelemendouka | D64: 32210 | E64: 6957.11501 | F64: =IF(INTRO!$E$49="","",ROUND($D64*INTRO!$E$49,0)) -> 8520 | G64: =IF(INTRO!$E$50="","",ROUND($D64*INTRO!$E$50,0)) -> 18543 | H64: 0 | I64: 4 | J64: 3 | K64: 1 | L64: 1 | M64: =IF(INTRO!$E$38="Endémique", IF($H64>0, IF($H64=4,"Inconnu", IF($H64=99,"Interrompu", $D64)), 0),"Non requis") -> 0 | N64: 0 | O64: =IF(INTRO!$E$42="Endémique", IF(AND($J64>1,$J64<5), IF($J64=4, "Inconnu", E64+F64), 0),"Non requis") -> 15477.11501 | P64: =IF(INTRO!$E$44="Endémique", IF(AND($K64>0,$K64<5), IF($K64=4,"Inconnu", IF($K64=1, $F64*0.33, IF($K64=2, $F64*0.5+$G64*0.2, SUM(F64:G64)))), 0),"Non requis") -> 2811.6 | Q64: 0 | R64: 0 | S64: 1 | T64: 0 | V64: T3 (ALB/MBD) | Y64: 7471 | Z64: NGUELEMENDOUKA | AF64: ='T1'!M64 -> 0 | AG64: ='T2'!M64 -> 0 | AH64: =T3_R1!L64 -> 9593 | AI64: ='MDA3'!K64 -> 0 | AJ64: ='MDA3'!N64 -> 0 | AK64: 8520 | AL64: 112.5938967 | AN64: ='T1'!F64 -> 0 | AO64: =T3_R1!F64 -> 44896 | AS64: =_xlfn.XLOOKUP($Y64,[1]COUNTRY_INFO!$Y$9:$Y$197,[1]COUNTRY_INFO!H$9:H$197) -> 0 | AT64: =_xlfn.XLOOKUP($Y64,[1]COUNTRY_INFO!$Y$9:$Y$197,[1]COUNTRY_INFO!I$9:I$197) -> 4 | AU64: =_xlfn.XLOOKUP($Y64,[1]COUNTRY_INFO!$Y$9:$Y$197,[1]COUNTRY_INFO!J$9:J$197) -> 3 | AV64: =_xlfn.XLOOKUP($Y64,[1]COUNTRY_INFO!$Y$9:$Y$197,[1]COUNTRY_INFO!K$9:K$197) -> 1 | AW64: =_xlfn.XLOOKUP($Y64,[1]COUNTRY_INFO!$Y$9:$Y$197,[1]COUNTRY_INFO!L$9:L$197) -> 1 | AX64: TRUE | AY64: TRUE | AZ64: TRUE | BA64: TRUE | BB64: TRUE | BE64: 0 | BF64: 4 | BG64: 3 | BH64: 1 | BI64: TRUE | BJ64: TRUE | BK64: TRUE | BL64: TRUE
A65: =IF(INTRO!$E$34<>0,INTRO!$E$34,"") -> Cameroon | B65: Est | C65: Yokadouma | D65: 123613 | E65: 26463.93762 | F65: =IF(INTRO!$E$49="","",ROUND($D65*INTRO!$E$49,0)) -> 32696 | G65: =IF(INTRO!$E$50="","",ROUND($D65*INTRO!$E$50,0)) -> 71164 | H65: 0 | I65: 4 | J65: 1 | K65: 1 | L65: 1 | M65: =IF(INTRO!$E$38="Endémique", IF($H65>0, IF($H65=4,"Inconnu", IF($H65=99,"Interrompu", $D65)), 0),"Non requis") -> 0 | N65: 0 | O65: =IF(INTRO!$E$42="Endémique", IF(AND($J65>1,$J65<5), IF($J65=4, "Inconnu", E65+F65), 0),"Non requis") -> 0 | P65: =IF(INTRO!$E$44="Endémique", IF(AND($K65>0,$K65<5), IF($K65=4,"Inconnu", IF($K65=1, $F65*0.33, IF($K65=2, $F65*0.5+$G65*0.2, SUM(F65:G65)))), 0),"Non requis") -> 10789.68 | Q65: 0 | R65: 0 | S65: 1 | T65: 0 | V65: T3 (ALB/MBD) | Y65: 7472 | Z65: YOKADOUMA | AF65: ='T1'!M65 -> 0 | AG65: ='T2'!M65 -> 0 | AH65: =T3_R1!L65 -> 28405 | AI65: ='MDA3'!K65 -> 0 | AJ65: ='MDA3'!N65 -> 0 | AK65: 32696 | AL65: 86.87607047 | AN65: ='T1'!F65 -> 0 | AO65: =T3_R1!F65 -> 44896 | AS65: =_xlfn.XLOOKUP($Y65,[1]COUNTRY_INFO!$Y$9:$Y$197,[1]COUNTRY_INFO!H$9:H$197) -> 0 | AT65: =_xlfn.XLOOKUP($Y65,[1]COUNTRY_INFO!$Y$9:$Y$197,[1]COUNTRY_INFO!I$9:I$197) -> 4 | AU65: =_xlfn.XLOOKUP($Y65,[1]COUNTRY_INFO!$Y$9:$Y$197,[1]COUNTRY_INFO!J$9:J$197) -> 1 | AV65: =_xlfn.XLOOKUP($Y65,[1]COUNTRY_INFO!$Y$9:$Y$197,[1]COUNTRY_INFO!K$9:K$197) -> 1 | AW65: =_xlfn.XLOOKUP($Y65,[1]COUNTRY_INFO!$Y$9:$Y$197,[1]COUNTRY_INFO!L$9:L$197) -> 1 | AX65: TRUE | AY65: TRUE | AZ65: TRUE | BA65: TRUE | BB65: TRUE | BE65: 0 | BF65: 4 | BG65: 1 | BH65: 1 | BI65: TRUE | BJ65: TRUE | BK65: TRUE | BL65: TRUE
A66: =IF(INTRO!$E$34<>0,INTRO!$E$34,"") -> Cameroon | B66: Extreme Nord | C66: Bogo | D66: 127116 | E66: 40852.82651 | F66: =IF(INTRO!$E$49="","",ROUND($D66*INTRO!$E$49,0)) -> 33622 | G66: =IF(INTRO!$E$50="","",ROUND($D66*INTRO!$E$50,0)) -> 73181 | H66: 99 | I66: 4 | J66: 1 | K66: 2 | L66: 0 | M66: =IF(INTRO!$E$38="Endémique", IF($H66>0, IF($H66=4,"Inconnu", IF($H66=99,"Interrompu", $D66)), 0),"Non requis") -> Interrompu | N66: 0 | O66: =IF(INTRO!$E$42="Endémique", IF(AND($J66>1,$J66<5), IF($J66=4, "Inconnu", E66+F66), 0),"Non requis") -> 0 | P66: =IF(INTRO!$E$44="Endémique", IF(AND($K66>0,$K66<5), IF($K66=4,"Inconnu", IF($K66=1, $F66*0.33, IF($K66=2, $F66*0.5+$G66*0.2, SUM(F66:G66)))), 0),"Non requis") -> 31447.2 | Q66: 0 | R66: 0 | S66: 1 | T66: 1 | V66: T1 (PZQ+ALB/MBD) | Y66: 7473 | Z66: BOGO | AF66: ='T1'!M66 -> 22344 | AG66: ='T2'!M66 -> 0 | AH66: =T3_R1!L66 -> 12482 | AI66: ='MDA3'!K66 -> 0 | AJ66: ='MDA3'!N66 -> 0 | AK66: 33622 | AL66: 103.5809886 | AN66: ='T1'!F66 -> DECEMBRE 2022 | AO66: =T3_R1!F66 -> 44896 | AP66: =AN66=AO66 -> FALSE | AS66: =_xlfn.XLOOKUP($Y66,[1]COUNTRY_INFO!$Y$9:$Y$197,[1]COUNTRY_INFO!H$9:H$197) -> 99 | AT66: =_xlfn.XLOOKUP($Y66,[1]COUNTRY_INFO!$Y$9:$Y$197,[1]COUNTRY_INFO!I$9:I$197) -> 4 | AU66: =_xlfn.XLOOKUP($Y66,[1]COUNTRY_INFO!$Y$9:$Y$197,[1]COUNTRY_INFO!J$9:J$197) -> 1 | AV66: =_xlfn.XLOOKUP($Y66,[1]COUNTRY_INFO!$Y$9:$Y$197,[1]COUNTRY_INFO!K$9:K$197) -> 2 | AW66: =_xlfn.XLOOKUP($Y66,[1]COUNTRY_INFO!$Y$9:$Y$197,[1]COUNTRY_INFO!L$9:L$197) -> 0 | AX66: TRUE | AY66: TRUE | AZ66: TRUE | BA66: TRUE | BB66: TRUE | BE66: 99 | BF66: 4 | BG66: 1 | BH66: 2 | BI66: TRUE | BJ66: TRUE | BK66: TRUE | BL66: TRUE
A67: =IF(INTRO!$E$34<>0,INTRO!$E$34,"") -> Cameroon | B67: Extreme Nord | C67: Bourha | D67: 87369 | E67: 41659.84405 | F67: =IF(INTRO!$E$49="","",ROUND($D67*INTRO!$E$49,0)) -> 23109 | G67: =IF(INTRO!$E$50="","",ROUND($D67*INTRO!$E$50,0)) -> 50298 | H67: 99 | I67: 4 | J67: 0 | K67: 2 | L67: 4 | M67: =IF(INTRO!$E$38="Endémique", IF($H67>0, IF($H67=4,"Inconnu", IF($H67=99,"Interrompu", $D67)), 0),"Non requis") -> Interrompu | N67: 0 | O67: =IF(INTRO!$E$42="Endémique", IF(AND($J67>1,$J67<5), IF($J67=4, "Inconnu", E67+F67), 0),"Non requis") -> 0 | P67: =IF(INTRO!$E$44="Endémique", IF(AND($K67>0,$K67<5), IF($K67=4,"Inconnu", IF($K67=1, $F67*0.33, IF($K67=2, $F67*0.5+$G67*0.2, SUM(F67:G67)))), 0),"Non requis") -> 21614.1 | Q67: 0 | R67: 0 | S67: 1 | T67: 1 | V67: T1 (PZQ+ALB/MBD) | Y67: 7474 | Z67: BOURHA | AF67: ='T1'!M67 -> 18124 | AG67: ='T2'!M67 -> 0 | AH67: =T3_R1!L67 -> 5813 | AI67: ='MDA3'!K67 -> 0 | AJ67: ='MDA3'!N67 -> 0 | AK67: 23109 | AL67: 103.5830196 | AN67: ='T1'!F67 -> DECEMBRE 2022 | AO67: =T3_R1!F67 -> 44896 | AP67: FALSE | AS67: =_xlfn.XLOOKUP($Y67,[1]COUNTRY_INFO!$Y$9:$Y$197,[1]COUNTRY_INFO!H$9:H$197) -> 99 | AT67: =_xlfn.XLOOKUP($Y67,[1]COUNTRY_INFO!$Y$9:$Y$197,[1]COUNTRY_INFO!I$9:I$197) -> 4 | AU67: =_xlfn.XLOOKUP($Y67,[1]COUNTRY_INFO!$Y$9:$Y$197,[1]COUNTRY_INFO!J$9:J$197) -> 0 | AV67: =_xlfn.XLOOKUP($Y67,[1]COUNTRY_INFO!$Y$9:$Y$197,[1]COUNTRY_INFO!K$9:K$197) -> 2 | AW67: =_xlfn.XLOOKUP($Y67,[1]COUNTRY_INFO!$Y$9:$Y$197,[1]COUNTRY_INFO!L$9:L$197) -> 4 | AX67: TRUE | AY67: TRUE | AZ67: TRUE | BA67: TRUE | BB67: TRUE | BE67: 99 | BF67: 4 | BG67: 0 | BH67: 2 | BI67: TRUE | BJ67: TRUE | BK67: TRUE | BL67: TRUE
A68: =IF(INTRO!$E$34<>0,INTRO!$E$34,"") -> Cameroon | B68: Extreme Nord | C68: Fotokol | D68: 72459 | E68: 19758.2846 | F68: =IF(INTRO!$E$49="","",ROUND($D68*INTRO!$E$49,0)) -> 19165 | G68: =IF(INTRO!$E$50="","",ROUND($D68*INTRO!$E$50,0)) -> 41715 | H68: 99 | I68: 4 | J68: 0 | K68: 1 | L68: 0 | M68: =IF(INTRO!$E$38="Endémique", IF($H68>0, IF($H68=4,"Inconnu", IF($H68=99,"Interrompu", $D68)), 0),"Non requis") -> Interrompu | N68: 0 | O68: =IF(INTRO!$E$42="Endémique", IF(AND($J68>1,$J68<5), IF($J68=4, "Inconnu", E68+F68), 0),"Non requis") -> 0 | P68: =IF(INTRO!$E$44="Endémique", IF(AND($K68>0,$K68<5), IF($K68=4,"Inconnu", IF($K68=1, $F68*0.33, IF($K68=2, $F68*0.5+$G68*0.2, SUM(F68:G68)))), 0),"Non requis") -> 6324.45 | Q68: 0 | R68: 0 | S68: 1 | T68: 1 | V68: T1 (PZQ+ALB/MBD) | Y68: 7609 | Z68: Fotokol | AF68: ='T1'!M68 -> 11154 | AG68: ='T2'!M68 -> 0 | AH68: =T3_R1!L68 -> 6686 | AI68: ='MDA3'!K68 -> 0 | AJ68: ='MDA3'!N68 -> 0 | AK68: 19165 | AL68: 93.08635534 | AN68: ='T1'!F68 -> DECEMBRE 2022 | AO68: =T3_R1!F68 -> 44896 | AP68: FALSE | AS68: =_xlfn.XLOOKUP($Y68,[1]COUNTRY_INFO!$Y$9:$Y$197,[1]COUNTRY_INFO!H$9:H$197) ->  | AT68: =_xlfn.XLOOKUP($Y68,[1]COUNTRY_INFO!$Y$9:$Y$197,[1]COUNTRY_INFO!I$9:I$197) ->  | AU68: =_xlfn.XLOOKUP($Y68,[1]COUNTRY_INFO!$Y$9:$Y$197,[1]COUNTRY_INFO!J$9:J$197) ->  | AV68: =_xlfn.XLOOKUP($Y68,[1]COUNTRY_INFO!$Y$9:$Y$197,[1]COUNTRY_INFO!K$9:K$197) ->  | AW68: =_xlfn.XLOOKUP($Y68,[1]COUNTRY_INFO!$Y$9:$Y$197,[1]COUNTRY_INFO!L$9:L$197) ->  | BE68: 99 | BF68: 4 | BG68: 0 | BH68: 1 | BI68: TRUE | BJ68: TRUE | BK68: TRUE | BL68: TRUE
A69: =IF(INTRO!$E$34<>0,INTRO!$E$34,"") -> Cameroon | B69: Extreme Nord | C69: Gazawa | D69: 80398 | E69: 62237.81676 | F69: =IF(INTRO!$E$49="","",ROUND($D69*INTRO!$E$49,0)) -> 21265 | G69: =IF(INTRO!$E$50="","",ROUND($D69*INTRO!$E$50,0)) -> 46285 | H69: 99 | I69: 4 | J69: 0 | K69: 2 | L69: 0 | M69: =IF(INTRO!$E$38="Endémique", IF($H69>0, IF($H69=4,"Inconnu", IF($H69=99,"Interrompu", $D69)), 0),"Non requis") -> Interrompu | N69: 0 | O69: =IF(INTRO!$E$42="Endémique", IF(AND($J69>1,$J69<5), IF($J69=4, "Inconnu", E69+F69), 0),"Non requis") -> 0 | P69: =IF(INTRO!$E$44="Endémique", IF(AND($K69>0,$K69<5), IF($K69=4,"Inconnu", IF($K69=1, $F69*0.33, IF($K69=2, $F69*0.5+$G69*0.2, SUM(F69:G69)))), 0),"Non requis") -> 19889.5 | Q69: 0 | R69: 0 | S69: 1 | T69: 1 | V69: T1 (PZQ+ALB/MBD) | Y69: 7475 | Z69: GAZAWA | AF69: ='T1'!M69 -> 15418 | AG69: ='T2'!M69 -> 0 | AH69: =T3_R1!L69 -> 4582 | AI69: ='MDA3'!K69 -> 0 | AJ69: ='MDA3'!N69 -> 0 | AK69: 21265 | AL69: 94.05125794 | AN69: ='T1'!F69 -> DECEMBRE 2022 | AO69: =T3_R1!F69 -> 44896 | AP69: FALSE | AS69: =_xlfn.XLOOKUP($Y69,[1]COUNTRY_INFO!$Y$9:$Y$197,[1]COUNTRY_INFO!H$9:H$197) -> 99 | AT69: =_xlfn.XLOOKUP($Y69,[1]COUNTRY_INFO!$Y$9:$Y$197,[1]COUNTRY_INFO!I$9:I$197) -> 4 | AU69: =_xlfn.XLOOKUP($Y69,[1]COUNTRY_INFO!$Y$9:$Y$197,[1]COUNTRY_INFO!J$9:J$197) -> 0 | AV69: =_xlfn.XLOOKUP($Y69,[1]COUNTRY_INFO!$Y$9:$Y$197,[1]COUNTRY_INFO!K$9:K$197) -> 2 | AW69: =_xlfn.XLOOKUP($Y69,[1]COUNTRY_INFO!$Y$9:$Y$197,[1]COUNTRY_INFO!L$9:L$197) -> 0 | AX69: TRUE | AY69: TRUE | AZ69: TRUE | BA69: TRUE | BB69: TRUE | BE69: 99 | BF69: 4 | BG69: 0 | BH69: 2 | BI69: TRUE | BJ69: TRUE | BK69: TRUE | BL69: TRUE
A70: =IF(INTRO!$E$34<>0,INTRO!$E$34,"") -> Cameroon | B70: Extreme Nord | C70: Goulfey | D70: 125217 | E70: 30693.95712 | F70: =IF(INTRO!$E$49="","",ROUND($D70*INTRO!$E$49,0)) -> 33120 | G70: =IF(INTRO!$E$50="","",ROUND($D70*INTRO!$E$50,0)) -> 72087 | H70: 99 | I70: 4 | J70: 0 | K70: 1 | L70: 0 | M70: =IF(INTRO!$E$38="Endémique", IF($H70>0, IF($H70=4,"Inconnu", IF($H70=99,"Interrompu", $D70)), 0),"Non requis") -> Interrompu | N70: 0 | O70: =IF(INTRO!$E$42="Endémique", IF(AND($J70>1,$J70<5), IF($J70=4, "Inconnu", E70+F70), 0),"Non requis") -> 0 | P70: =IF(INTRO!$E$44="Endémique", IF(AND($K70>0,$K70<5), IF($K70=4,"Inconnu", IF($K70=1, $F70*0.33, IF($K70=2, $F70*0.5+$G70*0.2, SUM(F70:G70)))), 0),"Non requis") -> 10929.6 | Q70: 0 | R70: 0 | S70: 1 | T70: 1 | V70: T1 (PZQ+ALB/MBD) | Y70: 7476 | Z70: GOULFEY | AF70: ='T1'!M70 -> 20485 | AG70: ='T2'!M70 -> 0 | AH70: =T3_R1!L70 -> 13518 | AI70: ='MDA3'!K70 -> 0 | AJ70: ='MDA3'!N70 -> 0 | AK70: 33120 | AL70: 102.6660628 | AN70: ='T1'!F70 -> DECEMBRE 2022 | AO70: =T3_R1!F70 -> 44896 | AP70: FALSE | AS70: =_xlfn.XLOOKUP($Y70,[1]COUNTRY_INFO!$Y$9:$Y$197,[1]COUNTRY_INFO!H$9:H$197) -> 99 | AT70: =_xlfn.XLOOKUP($Y70,[1]COUNTRY_INFO!$Y$9:$Y$197,[1]COUNTRY_INFO!I$9:I$197) -> 4 | AU70: =_xlfn.XLOOKUP($Y70,[1]COUNTRY_INFO!$Y$9:$Y$197,[1]COUNTRY_INFO!J$9:J$197) -> 0 | AV70: =_xlfn.XLOOKUP($Y70,[1]COUNTRY_INFO!$Y$9:$Y$197,[1]COUNTRY_INFO!K$9:K$197) -> 1 | AW70: =_xlfn.XLOOKUP($Y70,[1]COUNTRY_INFO!$Y$9:$Y$197,[1]COUNTRY_INFO!L$9:L$197) -> 0 | AX70: TRUE | AY70: TRUE | AZ70: TRUE | BA70: TRUE | BB70: TRUE | BE70: 99 | BF70: 4 | BG70: 0 | BH70: 1 | BI70: TRUE | BJ70: TRUE | BK70: TRUE | BL70: TRUE
A71: =IF(INTRO!$E$34<>0,INTRO!$E$34,"") -> Cameroon | B71: Extreme Nord | C71: Guere | D71: 145869 | E71: 26595.51657 | F71: =IF(INTRO!$E$49="","",ROUND($D71*INTRO!$E$49,0)) -> 38582 | G71: =IF(INTRO!$E$50="","",ROUND($D71*INTRO!$E$50,0)) -> 83977 | H71: 99 | I71: 4 | J71: 1 | K71: 3 | L71: 1 | M71: =IF(INTRO!$E$38="Endémique", IF($H71>0, IF($H71=4,"Inconnu", IF($H71=99,"Interrompu", $D71)), 0),"Non requis") -> Interrompu | N71: 0 | O71: =IF(INTRO!$E$42="Endémique", IF(AND($J71>1,$J71<5), IF($J71=4, "Inconnu", E71+F71), 0),"Non requis") -> 0 | P71: =IF(INTRO!$E$44="Endémique", IF(AND($K71>0,$K71<5), IF($K71=4,"Inconnu", IF($K71=1, $F71*0.33, IF($K71=2, $F71*0.5+$G71*0.2, SUM(F71:G71)))), 0),"Non requis") -> 122559 | Q71: 0 | R71: 0 | S71: 1 | T71: 1 | V71: T1 (PZQ+ALB/MBD) | Y71: 7477 | Z71: GUERE | AF71: ='T1'!M71 -> 25614 | AG71: ='T2'!M71 -> 0 | AH71: =T3_R1!L71 -> 11794 | AI71: ='MDA3'!K71 -> 0 | AJ71: ='MDA3'!N71 -> 0 | AK71: 38582 | AL71: 96.95713027 | AN71: ='T1'!F71 -> DECEMBRE 2022 | AO71: =T3_R1!F71 -> 44896 | AP71: FALSE | AS71: =_xlfn.XLOOKUP($Y71,[1]COUNTRY_INFO!$Y$9:$Y$197,[1]COUNTRY_INFO!H$9:H$197) -> 99 | AT71: =_xlfn.XLOOKUP($Y71,[1]COUNTRY_INFO!$Y$9:$Y$197,[1]COUNTRY_INFO!I$9:I$197) -> 4 | AU71: =_xlfn.XLOOKUP($Y71,[1]COUNTRY_INFO!$Y$9:$Y$197,[1]COUNTRY_INFO!J$9:J$197) -> 1 | AV71: =_xlfn.XLOOKUP($Y71,[1]COUNTRY_INFO!$Y$9:$Y$197,[1]COUNTRY_INFO!K$9:K$197) -> 3 | AW71: =_xlfn.XLOOKUP($Y71,[1]COUNTRY_INFO!$Y$9:$Y$197,[1]COUNTRY_INFO!L$9:L$197) -> 1 | AX71: TRUE | AY71: TRUE | AZ71: TRUE | BA71: TRUE | BB71: TRUE | BE71: 99 | BF71: 4 | BG71: 1 | BH71: 3 | BI71: TRUE | BJ71: TRUE | BK71: TRUE | BL71: TRUE
A72: =IF(INTRO!$E$34<>0,INTRO!$E$34,"") -> Cameroon | B72: Extreme Nord | C72: Guidiguis | D72: 191134 | E72: 51401.55945 | F72: =IF(INTRO!$E$49="","",ROUND($D72*INTRO!$E$49,0)) -> 50555 | G72: =IF(INTRO!$E$50="","",ROUND($D72*INTRO!$E$50,0)) -> 110036 | H72: 99 | I72: 4 | J72: 1 | K72: 3 | L72: 0 | M72: =IF(INTRO!$E$38="Endémique", IF($H72>0, IF($H72=4,"Inconnu", IF($H72=99,"Interrompu", $D72)), 0),"Non requis") -> Interrompu | N72: 0 | O72: =IF(INTRO!$E$42="Endémique", IF(AND($J72>1,$J72<5), IF($J72=4, "Inconnu", E72+F72), 0),"Non requis") -> 0 | P72: =IF(INTRO!$E$44="Endémique", IF(AND($K72>0,$K72<5), IF($K72=4,"Inconnu", IF($K72=1, $F72*0.33, IF($K72=2, $F72*0.5+$G72*0.2, SUM(F72:G72)))), 0),"Non requis") -> 160591 | Q72: 0 | R72: 0 | S72: 1 | T72: 1 | V72: T1 (PZQ+ALB/MBD) | Y72: 7478 | Z72: GUIDIGUIS | AF72: ='T1'!M72 -> 42786 | AG72: ='T2'!M72 -> 0 | AH72: =T3_R1!L72 -> 7521 | AI72: ='MDA3'!K72 -> 0 | AJ72: ='MDA3'!N72 -> 0 | AK72: 50555 | AL72: 99.50944516 | AN72: ='T1'!F72 -> DECEMBRE 2022 | AO72: =T3_R1!F72 -> 44896 | AP72: FALSE | AS72: =_xlfn.XLOOKUP($Y72,[1]COUNTRY_INFO!$Y$9:$Y$197,[1]COUNTRY_INFO!H$9:H$197) -> 99 | AT72: =_xlfn.XLOOKUP($Y72,[1]COUNTRY_INFO!$Y$9:$Y$197,[1]COUNTRY_INFO!I$9:I$197) -> 4 | AU72: =_xlfn.XLOOKUP($Y72,[1]COUNTRY_INFO!$Y$9:$Y$197,[1]COUNTRY_INFO!J$9:J$197) -> 1 | AV72: =_xlfn.XLOOKUP($Y72,[1]COUNTRY_INFO!$Y$9:$Y$197,[1]COUNTRY_INFO!K$9:K$197) -> 3 | AW72: =_xlfn.XLOOKUP($Y72,[1]COUNTRY_INFO!$Y$9:$Y$197,[1]COUNTRY_INFO!L$9:L$197) -> 0 | AX72: TRUE | AY72: TRUE | AZ72: TRUE | BA72: TRUE | BB72: TRUE | BE72: 99 | BF72: 4 | BG72: 1 | BH72: 3 | BI72: TRUE | BJ72: TRUE | BK72: TRUE | BL72: TRUE
A73: =IF(INTRO!$E$34<>0,INTRO!$E$34,"") -> Cameroon | B73: Extreme Nord | C73: Hina | D73: 142412 | E73: 34903.50877 | F73: =IF(INTRO!$E$49="","",ROUND($D73*INTRO!$E$49,0)) -> 37668 | G73: =IF(INTRO!$E$50="","",ROUND($D73*INTRO!$E$50,0)) -> 81987 | H73: 99 | I73: 4 | J73: 0 | K73: 3 | L73: 4 | M73: =IF(INTRO!$E$38="Endémique", IF($H73>0, IF($H73=4,"Inconnu", IF($H73=99,"Interrompu", $D73)), 0),"Non requis") -> Interrompu | N73: 0 | O73: =IF(INTRO!$E$42="Endémique", IF(AND($J73>1,$J73<5), IF($J73=4, "Inconnu", E73+F73), 0),"Non requis") -> 0 | P73: =IF(INTRO!$E$44="Endémique", IF(AND($K73>0,$K73<5), IF($K73=4,"Inconnu", IF($K73=1, $F73*0.33, IF($K73=2, $F73*0.5+$G73*0.2, SUM(F73:G73)))), 0),"Non requis") -> 119655 | Q73: 0 | R73: 0 | S73: 1 | T73: 1 | V73: T1 (PZQ+ALB/MBD) | Y73: 7479 | Z73: HINA | AF73: ='T1'!M73 -> 25725 | AG73: ='T2'!M73 -> 0 | AH73: =T3_R1!L73 -> 7565 | AI73: ='MDA3'!K73 -> 0 | AJ73: ='MDA3'!N73 -> 0 | AK73: 37668 | AL73: 88.37740257 | AN73: ='T1'!F73 -> DECEMBRE 2022 | AO73: =T3_R1!F73 -> 44896 | AP73: FALSE | AS73: =_xlfn.XLOOKUP($Y73,[1]COUNTRY_INFO!$Y$9:$Y$197,[1]COUNTRY_INFO!H$9:H$197) -> 99 | AT73: =_xlfn.XLOOKUP($Y73,[1]COUNTRY_INFO!$Y$9:$Y$197,[1]COUNTRY_INFO!I$9:I$197) -> 4 | AU73: =_xlfn.XLOOKUP($Y73,[1]COUNTRY_INFO!$Y$9:$Y$197,[1]COUNTRY_INFO!J$9:J$197) -> 0 | AV73: =_xlfn.XLOOKUP($Y73,[1]COUNTRY_INFO!$Y$9:$Y$197,[1]COUNTRY_INFO!K$9:K$197) -> 3 | AW73: =_xlfn.XLOOKUP($Y73,[1]COUNTRY_INFO!$Y$9:$Y$197,[1]COUNTRY_INFO!L$9:L$197) -> 4 | AX73: TRUE | AY73: TRUE | AZ73: TRUE | BA73: TRUE | BB73: TRUE | BE73: 99 | BF73: 4 | BG73: 0 | BH73: 3 | BI73: TRUE | BJ73: TRUE | BK73: TRUE | BL73: TRUE
A74: =IF(INTRO!$E$34<>0,INTRO!$E$34,"") -> Cameroon | B74: Extreme Nord | C74: Kaele | D74: 124390 | E74: 28599.4152 | F74: =IF(INTRO!$E$49="","",ROUND($D74*INTRO!$E$49,0)) -> 32901 | G74: =IF(INTRO!$E$50="","",ROUND($D74*INTRO!$E$50,0)) -> 71611 | H74: 99 | I74: 4 | J74: 0 | K74: 2 | L74: 0 | M74: =IF(INTRO!$E$38="Endémique", IF($H74>0, IF($H74=4,"Inconnu", IF($H74=99,"Interrompu", $D74)), 0),"Non requis") -> Interrompu | N74: 0 | O74: =IF(INTRO!$E$42="Endémique", IF(AND($J74>1,$J74<5), IF($J74=4, "Inconnu", E74+F74), 0),"Non requis") -> 0 | P74: =IF(INTRO!$E$44="Endémique", IF(AND($K74>0,$K74<5), IF($K74=4,"Inconnu", IF($K74=1, $F74*0.33, IF($K74=2, $F74*0.5+$G74*0.2, SUM(F74:G74)))), 0),"Non requis") -> 30772.7 | Q74: 0 | R74: 0 | S74: 1 | T74: 1 | V74: T1 (PZQ+ALB/MBD) | Y74: 7480 | Z74: KAELE | AF74: ='T1'!M74 -> 24247 | AG74: ='T2'!M74 -> 0 | AH74: =T3_R1!L74 -> 15903 | AI74: ='MDA3'!K74 -> 0 | AJ74: ='MDA3'!N74 -> 0 | AK74: =F74 -> 32901 | AL74: =(AF74+AH74)/AK74*100 -> 122.032765 | AN74: ='T1'!F74 -> DECEMBRE 2022 | AO74: =T3_R1!F74 -> 44896 | AP74: FALSE | AS74: =_xlfn.XLOOKUP($Y74,[1]COUNTRY_INFO!$Y$9:$Y$197,[1]COUNTRY_INFO!H$9:H$197) -> 99 | AT74: =_xlfn.XLOOKUP($Y74,[1]COUNTRY_INFO!$Y$9:$Y$197,[1]COUNTRY_INFO!I$9:I$197) -> 4 | AU74: =_xlfn.XLOOKUP($Y74,[1]COUNTRY_INFO!$Y$9:$Y$197,[1]COUNTRY_INFO!J$9:J$197) -> 0 | AV74: =_xlfn.XLOOKUP($Y74,[1]COUNTRY_INFO!$Y$9:$Y$197,[1]COUNTRY_INFO!K$9:K$197) -> 2 | AW74: =_xlfn.XLOOKUP($Y74,[1]COUNTRY_INFO!$Y$9:$Y$197,[1]COUNTRY_INFO!L$9:L$197) -> 0 | AX74: =AS74=H74 -> TRUE | AY74: =AT74=I74 -> TRUE | AZ74: =AU74=J74 -> TRUE | BA74: =AV74=K74 -> TRUE | BB74: =AW74=L74 -> TRUE | BE74: 99 | BF74: 4 | BG74: 0 | BH74: 2 | BI74: =BE74=H74 -> TRUE | BJ74: =BF74=I74 -> TRUE | BK74: =BG74=J74 -> TRUE | BL74: =BH74=K74 -> TRUE
A75: =IF(INTRO!$E$34<>0,INTRO!$E$34,"") -> Cameroon | B75: Extreme Nord | C75: Kar Hay | D75: 143802 | E75: 22874.26901 | F75: =IF(INTRO!$E$49="","",ROUND($D75*INTRO!$E$49,0)) -> 38036 | G75: =IF(INTRO!$E$50="","",ROUND($D75*INTRO!$E$50,0)) -> 82787 | H75: 99 | I75: 4 | J75: 1 | K75: 2 | L75: 0 | M75: =IF(INTRO!$E$38="Endémique", IF($H75>0, IF($H75=4,"Inconnu", IF($H75=99,"Interrompu", $D75)), 0),"Non requis") -> Interrompu | N75: 0 | O75: =IF(INTRO!$E$42="Endémique", IF(AND($J75>1,$J75<5), IF($J75=4, "Inconnu", E75+F75), 0),"Non requis") -> 0 | P75: =IF(INTRO!$E$44="Endémique", IF(AND($K75>0,$K75<5), IF($K75=4,"Inconnu", IF($K75=1, $F75*0.33, IF($K75=2, $F75*0.5+$G75*0.2, SUM(F75:G75)))), 0),"Non requis") -> 35575.4 | Q75: 0 | R75: 0 | S75: 1 | T75: 1 | V75: T1 (PZQ+ALB/MBD) | Y75: 7481 | Z75: KAR HAY | AF75: ='T1'!M75 -> 26490 | AG75: ='T2'!M75 -> 0 | AH75: =T3_R1!L75 -> 11461 | AI75: ='MDA3'!K75 -> 0 | AJ75: ='MDA3'!N75 -> 0 | AK75: 38036 | AL75: 99.7765275 | AN75: ='T1'!F75 -> DECEMBRE 2022 | AO75: =T3_R1!F75 -> 44896 | AP75: FALSE | AS75: =_xlfn.XLOOKUP($Y75,[1]COUNTRY_INFO!$Y$9:$Y$197,[1]COUNTRY_INFO!H$9:H$197) -> 99 | AT75: =_xlfn.XLOOKUP($Y75,[1]COUNTRY_INFO!$Y$9:$Y$197,[1]COUNTRY_INFO!I$9:I$197) -> 4 | AU75: =_xlfn.XLOOKUP($Y75,[1]COUNTRY_INFO!$Y$9:$Y$197,[1]COUNTRY_INFO!J$9:J$197) -> 1 | AV75: =_xlfn.XLOOKUP($Y75,[1]COUNTRY_INFO!$Y$9:$Y$197,[1]COUNTRY_INFO!K$9:K$197) -> 2 | AW75: =_xlfn.XLOOKUP($Y75,[1]COUNTRY_INFO!$Y$9:$Y$197,[1]COUNTRY_INFO!L$9:L$197) -> 0 | AX75: TRUE | AY75: TRUE | AZ75: TRUE | BA75: TRUE | BB75: TRUE | BE75: 99 | BF75: 4 | BG75: 1 | BH75: 2 | BI75: TRUE | BJ75: TRUE | BK75: TRUE | BL75: TRUE
A76: =IF(INTRO!$E$34<>0,INTRO!$E$34,"") -> Cameroon | B76: Extreme Nord | C76: Kolofata | D76: 127437 | E76: 39112.08577 | F76: =IF(INTRO!$E$49="","",ROUND($D76*INTRO!$E$49,0)) -> 33707 | G76: =IF(INTRO!$E$50="","",ROUND($D76*INTRO!$E$50,0)) -> 73365 | H76: 99 | I76: 4 | J76: 0 | K76: 1 | L76: 4 | M76: =IF(INTRO!$E$38="Endémique", IF($H76>0, IF($H76=4,"Inconnu", IF($H76=99,"Interrompu", $D76)), 0),"Non requis") -> Interrompu | N76: 0 | O76: =IF(INTRO!$E$42="Endémique", IF(AND($J76>1,$J76<5), IF($J76=4, "Inconnu", E76+F76), 0),"Non requis") -> 0 | P76: =IF(INTRO!$E$44="Endémique", IF(AND($K76>0,$K76<5), IF($K76=4,"Inconnu", IF($K76=1, $F76*0.33, IF($K76=2, $F76*0.5+$G76*0.2, SUM(F76:G76)))), 0),"Non requis") -> 11123.31 | Q76: 0 | R76: 0 | S76: 1 | T76: 1 | V76: T1 (PZQ+ALB/MBD) | Y76: 7482 | Z76: KOLOFATA | AF76: ='T1'!M76 -> 27271 | AG76: ='T2'!M76 -> 0 | AH76: =T3_R1!L76 -> 7819 | AI76: ='MDA3'!K76 -> 0 | AJ76: ='MDA3'!N76 -> 0 | AK76: 33707 | AL76: 104.1030053 | AN76: ='T1'!F76 -> DECEMBRE 2022 | AO76: =T3_R1!F76 -> 44896 | AP76: FALSE | AS76: =_xlfn.XLOOKUP($Y76,[1]COUNTRY_INFO!$Y$9:$Y$197,[1]COUNTRY_INFO!H$9:H$197) -> 99 | AT76: =_xlfn.XLOOKUP($Y76,[1]COUNTRY_INFO!$Y$9:$Y$197,[1]COUNTRY_INFO!I$9:I$197) -> 4 | AU76: =_xlfn.XLOOKUP($Y76,[1]COUNTRY_INFO!$Y$9:$Y$197,[1]COUNTRY_INFO!J$9:J$197) -> 0 | AV76: =_xlfn.XLOOKUP($Y76,[1]COUNTRY_INFO!$Y$9:$Y$197,[1]COUNTRY_INFO!K$9:K$197) -> 1 | AW76: =_xlfn.XLOOKUP($Y76,[1]COUNTRY_INFO!$Y$9:$Y$197,[1]COUNTRY_INFO!L$9:L$197) -> 4 | AX76: TRUE | AY76: TRUE | AZ76: TRUE | BA76: TRUE | BB76: TRUE | BE76: 99 | BF76: 4 | BG76: 0 | BH76: 1 | BI76: TRUE | BJ76: TRUE | BK76: TRUE | BL76: TRUE
A77: =IF(INTRO!$E$34<>0,INTRO!$E$34,"") -> Cameroon | B77: Extreme Nord | C77: Kousseri | D77: 417157 | E77: 80325.53606 | F77: =IF(INTRO!$E$49="","",ROUND($D77*INTRO!$E$49,0)) -> 110338 | G77: =IF(INTRO!$E$50="","",ROUND($D77*INTRO!$E$50,0)) -> 240157 | H77: 99 | I77: 4 | J77: 1 | K77: 2 | L77: 0 | M77: =IF(INTRO!$E$38="Endémique", IF($H77>0, IF($H77=4,"Inconnu", IF($H77=99,"Interrompu", $D77)), 0),"Non requis") -> Interrompu | N77: 0 | O77: =IF(INTRO!$E$42="Endémique", IF(AND($J77>1,$J77<5), IF($J77=4, "Inconnu", E77+F77), 0),"Non requis") -> 0 | P77: =IF(INTRO!$E$44="Endémique", IF(AND($K77>0,$K77<5), IF($K77=4,"Inconnu", IF($K77=1, $F77*0.33, IF($K77=2, $F77*0.5+$G77*0.2, SUM(F77:G77)))), 0),"Non requis") -> 103200.4 | Q77: 0 | R77: 0 | S77: 1 | T77: 1 | V77: T1 (PZQ+ALB/MBD) | Y77: 7483 | Z77: KOUSSERI | AF77: ='T1'!M77 -> 81789 | AG77: ='T2'!M77 -> 0 | AH77: =T3_R1!L77 -> 28175 | AI77: ='MDA3'!K77 -> 0 | AJ77: ='MDA3'!N77 -> 0 | AK77: 110338 | AL77: 99.66104153 | AN77: ='T1'!F77 -> DECEMBRE 2022 | AO77: =T3_R1!F77 -> 44896 | AP77: FALSE | AS77: =_xlfn.XLOOKUP($Y77,[1]COUNTRY_INFO!$Y$9:$Y$197,[1]COUNTRY_INFO!H$9:H$197) -> 99 | AT77: =_xlfn.XLOOKUP($Y77,[1]COUNTRY_INFO!$Y$9:$Y$197,[1]COUNTRY_INFO!I$9:I$197) -> 4 | AU77: =_xlfn.XLOOKUP($Y77,[1]COUNTRY_INFO!$Y$9:$Y$197,[1]COUNTRY_INFO!J$9:J$197) -> 1 | AV77: =_xlfn.XLOOKUP($Y77,[1]COUNTRY_INFO!$Y$9:$Y$197,[1]COUNTRY_INFO!K$9:K$197) -> 2 | AW77: =_xlfn.XLOOKUP($Y77,[1]COUNTRY_INFO!$Y$9:$Y$197,[1]COUNTRY_INFO!L$9:L$197) -> 0 | AX77: TRUE | AY77: TRUE | AZ77: TRUE | BA77: TRUE | BB77: TRUE | BE77: 99 | BF77: 4 | BG77: 1 | BH77: 2 | BI77: TRUE | BJ77: TRUE | BK77: TRUE | BL77: TRUE
A78: =IF(INTRO!$E$34<>0,INTRO!$E$34,"") -> Cameroon | B78: Extreme Nord | C78: Koza | D78: 92136 | E78: 20012.67057 | F78: =IF(INTRO!$E$49="","",ROUND($D78*INTRO!$E$49,0)) -> 24370 | G78: =IF(INTRO!$E$50="","",ROUND($D78*INTRO!$E$50,0)) -> 53043 | H78: 99 | I78: 1 | J78: 1 | K78: 2 | L78: 4 | M78: =IF(INTRO!$E$38="Endémique", IF($H78>0, IF($H78=4,"Inconnu", IF($H78=99,"Interrompu", $D78)), 0),"Non requis") -> Interrompu | N78: 137106 | O78: =IF(INTRO!$E$42="Endémique", IF(AND($J78>1,$J78<5), IF($J78=4, "Inconnu", E78+F78), 0),"Non requis") -> 0 | P78: =IF(INTRO!$E$44="Endémique", IF(AND($K78>0,$K78<5), IF($K78=4,"Inconnu", IF($K78=1, $F78*0.33, IF($K78=2, $F78*0.5+$G78*0.2, SUM(F78:G78)))), 0),"Non requis") -> 22793.6 | Q78: 0 | R78: 1 | S78: 1 | T78: 1 | U78: MDA3 (IVM) | V78: T1 (PZQ+ALB/MBD) | Y78: 7484 | Z78: KOZA | AF78: ='T1'!M78 -> 19723 | AG78: ='T2'!M78 -> 0 | AH78: =T3_R1!L78 -> 11689 | AI78: ='MDA3'!K78 -> 81476 | AJ78: ='MDA3'!N78 -> 0 | AK78: 24370 | AL78: 128.8961838 | AN78: ='T1'!F78 -> DECEMBRE 2022 | AO78: =T3_R1!F78 -> 44896 | AP78: FALSE | AS78: =_xlfn.XLOOKUP($Y78,[1]COUNTRY_INFO!$Y$9:$Y$197,[1]COUNTRY_INFO!H$9:H$197) -> 99 | AT78: =_xlfn.XLOOKUP($Y78,[1]COUNTRY_INFO!$Y$9:$Y$197,[1]COUNTRY_INFO!I$9:I$197) -> 1 | AU78: =_xlfn.XLOOKUP($Y78,[1]COUNTRY_INFO!$Y$9:$Y$197,[1]COUNTRY_INFO!J$9:J$197) -> 1 | AV78: =_xlfn.XLOOKUP($Y78,[1]COUNTRY_INFO!$Y$9:$Y$197,[1]COUNTRY_INFO!K$9:K$197) -> 2 | AW78: =_xlfn.XLOOKUP($Y78,[1]COUNTRY_INFO!$Y$9:$Y$197,[1]COUNTRY_INFO!L$9:L$197) -> 4 | AX78: TRUE | AY78: TRUE | AZ78: TRUE | BA78: TRUE | BB78: TRUE | BE78: 99 | BF78: 1 | BG78: 1 | BH78: 2 | BI78: TRUE | BJ78: TRUE | BK78: TRUE | BL78: TRUE
A79: =IF(INTRO!$E$34<>0,INTRO!$E$34,"") -> Cameroon | B79: Extreme Nord | C79: Mada | D79: 173438 | E79: 48371.34503 | F79: =IF(INTRO!$E$49="","",ROUND($D79*INTRO!$E$49,0)) -> 45874 | G79: =IF(INTRO!$E$50="","",ROUND($D79*INTRO!$E$50,0)) -> 99848 | H79: 99 | I79: 4 | J79: 0 | K79: 3 | L79: 0 | M79: =IF(INTRO!$E$38="Endémique", IF($H79>0, IF($H79=4,"Inconnu", IF($H79=99,"Interrompu", $D79)), 0),"Non requis") -> Interrompu | N79: 0 | O79: =IF(INTRO!$E$42="Endémique", IF(AND($J79>1,$J79<5), IF($J79=4, "Inconnu", E79+F79), 0),"Non requis") -> 0 | P79: =IF(INTRO!$E$44="Endémique", IF(AND($K79>0,$K79<5), IF($K79=4,"Inconnu", IF($K79=1, $F79*0.33, IF($K79=2, $F79*0.5+$G79*0.2, SUM(F79:G79)))), 0),"Non requis") -> 145722 | Q79: 0 | R79: 0 | S79: 1 | T79: 1 | V79: T1 (PZQ+ALB/MBD) | Y79: 7485 | Z79: MADA | AF79: ='T1'!M79 -> 29466 | AG79: ='T2'!M79 -> 0 | AH79: =T3_R1!L79 -> 1031 | AI79: ='MDA3'!K79 -> 0 | AJ79: ='MDA3'!N79 -> 0 | AK79: 45874 | AL79: 66.47992327 | AN79: ='T1'!F79 -> DECEMBRE 2022 | AO79: =T3_R1!F79 -> 44896 | AP79: =AN79=AO79 -> FALSE | AS79: =_xlfn.XLOOKUP($Y79,[1]COUNTRY_INFO!$Y$9:$Y$197,[1]COUNTRY_INFO!H$9:H$197) -> 99 | AT79: =_xlfn.XLOOKUP($Y79,[1]COUNTRY_INFO!$Y$9:$Y$197,[1]COUNTRY_INFO!I$9:I$197) -> 4 | AU79: =_xlfn.XLOOKUP($Y79,[1]COUNTRY_INFO!$Y$9:$Y$197,[1]COUNTRY_INFO!J$9:J$197) -> 0 | AV79: =_xlfn.XLOOKUP($Y79,[1]COUNTRY_INFO!$Y$9:$Y$197,[1]COUNTRY_INFO!K$9:K$197) -> 3 | AW79: =_xlfn.XLOOKUP($Y79,[1]COUNTRY_INFO!$Y$9:$Y$197,[1]COUNTRY_INFO!L$9:L$197) -> 0 | AX79: TRUE | AY79: TRUE | AZ79: TRUE | BA79: TRUE | BB79: TRUE | BE79: 99 | BF79: 4 | BG79: 0 | BH79: 3 | BI79: TRUE | BJ79: TRUE | BK79: TRUE | BL79: TRUE
A80: =IF(INTRO!$E$34<>0,INTRO!$E$34,"") -> Cameroon | B80: Extreme Nord | C80: Maga | D80: 208725 | E80: 39410.33138 | F80: =IF(INTRO!$E$49="","",ROUND($D80*INTRO!$E$49,0)) -> 55208 | G80: =IF(INTRO!$E$50="","",ROUND($D80*INTRO!$E$50,0)) -> 120163 | H80: 99 | I80: 4 | J80: 1 | K80: 3 | L80: 0 | M80: =IF(INTRO!$E$38="Endémique", IF($H80>0, IF($H80=4,"Inconnu", IF($H80=99,"Interrompu", $D80)), 0),"Non requis") -> Interrompu | N80: 0 | O80: =IF(INTRO!$E$42="Endémique", IF(AND($J80>1,$J80<5), IF($J80=4, "Inconnu", E80+F80), 0),"Non requis") -> 0 | P80: =IF(INTRO!$E$44="Endémique", IF(AND($K80>0,$K80<5), IF($K80=4,"Inconnu", IF($K80=1, $F80*0.33, IF($K80=2, $F80*0.5+$G80*0.2, SUM(F80:G80)))), 0),"Non requis") -> 175371 | Q80: 0 | R80: 0 | S80: 1 | T80: 1 | V80: T1 (PZQ+ALB/MBD) | Y80: 7486 | Z80: MAGA | AF80: ='T1'!M80 -> 39737 | AG80: ='T2'!M80 -> 0 | AH80: =T3_R1!L80 -> 20263 | AI80: ='MDA3'!K80 -> 0 | AJ80: ='MDA3'!N80 -> 0 | AK80: 55208 | AL80: 108.6799015 | AN80: ='T1'!F80 -> DECEMBRE 2022 | AO80: =T3_R1!F80 -> 44896 | AP80: =AN80=AO80 -> FALSE | AS80: =_xlfn.XLOOKUP($Y80,[1]COUNTRY_INFO!$Y$9:$Y$197,[1]COUNTRY_INFO!H$9:H$197) -> 99 | AT80: =_xlfn.XLOOKUP($Y80,[1]COUNTRY_INFO!$Y$9:$Y$197,[1]COUNTRY_INFO!I$9:I$197) -> 4 | AU80: =_xlfn.XLOOKUP($Y80,[1]COUNTRY_INFO!$Y$9:$Y$197,[1]COUNTRY_INFO!J$9:J$197) -> 1 | AV80: =_xlfn.XLOOKUP($Y80,[1]COUNTRY_INFO!$Y$9:$Y$197,[1]COUNTRY_INFO!K$9:K$197) -> 3 | AW80: =_xlfn.XLOOKUP($Y80,[1]COUNTRY_INFO!$Y$9:$Y$197,[1]COUNTRY_INFO!L$9:L$197) -> 0 | AX80: TRUE | AY80: TRUE | AZ80: TRUE | BA80: TRUE | BB80: TRUE | BE80: 99 | BF80: 4 | BG80: 1 | BH80: 3 | BI80: TRUE | BJ80: TRUE | BK80: TRUE | BL80: TRUE
A81: =IF(INTRO!$E$34<>0,INTRO!$E$34,"") -> Cameroon | B81: Extreme Nord | C81: Makary | D81: 140183 | E81: 37431.77388 | F81: =IF(INTRO!$E$49="","",ROUND($D81*INTRO!$E$49,0)) -> 37078 | G81: =IF(INTRO!$E$50="","",ROUND($D81*INTRO!$E$50,0)) -> 80703 | H81: 99 | I81: 4 | J81: 0 | K81: 1 | L81: 0 | M81: =IF(INTRO!$E$38="Endémique", IF($H81>0, IF($H81=4,"Inconnu", IF($H81=99,"Interrompu", $D81)), 0),"Non requis") -> Interrompu | N81: 0 | O81: =IF(INTRO!$E$42="Endémique", IF(AND($J81>1,$J81<5), IF($J81=4, "Inconnu", E81+F81), 0),"Non requis") -> 0 | P81: =IF(INTRO!$E$44="Endémique", IF(AND($K81>0,$K81<5), IF($K81=4,"Inconnu", IF($K81=1, $F81*0.33, IF($K81=2, $F81*0.5+$G81*0.2, SUM(F81:G81)))), 0),"Non requis") -> 12235.74 | Q81: 0 | R81: 0 | S81: 1 | T81: 1 | V81: T1 (PZQ+ALB/MBD) | Y81: 7487 | Z81: MAKARY | AF81: ='T1'!M81 -> 20395 | AG81: ='T2'!M81 -> 0 | AH81: =T3_R1!L81 -> 816 | AI81: ='MDA3'!K81 -> 0 | AJ81: ='MDA3'!N81 -> 0 | AK81: 37078 | AL81: 57.20642969 | AN81: ='T1'!F81 -> DECEMBRE 2022 | AO81: =T3_R1!F81 -> 44896 | AP81: =AN81=AO81 -> FALSE | AS81: =_xlfn.XLOOKUP($Y81,[1]COUNTRY_INFO!$Y$9:$Y$197,[1]COUNTRY_INFO!H$9:H$197) -> 99 | AT81: =_xlfn.XLOOKUP($Y81,[1]COUNTRY_INFO!$Y$9:$Y$197,[1]COUNTRY_INFO!I$9:I$197) -> 4 | AU81: =_xlfn.XLOOKUP($Y81,[1]COUNTRY_INFO!$Y$9:$Y$197,[1]COUNTRY_INFO!J$9:J$197) -> 0 | AV81: =_xlfn.XLOOKUP($Y81,[1]COUNTRY_INFO!$Y$9:$Y$197,[1]COUNTRY_INFO!K$9:K$197) -> 1 | AW81: =_xlfn.XLOOKUP($Y81,[1]COUNTRY_INFO!$Y$9:$Y$197,[1]COUNTRY_INFO!L$9:L$197) -> 0 | AX81: TRUE | AY81: TRUE | AZ81: TRUE | BA81: TRUE | BB81: TRUE | BE81: 99 | BF81: 4 | BG81: 0 | BH81: 1 | BI81: TRUE | BJ81: TRUE | BK81: TRUE | BL81: TRUE
A82: =IF(INTRO!$E$34<>0,INTRO!$E$34,"") -> Cameroon | B82: Extreme Nord | C82: Maroua 1 | D82: 208279 | E82: 53048.73294 | F82: =IF(INTRO!$E$49="","",ROUND($D82*INTRO!$E$49,0)) -> 55090 | G82: =IF(INTRO!$E$50="","",ROUND($D82*INTRO!$E$50,0)) -> 119906 | H82: 99 | I82: 4 | J82: 1 | K82: 2 | L82: 0 | M82: =IF(INTRO!$E$38="Endémique", IF($H82>0, IF($H82=4,"Inconnu", IF($H82=99,"Interrompu", $D82)), 0),"Non requis") -> Interrompu | N82: 0 | O82: =IF(INTRO!$E$42="Endémique", IF(AND($J82>1,$J82<5), IF($J82=4, "Inconnu", E82+F82), 0),"Non requis") -> 0 | P82: =IF(INTRO!$E$44="Endémique", IF(AND($K82>0,$K82<5), IF($K82=4,"Inconnu", IF($K82=1, $F82*0.33, IF($K82=2, $F82*0.5+$G82*0.2, SUM(F82:G82)))), 0),"Non requis") -> 51526.2 | Q82: 0 | R82: 0 | S82: 1 | T82: 1 | V82: T1 (PZQ+ALB/MBD) | Y82: 7488 | Z82: MAROUA 1 | AF82: ='T1'!M82 -> 39321 | AG82: ='T2'!M82 -> 0 | AH82: =T3_R1!L82 -> 15335 | AI82: ='MDA3'!K82 -> 0 | AJ82: ='MDA3'!N82 -> 0 | AK82: 55090 | AL82: 99.21219822 | AN82: ='T1'!F82 -> DECEMBRE 2022 | AO82: =T3_R1!F82 -> 44896 | AP82: =AN82=AO82 -> FALSE | AS82: =_xlfn.XLOOKUP($Y82,[1]COUNTRY_INFO!$Y$9:$Y$197,[1]COUNTRY_INFO!H$9:H$197) -> 99 | AT82: =_xlfn.XLOOKUP($Y82,[1]COUNTRY_INFO!$Y$9:$Y$197,[1]COUNTRY_INFO!I$9:I$197) -> 4 | AU82: =_xlfn.XLOOKUP($Y82,[1]COUNTRY_INFO!$Y$9:$Y$197,[1]COUNTRY_INFO!J$9:J$197) -> 1 | AV82: =_xlfn.XLOOKUP($Y82,[1]COUNTRY_INFO!$Y$9:$Y$197,[1]COUNTRY_INFO!K$9:K$197) -> 2 | AW82: =_xlfn.XLOOKUP($Y82,[1]COUNTRY_INFO!$Y$9:$Y$197,[1]COUNTRY_INFO!L$9:L$197) -> 0 | AX82: TRUE | AY82: TRUE | AZ82: TRUE | BA82: TRUE | BB82: TRUE | BE82: 99 | BF82: 4 | BG82: 1 | BH82: 2 | BI82: TRUE | BJ82: TRUE | BK82: TRUE | BL82: TRUE
A83: =IF(INTRO!$E$34<>0,INTRO!$E$34,"") -> Cameroon | B83: Extreme Nord | C83: Maroua 2 | D83: 215236 | E83: 130900.5848 | F83: =IF(INTRO!$E$49="","",ROUND($D83*INTRO!$E$49,0)) -> 56930 | G83: =IF(INTRO!$E$50="","",ROUND($D83*INTRO!$E$50,0)) -> 123911 | H83: 99 | I83: 4 | J83: 1 | K83: 2 | L83: 4 | M83: =IF(INTRO!$E$38="Endémique", IF($H83>0, IF($H83=4,"Inconnu", IF($H83=99,"Interrompu", $D83)), 0),"Non requis") -> Interrompu | N83: 0 | O83: =IF(INTRO!$E$42="Endémique", IF(AND($J83>1,$J83<5), IF($J83=4, "Inconnu", E83+F83), 0),"Non requis") -> 0 | P83: =IF(INTRO!$E$44="Endémique", IF(AND($K83>0,$K83<5), IF($K83=4,"Inconnu", IF($K83=1, $F83*0.33, IF($K83=2, $F83*0.5+$G83*0.2, SUM(F83:G83)))), 0),"Non requis") -> 53247.2 | Q83: 0 | R83: 0 | S83: 1 | T83: 1 | V83: T1 (PZQ+ALB/MBD) | Y83: 7489 | Z83: MAROUA 2 | AF83: ='T1'!M83 -> 49862 | AG83: ='T2'!M83 -> 0 | AH83: =T3_R1!L83 -> 0 | AI83: ='MDA3'!K83 -> 0 | AJ83: ='MDA3'!N83 -> 0 | AK83: 56930 | AL83: 87.58475321 | AN83: ='T1'!F83 -> DECEMBRE 2022 | AO83: =T3_R1!F83 -> 44896 | AP83: =AN83=AO83 -> FALSE | AS83: =_xlfn.XLOOKUP($Y83,[1]COUNTRY_INFO!$Y$9:$Y$197,[1]COUNTRY_INFO!H$9:H$197) -> 99 | AT83: =_xlfn.XLOOKUP($Y83,[1]COUNTRY_INFO!$Y$9:$Y$197,[1]COUNTRY_INFO!I$9:I$197) -> 4 | AU83: =_xlfn.XLOOKUP($Y83,[1]COUNTRY_INFO!$Y$9:$Y$197,[1]COUNTRY_INFO!J$9:J$197) -> 1 | AV83: =_xlfn.XLOOKUP($Y83,[1]COUNTRY_INFO!$Y$9:$Y$197,[1]COUNTRY_INFO!K$9:K$197) -> 2 | AW83: =_xlfn.XLOOKUP($Y83,[1]COUNTRY_INFO!$Y$9:$Y$197,[1]COUNTRY_INFO!L$9:L$197) -> 4 | AX83: TRUE | AY83: TRUE | AZ83: TRUE | BA83: TRUE | BB83: TRUE | BE83: 99 | BF83: 4 | BG83: 1 | BH83: 2 | BI83: TRUE | BJ83: TRUE | BK83: TRUE | BL83: TRUE
A84: =IF(INTRO!$E$34<>0,INTRO!$E$34,"") -> Cameroon | B84: Extreme Nord | C84: Maroua 3 | D84: 188572 | E84: 51979.53216 | F84: =IF(INTRO!$E$49="","",ROUND($D84*INTRO!$E$49,0)) -> 49877 | G84: =IF(INTRO!$E$50="","",ROUND($D84*INTRO!$E$50,0)) -> 108561 | H84: 99 | I84: 4 | J84: 0 | K84: 2 | L84: 0 | M84: =IF(INTRO!$E$38="Endémique", IF($H84>0, IF($H84=4,"Inconnu", IF($H84=99,"Interrompu", $D84)), 0),"Non requis") -> Interrompu | N84: 0 | O84: =IF(INTRO!$E$42="Endémique", IF(AND($J84>1,$J84<5), IF($J84=4, "Inconnu", E84+F84), 0),"Non requis") -> 0 | P84: =IF(INTRO!$E$44="Endémique", IF(AND($K84>0,$K84<5), IF($K84=4,"Inconnu", IF($K84=1, $F84*0.33, IF($K84=2, $F84*0.5+$G84*0.2, SUM(F84:G84)))), 0),"Non requis") -> 46650.7 | Q84: 0 | R84: 0 | S84: 1 | T84: 1 | V84: T1 (PZQ+ALB/MBD) | Y84: 7490 | Z84: MAROUA 3 | AF84: ='T1'!M84 -> 52663 | AG84: ='T2'!M84 -> 0 | AH84: =T3_R1!L84 -> 360 | AI84: ='MDA3'!K84 -> 0 | AJ84: ='MDA3'!N84 -> 0 | AK84: 49877 | AL84: 106.3075165 | AN84: ='T1'!F84 -> DECEMBRE 2022 | AO84: =T3_R1!F84 -> 44896 | AS84: =_xlfn.XLOOKUP($Y84,[1]COUNTRY_INFO!$Y$9:$Y$197,[1]COUNTRY_INFO!H$9:H$197) -> 99 | AT84: =_xlfn.XLOOKUP($Y84,[1]COUNTRY_INFO!$Y$9:$Y$197,[1]COUNTRY_INFO!I$9:I$197) -> 4 | AU84: =_xlfn.XLOOKUP($Y84,[1]COUNTRY_INFO!$Y$9:$Y$197,[1]COUNTRY_INFO!J$9:J$197) -> 0 | AV84: =_xlfn.XLOOKUP($Y84,[1]COUNTRY_INFO!$Y$9:$Y$197,[1]COUNTRY_INFO!K$9:K$197) -> 2 | AW84: =_xlfn.XLOOKUP($Y84,[1]COUNTRY_INFO!$Y$9:$Y$197,[1]COUNTRY_INFO!L$9:L$197) -> 0 | AX84: TRUE | AY84: TRUE | AZ84: TRUE | BA84: TRUE | BB84: TRUE | BE84: 99 | BF84: 4 | BG84: 0 | BH84: 2 | BI84: TRUE | BJ84: TRUE | BK84: TRUE | BL84: TRUE
A85: =IF(INTRO!$E$34<>0,INTRO!$E$34,"") -> Cameroon | B85: Extreme Nord | C85: Meri | D85: 180197 | E85: 40640.35088 | F85: =IF(INTRO!$E$49="","",ROUND($D85*INTRO!$E$49,0)) -> 47662 | G85: =IF(INTRO!$E$50="","",ROUND($D85*INTRO!$E$50,0)) -> 103739 | H85: 99 | I85: 4 | J85: 1 | K85: 3 | L85: 4 | M85: =IF(INTRO!$E$38="Endémique", IF($H85>0, IF($H85=4,"Inconnu", IF($H85=99,"Interrompu", $D85)), 0),"Non requis") -> Interrompu | N85: 0 | O85: =IF(INTRO!$E$42="Endémique", IF(AND($J85>1,$J85<5), IF($J85=4, "Inconnu", E85+F85), 0),"Non requis") -> 0 | P85: =IF(INTRO!$E$44="Endémique", IF(AND($K85>0,$K85<5), IF($K85=4,"Inconnu", IF($K85=1, $F85*0.33, IF($K85=2, $F85*0.5+$G85*0.2, SUM(F85:G85)))), 0),"Non requis") -> 151401 | Q85: 0 | R85: 0 | S85: 1 | T85: 1 | V85: T1 (PZQ+ALB/MBD) | Y85: 7491 | Z85: MERI | AF85: ='T1'!M85 -> 34204 | AG85: ='T2'!M85 -> 0 | AH85: =T3_R1!L85 -> 9526 | AI85: ='MDA3'!K85 -> 0 | AJ85: ='MDA3'!N85 -> 0 | AK85: 47662 | AL85: 91.75024128 | AN85: ='T1'!F85 -> DECEMBRE 2022 | AO85: =T3_R1!F85 -> 44896 | AP85: =AN85=AO85 -> FALSE | AS85: =_xlfn.XLOOKUP($Y85,[1]COUNTRY_INFO!$Y$9:$Y$197,[1]COUNTRY_INFO!H$9:H$197) -> 99 | AT85: =_xlfn.XLOOKUP($Y85,[1]COUNTRY_INFO!$Y$9:$Y$197,[1]COUNTRY_INFO!I$9:I$197) -> 4 | AU85: =_xlfn.XLOOKUP($Y85,[1]COUNTRY_INFO!$Y$9:$Y$197,[1]COUNTRY_INFO!J$9:J$197) -> 1 | AV85: =_xlfn.XLOOKUP($Y85,[1]COUNTRY_INFO!$Y$9:$Y$197,[1]COUNTRY_INFO!K$9:K$197) -> 3 | AW85: =_xlfn.XLOOKUP($Y85,[1]COUNTRY_INFO!$Y$9:$Y$197,[1]COUNTRY_INFO!L$9:L$197) -> 4 | AX85: TRUE | AY85: TRUE | AZ85: TRUE | BA85: TRUE | BB85: TRUE | BE85: 99 | BF85: 4 | BG85: 1 | BH85: 3 | BI85: TRUE | BJ85: TRUE | BK85: TRUE | BL85: TRUE
A86: =IF(INTRO!$E$34<>0,INTRO!$E$34,"") -> Cameroon | B86: Extreme Nord | C86: Mindif | D86: 62003 | E86: 15024.36647 | F86: =IF(INTRO!$E$49="","",ROUND($D86*INTRO!$E$49,0)) -> 16400 | G86: =IF(INTRO!$E$50="","",ROUND($D86*INTRO!$E$50,0)) -> 35695 | H86: 99 | I86: 4 | J86: 1 | K86: 2 | L86: 0 | M86: =IF(INTRO!$E$38="Endémique", IF($H86>0, IF($H86=4,"Inconnu", IF($H86=99,"Interrompu", $D86)), 0),"Non requis") -> Interrompu | N86: 0 | O86: =IF(INTRO!$E$42="Endémique", IF(AND($J86>1,$J86<5), IF($J86=4, "Inconnu", E86+F86), 0),"Non requis") -> 0 | P86: =IF(INTRO!$E$44="Endémique", IF(AND($K86>0,$K86<5), IF($K86=4,"Inconnu", IF($K86=1, $F86*0.33, IF($K86=2, $F86*0.5+$G86*0.2, SUM(F86:G86)))), 0),"Non requis") -> 15339 | Q86: 0 | R86: 0 | S86: 1 | T86: 1 | V86: T1 (PZQ+ALB/MBD) | Y86: 7492 | Z86: MINDIF | AF86: ='T1'!M86 -> 12499 | AG86: ='T2'!M86 -> 0 | AH86: =T3_R1!L86 -> 2503 | AI86: ='MDA3'!K86 -> 0 | AJ86: ='MDA3'!N86 -> 0 | AK86: 16400 | AL86: 91.47560976 | AN86: ='T1'!F86 -> DECEMBRE 2022 | AO86: =T3_R1!F86 -> 44896 | AP86: =AN86=AO86 -> FALSE | AS86: =_xlfn.XLOOKUP($Y86,[1]COUNTRY_INFO!$Y$9:$Y$197,[1]COUNTRY_INFO!H$9:H$197) -> 99 | AT86: =_xlfn.XLOOKUP($Y86,[1]COUNTRY_INFO!$Y$9:$Y$197,[1]COUNTRY_INFO!I$9:I$197) -> 4 | AU86: =_xlfn.XLOOKUP($Y86,[1]COUNTRY_INFO!$Y$9:$Y$197,[1]COUNTRY_INFO!J$9:J$197) -> 1 | AV86: =_xlfn.XLOOKUP($Y86,[1]COUNTRY_INFO!$Y$9:$Y$197,[1]COUNTRY_INFO!K$9:K$197) -> 2 | AW86: =_xlfn.XLOOKUP($Y86,[1]COUNTRY_INFO!$Y$9:$Y$197,[1]COUNTRY_INFO!L$9:L$197) -> 0 | AX86: TRUE | AY86: TRUE | AZ86: TRUE | BA86: TRUE | BB86: TRUE | BE86: 99 | BF86: 4 | BG86: 1 | BH86: 2 | BI86: TRUE | BJ86: TRUE | BK86: TRUE | BL86: TRUE
A87: =IF(INTRO!$E$34<>0,INTRO!$E$34,"") -> Cameroon | B87: Extreme Nord | C87: Mogode | D87: 134061 | E87: 28007.79727 | F87: =IF(INTRO!$E$49="","",ROUND($D87*INTRO!$E$49,0)) -> 35459 | G87: =IF(INTRO!$E$50="","",ROUND($D87*INTRO!$E$50,0)) -> 77179 | H87: 99 | I87: 4 | J87: 1 | K87: 2 | L87: 4 | M87: =IF(INTRO!$E$38="Endémique", IF($H87>0, IF($H87=4,"Inconnu", IF($H87=99,"Interrompu", $D87)), 0),"Non requis") -> Interrompu | N87: 0 | O87: =IF(INTRO!$E$42="Endémique", IF(AND($J87>1,$J87<5), IF($J87=4, "Inconnu", E87+F87), 0),"Non requis") -> 0 | P87: =IF(INTRO!$E$44="Endémique", IF(AND($K87>0,$K87<5), IF($K87=4,"Inconnu", IF($K87=1, $F87*0.33, IF($K87=2, $F87*0.5+$G87*0.2, SUM(F87:G87)))), 0),"Non requis") -> 33165.3 | Q87: 0 | R87: 0 | S87: 1 | T87: 1 | V87: T1 (PZQ+ALB/MBD) | Y87: 7493 | Z87: MOGODE | AF87: ='T1'!M87 -> 26236 | AG87: ='T2'!M87 -> 0 | AH87: =T3_R1!L87 -> 6660 | AI87: ='MDA3'!K87 -> 0 | AJ87: ='MDA3'!N87 -> 0 | AK87: 35459 | AL87: 92.77193378 | AN87: ='T1'!F87 -> DECEMBRE 2022 | AO87: =T3_R1!F87 -> 44896 | AP87: =AN87=AO87 -> FALSE | AS87: =_xlfn.XLOOKUP($Y87,[1]COUNTRY_INFO!$Y$9:$Y$197,[1]COUNTRY_INFO!H$9:H$197) -> 99 | AT87: =_xlfn.XLOOKUP($Y87,[1]COUNTRY_INFO!$Y$9:$Y$197,[1]COUNTRY_INFO!I$9:I$197) -> 4 | AU87: =_xlfn.XLOOKUP($Y87,[1]COUNTRY_INFO!$Y$9:$Y$197,[1]COUNTRY_INFO!J$9:J$197) -> 1 | AV87: =_xlfn.XLOOKUP($Y87,[1]COUNTRY_INFO!$Y$9:$Y$197,[1]COUNTRY_INFO!K$9:K$197) -> 2 | AW87: =_xlfn.XLOOKUP($Y87,[1]COUNTRY_INFO!$Y$9:$Y$197,[1]COUNTRY_INFO!L$9:L$197) -> 4 | AX87: TRUE | AY87: TRUE | AZ87: TRUE | BA87: TRUE | BB87: TRUE | BE87: 99 | BF87: 4 | BG87: 1 | BH87: 2 | BI87: TRUE | BJ87: TRUE | BK87: TRUE | BL87: TRUE
A88: =IF(INTRO!$E$34<>0,INTRO!$E$34,"") -> Cameroon | B88: Extreme Nord | C88: Mokolo | D88: 304287 | E88: 85851.85185 | F88: =IF(INTRO!$E$49="","",ROUND($D88*INTRO!$E$49,0)) -> 80484 | G88: =IF(INTRO!$E$50="","",ROUND($D88*INTRO!$E$50,0)) -> 175178 | H88: 99 | I88: 1 | J88: 1 | K88: 2 | L88: 4 | M88: =IF(INTRO!$E$38="Endémique", IF($H88>0, IF($H88=4,"Inconnu", IF($H88=99,"Interrompu", $D88)), 0),"Non requis") -> Interrompu | N88: 258330 | O88: =IF(INTRO!$E$42="Endémique", IF(AND($J88>1,$J88<5), IF($J88=4, "Inconnu", E88+F88), 0),"Non requis") -> 0 | P88: =IF(INTRO!$E$44="Endémique", IF(AND($K88>0,$K88<5), IF($K88=4,"Inconnu", IF($K88=1, $F88*0.33, IF($K88=2, $F88*0.5+$G88*0.2, SUM(F88:G88)))), 0),"Non requis") -> 75277.6 | Q88: 0 | R88: 1 | S88: 1 | T88: 1 | U88: MDA3 (IVM) | V88: T1 (PZQ+ALB/MBD) | Y88: 7494 | Z88: MOKOLO | AF88: ='T1'!M88 -> 66694 | AG88: ='T2'!M88 -> 0 | AH88: =T3_R1!L88 -> 23225 | AI88: ='MDA3'!K88 -> 141542 | AJ88: ='MDA3'!N88 -> 0 | AK88: 80484 | AL88: 111.7228269 | AN88: ='T1'!F88 -> DECEMBRE 2022 | AO88: =T3_R1!F88 -> 44896 | AP88: =AN88=AO88 -> FALSE | AS88: =_xlfn.XLOOKUP($Y88,[1]COUNTRY_INFO!$Y$9:$Y$197,[1]COUNTRY_INFO!H$9:H$197) -> 99 | AT88: =_xlfn.XLOOKUP($Y88,[1]COUNTRY_INFO!$Y$9:$Y$197,[1]COUNTRY_INFO!I$9:I$197) -> 1 | AU88: =_xlfn.XLOOKUP($Y88,[1]COUNTRY_INFO!$Y$9:$Y$197,[1]COUNTRY_INFO!J$9:J$197) -> 1 | AV88: =_xlfn.XLOOKUP($Y88,[1]COUNTRY_INFO!$Y$9:$Y$197,[1]COUNTRY_INFO!K$9:K$197) -> 2 | AW88: =_xlfn.XLOOKUP($Y88,[1]COUNTRY_INFO!$Y$9:$Y$197,[1]COUNTRY_INFO!L$9:L$197) -> 4 | AX88: TRUE | AY88: TRUE | AZ88: TRUE | BA88: TRUE | BB88: TRUE | BE88: 99 | BF88: 1 | BG88: 1 | BH88: 2 | BI88: TRUE | BJ88: TRUE | BK88: TRUE | BL88: TRUE
A89: =IF(INTRO!$E$34<>0,INTRO!$E$34,"") -> Cameroon | B89: Extreme Nord | C89: Mora | D89: 319068 | E89: 74245.61404 | F89: =IF(INTRO!$E$49="","",ROUND($D89*INTRO!$E$49,0)) -> 84393 | G89: =IF(INTRO!$E$50="","",ROUND($D89*INTRO!$E$50,0)) -> 183687 | H89: 99 | I89: 4 | J89: 1 | K89: 3 | L89: 4 | M89: =IF(INTRO!$E$38="Endémique", IF($H89>0, IF($H89=4,"Inconnu", IF($H89=99,"Interrompu", $D89)), 0),"Non requis") -> Interrompu | N89: 263566 | O89: =IF(INTRO!$E$42="Endémique", IF(AND($J89>1,$J89<5), IF($J89=4, "Inconnu", E89+F89), 0),"Non requis") -> 0 | P89: =IF(INTRO!$E$44="Endémique", IF(AND($K89>0,$K89<5), IF($K89=4,"Inconnu", IF($K89=1, $F89*0.33, IF($K89=2, $F89*0.5+$G89*0.2, SUM(F89:G89)))), 0),"Non requis") -> 268080 | Q89: 0 | R89: 0 | S89: 1 | T89: 1 | V89: T1 (PZQ+ALB/MBD) | Y89: 7495 | Z89: MORA | AF89: ='T1'!M89 -> 39859 | AG89: ='T2'!M89 -> 0 | AH89: =T3_R1!L89 -> 2926 | AI89: ='MDA3'!K89 -> 0 | AJ89: ='MDA3'!N89 -> 0 | AK89: 84393 | AL89: 50.69733272 | AN89: ='T1'!F89 -> DECEMBRE 2022 | AO89: =T3_R1!F89 -> 44896 | AS89: =_xlfn.XLOOKUP($Y89,[1]COUNTRY_INFO!$Y$9:$Y$197,[1]COUNTRY_INFO!H$9:H$197) -> 99 | AT89: =_xlfn.XLOOKUP($Y89,[1]COUNTRY_INFO!$Y$9:$Y$197,[1]COUNTRY_INFO!I$9:I$197) -> 4 | AU89: =_xlfn.XLOOKUP($Y89,[1]COUNTRY_INFO!$Y$9:$Y$197,[1]COUNTRY_INFO!J$9:J$197) -> 1 | AV89: =_xlfn.XLOOKUP($Y89,[1]COUNTRY_INFO!$Y$9:$Y$197,[1]COUNTRY_INFO!K$9:K$197) -> 3 | AW89: =_xlfn.XLOOKUP($Y89,[1]COUNTRY_INFO!$Y$9:$Y$197,[1]COUNTRY_INFO!L$9:L$197) -> 4 | AX89: TRUE | AY89: TRUE | AZ89: TRUE | BA89: TRUE | BB89: TRUE | BE89: 99 | BF89: 4 | BG89: 1 | BH89: 3 | BI89: TRUE | BJ89: TRUE | BK89: TRUE | BL89: TRUE
A90: =IF(INTRO!$E$34<>0,INTRO!$E$34,"") -> Cameroon | B90: Extreme Nord | C90: Moulvoudaye | D90: 159827 | E90: 41136.45224 | F90: =IF(INTRO!$E$49="","",ROUND($D90*INTRO!$E$49,0)) -> 42274 | G90: =IF(INTRO!$E$50="","",ROUND($D90*INTRO!$E$50,0)) -> 92012 | H90: 99 | I90: 4 | J90: 0 | K90: 2 | L90: 0 | M90: =IF(INTRO!$E$38="Endémique", IF($H90>0, IF($H90=4,"Inconnu", IF($H90=99,"Interrompu", $D90)), 0),"Non requis") -> Interrompu | N90: 132025 | O90: =IF(INTRO!$E$42="Endémique", IF(AND($J90>1,$J90<5), IF($J90=4, "Inconnu", E90+F90), 0),"Non requis") -> 0 | P90: =IF(INTRO!$E$44="Endémique", IF(AND($K90>0,$K90<5), IF($K90=4,"Inconnu", IF($K90=1, $F90*0.33, IF($K90=2, $F90*0.5+$G90*0.2, SUM(F90:G90)))), 0),"Non requis") -> 39539.4 | Q90: 0 | R90: 0 | S90: 1 | T90: 1 | V90: T1 (PZQ+ALB/MBD) | Y90: 7496 | Z90: MOULVOUDAYE | AF90: ='T1'!M90 -> 33445 | AG90: ='T2'!M90 -> 0 | AH90: =T3_R1!L90 -> 6313 | AI90: ='MDA3'!K90 -> 0 | AJ90: ='MDA3'!N90 -> 0 | AK90: 42274 | AL90: 94.04835123 | AN90: ='T1'!F90 -> DECEMBRE 2022 | AO90: =T3_R1!F90 -> 44896 | AP90: =AN90=AO90 -> FALSE | AS90: =_xlfn.XLOOKUP($Y90,[1]COUNTRY_INFO!$Y$9:$Y$197,[1]COUNTRY_INFO!H$9:H$197) -> 99 | AT90: =_xlfn.XLOOKUP($Y90,[1]COUNTRY_INFO!$Y$9:$Y$197,[1]COUNTRY_INFO!I$9:I$197) -> 4 | AU90: =_xlfn.XLOOKUP($Y90,[1]COUNTRY_INFO!$Y$9:$Y$197,[1]COUNTRY_INFO!J$9:J$197) -> 0 | AV90: =_xlfn.XLOOKUP($Y90,[1]COUNTRY_INFO!$Y$9:$Y$197,[1]COUNTRY_INFO!K$9:K$197) -> 2 | AW90: =_xlfn.XLOOKUP($Y90,[1]COUNTRY_INFO!$Y$9:$Y$197,[1]COUNTRY_INFO!L$9:L$197) -> 0 | AX90: TRUE | AY90: TRUE | AZ90: TRUE | BA90: TRUE | BB90: TRUE | BE90: 99 | BF90: 4 | BG90: 0 | BH90: 2 | BI90: TRUE | BJ90: TRUE | BK90: TRUE | BL90: TRUE
A91: =IF(INTRO!$E$34<>0,INTRO!$E$34,"") -> Cameroon | B91: Extreme Nord | C91: Moutourwa | D91: 58841 | E91: 16681.28655 | F91: =IF(INTRO!$E$49="","",ROUND($D91*INTRO!$E$49,0)) -> 15563 | G91: =IF(INTRO!$E$50="","",ROUND($D91*INTRO!$E$50,0)) -> 33875 | H91: 99 | I91: 4 | J91: 1 | K91: 2 | L91: 0 | M91: =IF(INTRO!$E$38="Endémique", IF($H91>0, IF($H91=4,"Inconnu", IF($H91=99,"Interrompu", $D91)), 0),"Non requis") -> Interrompu | N91: 48605 | O91: =IF(INTRO!$E$42="Endémique", IF(AND($J91>1,$J91<5), IF($J91=4, "Inconnu", E91+F91), 0),"Non requis") -> 0 | P91: =IF(INTRO!$E$44="Endémique", IF(AND($K91>0,$K91<5), IF($K91=4,"Inconnu", IF($K91=1, $F91*0.33, IF($K91=2, $F91*0.5+$G91*0.2, SUM(F91:G91)))), 0),"Non requis") -> 14556.5 | Q91: 0 | R91: 0 | S91: 1 | T91: 1 | V91: T1 (PZQ+ALB/MBD) | Y91: 7497 | Z91: MOUTOURWA | AF91: ='T1'!M91 -> 9590 | AG91: ='T2'!M91 -> 0 | AH91: =T3_R1!L91 -> 2928 | AI91: ='MDA3'!K91 -> 0 | AJ91: ='MDA3'!N91 -> 0 | AK91: 15563 | AL91: 80.43436355 | AN91: ='T1'!F91 -> DECEMBRE 2022 | AO91: =T3_R1!F91 -> 44896 | AP91: =AN91=AO91 -> FALSE | AS91: =_xlfn.XLOOKUP($Y91,[1]COUNTRY_INFO!$Y$9:$Y$197,[1]COUNTRY_INFO!H$9:H$197) -> 99 | AT91: =_xlfn.XLOOKUP($Y91,[1]COUNTRY_INFO!$Y$9:$Y$197,[1]COUNTRY_INFO!I$9:I$197) -> 4 | AU91: =_xlfn.XLOOKUP($Y91,[1]COUNTRY_INFO!$Y$9:$Y$197,[1]COUNTRY_INFO!J$9:J$197) -> 1 | AV91: =_xlfn.XLOOKUP($Y91,[1]COUNTRY_INFO!$Y$9:$Y$197,[1]COUNTRY_INFO!K$9:K$197) -> 2 | AW91: =_xlfn.XLOOKUP($Y91,[1]COUNTRY_INFO!$Y$9:$Y$197,[1]COUNTRY_INFO!L$9:L$197) -> 0 | AX91: TRUE | AY91: TRUE | AZ91: TRUE | BA91: TRUE | BB91: TRUE | BE91: 99 | BF91: 4 | BG91: 1 | BH91: 2 | BI91: TRUE | BJ91: TRUE | BK91: TRUE | BL91: TRUE
A92: =IF(INTRO!$E$34<>0,INTRO!$E$34,"") -> Cameroon | B92: Extreme Nord | C92: Mozogo | D92: 90627 | E92: 16903.50877 | F92: =IF(INTRO!$E$49="","",ROUND($D92*INTRO!$E$49,0)) -> 23971 | G92: =IF(INTRO!$E$50="","",ROUND($D92*INTRO!$E$50,0)) -> 52174 | H92: 99 | I92: 1 | J92: 1 | K92: 2 | L92: 4 | M92: =IF(INTRO!$E$38="Endémique", IF($H92>0, IF($H92=4,"Inconnu", IF($H92=99,"Interrompu", $D92)), 0),"Non requis") -> Interrompu | N92: 74758 | O92: =IF(INTRO!$E$42="Endémique", IF(AND($J92>1,$J92<5), IF($J92=4, "Inconnu", E92+F92), 0),"Non requis") -> 0 | P92: =IF(INTRO!$E$44="Endémique", IF(AND($K92>0,$K92<5), IF($K92=4,"Inconnu", IF($K92=1, $F92*0.33, IF($K92=2, $F92*0.5+$G92*0.2, SUM(F92:G92)))), 0),"Non requis") -> 22420.3 | Q92: 0 | R92: 1 | S92: 1 | T92: 1 | U92: MDA3 (IVM) | V92: T1 (PZQ+ALB/MBD) | Y92: 7614 | Z92: Mozogo | AF92: ='T1'!M92 -> 20673 | AG92: ='T2'!M92 -> 0 | AH92: =T3_R1!L92 -> 1233 | AI92: ='MDA3'!K92 -> 22081 | AJ92: ='MDA3'!N92 -> 0 | AK92: 23971 | AL92: 91.38542405 | AN92: ='T1'!F92 -> DECEMBRE 2022 | AO92: =T3_R1!F92 -> 44896 | AS92: =_xlfn.XLOOKUP($Y92,[1]COUNTRY_INFO!$Y$9:$Y$197,[1]COUNTRY_INFO!H$9:H$197) ->  | AT92: =_xlfn.XLOOKUP($Y92,[1]COUNTRY_INFO!$Y$9:$Y$197,[1]COUNTRY_INFO!I$9:I$197) ->  | AU92: =_xlfn.XLOOKUP($Y92,[1]COUNTRY_INFO!$Y$9:$Y$197,[1]COUNTRY_INFO!J$9:J$197) ->  | AV92: =_xlfn.XLOOKUP($Y92,[1]COUNTRY_INFO!$Y$9:$Y$197,[1]COUNTRY_INFO!K$9:K$197) ->  | AW92: =_xlfn.XLOOKUP($Y92,[1]COUNTRY_INFO!$Y$9:$Y$197,[1]COUNTRY_INFO!L$9:L$197) ->  | BE92: 99 | BF92: 1 | BG92: 1 | BH92: 2 | BI92: TRUE | BJ92: TRUE | BK92: TRUE | BL92: TRUE
A93: =IF(INTRO!$E$34<>0,INTRO!$E$34,"") -> Cameroon | B93: Extreme Nord | C93: Pette | D93: 66207 | E93: 22789.47368 | F93: =IF(INTRO!$E$49="","",ROUND($D93*INTRO!$E$49,0)) -> 17512 | G93: =IF(INTRO!$E$50="","",ROUND($D93*INTRO!$E$50,0)) -> 38115 | H93: 99 | I93: 4 | J93: 1 | K93: 3 | L93: 4 | M93: =IF(INTRO!$E$38="Endémique", IF($H93>0, IF($H93=4,"Inconnu", IF($H93=99,"Interrompu", $D93)), 0),"Non requis") -> Interrompu | N93: 54689 | O93: =IF(INTRO!$E$42="Endémique", IF(AND($J93>1,$J93<5), IF($J93=4, "Inconnu", E93+F93), 0),"Non requis") -> 0 | P93: =IF(INTRO!$E$44="Endémique", IF(AND($K93>0,$K93<5), IF($K93=4,"Inconnu", IF($K93=1, $F93*0.33, IF($K93=2, $F93*0.5+$G93*0.2, SUM(F93:G93)))), 0),"Non requis") -> 55627 | Q93: 0 | R93: 0 | S93: 1 | T93: 1 | V93: T1 (PZQ+ALB/MBD) | Y93: 7498 | Z93: PETTE | AF93: ='T1'!M93 -> 13989 | AG93: ='T2'!M93 -> 0 | AH93: =T3_R1!L93 -> 1781 | AI93: ='MDA3'!K93 -> 0 | AJ93: ='MDA3'!N93 -> 0 | AK93: 17512 | AL93: 90.0525354 | AN93: ='T1'!F93 -> DECEMBRE 2022 | AO93: =T3_R1!F93 -> 44896 | AP93: =AN93=AO93 -> FALSE | AS93: =_xlfn.XLOOKUP($Y93,[1]COUNTRY_INFO!$Y$9:$Y$197,[1]COUNTRY_INFO!H$9:H$197) -> 99 | AT93: =_xlfn.XLOOKUP($Y93,[1]COUNTRY_INFO!$Y$9:$Y$197,[1]COUNTRY_INFO!I$9:I$197) -> 4 | AU93: =_xlfn.XLOOKUP($Y93,[1]COUNTRY_INFO!$Y$9:$Y$197,[1]COUNTRY_INFO!J$9:J$197) -> 1 | AV93: =_xlfn.XLOOKUP($Y93,[1]COUNTRY_INFO!$Y$9:$Y$197,[1]COUNTRY_INFO!K$9:K$197) -> 3 | AW93: =_xlfn.XLOOKUP($Y93,[1]COUNTRY_INFO!$Y$9:$Y$197,[1]COUNTRY_INFO!L$9:L$197) -> 4 | AX93: TRUE | AY93: TRUE | AZ93: TRUE | BA93: TRUE | BB93: TRUE | BE93: 99 | BF93: 4 | BG93: 1 | BH93: 3 | BI93: TRUE | BJ93: TRUE | BK93: TRUE | BL93: TRUE
A94: =IF(INTRO!$E$34<>0,INTRO!$E$34,"") -> Cameroon | B94: Extreme Nord | C94: Roua | D94: 104534 | E94: 28496.10136 | F94: =IF(INTRO!$E$49="","",ROUND($D94*INTRO!$E$49,0)) -> 27649 | G94: =IF(INTRO!$E$50="","",ROUND($D94*INTRO!$E$50,0)) -> 60180 | H94: 99 | I94: 1 | J94: 1 | K94: 2 | L94: 4 | M94: =IF(INTRO!$E$38="Endémique", IF($H94>0, IF($H94=4,"Inconnu", IF($H94=99,"Interrompu", $D94)), 0),"Non requis") -> Interrompu | N94: 104426 | O94: =IF(INTRO!$E$42="Endémique", IF(AND($J94>1,$J94<5), IF($J94=4, "Inconnu", E94+F94), 0),"Non requis") -> 0 | P94: =IF(INTRO!$E$44="Endémique", IF(AND($K94>0,$K94<5), IF($K94=4,"Inconnu", IF($K94=1, $F94*0.33, IF($K94=2, $F94*0.5+$G94*0.2, SUM(F94:G94)))), 0),"Non requis") -> 25860.5 | Q94: 0 | R94: 1 | S94: 1 | T94: 1 | U94: MDA3 (IVM) | V94: T1 (PZQ+ALB/MBD) | Y94: 7499 | Z94: ROUA | AF94: ='T1'!M94 -> 19376 | AG94: ='T2'!M94 -> 0 | AH94: =T3_R1!L94 -> 2285 | AI94: ='MDA3'!K94 -> 102040 | AJ94: ='MDA3'!N94 -> 0 | AK94: 27649 | AL94: 78.34279721 | AN94: ='T1'!F94 -> DECEMBRE 2022 | AO94: =T3_R1!F94 -> 44896 | AP94: =AN94=AO94 -> FALSE | AS94: =_xlfn.XLOOKUP($Y94,[1]COUNTRY_INFO!$Y$9:$Y$197,[1]COUNTRY_INFO!H$9:H$197) -> 99 | AT94: =_xlfn.XLOOKUP($Y94,[1]COUNTRY_INFO!$Y$9:$Y$197,[1]COUNTRY_INFO!I$9:I$197) -> 1 | AU94: =_xlfn.XLOOKUP($Y94,[1]COUNTRY_INFO!$Y$9:$Y$197,[1]COUNTRY_INFO!J$9:J$197) -> 1 | AV94: =_xlfn.XLOOKUP($Y94,[1]COUNTRY_INFO!$Y$9:$Y$197,[1]COUNTRY_INFO!K$9:K$197) -> 2 | AW94: =_xlfn.XLOOKUP($Y94,[1]COUNTRY_INFO!$Y$9:$Y$197,[1]COUNTRY_INFO!L$9:L$197) -> 4 | AX94: TRUE | AY94: TRUE | AZ94: TRUE | BA94: TRUE | BB94: TRUE | BE94: 99 | BF94: 1 | BG94: 1 | BH94: 2 | BI94: TRUE | BJ94: TRUE | BK94: TRUE | BL94: TRUE
A95: =IF(INTRO!$E$34<>0,INTRO!$E$34,"") -> Cameroon | B95: Extreme Nord | C95: Tokombere | D95: 157777 | E95: 45615.00975 | F95: =IF(INTRO!$E$49="","",ROUND($D95*INTRO!$E$49,0)) -> 41732 | G95: =IF(INTRO!$E$50="","",ROUND($D95*INTRO!$E$50,0)) -> 90832 | H95: 99 | I95: 4 | J95: 1 | K95: 2 | L95: 4 | M95: =IF(INTRO!$E$38="Endémique", IF($H95>0, IF($H95=4,"Inconnu", IF($H95=99,"Interrompu", $D95)), 0),"Non requis") -> Interrompu | N95: 0 | O95: =IF(INTRO!$E$42="Endémique", IF(AND($J95>1,$J95<5), IF($J95=4, "Inconnu", E95+F95), 0),"Non requis") -> 0 | P95: =IF(INTRO!$E$44="Endémique", IF(AND($K95>0,$K95<5), IF($K95=4,"Inconnu", IF($K95=1, $F95*0.33, IF($K95=2, $F95*0.5+$G95*0.2, SUM(F95:G95)))), 0),"Non requis") -> 39032.4 | Q95: 0 | R95: 0 | S95: 1 | T95: 1 | V95: T1 (PZQ+ALB/MBD) | Y95: 7500 | Z95: TOKOMBERE | AF95: ='T1'!M95 -> 26397 | AG95: ='T2'!M95 -> 0 | AH95: =T3_R1!L95 -> 11508 | AI95: ='MDA3'!K95 -> 0 | AJ95: ='MDA3'!N95 -> 0 | AK95: 41732 | AL95: 90.82957922 | AN95: ='T1'!F95 -> DECEMBRE 2022 | AO95: =T3_R1!F95 -> 44896 | AP95: =AN95=AO95 -> FALSE | AS95: =_xlfn.XLOOKUP($Y95,[1]COUNTRY_INFO!$Y$9:$Y$197,[1]COUNTRY_INFO!H$9:H$197) -> 99 | AT95: =_xlfn.XLOOKUP($Y95,[1]COUNTRY_INFO!$Y$9:$Y$197,[1]COUNTRY_INFO!I$9:I$197) -> 4 | AU95: =_xlfn.XLOOKUP($Y95,[1]COUNTRY_INFO!$Y$9:$Y$197,[1]COUNTRY_INFO!J$9:J$197) -> 1 | AV95: =_xlfn.XLOOKUP($Y95,[1]COUNTRY_INFO!$Y$9:$Y$197,[1]COUNTRY_INFO!K$9:K$197) -> 2 | AW95: =_xlfn.XLOOKUP($Y95,[1]COUNTRY_INFO!$Y$9:$Y$197,[1]COUNTRY_INFO!L$9:L$197) -> 4 | AX95: TRUE | AY95: TRUE | AZ95: TRUE | BA95: TRUE | BB95: TRUE | BE95: 99 | BF95: 4 | BG95: 1 | BH95: 2 | BI95: TRUE | BJ95: TRUE | BK95: TRUE | BL95: TRUE
A96: =IF(INTRO!$E$34<>0,INTRO!$E$34,"") -> Cameroon | B96: Extreme Nord | C96: Vele | D96: 162674 | E96: 51208.577 | F96: =IF(INTRO!$E$49="","",ROUND($D96*INTRO!$E$49,0)) -> 43027 | G96: =IF(INTRO!$E$50="","",ROUND($D96*INTRO!$E$50,0)) -> 93651 | H96: 99 | I96: 4 | J96: 0 | K96: 3 | L96: 0 | M96: =IF(INTRO!$E$38="Endémique", IF($H96>0, IF($H96=4,"Inconnu", IF($H96=99,"Interrompu", $D96)), 0),"Non requis") -> Interrompu | N96: 0 | O96: =IF(INTRO!$E$42="Endémique", IF(AND($J96>1,$J96<5), IF($J96=4, "Inconnu", E96+F96), 0),"Non requis") -> 0 | P96: =IF(INTRO!$E$44="Endémique", IF(AND($K96>0,$K96<5), IF($K96=4,"Inconnu", IF($K96=1, $F96*0.33, IF($K96=2, $F96*0.5+$G96*0.2, SUM(F96:G96)))), 0),"Non requis") -> 136678 | Q96: 0 | R96: 0 | S96: 1 | T96: 1 | V96: T1 (PZQ+ALB/MBD) | Y96: 7501 | Z96: VELE | AF96: ='T1'!M96 -> 28586 | AG96: ='T2'!M96 -> 0 | AH96: =T3_R1!L96 -> 16414 | AI96: ='MDA3'!K96 -> 0 | AJ96: ='MDA3'!N96 -> 0 | AK96: 43027 | AL96: 104.5854928 | AN96: ='T1'!F96 -> DECEMBRE 2022 | AO96: =T3_R1!F96 -> 44896 | AP96: =AN96=AO96 -> FALSE | AS96: =_xlfn.XLOOKUP($Y96,[1]COUNTRY_INFO!$Y$9:$Y$197,[1]COUNTRY_INFO!H$9:H$197) -> 99 | AT96: =_xlfn.XLOOKUP($Y96,[1]COUNTRY_INFO!$Y$9:$Y$197,[1]COUNTRY_INFO!I$9:I$197) -> 4 | AU96: =_xlfn.XLOOKUP($Y96,[1]COUNTRY_INFO!$Y$9:$Y$197,[1]COUNTRY_INFO!J$9:J$197) -> 0 | AV96: =_xlfn.XLOOKUP($Y96,[1]COUNTRY_INFO!$Y$9:$Y$197,[1]COUNTRY_INFO!K$9:K$197) -> 3 | AW96: =_xlfn.XLOOKUP($Y96,[1]COUNTRY_INFO!$Y$9:$Y$197,[1]COUNTRY_INFO!L$9:L$197) -> 0 | AX96: TRUE | AY96: TRUE | AZ96: TRUE | BA96: TRUE | BB96: TRUE | BE96: 99 | BF96: 4 | BG96: 0 | BH96: 3 | BI96: TRUE | BJ96: TRUE | BK96: TRUE | BL96: TRUE
A97: =IF(INTRO!$E$34<>0,INTRO!$E$34,"") -> Cameroon | B97: Extreme Nord | C97: Yagoua | D97: 264502 | E97: 73562.37817 | F97: =IF(INTRO!$E$49="","",ROUND($D97*INTRO!$E$49,0)) -> 69961 | G97: =IF(INTRO!$E$50="","",ROUND($D97*INTRO!$E$50,0)) -> 152274 | H97: 99 | I97: 4 | J97: 1 | K97: 3 | L97: 0 | M97: =IF(INTRO!$E$38="Endémique", IF($H97>0, IF($H97=4,"Inconnu", IF($H97=99,"Interrompu", $D97)), 0),"Non requis") -> Interrompu | N97: 0 | O97: =IF(INTRO!$E$42="Endémique", IF(AND($J97>1,$J97<5), IF($J97=4, "Inconnu", E97+F97), 0),"Non requis") -> 0 | P97: =IF(INTRO!$E$44="Endémique", IF(AND($K97>0,$K97<5), IF($K97=4,"Inconnu", IF($K97=1, $F97*0.33, IF($K97=2, $F97*0.5+$G97*0.2, SUM(F97:G97)))), 0),"Non requis") -> 222235 | Q97: 0 | R97: 0 | S97: 1 | T97: 1 | V97: T1 (PZQ+ALB/MBD) | Y97: 7502 | Z97: YAGOUA | AF97: ='T1'!M97 -> 46000 | AG97: ='T2'!M97 -> 0 | AH97: =T3_R1!L97 -> 33985 | AI97: ='MDA3'!K97 -> 0 | AJ97: ='MDA3'!N97 -> 0 | AK97: 69961 | AL97: 114.3279827 | AN97: ='T1'!F97 -> DECEMBRE 2022 | AO97: =T3_R1!F97 -> 44896 | AP97: =AN97=AO97 -> FALSE | AS97: =_xlfn.XLOOKUP($Y97,[1]COUNTRY_INFO!$Y$9:$Y$197,[1]COUNTRY_INFO!H$9:H$197) -> 99 | AT97: =_xlfn.XLOOKUP($Y97,[1]COUNTRY_INFO!$Y$9:$Y$197,[1]COUNTRY_INFO!I$9:I$197) -> 4 | AU97: =_xlfn.XLOOKUP($Y97,[1]COUNTRY_INFO!$Y$9:$Y$197,[1]COUNTRY_INFO!J$9:J$197) -> 1 | AV97: =_xlfn.XLOOKUP($Y97,[1]COUNTRY_INFO!$Y$9:$Y$197,[1]COUNTRY_INFO!K$9:K$197) -> 3 | AW97: =_xlfn.XLOOKUP($Y97,[1]COUNTRY_INFO!$Y$9:$Y$197,[1]COUNTRY_INFO!L$9:L$197) -> 0 | AX97: TRUE | AY97: TRUE | AZ97: TRUE | BA97: TRUE | BB97: TRUE | BE97: 99 | BF97: 4 | BG97: 1 | BH97: 3 | BI97: TRUE | BJ97: TRUE | BK97: TRUE | BL97: TRUE
A98: =IF(INTRO!$E$34<>0,INTRO!$E$34,"") -> Cameroon | B98: Littoral | C98: Abo | D98: 30621 | E98: 4259.259259 | F98: =IF(INTRO!$E$49="","",ROUND($D98*INTRO!$E$49,0)) -> 8099 | G98: =IF(INTRO!$E$50="","",ROUND($D98*INTRO!$E$50,0)) -> 17629 | H98: 0 | I98: 4 | J98: 2 | K98: 0 | L98: 1 | M98: =IF(INTRO!$E$38="Endémique", IF($H98>0, IF($H98=4,"Inconnu", IF($H98=99,"Interrompu", $D98)), 0),"Non requis") -> 0 | N98: 0 | O98: =IF(INTRO!$E$42="Endémique", IF(AND($J98>1,$J98<5), IF($J98=4, "Inconnu", E98+F98), 0),"Non requis") -> 12358.25926 | P98: =IF(INTRO!$E$44="Endémique", IF(AND($K98>0,$K98<5), IF($K98=4,"Inconnu", IF($K98=1, $F98*0.33, IF($K98=2, $F98*0.5+$G98*0.2, SUM(F98:G98)))), 0),"Non requis") -> 0 | Q98: 0 | R98: 0 | S98: 1 | T98: 0 | V98: T3 (ALB/MBD) | Y98: 7503 | Z98: ABO | AF98: ='T1'!M98 -> 0 | AG98: ='T2'!M98 -> 0 | AH98: =T3_R1!L98 -> 9596 | AI98: ='MDA3'!K98 -> 0 | AJ98: ='MDA3'!N98 -> 0 | AK98: 8099 | AL98: 118.4837634 | AN98: ='T1'!F98 -> 0 | AO98: =T3_R1!F98 -> 44896 | AS98: =_xlfn.XLOOKUP($Y98,[1]COUNTRY_INFO!$Y$9:$Y$197,[1]COUNTRY_INFO!H$9:H$197) -> 0 | AT98: =_xlfn.XLOOKUP($Y98,[1]COUNTRY_INFO!$Y$9:$Y$197,[1]COUNTRY_INFO!I$9:I$197) -> 4 | AU98: =_xlfn.XLOOKUP($Y98,[1]COUNTRY_INFO!$Y$9:$Y$197,[1]COUNTRY_INFO!J$9:J$197) -> 2 | AV98: =_xlfn.XLOOKUP($Y98,[1]COUNTRY_INFO!$Y$9:$Y$197,[1]COUNTRY_INFO!K$9:K$197) -> 0 | AW98: =_xlfn.XLOOKUP($Y98,[1]COUNTRY_INFO!$Y$9:$Y$197,[1]COUNTRY_INFO!L$9:L$197) -> 1 | AX98: TRUE | AY98: TRUE | AZ98: TRUE | BA98: TRUE | BB98: TRUE | BE98: 0 | BF98: 4 | BG98: 2 | BH98: 0 | BI98: TRUE | BJ98: TRUE | BK98: TRUE | BL98: TRUE
A99: =IF(INTRO!$E$34<>0,INTRO!$E$34,"") -> Cameroon | B99: Littoral | C99: Bangue | D99: 384923 | E99: 33737.81676 | F99: =IF(INTRO!$E$49="","",ROUND($D99*INTRO!$E$49,0)) -> 101812 | G99: =IF(INTRO!$E$50="","",ROUND($D99*INTRO!$E$50,0)) -> 221600 | H99: 0 | I99: 4 | J99: 2 | K99: 1 | L99: 1 | M99: =IF(INTRO!$E$38="Endémique", IF($H99>0, IF($H99=4,"Inconnu", IF($H99=99,"Interrompu", $D99)), 0),"Non requis") -> 0 | N99: 0 | O99: =IF(INTRO!$E$42="Endémique", IF(AND($J99>1,$J99<5), IF($J99=4, "Inconnu", E99+F99), 0),"Non requis") -> 135549.8168 | P99: =IF(INTRO!$E$44="Endémique", IF(AND($K99>0,$K99<5), IF($K99=4,"Inconnu", IF($K99=1, $F99*0.33, IF($K99=2, $F99*0.5+$G99*0.2, SUM(F99:G99)))), 0),"Non requis") -> 33597.96 | Q99: 0 | R99: 0 | S99: 1 | T99: 0 | V99: T3 (ALB/MBD) | Y99: 7516 | Z99: MBANGUE | AF99: ='T1'!M99 -> 0 | AG99: ='T2'!M99 -> 0 | AH99: =T3_R1!L99 -> 75585 | AI99: ='MDA3'!K99 -> 0 | AJ99: ='MDA3'!N99 -> 0 | AK99: 101812 | AL99: 74.23977527 | AN99: ='T1'!F99 -> 0 | AO99: =T3_R1!F99 -> 44896 | AS99: =_xlfn.XLOOKUP($Y99,[1]COUNTRY_INFO!$Y$9:$Y$197,[1]COUNTRY_INFO!H$9:H$197) -> 0 | AT99: =_xlfn.XLOOKUP($Y99,[1]COUNTRY_INFO!$Y$9:$Y$197,[1]COUNTRY_INFO!I$9:I$197) -> 4 | AU99: =_xlfn.XLOOKUP($Y99,[1]COUNTRY_INFO!$Y$9:$Y$197,[1]COUNTRY_INFO!J$9:J$197) -> 2 | AV99: =_xlfn.XLOOKUP($Y99,[1]COUNTRY_INFO!$Y$9:$Y$197,[1]COUNTRY_INFO!K$9:K$197) -> 1 | AW99: =_xlfn.XLOOKUP($Y99,[1]COUNTRY_INFO!$Y$9:$Y$197,[1]COUNTRY_INFO!L$9:L$197) -> 1 | AX99: TRUE | AY99: TRUE | AZ99: TRUE | BA99: TRUE | BB99: TRUE | BE99: 0 | BF99: 4 | BG99: 2 | BH99: 1 | BI99: TRUE | BJ99: TRUE | BK99: TRUE | BL99: TRUE
A100: =IF(INTRO!$E$34<>0,INTRO!$E$34,"") -> Cameroon | B100: Littoral | C100: Boko | D100: 364152 | E100: 52574.07407 | F100: =IF(INTRO!$E$49="","",ROUND($D100*INTRO!$E$49,0)) -> 96318 | G100: =IF(INTRO!$E$50="","",ROUND($D100*INTRO!$E$50,0)) -> 209642 | H100: 0 | I100: 4 | J100: 2 | K100: 0 | L100: 1 | M100: =IF(INTRO!$E$38="Endémique", IF($H100>0, IF($H100=4,"Inconnu", IF($H100=99,"Interrompu", $D100)), 0),"Non requis") -> 0 | N100: 0 | O100: =IF(INTRO!$E$42="Endémique", IF(AND($J100>1,$J100<5), IF($J100=4, "Inconnu", E100+F100), 0),"Non requis") -> 148892.0741 | P100: =IF(INTRO!$E$44="Endémique", IF(AND($K100>0,$K100<5), IF($K100=4,"Inconnu", IF($K100=1, $F100*0.33, IF($K100=2, $F100*0.5+$G100*0.2, SUM(F100:G100)))), 0),"Non requis") -> 0 | Q100: 0 | R100: 0 | S100: 1 | T100: 0 | V100: T3 (ALB/MBD) | Y100: 7504 | Z100: BOKO | AF100: ='T1'!M100 -> 0 | AG100: ='T2'!M100 -> 0 | AH100: =T3_R1!L100 -> 67820 | AI100: ='MDA3'!K100 -> 0 | AJ100: ='MDA3'!N100 -> 0 | AK100: 96318 | AL100: 70.41259162 | AN100: ='T1'!F100 -> 0 | AO100: =T3_R1!F100 -> 44896 | AS100: =_xlfn.XLOOKUP($Y100,[1]COUNTRY_INFO!$Y$9:$Y$197,[1]COUNTRY_INFO!H$9:H$197) -> 0 | AT100: =_xlfn.XLOOKUP($Y100,[1]COUNTRY_INFO!$Y$9:$Y$197,[1]COUNTRY_INFO!I$9:I$197) -> 4 | AU100: =_xlfn.XLOOKUP($Y100,[1]COUNTRY_INFO!$Y$9:$Y$197,[1]COUNTRY_INFO!J$9:J$197) -> 2 | AV100: =_xlfn.XLOOKUP($Y100,[1]COUNTRY_INFO!$Y$9:$Y$197,[1]COUNTRY_INFO!K$9:K$197) -> 0 | AW100: =_xlfn.XLOOKUP($Y100,[1]COUNTRY_INFO!$Y$9:$Y$197,[1]COUNTRY_INFO!L$9:L$197) -> 1 | AX100: TRUE | AY100: TRUE | AZ100: TRUE | BA100: TRUE | BB100: TRUE | BE100: 0 | BF100: 4 | BG100: 2 | BH100: 0 | BI100: TRUE | BJ100: TRUE | BK100: TRUE | BL100: TRUE
A101: =IF(INTRO!$E$34<>0,INTRO!$E$34,"") -> Cameroon | B101: Littoral | C101: Bonassama | D101: 553427 | E101: 27261.20858 | F101: =IF(INTRO!$E$49="","",ROUND($D101*INTRO!$E$49,0)) -> 146381 | G101: =IF(INTRO!$E$50="","",ROUND($D101*INTRO!$E$50,0)) -> 318608 | H101: 0 | I101: 4 | J101: 1 | K101: 1 | L101: 1 | M101: =IF(INTRO!$E$38="Endémique", IF($H101>0, IF($H101=4,"Inconnu", IF($H101=99,"Interrompu", $D101)), 0),"Non requis") -> 0 | N101: 0 | O101: =IF(INTRO!$E$42="Endémique", IF(AND($J101>1,$J101<5), IF($J101=4, "Inconnu", E101+F101), 0),"Non requis") -> 0 | P101: =IF(INTRO!$E$44="Endémique", IF(AND($K101>0,$K101<5), IF($K101=4,"Inconnu", IF($K101=1, $F101*0.33, IF($K101=2, $F101*0.5+$G101*0.2, SUM(F101:G101)))), 0),"Non requis") -> 48305.73 | Q101: 0 | R101: 0 | S101: 1 | T101: 0 | V101: T3 (ALB/MBD) | Y101: 7505 | Z101: BONASSAMA | AF101: ='T1'!M101 -> 0 | AG101: ='T2'!M101 -> 0 | AH101: =T3_R1!L101 -> 91029 | AI101: ='MDA3'!K101 -> 0 | AJ101: ='MDA3'!N101 -> 0 | AK101: 146381 | AL101: 62.18634932 | AN101: ='T1'!F101 -> 0 | AO101: =T3_R1!F101 -> 44896 | AS101: =_xlfn.XLOOKUP($Y101,[1]COUNTRY_INFO!$Y$9:$Y$197,[1]COUNTRY_INFO!H$9:H$197) -> 0 | AT101: =_xlfn.XLOOKUP($Y101,[1]COUNTRY_INFO!$Y$9:$Y$197,[1]COUNTRY_INFO!I$9:I$197) -> 4 | AU101: =_xlfn.XLOOKUP($Y101,[1]COUNTRY_INFO!$Y$9:$Y$197,[1]COUNTRY_INFO!J$9:J$197) -> 1 | AV101: =_xlfn.XLOOKUP($Y101,[1]COUNTRY_INFO!$Y$9:$Y$197,[1]COUNTRY_INFO!K$9:K$197) -> 1 | AW101: =_xlfn.XLOOKUP($Y101,[1]COUNTRY_INFO!$Y$9:$Y$197,[1]COUNTRY_INFO!L$9:L$197) -> 1 | AX101: TRUE | AY101: TRUE | AZ101: TRUE | BA101: TRUE | BB101: TRUE | BE101: 0 | BF101: 4 | BG101: 1 | BH101: 1 | BI101: TRUE | BJ101: TRUE | BK101: TRUE | BL101: TRUE
A102: =IF(INTRO!$E$34<>0,INTRO!$E$34,"") -> Cameroon | B102: Littoral | C102: Cite Des Palmiers | D102: 338852 | E102: 60048.73294 | F102: =IF(INTRO!$E$49="","",ROUND($D102*INTRO!$E$49,0)) -> 89626 | G102: =IF(INTRO!$E$50="","",ROUND($D102*INTRO!$E$50,0)) -> 195077 | H102: 0 | I102: 4 | J102: 1 | K102: 1 | L102: 1 | M102: =IF(INTRO!$E$38="Endémique", IF($H102>0, IF($H102=4,"Inconnu", IF($H102=99,"Interrompu", $D102)), 0),"Non requis") -> 0 | N102: 0 | O102: =IF(INTRO!$E$42="Endémique", IF(AND($J102>1,$J102<5), IF($J102=4, "Inconnu", E102+F102), 0),"Non requis") -> 0 | P102: =IF(INTRO!$E$44="Endémique", IF(AND($K102>0,$K102<5), IF($K102=4,"Inconnu", IF($K102=1, $F102*0.33, IF($K102=2, $F102*0.5+$G102*0.2, SUM(F102:G102)))), 0),"Non requis") -> 29576.58 | Q102: 0 | R102: 0 | S102: 1 | T102: 0 | V102: T3 (ALB/MBD) | Y102: 7506 | Z102: CITE PALMIERS | AF102: ='T1'!M102 -> 0 | AG102: ='T2'!M102 -> 0 | AH102: =T3_R1!L102 -> 59381 | AI102: ='MDA3'!K102 -> 0 | AJ102: ='MDA3'!N102 -> 0 | AK102: 89626 | AL102: 66.25421195 | AN102: ='T1'!F102 -> 0 | AO102: =T3_R1!F102 -> 44896 | AS102: =_xlfn.XLOOKUP($Y102,[1]COUNTRY_INFO!$Y$9:$Y$197,[1]COUNTRY_INFO!H$9:H$197) -> 0 | AT102: =_xlfn.XLOOKUP($Y102,[1]COUNTRY_INFO!$Y$9:$Y$197,[1]COUNTRY_INFO!I$9:I$197) -> 4 | AU102: =_xlfn.XLOOKUP($Y102,[1]COUNTRY_INFO!$Y$9:$Y$197,[1]COUNTRY_INFO!J$9:J$197) -> 1 | AV102: =_xlfn.XLOOKUP($Y102,[1]COUNTRY_INFO!$Y$9:$Y$197,[1]COUNTRY_INFO!K$9:K$197) -> 1 | AW102: =_xlfn.XLOOKUP($Y102,[1]COUNTRY_INFO!$Y$9:$Y$197,[1]COUNTRY_INFO!L$9:L$197) -> 1 | AX102: TRUE | AY102: TRUE | AZ102: TRUE | BA102: TRUE | BB102: TRUE | BE102: 0 | BF102: 4 | BG102: 1 | BH102: 1 | BI102: TRUE | BJ102: TRUE | BK102: TRUE | BL102: TRUE
A103: =IF(INTRO!$E$34<>0,INTRO!$E$34,"") -> Cameroon | B103: Littoral | C103: Deido | D103: 623766 | E103: 6694.931774 | F103: =IF(INTRO!$E$49="","",ROUND($D103*INTRO!$E$49,0)) -> 164986 | G103: =IF(INTRO!$E$50="","",ROUND($D103*INTRO!$E$50,0)) -> 359102 | H103: 0 | I103: 4 | J103: 1 | K103: 1 | L103: 1 | M103: =IF(INTRO!$E$38="Endémique", IF($H103>0, IF($H103=4,"Inconnu", IF($H103=99,"Interrompu", $D103)), 0),"Non requis") -> 0 | N103: 0 | O103: =IF(INTRO!$E$42="Endémique", IF(AND($J103>1,$J103<5), IF($J103=4, "Inconnu", E103+F103), 0),"Non requis") -> 0 | P103: =IF(INTRO!$E$44="Endémique", IF(AND($K103>0,$K103<5), IF($K103=4,"Inconnu", IF($K103=1, $F103*0.33, IF($K103=2, $F103*0.5+$G103*0.2, SUM(F103:G103)))), 0),"Non requis") -> 54445.38 | Q103: 0 | R103: 0 | S103: 1 | T103: 0 | V103: T3 (ALB/MBD) | Y103: 7507 | Z103: DEIDO | AF103: ='T1'!M103 -> 0 | AG103: ='T2'!M103 -> 0 | AH103: =T3_R1!L103 -> 93254 | AI103: ='MDA3'!K103 -> 0 | AJ103: ='MDA3'!N103 -> 0 | AK103: 164986 | AL103: 56.5223716 | AN103: ='T1'!F103 -> 0 | AO103: =T3_R1!F103 -> 44896 | AS103: =_xlfn.XLOOKUP($Y103,[1]COUNTRY_INFO!$Y$9:$Y$197,[1]COUNTRY_INFO!H$9:H$197) -> 0 | AT103: =_xlfn.XLOOKUP($Y103,[1]COUNTRY_INFO!$Y$9:$Y$197,[1]COUNTRY_INFO!I$9:I$197) -> 4 | AU103: =_xlfn.XLOOKUP($Y103,[1]COUNTRY_INFO!$Y$9:$Y$197,[1]COUNTRY_INFO!J$9:J$197) -> 1 | AV103: =_xlfn.XLOOKUP($Y103,[1]COUNTRY_INFO!$Y$9:$Y$197,[1]COUNTRY_INFO!K$9:K$197) -> 1 | AW103: =_xlfn.XLOOKUP($Y103,[1]COUNTRY_INFO!$Y$9:$Y$197,[1]COUNTRY_INFO!L$9:L$197) -> 1 | AX103: TRUE | AY103: TRUE | AZ103: TRUE | BA103: TRUE | BB103: TRUE | BE103: 0 | BF103: 4 | BG103: 1 | BH103: 1 | BI103: TRUE | BJ103: TRUE | BK103: TRUE | BL103: TRUE
A104: =IF(INTRO!$E$34<>0,INTRO!$E$34,"") -> Cameroon | B104: Littoral | C104: Dibombari | D104: 43520 | E104: 18645.22417 | F104: =IF(INTRO!$E$49="","",ROUND($D104*INTRO!$E$49,0)) -> 11511 | G104: =IF(INTRO!$E$50="","",ROUND($D104*INTRO!$E$50,0)) -> 25054 | H104: 0 | I104: 4 | J104: 0 | K104: 0 | L104: 1 | M104: =IF(INTRO!$E$38="Endémique", IF($H104>0, IF($H104=4,"Inconnu", IF($H104=99,"Interrompu", $D104)), 0),"Non requis") -> 0 | N104: 0 | O104: =IF(INTRO!$E$42="Endémique", IF(AND($J104>1,$J104<5), IF($J104=4, "Inconnu", E104+F104), 0),"Non requis") -> 0 | P104: =IF(INTRO!$E$44="Endémique", IF(AND($K104>0,$K104<5), IF($K104=4,"Inconnu", IF($K104=1, $F104*0.33, IF($K104=2, $F104*0.5+$G104*0.2, SUM(F104:G104)))), 0),"Non requis") -> 0 | Q104: 0 | R104: 0 | S104: 1 | T104: 0 | V104: T3 (ALB/MBD) | Y104: 7508 | Z104: DIBOMBARI | AF104: ='T1'!M104 -> 0 | AG104: ='T2'!M104 -> 0 | AH104: =T3_R1!L104 -> 6345 | AI104: ='MDA3'!K104 -> 0 | AJ104: ='MDA3'!N104 -> 0 | AK104: 11511 | AL104: 55.12118843 | AN104: ='T1'!F104 -> 0 | AO104: =T3_R1!F104 -> 44896 | AS104: =_xlfn.XLOOKUP($Y104,[1]COUNTRY_INFO!$Y$9:$Y$197,[1]COUNTRY_INFO!H$9:H$197) -> 0 | AT104: =_xlfn.XLOOKUP($Y104,[1]COUNTRY_INFO!$Y$9:$Y$197,[1]COUNTRY_INFO!I$9:I$197) -> 4 | AU104: =_xlfn.XLOOKUP($Y104,[1]COUNTRY_INFO!$Y$9:$Y$197,[1]COUNTRY_INFO!J$9:J$197) -> 0 | AV104: =_xlfn.XLOOKUP($Y104,[1]COUNTRY_INFO!$Y$9:$Y$197,[1]COUNTRY_INFO!K$9:K$197) -> 0 | AW104: =_xlfn.XLOOKUP($Y104,[1]COUNTRY_INFO!$Y$9:$Y$197,[1]COUNTRY_INFO!L$9:L$197) -> 1 | AX104: TRUE | AY104: TRUE | AZ104: TRUE | BA104: TRUE | BB104: TRUE | BE104: 0 | BF104: 4 | BG104: 0 | BH104: 0 | BI104: TRUE | BJ104: TRUE | BK104: TRUE | BL104: TRUE
A105: =IF(INTRO!$E$34<>0,INTRO!$E$34,"") -> Cameroon | B105: Littoral | C105: Edea | D105: 182623 | E105: 20252.43665 | F105: =IF(INTRO!$E$49="","",ROUND($D105*INTRO!$E$49,0)) -> 48304 | G105: =IF(INTRO!$E$50="","",ROUND($D105*INTRO!$E$50,0)) -> 105136 | H105: 99 | I105: 1 | J105: 1 | K105: 1 | L105: 1 | M105: =IF(INTRO!$E$38="Endémique", IF($H105>0, IF($H105=4,"Inconnu", IF($H105=99,"Interrompu", $D105)), 0),"Non requis") -> Interrompu | N105: 154636 | O105: =IF(INTRO!$E$42="Endémique", IF(AND($J105>1,$J105<5), IF($J105=4, "Inconnu", E105+F105), 0),"Non requis") -> 0 | P105: =IF(INTRO!$E$44="Endémique", IF(AND($K105>0,$K105<5), IF($K105=4,"Inconnu", IF($K105=1, $F105*0.33, IF($K105=2, $F105*0.5+$G105*0.2, SUM(F105:G105)))), 0),"Non requis") -> 15940.32 | Q105: 0 | R105: 1 | S105: 1 | T105: 1 | U105: MDA3 (IVM) | V105: T1 (PZQ+ALB/MBD) | Y105: 7509 | Z105: EDEA | AF105: ='T1'!M105 -> 22583 | AG105: ='T2'!M105 -> 0 | AH105: =T3_R1!L105 -> 3783 | AI105: ='MDA3'!K105 -> 69332 | AJ105: ='MDA3'!N105 -> 0 | AK105: 48304 | AL105: 54.58347135 | AN105: ='T1'!F105 -> DECEMBRE 2022 | AO105: =T3_R1!F105 -> 44896 | AP105: =AN105=AO105 -> FALSE | AS105: =_xlfn.XLOOKUP($Y105,[1]COUNTRY_INFO!$Y$9:$Y$197,[1]COUNTRY_INFO!H$9:H$197) -> 99 | AT105: =_xlfn.XLOOKUP($Y105,[1]COUNTRY_INFO!$Y$9:$Y$197,[1]COUNTRY_INFO!I$9:I$197) -> 1 | AU105: =_xlfn.XLOOKUP($Y105,[1]COUNTRY_INFO!$Y$9:$Y$197,[1]COUNTRY_INFO!J$9:J$197) -> 1 | AV105: =_xlfn.XLOOKUP($Y105,[1]COUNTRY_INFO!$Y$9:$Y$197,[1]COUNTRY_INFO!K$9:K$197) -> 1 | AW105: =_xlfn.XLOOKUP($Y105,[1]COUNTRY_INFO!$Y$9:$Y$197,[1]COUNTRY_INFO!L$9:L$197) -> 1 | AX105: TRUE | AY105: TRUE | AZ105: TRUE | BA105: TRUE | BB105: TRUE | BE105: 99 | BF105: 1 | BG105: 1 | BH105: 1 | BI105: TRUE | BJ105: TRUE | BK105: TRUE | BL105: TRUE
A106: =IF(INTRO!$E$34<>0,INTRO!$E$34,"") -> Cameroon | B106: Littoral | C106: Japoma | D106: 182090 | E106: 28341.1306 | F106: =IF(INTRO!$E$49="","",ROUND($D106*INTRO!$E$49,0)) -> 48163 | G106: =IF(INTRO!$E$50="","",ROUND($D106*INTRO!$E$50,0)) -> 104829 | H106: 0 | I106: 4 | J106: 2 | K106: 1 | L106: 1 | M106: =IF(INTRO!$E$38="Endémique", IF($H106>0, IF($H106=4,"Inconnu", IF($H106=99,"Interrompu", $D106)), 0),"Non requis") -> 0 | N106: 0 | O106: =IF(INTRO!$E$42="Endémique", IF(AND($J106>1,$J106<5), IF($J106=4, "Inconnu", E106+F106), 0),"Non requis") -> 76504.1306 | P106: =IF(INTRO!$E$44="Endémique", IF(AND($K106>0,$K106<5), IF($K106=4,"Inconnu", IF($K106=1, $F106*0.33, IF($K106=2, $F106*0.5+$G106*0.2, SUM(F106:G106)))), 0),"Non requis") -> 15893.79 | Q106: 0 | R106: 0 | S106: 1 | T106: 0 | V106: T3 (ALB/MBD) | Y106: 7510 | Z106: JAPOMA | AF106: ='T1'!M106 -> 0 | AG106: ='T2'!M106 -> 0 | AH106: =T3_R1!L106 -> 32367 | AI106: ='MDA3'!K106 -> 0 | AJ106: ='MDA3'!N106 -> 0 | AK106: 48163 | AL106: 67.20303968 | AN106: ='T1'!F106 -> 0 | AO106: =T3_R1!F106 -> 44896 | AS106: =_xlfn.XLOOKUP($Y106,[1]COUNTRY_INFO!$Y$9:$Y$197,[1]COUNTRY_INFO!H$9:H$197) -> 0 | AT106: =_xlfn.XLOOKUP($Y106,[1]COUNTRY_INFO!$Y$9:$Y$197,[1]COUNTRY_INFO!I$9:I$197) -> 4 | AU106: =_xlfn.XLOOKUP($Y106,[1]COUNTRY_INFO!$Y$9:$Y$197,[1]COUNTRY_INFO!J$9:J$197) -> 2 | AV106: =_xlfn.XLOOKUP($Y106,[1]COUNTRY_INFO!$Y$9:$Y$197,[1]COUNTRY_INFO!K$9:K$197) -> 1 | AW106: =_xlfn.XLOOKUP($Y106,[1]COUNTRY_INFO!$Y$9:$Y$197,[1]COUNTRY_INFO!L$9:L$197) -> 1 | AX106: TRUE | AY106: TRUE | AZ106: TRUE | BA106: TRUE | BB106: TRUE | BE106: 0 | BF106: 4 | BG106: 2 | BH106: 1 | BI106: TRUE | BJ106: TRUE | BK106: TRUE | BL106: TRUE
A107: =IF(INTRO!$E$34<>0,INTRO!$E$34,"") -> Cameroon | B107: Littoral | C107: Logbaba | D107: 272564 | E107: 11929.82456 | F107: =IF(INTRO!$E$49="","",ROUND($D107*INTRO!$E$49,0)) -> 72093 | G107: =IF(INTRO!$E$50="","",ROUND($D107*INTRO!$E$50,0)) -> 156915 | H107: 0 | I107: 4 | J107: 2 | K107: 1 | L107: 1 | M107: =IF(INTRO!$E$38="Endémique", IF($H107>0, IF($H107=4,"Inconnu", IF($H107=99,"Interrompu", $D107)), 0),"Non requis") -> 0 | N107: 0 | O107: =IF(INTRO!$E$42="Endémique", IF(AND($J107>1,$J107<5), IF($J107=4, "Inconnu", E107+F107), 0),"Non requis") -> 84022.82456 | P107: =IF(INTRO!$E$44="Endémique", IF(AND($K107>0,$K107<5), IF($K107=4,"Inconnu", IF($K107=1, $F107*0.33, IF($K107=2, $F107*0.5+$G107*0.2, SUM(F107:G107)))), 0),"Non requis") -> 23790.69 | Q107: 0 | R107: 0 | S107: 1 | T107: 0 | V107: T3 (ALB/MBD) | Y107: 7511 | Z107: LOGBABA | AF107: ='T1'!M107 -> 0 | AG107: ='T2'!M107 -> 0 | AH107: =T3_R1!L107 -> 38877 | AI107: ='MDA3'!K107 -> 0 | AJ107: ='MDA3'!N107 -> 0 | AK107: 72093 | AL107: 53.92617869 | AN107: ='T1'!F107 -> 0 | AO107: =T3_R1!F107 -> 44896 | AS107: =_xlfn.XLOOKUP($Y107,[1]COUNTRY_INFO!$Y$9:$Y$197,[1]COUNTRY_INFO!H$9:H$197) -> 0 | AT107: =_xlfn.XLOOKUP($Y107,[1]COUNTRY_INFO!$Y$9:$Y$197,[1]COUNTRY_INFO!I$9:I$197) -> 4 | AU107: =_xlfn.XLOOKUP($Y107,[1]COUNTRY_INFO!$Y$9:$Y$197,[1]COUNTRY_INFO!J$9:J$197) -> 2 | AV107: =_xlfn.XLOOKUP($Y107,[1]COUNTRY_INFO!$Y$9:$Y$197,[1]COUNTRY_INFO!K$9:K$197) -> 1 | AW107: =_xlfn.XLOOKUP($Y107,[1]COUNTRY_INFO!$Y$9:$Y$197,[1]COUNTRY_INFO!L$9:L$197) -> 1 | AX107: TRUE | AY107: TRUE | AZ107: TRUE | BA107: TRUE | BB107: TRUE | BE107: 0 | BF107: 4 | BG107: 2 | BH107: 1 | BI107: TRUE | BJ107: TRUE | BK107: TRUE | BL107: TRUE
A108: =IF(INTRO!$E$34<>0,INTRO!$E$34,"") -> Cameroon | B108: Littoral | C108: Loum | D108: 71727 | E108: 6721.247563 | F108: =IF(INTRO!$E$49="","",ROUND($D108*INTRO!$E$49,0)) -> 18972 | G108: =IF(INTRO!$E$50="","",ROUND($D108*INTRO!$E$50,0)) -> 41293 | H108: 99 | I108: 1 | J108: 1 | K108: 2 | L108: 1 | M108: =IF(INTRO!$E$38="Endémique", IF($H108>0, IF($H108=4,"Inconnu", IF($H108=99,"Interrompu", $D108)), 0),"Non requis") -> Interrompu | N108: 60734 | O108: =IF(INTRO!$E$42="Endémique", IF(AND($J108>1,$J108<5), IF($J108=4, "Inconnu", E108+F108), 0),"Non requis") -> 0 | P108: =IF(INTRO!$E$44="Endémique", IF(AND($K108>0,$K108<5), IF($K108=4,"Inconnu", IF($K108=1, $F108*0.33, IF($K108=2, $F108*0.5+$G108*0.2, SUM(F108:G108)))), 0),"Non requis") -> 17744.6 | Q108: 0 | R108: 1 | S108: 1 | T108: 1 | U108: MDA3 (IVM) | V108: T1 (PZQ+ALB/MBD) | Y108: 7512 | Z108: LOUM | AF108: ='T1'!M108 -> 14898 | AG108: ='T2'!M108 -> 0 | AH108: =T3_R1!L108 -> 0 | AI108: ='MDA3'!K108 -> 44254 | AJ108: ='MDA3'!N108 -> 0 | AK108: 18972 | AL108: 78.52624921 | AN108: ='T1'!F108 -> DECEMBRE 2022 | AO108: =T3_R1!F108 -> 44896 | AP108: =AN108=AO108 -> FALSE | AS108: =_xlfn.XLOOKUP($Y108,[1]COUNTRY_INFO!$Y$9:$Y$197,[1]COUNTRY_INFO!H$9:H$197) -> 99 | AT108: =_xlfn.XLOOKUP($Y108,[1]COUNTRY_INFO!$Y$9:$Y$197,[1]COUNTRY_INFO!I$9:I$197) -> 1 | AU108: =_xlfn.XLOOKUP($Y108,[1]COUNTRY_INFO!$Y$9:$Y$197,[1]COUNTRY_INFO!J$9:J$197) -> 1 | AV108: =_xlfn.XLOOKUP($Y108,[1]COUNTRY_INFO!$Y$9:$Y$197,[1]COUNTRY_INFO!K$9:K$197) -> 2 | AW108: =_xlfn.XLOOKUP($Y108,[1]COUNTRY_INFO!$Y$9:$Y$197,[1]COUNTRY_INFO!L$9:L$197) -> 1 | AX108: TRUE | AY108: TRUE | AZ108: TRUE | BA108: TRUE | BB108: TRUE | BE108: 99 | BF108: 1 | BG108: 1 | BH108: 2 | BI108: TRUE | BJ108: TRUE | BK108: TRUE | BL108: TRUE
A109: =IF(INTRO!$E$34<>0,INTRO!$E$34,"") -> Cameroon | B109: Littoral | C109: Manjo | D109: 41545 | E109: 2261.208577 | F109: =IF(INTRO!$E$49="","",ROUND($D109*INTRO!$E$49,0)) -> 10989 | G109: =IF(INTRO!$E$50="","",ROUND($D109*INTRO!$E$50,0)) -> 23917 | H109: 99 | I109: 1 | J109: 2 | K109: 1 | L109: 1 | M109: =IF(INTRO!$E$38="Endémique", IF($H109>0, IF($H109=4,"Inconnu", IF($H109=99,"Interrompu", $D109)), 0),"Non requis") -> Interrompu | N109: 38635 | O109: =IF(INTRO!$E$42="Endémique", IF(AND($J109>1,$J109<5), IF($J109=4, "Inconnu", E109+F109), 0),"Non requis") -> 13250.20858 | P109: =IF(INTRO!$E$44="Endémique", IF(AND($K109>0,$K109<5), IF($K109=4,"Inconnu", IF($K109=1, $F109*0.33, IF($K109=2, $F109*0.5+$G109*0.2, SUM(F109:G109)))), 0),"Non requis") -> 3626.37 | Q109: 0 | R109: 1 | S109: 1 | T109: 0 | U109: MDA3 (IVM) | V109: T3 (ALB/MBD) | Y109: 7513 | Z109: MANJO | AF109: ='T1'!M109 -> 0 | AG109: ='T2'!M109 -> 0 | AH109: =T3_R1!L109 -> 13937 | AI109: ='MDA3'!K109 -> 34046 | AJ109: ='MDA3'!N109 -> 0 | AK109: 10989 | AL109: 126.8268268 | AN109: ='T1'!F109 -> 0 | AO109: =T3_R1!F109 -> 44896 | AS109: =_xlfn.XLOOKUP($Y109,[1]COUNTRY_INFO!$Y$9:$Y$197,[1]COUNTRY_INFO!H$9:H$197) -> 99 | AT109: =_xlfn.XLOOKUP($Y109,[1]COUNTRY_INFO!$Y$9:$Y$197,[1]COUNTRY_INFO!I$9:I$197) -> 1 | AU109: =_xlfn.XLOOKUP($Y109,[1]COUNTRY_INFO!$Y$9:$Y$197,[1]COUNTRY_INFO!J$9:J$197) -> 2 | AV109: =_xlfn.XLOOKUP($Y109,[1]COUNTRY_INFO!$Y$9:$Y$197,[1]COUNTRY_INFO!K$9:K$197) -> 1 | AW109: =_xlfn.XLOOKUP($Y109,[1]COUNTRY_INFO!$Y$9:$Y$197,[1]COUNTRY_INFO!L$9:L$197) -> 1 | AX109: TRUE | AY109: TRUE | AZ109: TRUE | BA109: TRUE | BB109: TRUE | BE109: 99 | BF109: 1 | BG109: 2 | BH109: 1 | BI109: TRUE | BJ109: TRUE | BK109: TRUE | BL109: TRUE
A110: =IF(INTRO!$E$34<>0,INTRO!$E$34,"") -> Cameroon | B110: Littoral | C110: Manoka | D110: 30896 | E110: 11351.85185 | F110: =IF(INTRO!$E$49="","",ROUND($D110*INTRO!$E$49,0)) -> 8172 | G110: =IF(INTRO!$E$50="","",ROUND($D110*INTRO!$E$50,0)) -> 17787 | H110: 0 | I110: 4 | J110: 3 | K110: 0 | L110: 1 | M110: =IF(INTRO!$E$38="Endémique", IF($H110>0, IF($H110=4,"Inconnu", IF($H110=99,"Interrompu", $D110)), 0),"Non requis") -> 0 | N110: 0 | O110: =IF(INTRO!$E$42="Endémique", IF(AND($J110>1,$J110<5), IF($J110=4, "Inconnu", E110+F110), 0),"Non requis") -> 19523.85185 | P110: =IF(INTRO!$E$44="Endémique", IF(AND($K110>0,$K110<5), IF($K110=4,"Inconnu", IF($K110=1, $F110*0.33, IF($K110=2, $F110*0.5+$G110*0.2, SUM(F110:G110)))), 0),"Non requis") -> 0 | Q110: 0 | R110: 0 | S110: 1 | T110: 0 | V110: T3 (ALB/MBD) | Y110: 7514 | Z110: MANOKA | AF110: ='T1'!M110 -> 0 | AG110: ='T2'!M110 -> 0 | AH110: =T3_R1!L110 -> 5359 | AI110: ='MDA3'!K110 -> 0 | AJ110: ='MDA3'!N110 -> 0 | AK110: 8172 | AL110: 65.57758199 | AN110: ='T1'!F110 -> 0 | AO110: =T3_R1!F110 -> 44896 | AS110: =_xlfn.XLOOKUP($Y110,[1]COUNTRY_INFO!$Y$9:$Y$197,[1]COUNTRY_INFO!H$9:H$197) -> 0 | AT110: =_xlfn.XLOOKUP($Y110,[1]COUNTRY_INFO!$Y$9:$Y$197,[1]COUNTRY_INFO!I$9:I$197) -> 4 | AU110: =_xlfn.XLOOKUP($Y110,[1]COUNTRY_INFO!$Y$9:$Y$197,[1]COUNTRY_INFO!J$9:J$197) -> 3 | AV110: =_xlfn.XLOOKUP($Y110,[1]COUNTRY_INFO!$Y$9:$Y$197,[1]COUNTRY_INFO!K$9:K$197) -> 0 | AW110: =_xlfn.XLOOKUP($Y110,[1]COUNTRY_INFO!$Y$9:$Y$197,[1]COUNTRY_INFO!L$9:L$197) -> 1 | AX110: TRUE | AY110: TRUE | AZ110: TRUE | BA110: TRUE | BB110: TRUE | BE110: 0 | BF110: 4 | BG110: 3 | BH110: 0 | BI110: TRUE | BJ110: TRUE | BK110: TRUE | BL110: TRUE
A111: =IF(INTRO!$E$34<>0,INTRO!$E$34,"") -> Cameroon | B111: Littoral | C111: Mbanga | D111: 83624 | E111: 32372.31969 | F111: =IF(INTRO!$E$49="","",ROUND($D111*INTRO!$E$49,0)) -> 22119 | G111: =IF(INTRO!$E$50="","",ROUND($D111*INTRO!$E$50,0)) -> 48142 | H111: 99 | I111: 1 | J111: 2 | K111: 1 | L111: 1 | M111: =IF(INTRO!$E$38="Endémique", IF($H111>0, IF($H111=4,"Inconnu", IF($H111=99,"Interrompu", $D111)), 0),"Non requis") -> Interrompu | N111: 70807 | O111: =IF(INTRO!$E$42="Endémique", IF(AND($J111>1,$J111<5), IF($J111=4, "Inconnu", E111+F111), 0),"Non requis") -> 54491.31969 | P111: =IF(INTRO!$E$44="Endémique", IF(AND($K111>0,$K111<5), IF($K111=4,"Inconnu", IF($K111=1, $F111*0.33, IF($K111=2, $F111*0.5+$G111*0.2, SUM(F111:G111)))), 0),"Non requis") -> 7299.27 | Q111: 0 | R111: 1 | S111: 1 | T111: 0 | U111: MDA3 (IVM) | V111: T3 (ALB/MBD) | Y111: 7515 | Z111: MBANGA | AF111: ='T1'!M111 -> 0 | AG111: ='T2'!M111 -> 0 | AH111: =T3_R1!L111 -> 18606 | AI111: ='MDA3'!K111 -> 45434 | AJ111: ='MDA3'!N111 -> 0 | AK111: 22119 | AL111: 84.11772684 | AN111: ='T1'!F111 -> 0 | AO111: =T3_R1!F111 -> 44896 | AS111: =_xlfn.XLOOKUP($Y111,[1]COUNTRY_INFO!$Y$9:$Y$197,[1]COUNTRY_INFO!H$9:H$197) -> 99 | AT111: =_xlfn.XLOOKUP($Y111,[1]COUNTRY_INFO!$Y$9:$Y$197,[1]COUNTRY_INFO!I$9:I$197) -> 1 | AU111: =_xlfn.XLOOKUP($Y111,[1]COUNTRY_INFO!$Y$9:$Y$197,[1]COUNTRY_INFO!J$9:J$197) -> 2 | AV111: =_xlfn.XLOOKUP($Y111,[1]COUNTRY_INFO!$Y$9:$Y$197,[1]COUNTRY_INFO!K$9:K$197) -> 1 | AW111: =_xlfn.XLOOKUP($Y111,[1]COUNTRY_INFO!$Y$9:$Y$197,[1]COUNTRY_INFO!L$9:L$197) -> 1 | AX111: TRUE | AY111: TRUE | AZ111: TRUE | BA111: TRUE | BB111: TRUE | BE111: 99 | BF111: 1 | BG111: 2 | BH111: 1 | BI111: TRUE | BJ111: TRUE | BK111: TRUE | BL111: TRUE
A112: =IF(INTRO!$E$34<>0,INTRO!$E$34,"") -> Cameroon | B112: Littoral | C112: Melong | D112: 112385 | E112: 15634.50292 | F112: =IF(INTRO!$E$49="","",ROUND($D112*INTRO!$E$49,0)) -> 29726 | G112: =IF(INTRO!$E$50="","",ROUND($D112*INTRO!$E$50,0)) -> 64700 | H112: 99 | I112: 1 | J112: 2 | K112: 2 | L112: 1 | M112: =IF(INTRO!$E$38="Endémique", IF($H112>0, IF($H112=4,"Inconnu", IF($H112=99,"Interrompu", $D112)), 0),"Non requis") -> Interrompu | N112: 95163 | O112: =IF(INTRO!$E$42="Endémique", IF(AND($J112>1,$J112<5), IF($J112=4, "Inconnu", E112+F112), 0),"Non requis") -> 45360.50292 | P112: =IF(INTRO!$E$44="Endémique", IF(AND($K112>0,$K112<5), IF($K112=4,"Inconnu", IF($K112=1, $F112*0.33, IF($K112=2, $F112*0.5+$G112*0.2, SUM(F112:G112)))), 0),"Non requis") -> 27803 | Q112: 0 | R112: 1 | S112: 1 | T112: 1 | U112: MDA3 (IVM) | V112: T1 (PZQ+ALB/MBD) | Y112: 7517 | Z112: MELONG | AF112: ='T1'!M112 -> 11358 | AG112: ='T2'!M112 -> 0 | AH112: =T3_R1!L112 -> 4640 | AI112: ='MDA3'!K112 -> 55596 | AJ112: ='MDA3'!N112 -> 0 | AK112: 29726 | AL112: 53.81820628 | AN112: ='T1'!F112 -> DECEMBRE 2022 | AO112: =T3_R1!F112 -> 44896 | AS112: =_xlfn.XLOOKUP($Y112,[1]COUNTRY_INFO!$Y$9:$Y$197,[1]COUNTRY_INFO!H$9:H$197) -> 99 | AT112: =_xlfn.XLOOKUP($Y112,[1]COUNTRY_INFO!$Y$9:$Y$197,[1]COUNTRY_INFO!I$9:I$197) -> 1 | AU112: =_xlfn.XLOOKUP($Y112,[1]COUNTRY_INFO!$Y$9:$Y$197,[1]COUNTRY_INFO!J$9:J$197) -> 2 | AV112: =_xlfn.XLOOKUP($Y112,[1]COUNTRY_INFO!$Y$9:$Y$197,[1]COUNTRY_INFO!K$9:K$197) -> 2 | AW112: =_xlfn.XLOOKUP($Y112,[1]COUNTRY_INFO!$Y$9:$Y$197,[1]COUNTRY_INFO!L$9:L$197) -> 1 | AX112: TRUE | AY112: TRUE | AZ112: TRUE | BA112: TRUE | BB112: TRUE | BE112: 99 | BF112: 1 | BG112: 2 | BH112: 2 | BI112: TRUE | BJ112: TRUE | BK112: TRUE | BL112: TRUE
A113: =IF(INTRO!$E$34<>0,INTRO!$E$34,"") -> Cameroon | B113: Littoral | C113: Ndom | D113: 27567 | E113: 3330.409357 | F113: =IF(INTRO!$E$49="","",ROUND($D113*INTRO!$E$49,0)) -> 7291 | G113: =IF(INTRO!$E$50="","",ROUND($D113*INTRO!$E$50,0)) -> 15870 | H113: 99 | I113: 1 | J113: 3 | K113: 0 | L113: 1 | M113: =IF(INTRO!$E$38="Endémique", IF($H113>0, IF($H113=4,"Inconnu", IF($H113=99,"Interrompu", $D113)), 0),"Non requis") -> Interrompu | N113: 23343 | O113: =IF(INTRO!$E$42="Endémique", IF(AND($J113>1,$J113<5), IF($J113=4, "Inconnu", E113+F113), 0),"Non requis") -> 10621.40936 | P113: =IF(INTRO!$E$44="Endémique", IF(AND($K113>0,$K113<5), IF($K113=4,"Inconnu", IF($K113=1, $F113*0.33, IF($K113=2, $F113*0.5+$G113*0.2, SUM(F113:G113)))), 0),"Non requis") -> 0 | Q113: 0 | R113: 1 | S113: 1 | T113: 0 | U113: MDA3 (IVM) | V113: T3 (ALB/MBD) | Y113: 7518 | Z113: NDOM | AF113: ='T1'!M113 -> 0 | AG113: ='T2'!M113 -> 0 | AH113: =T3_R1!L113 -> 5956 | AI113: ='MDA3'!K113 -> 19622 | AJ113: ='MDA3'!N113 -> 0 | AK113: 7291 | AL113: 81.68975449 | AN113: ='T1'!F113 -> 0 | AO113: =T3_R1!F113 -> 44896 | AS113: =_xlfn.XLOOKUP($Y113,[1]COUNTRY_INFO!$Y$9:$Y$197,[1]COUNTRY_INFO!H$9:H$197) -> 99 | AT113: =_xlfn.XLOOKUP($Y113,[1]COUNTRY_INFO!$Y$9:$Y$197,[1]COUNTRY_INFO!I$9:I$197) -> 1 | AU113: =_xlfn.XLOOKUP($Y113,[1]COUNTRY_INFO!$Y$9:$Y$197,[1]COUNTRY_INFO!J$9:J$197) -> 3 | AV113: =_xlfn.XLOOKUP($Y113,[1]COUNTRY_INFO!$Y$9:$Y$197,[1]COUNTRY_INFO!K$9:K$197) -> 0 | AW113: =_xlfn.XLOOKUP($Y113,[1]COUNTRY_INFO!$Y$9:$Y$197,[1]COUNTRY_INFO!L$9:L$197) -> 1 | AX113: TRUE | AY113: TRUE | AZ113: TRUE | BA113: TRUE | BB113: TRUE | BE113: 99 | BF113: 1 | BG113: 3 | BH113: 0 | BI113: TRUE | BJ113: TRUE | BK113: TRUE | BL113: TRUE
A114: =IF(INTRO!$E$34<>0,INTRO!$E$34,"") -> Cameroon | B114: Littoral | C114: New Bell | D114: 315647 | E114: 32640.35088 | F114: =IF(INTRO!$E$49="","",ROUND($D114*INTRO!$E$49,0)) -> 83489 | G114: =IF(INTRO!$E$50="","",ROUND($D114*INTRO!$E$50,0)) -> 181718 | H114: 0 | I114: 4 | J114: 1 | K114: 1 | L114: 1 | M114: =IF(INTRO!$E$38="Endémique", IF($H114>0, IF($H114=4,"Inconnu", IF($H114=99,"Interrompu", $D114)), 0),"Non requis") -> 0 | N114: 0 | O114: =IF(INTRO!$E$42="Endémique", IF(AND($J114>1,$J114<5), IF($J114=4, "Inconnu", E114+F114), 0),"Non requis") -> 0 | P114: =IF(INTRO!$E$44="Endémique", IF(AND($K114>0,$K114<5), IF($K114=4,"Inconnu", IF($K114=1, $F114*0.33, IF($K114=2, $F114*0.5+$G114*0.2, SUM(F114:G114)))), 0),"Non requis") -> 27551.37 | Q114: 0 | R114: 0 | S114: 1 | T114: 0 | V114: T3 (ALB/MBD) | Y114: 7519 | Z114: NEW BELL | AF114: ='T1'!M114 -> 0 | AG114: ='T2'!M114 -> 0 | AH114: =T3_R1!L114 -> 53424 | AI114: ='MDA3'!K114 -> 0 | AJ114: ='MDA3'!N114 -> 0 | AK114: 83489 | AL114: 63.98926805 | AN114: ='T1'!F114 -> 0 | AO114: =T3_R1!F114 -> 44896 | AS114: =_xlfn.XLOOKUP($Y114,[1]COUNTRY_INFO!$Y$9:$Y$197,[1]COUNTRY_INFO!H$9:H$197) -> 0 | AT114: =_xlfn.XLOOKUP($Y114,[1]COUNTRY_INFO!$Y$9:$Y$197,[1]COUNTRY_INFO!I$9:I$197) -> 4 | AU114: =_xlfn.XLOOKUP($Y114,[1]COUNTRY_INFO!$Y$9:$Y$197,[1]COUNTRY_INFO!J$9:J$197) -> 1 | AV114: =_xlfn.XLOOKUP($Y114,[1]COUNTRY_INFO!$Y$9:$Y$197,[1]COUNTRY_INFO!K$9:K$197) -> 1 | AW114: =_xlfn.XLOOKUP($Y114,[1]COUNTRY_INFO!$Y$9:$Y$197,[1]COUNTRY_INFO!L$9:L$197) -> 1 | AX114: TRUE | AY114: TRUE | AZ114: TRUE | BA114: TRUE | BB114: TRUE | BE114: 0 | BF114: 4 | BG114: 1 | BH114: 1 | BI114: TRUE | BJ114: TRUE | BK114: TRUE | BL114: TRUE
A115: =IF(INTRO!$E$34<>0,INTRO!$E$34,"") -> Cameroon | B115: Littoral | C115: Ngambe | D115: 15134 | E115: 1980.506823 | F115: =IF(INTRO!$E$49="","",ROUND($D115*INTRO!$E$49,0)) -> 4003 | G115: =IF(INTRO!$E$50="","",ROUND($D115*INTRO!$E$50,0)) -> 8713 | H115: 99 | I115: 1 | J115: 1 | K115: 0 | L115: 1 | M115: =IF(INTRO!$E$38="Endémique", IF($H115>0, IF($H115=4,"Inconnu", IF($H115=99,"Interrompu", $D115)), 0),"Non requis") -> Interrompu | N115: 12928 | O115: =IF(INTRO!$E$42="Endémique", IF(AND($J115>1,$J115<5), IF($J115=4, "Inconnu", E115+F115), 0),"Non requis") -> 0 | P115: =IF(INTRO!$E$44="Endémique", IF(AND($K115>0,$K115<5), IF($K115=4,"Inconnu", IF($K115=1, $F115*0.33, IF($K115=2, $F115*0.5+$G115*0.2, SUM(F115:G115)))), 0),"Non requis") -> 0 | Q115: 0 | R115: 1 | S115: 1 | T115: 0 | U115: MDA3 (IVM) | V115: T3 (ALB/MBD) | Y115: 7520 | Z115: NGAMBE | AF115: ='T1'!M115 -> 0 | AG115: ='T2'!M115 -> 0 | AH115: =T3_R1!L115 -> 2482 | AI115: ='MDA3'!K115 -> 11916 | AJ115: ='MDA3'!N115 -> 0 | AK115: 4003 | AL115: 62.00349738 | AN115: ='T1'!F115 -> 0 | AO115: =T3_R1!F115 -> 44896 | AP115: =AN115=AO115 -> FALSE | AS115: =_xlfn.XLOOKUP($Y115,[1]COUNTRY_INFO!$Y$9:$Y$197,[1]COUNTRY_INFO!H$9:H$197) -> 99 | AT115: =_xlfn.XLOOKUP($Y115,[1]COUNTRY_INFO!$Y$9:$Y$197,[1]COUNTRY_INFO!I$9:I$197) -> 1 | AU115: =_xlfn.XLOOKUP($Y115,[1]COUNTRY_INFO!$Y$9:$Y$197,[1]COUNTRY_INFO!J$9:J$197) -> 1 | AV115: =_xlfn.XLOOKUP($Y115,[1]COUNTRY_INFO!$Y$9:$Y$197,[1]COUNTRY_INFO!K$9:K$197) -> 0 | AW115: =_xlfn.XLOOKUP($Y115,[1]COUNTRY_INFO!$Y$9:$Y$197,[1]COUNTRY_INFO!L$9:L$197) -> 1 | AX115: TRUE | AY115: TRUE | AZ115: TRUE | BA115: TRUE | BB115: TRUE | BE115: 99 | BF115: 1 | BG115: 1 | BH115: 0 | BI115: TRUE | BJ115: TRUE | BK115: TRUE | BL115: TRUE
A116: =IF(INTRO!$E$34<>0,INTRO!$E$34,"") -> Cameroon | B116: Littoral | C116: Njombe Penja | D116: 58955 | E116: 10669.59064 | F116: =IF(INTRO!$E$49="","",ROUND($D116*INTRO!$E$49,0)) -> 15594 | G116: =IF(INTRO!$E$50="","",ROUND($D116*INTRO!$E$50,0)) -> 33940 | H116: 99 | I116: 1 | J116: 1 | K116: 3 | L116: 1 | M116: =IF(INTRO!$E$38="Endémique", IF($H116>0, IF($H116=4,"Inconnu", IF($H116=99,"Interrompu", $D116)), 0),"Non requis") -> Interrompu | N116: 49920 | O116: =IF(INTRO!$E$42="Endémique", IF(AND($J116>1,$J116<5), IF($J116=4, "Inconnu", E116+F116), 0),"Non requis") -> 0 | P116: =IF(INTRO!$E$44="Endémique", IF(AND($K116>0,$K116<5), IF($K116=4,"Inconnu", IF($K116=1, $F116*0.33, IF($K116=2, $F116*0.5+$G116*0.2, SUM(F116:G116)))), 0),"Non requis") -> 49534 | Q116: 0 | R116: 1 | S116: 1 | T116: 1 | U116: MDA3 (IVM) | V116: T1 (PZQ+ALB/MBD) | Y116: 7521 | Z116: NJOMBE PENJA | AF116: ='T1'!M116 -> 11827 | AG116: ='T2'!M116 -> 0 | AH116: =T3_R1!L116 -> 0 | AI116: ='MDA3'!K116 -> 36963 | AJ116: ='MDA3'!N116 -> 0 | AK116: 15594 | AL116: 75.84327305 | AN116: ='T1'!F116 -> DECEMBRE 2022 | AO116: =T3_R1!F116 -> 44896 | AS116: =_xlfn.XLOOKUP($Y116,[1]COUNTRY_INFO!$Y$9:$Y$197,[1]COUNTRY_INFO!H$9:H$197) -> 99 | AT116: =_xlfn.XLOOKUP($Y116,[1]COUNTRY_INFO!$Y$9:$Y$197,[1]COUNTRY_INFO!I$9:I$197) -> 1 | AU116: =_xlfn.XLOOKUP($Y116,[1]COUNTRY_INFO!$Y$9:$Y$197,[1]COUNTRY_INFO!J$9:J$197) -> 1 | AV116: =_xlfn.XLOOKUP($Y116,[1]COUNTRY_INFO!$Y$9:$Y$197,[1]COUNTRY_INFO!K$9:K$197) -> 3 | AW116: =_xlfn.XLOOKUP($Y116,[1]COUNTRY_INFO!$Y$9:$Y$197,[1]COUNTRY_INFO!L$9:L$197) -> 1 | AX116: TRUE | AY116: TRUE | AZ116: TRUE | BA116: TRUE | BB116: TRUE | BE116: 99 | BF116: 1 | BG116: 1 | BH116: 3 | BI116: TRUE | BJ116: TRUE | BK116: TRUE | BL116: TRUE
A117: =IF(INTRO!$E$34<>0,INTRO!$E$34,"") -> Cameroon | B117: Littoral | C117: Nkondjock | D117: 26745 | E117: 4262.183236 | F117: =IF(INTRO!$E$49="","",ROUND($D117*INTRO!$E$49,0)) -> 7074 | G117: =IF(INTRO!$E$50="","",ROUND($D117*INTRO!$E$50,0)) -> 15397 | H117: 99 | I117: 1 | J117: 2 | K117: 1 | L117: 1 | M117: =IF(INTRO!$E$38="Endémique", IF($H117>0, IF($H117=4,"Inconnu", IF($H117=99,"Interrompu", $D117)), 0),"Non requis") -> Interrompu | N117: 26398 | O117: =IF(INTRO!$E$42="Endémique", IF(AND($J117>1,$J117<5), IF($J117=4, "Inconnu", E117+F117), 0),"Non requis") -> 11336.18324 | P117: =IF(INTRO!$E$44="Endémique", IF(AND($K117>0,$K117<5), IF($K117=4,"Inconnu", IF($K117=1, $F117*0.33, IF($K117=2, $F117*0.5+$G117*0.2, SUM(F117:G117)))), 0),"Non requis") -> 2334.42 | Q117: 0 | R117: 1 | S117: 1 | T117: 0 | U117: MDA3 (IVM) | V117: T3 (ALB/MBD) | Y117: 7522 | Z117: NKONDJOCK | AF117: ='T1'!M117 -> 0 | AG117: ='T2'!M117 -> 0 | AH117: =T3_R1!L117 -> 6893 | AI117: ='MDA3'!K117 -> 26751 | AJ117: ='MDA3'!N117 -> 0 | AK117: 7074 | AL117: 97.44133446 | AN117: ='T1'!F117 -> 0 | AO117: =T3_R1!F117 -> 44896 | AS117: =_xlfn.XLOOKUP($Y117,[1]COUNTRY_INFO!$Y$9:$Y$197,[1]COUNTRY_INFO!H$9:H$197) -> 99 | AT117: =_xlfn.XLOOKUP($Y117,[1]COUNTRY_INFO!$Y$9:$Y$197,[1]COUNTRY_INFO!I$9:I$197) -> 1 | AU117: =_xlfn.XLOOKUP($Y117,[1]COUNTRY_INFO!$Y$9:$Y$197,[1]COUNTRY_INFO!J$9:J$197) -> 2 | AV117: =_xlfn.XLOOKUP($Y117,[1]COUNTRY_INFO!$Y$9:$Y$197,[1]COUNTRY_INFO!K$9:K$197) -> 1 | AW117: =_xlfn.XLOOKUP($Y117,[1]COUNTRY_INFO!$Y$9:$Y$197,[1]COUNTRY_INFO!L$9:L$197) -> 1 | AX117: TRUE | AY117: TRUE | AZ117: TRUE | BA117: TRUE | BB117: TRUE | BE117: 99 | BF117: 1 | BG117: 2 | BH117: 1 | BI117: TRUE | BJ117: TRUE | BK117: TRUE | BL117: TRUE
A118: =IF(INTRO!$E$34<>0,INTRO!$E$34,"") -> Cameroon | B118: Littoral | C118: Nkongsamba | D118: 121295 | E118: 15222.22222 | F118: =IF(INTRO!$E$49="","",ROUND($D118*INTRO!$E$49,0)) -> 32083 | G118: =IF(INTRO!$E$50="","",ROUND($D118*INTRO!$E$50,0)) -> 69830 | H118: 99 | I118: 1 | J118: 1 | K118: 0 | L118: 1 | M118: =IF(INTRO!$E$38="Endémique", IF($H118>0, IF($H118=4,"Inconnu", IF($H118=99,"Interrompu", $D118)), 0),"Non requis") -> Interrompu | N118: 102709 | O118: =IF(INTRO!$E$42="Endémique", IF(AND($J118>1,$J118<5), IF($J118=4, "Inconnu", E118+F118), 0),"Non requis") -> 0 | P118: =IF(INTRO!$E$44="Endémique", IF(AND($K118>0,$K118<5), IF($K118=4,"Inconnu", IF($K118=1, $F118*0.33, IF($K118=2, $F118*0.5+$G118*0.2, SUM(F118:G118)))), 0),"Non requis") -> 0 | Q118: 0 | R118: 1 | S118: 1 | T118: 0 | U118: MDA3 (IVM) | V118: T3 (ALB/MBD) | Y118: 7523 | Z118: NKONGSAMBA | AF118: ='T1'!M118 -> 0 | AG118: ='T2'!M118 -> 0 | AH118: =T3_R1!L118 -> 34231 | AI118: ='MDA3'!K118 -> 71168 | AJ118: ='MDA3'!N118 -> 0 | AK118: 32083 | AL118: 106.6951345 | AN118: ='T1'!F118 -> 0 | AO118: =T3_R1!F118 -> 44896 | AS118: =_xlfn.XLOOKUP($Y118,[1]COUNTRY_INFO!$Y$9:$Y$197,[1]COUNTRY_INFO!H$9:H$197) -> 99 | AT118: =_xlfn.XLOOKUP($Y118,[1]COUNTRY_INFO!$Y$9:$Y$197,[1]COUNTRY_INFO!I$9:I$197) -> 1 | AU118: =_xlfn.XLOOKUP($Y118,[1]COUNTRY_INFO!$Y$9:$Y$197,[1]COUNTRY_INFO!J$9:J$197) -> 1 | AV118: =_xlfn.XLOOKUP($Y118,[1]COUNTRY_INFO!$Y$9:$Y$197,[1]COUNTRY_INFO!K$9:K$197) -> 0 | AW118: =_xlfn.XLOOKUP($Y118,[1]COUNTRY_INFO!$Y$9:$Y$197,[1]COUNTRY_INFO!L$9:L$197) -> 1 | AX118: TRUE | AY118: TRUE | AZ118: TRUE | BA118: TRUE | BB118: TRUE | BE118: 99 | BF118: 1 | BG118: 1 | BH118: 0 | BI118: TRUE | BJ118: TRUE | BK118: TRUE | BL118: TRUE
A119: =IF(INTRO!$E$34<>0,INTRO!$E$34,"") -> Cameroon | B119: Littoral | C119: Nylon | D119: 450648 | E119: 48415.20468 | F119: =IF(INTRO!$E$49="","",ROUND($D119*INTRO!$E$49,0)) -> 119196 | G119: =IF(INTRO!$E$50="","",ROUND($D119*INTRO!$E$50,0)) -> 259438 | H119: 0 | I119: 4 | J119: 1 | K119: 0 | L119: 1 | M119: =IF(INTRO!$E$38="Endémique", IF($H119>0, IF($H119=4,"Inconnu", IF($H119=99,"Interrompu", $D119)), 0),"Non requis") -> 0 | N119: 0 | O119: =IF(INTRO!$E$42="Endémique", IF(AND($J119>1,$J119<5), IF($J119=4, "Inconnu", E119+F119), 0),"Non requis") -> 0 | P119: =IF(INTRO!$E$44="Endémique", IF(AND($K119>0,$K119<5), IF($K119=4,"Inconnu", IF($K119=1, $F119*0.33, IF($K119=2, $F119*0.5+$G119*0.2, SUM(F119:G119)))), 0),"Non requis") -> 0 | Q119: 0 | R119: 0 | S119: 1 | T119: 0 | V119: T3 (ALB/MBD) | Y119: 7524 | Z119: NYLON | AF119: ='T1'!M119 -> 0 | AG119: ='T2'!M119 -> 0 | AH119: =T3_R1!L119 -> 69450 | AI119: ='MDA3'!K119 -> 0 | AJ119: ='MDA3'!N119 -> 0 | AK119: 119196 | AL119: 58.26537803 | AN119: ='T1'!F119 -> 0 | AO119: =T3_R1!F119 -> 44896 | AS119: =_xlfn.XLOOKUP($Y119,[1]COUNTRY_INFO!$Y$9:$Y$197,[1]COUNTRY_INFO!H$9:H$197) -> 0 | AT119: =_xlfn.XLOOKUP($Y119,[1]COUNTRY_INFO!$Y$9:$Y$197,[1]COUNTRY_INFO!I$9:I$197) -> 4 | AU119: =_xlfn.XLOOKUP($Y119,[1]COUNTRY_INFO!$Y$9:$Y$197,[1]COUNTRY_INFO!J$9:J$197) -> 1 | AV119: =_xlfn.XLOOKUP($Y119,[1]COUNTRY_INFO!$Y$9:$Y$197,[1]COUNTRY_INFO!K$9:K$197) -> 0 | AW119: =_xlfn.XLOOKUP($Y119,[1]COUNTRY_INFO!$Y$9:$Y$197,[1]COUNTRY_INFO!L$9:L$197) -> 1 | AX119: TRUE | AY119: TRUE | AZ119: TRUE | BA119: TRUE | BB119: TRUE | BE119: 0 | BF119: 4 | BG119: 1 | BH119: 0 | BI119: TRUE | BJ119: TRUE | BK119: TRUE | BL119: TRUE
A120: =IF(INTRO!$E$34<>0,INTRO!$E$34,"") -> Cameroon | B120: Littoral | C120: Pouma | D120: 20571 | E120: 2241.7154 | F120: =IF(INTRO!$E$49="","",ROUND($D120*INTRO!$E$49,0)) -> 5441 | G120: =IF(INTRO!$E$50="","",ROUND($D120*INTRO!$E$50,0)) -> 11843 | H120: 99 | I120: 1 | J120: 1 | K120: 0 | L120: 1 | M120: =IF(INTRO!$E$38="Endémique", IF($H120>0, IF($H120=4,"Inconnu", IF($H120=99,"Interrompu", $D120)), 0),"Non requis") -> Interrompu | N120: 17419 | O120: =IF(INTRO!$E$42="Endémique", IF(AND($J120>1,$J120<5), IF($J120=4, "Inconnu", E120+F120), 0),"Non requis") -> 0 | P120: =IF(INTRO!$E$44="Endémique", IF(AND($K120>0,$K120<5), IF($K120=4,"Inconnu", IF($K120=1, $F120*0.33, IF($K120=2, $F120*0.5+$G120*0.2, SUM(F120:G120)))), 0),"Non requis") -> 0 | Q120: 0 | R120: 1 | S120: 1 | T120: 0 | U120: MDA3 (IVM) | V120: T3 (ALB/MBD) | Y120: 7525 | Z120: POUMA | AF120: ='T1'!M120 -> 0 | AG120: ='T2'!M120 -> 0 | AH120: =T3_R1!L120 -> 3882 | AI120: ='MDA3'!K120 -> 11648 | AJ120: ='MDA3'!N120 -> 0 | AK120: 5441 | AL120: 71.34717883 | AN120: ='T1'!F120 -> 0 | AO120: =T3_R1!F120 -> 44896 | AS120: =_xlfn.XLOOKUP($Y120,[1]COUNTRY_INFO!$Y$9:$Y$197,[1]COUNTRY_INFO!H$9:H$197) -> 99 | AT120: =_xlfn.XLOOKUP($Y120,[1]COUNTRY_INFO!$Y$9:$Y$197,[1]COUNTRY_INFO!I$9:I$197) -> 1 | AU120: =_xlfn.XLOOKUP($Y120,[1]COUNTRY_INFO!$Y$9:$Y$197,[1]COUNTRY_INFO!J$9:J$197) -> 1 | AV120: =_xlfn.XLOOKUP($Y120,[1]COUNTRY_INFO!$Y$9:$Y$197,[1]COUNTRY_INFO!K$9:K$197) -> 0 | AW120: =_xlfn.XLOOKUP($Y120,[1]COUNTRY_INFO!$Y$9:$Y$197,[1]COUNTRY_INFO!L$9:L$197) -> 1 | AX120: TRUE | AY120: TRUE | AZ120: TRUE | BA120: TRUE | BB120: TRUE | BE120: 99 | BF120: 1 | BG120: 1 | BH120: 0 | BI120: TRUE | BJ120: TRUE | BK120: TRUE | BL120: TRUE
A121: =IF(INTRO!$E$34<>0,INTRO!$E$34,"") -> Cameroon | B121: Littoral | C121: Yabassi | D121: 24246 | E121: 3285.575049 | F121: =IF(INTRO!$E$49="","",ROUND($D121*INTRO!$E$49,0)) -> 6413 | G121: =IF(INTRO!$E$50="","",ROUND($D121*INTRO!$E$50,0)) -> 13958 | H121: 99 | I121: 1 | J121: 2 | K121: 0 | L121: 1 | M121: =IF(INTRO!$E$38="Endémique", IF($H121>0, IF($H121=4,"Inconnu", IF($H121=99,"Interrompu", $D121)), 0),"Non requis") -> Interrompu | N121: 23139 | O121: =IF(INTRO!$E$42="Endémique", IF(AND($J121>1,$J121<5), IF($J121=4, "Inconnu", E121+F121), 0),"Non requis") -> 9698.575049 | P121: =IF(INTRO!$E$44="Endémique", IF(AND($K121>0,$K121<5), IF($K121=4,"Inconnu", IF($K121=1, $F121*0.33, IF($K121=2, $F121*0.5+$G121*0.2, SUM(F121:G121)))), 0),"Non requis") -> 0 | Q121: 0 | R121: 1 | S121: 1 | T121: 0 | U121: MDA3 (IVM) | V121: T3 (ALB/MBD) | Y121: 7526 | Z121: YABASSI | AF121: ='T1'!M121 -> 0 | AG121: ='T2'!M121 -> 0 | AH121: =T3_R1!L121 -> 6477 | AI121: ='MDA3'!K121 -> 18775 | AJ121: ='MDA3'!N121 -> 0 | AK121: 6413 | AL121: 100.9979729 | AN121: ='T1'!F121 -> 0 | AO121: =T3_R1!F121 -> 44896 | AS121: =_xlfn.XLOOKUP($Y121,[1]COUNTRY_INFO!$Y$9:$Y$197,[1]COUNTRY_INFO!H$9:H$197) -> 99 | AT121: =_xlfn.XLOOKUP($Y121,[1]COUNTRY_INFO!$Y$9:$Y$197,[1]COUNTRY_INFO!I$9:I$197) -> 1 | AU121: =_xlfn.XLOOKUP($Y121,[1]COUNTRY_INFO!$Y$9:$Y$197,[1]COUNTRY_INFO!J$9:J$197) -> 2 | AV121: =_xlfn.XLOOKUP($Y121,[1]COUNTRY_INFO!$Y$9:$Y$197,[1]COUNTRY_INFO!K$9:K$197) -> 0 | AW121: =_xlfn.XLOOKUP($Y121,[1]COUNTRY_INFO!$Y$9:$Y$197,[1]COUNTRY_INFO!L$9:L$197) -> 1 | AX121: TRUE | AY121: TRUE | AZ121: TRUE | BA121: TRUE | BB121: TRUE | BE121: 99 | BF121: 1 | BG121: 2 | BH121: 0 | BI121: TRUE | BJ121: TRUE | BK121: TRUE | BL121: TRUE
A122: =IF(INTRO!$E$34<>0,INTRO!$E$34,"") -> Cameroon | B122: Nord | C122: Bibemi | D122: 170567 | E122: 41437.62183 | F122: =IF(INTRO!$E$49="","",ROUND($D122*INTRO!$E$49,0)) -> 45115 | G122: =IF(INTRO!$E$50="","",ROUND($D122*INTRO!$E$50,0)) -> 98195 | H122: 99 | I122: 4 | J122: 1 | K122: 2 | L122: 0 | M122: =IF(INTRO!$E$38="Endémique", IF($H122>0, IF($H122=4,"Inconnu", IF($H122=99,"Interrompu", $D122)), 0),"Non requis") -> Interrompu | N122: 0 | O122: =IF(INTRO!$E$42="Endémique", IF(AND($J122>1,$J122<5), IF($J122=4, "Inconnu", E122+F122), 0),"Non requis") -> 0 | P122: =IF(INTRO!$E$44="Endémique", IF(AND($K122>0,$K122<5), IF($K122=4,"Inconnu", IF($K122=1, $F122*0.33, IF($K122=2, $F122*0.5+$G122*0.2, SUM(F122:G122)))), 0),"Non requis") -> 42196.5 | Q122: 0 | R122: 0 | S122: 1 | T122: 1 | V122: T1 (PZQ+ALB/MBD) | Y122: 7527 | Z122: BIBEMI | AF122: ='T1'!M122 -> 42261 | AG122: ='T2'!M122 -> 0 | AH122: =T3_R1!L122 -> 4681 | AI122: ='MDA3'!K122 -> 0 | AJ122: ='MDA3'!N122 -> 0 | AK122: 45115 | AL122: 104.0496509 | AN122: ='T1'!F122 -> DECEMBRE 2022 | AO122: =T3_R1!F122 -> 44896 | AP122: =AN122=AO122 -> FALSE | AS122: =_xlfn.XLOOKUP($Y122,[1]COUNTRY_INFO!$Y$9:$Y$197,[1]COUNTRY_INFO!H$9:H$197) -> 99 | AT122: =_xlfn.XLOOKUP($Y122,[1]COUNTRY_INFO!$Y$9:$Y$197,[1]COUNTRY_INFO!I$9:I$197) -> 4 | AU122: =_xlfn.XLOOKUP($Y122,[1]COUNTRY_INFO!$Y$9:$Y$197,[1]COUNTRY_INFO!J$9:J$197) -> 1 | AV122: =_xlfn.XLOOKUP($Y122,[1]COUNTRY_INFO!$Y$9:$Y$197,[1]COUNTRY_INFO!K$9:K$197) -> 2 | AW122: =_xlfn.XLOOKUP($Y122,[1]COUNTRY_INFO!$Y$9:$Y$197,[1]COUNTRY_INFO!L$9:L$197) -> 0 | AX122: TRUE | AY122: TRUE | AZ122: TRUE | BA122: TRUE | BB122: TRUE | BE122: 99 | BF122: 4 | BG122: 1 | BH122: 2 | BI122: TRUE | BJ122: TRUE | BK122: TRUE | BL122: TRUE
A123: =IF(INTRO!$E$34<>0,INTRO!$E$34,"") -> Cameroon | B123: Nord | C123: Figuil | D123: 105858 | E123: 18956.14035 | F123: =IF(INTRO!$E$49="","",ROUND($D123*INTRO!$E$49,0)) -> 27999 | G123: =IF(INTRO!$E$50="","",ROUND($D123*INTRO!$E$50,0)) -> 60942 | H123: 99 | I123: 4 | J123: 1 | K123: 2 | L123: 0 | M123: =IF(INTRO!$E$38="Endémique", IF($H123>0, IF($H123=4,"Inconnu", IF($H123=99,"Interrompu", $D123)), 0),"Non requis") -> Interrompu | N123: 0 | O123: =IF(INTRO!$E$42="Endémique", IF(AND($J123>1,$J123<5), IF($J123=4, "Inconnu", E123+F123), 0),"Non requis") -> 0 | P123: =IF(INTRO!$E$44="Endémique", IF(AND($K123>0,$K123<5), IF($K123=4,"Inconnu", IF($K123=1, $F123*0.33, IF($K123=2, $F123*0.5+$G123*0.2, SUM(F123:G123)))), 0),"Non requis") -> 26187.9 | Q123: 0 | R123: 0 | S123: 1 | T123: 0 | V123: T3 (ALB/MBD) | Y123: 7528 | Z123: FIGUIL | AF123: ='T1'!M123 -> 0 | AG123: ='T2'!M123 -> 0 | AH123: =T3_R1!L123 -> 29973 | AI123: ='MDA3'!K123 -> 0 | AJ123: ='MDA3'!N123 -> 0 | AK123: 27999 | AL123: 107.0502518 | AN123: ='T1'!F123 -> 0 | AO123: =T3_R1!F123 -> 44896 | AP123: =AN123=AO123 -> FALSE | AS123: =_xlfn.XLOOKUP($Y123,[1]COUNTRY_INFO!$Y$9:$Y$197,[1]COUNTRY_INFO!H$9:H$197) -> 99 | AT123: =_xlfn.XLOOKUP($Y123,[1]COUNTRY_INFO!$Y$9:$Y$197,[1]COUNTRY_INFO!I$9:I$197) -> 4 | AU123: =_xlfn.XLOOKUP($Y123,[1]COUNTRY_INFO!$Y$9:$Y$197,[1]COUNTRY_INFO!J$9:J$197) -> 1 | AV123: =_xlfn.XLOOKUP($Y123,[1]COUNTRY_INFO!$Y$9:$Y$197,[1]COUNTRY_INFO!K$9:K$197) -> 2 | AW123: =_xlfn.XLOOKUP($Y123,[1]COUNTRY_INFO!$Y$9:$Y$197,[1]COUNTRY_INFO!L$9:L$197) -> 0 | AX123: TRUE | AY123: TRUE | AZ123: TRUE | BA123: TRUE | BB123: TRUE | BE123: 99 | BF123: 4 | BG123: 1 | BH123: 2 | BI123: TRUE | BJ123: TRUE | BK123: TRUE | BL123: TRUE
A124: =IF(INTRO!$E$34<>0,INTRO!$E$34,"") -> Cameroon | B124: Nord | C124: Garoua I | D124: 305348 | E124: 63261.20858 | F124: =IF(INTRO!$E$49="","",ROUND($D124*INTRO!$E$49,0)) -> 80765 | G124: =IF(INTRO!$E$50="","",ROUND($D124*INTRO!$E$50,0)) -> 175789 | H124: 99 | I124: 4 | J124: 1 | K124: 2 | L124: 0 | M124: =IF(INTRO!$E$38="Endémique", IF($H124>0, IF($H124=4,"Inconnu", IF($H124=99,"Interrompu", $D124)), 0),"Non requis") -> Interrompu | N124: 0 | O124: =IF(INTRO!$E$42="Endémique", IF(AND($J124>1,$J124<5), IF($J124=4, "Inconnu", E124+F124), 0),"Non requis") -> 0 | P124: =IF(INTRO!$E$44="Endémique", IF(AND($K124>0,$K124<5), IF($K124=4,"Inconnu", IF($K124=1, $F124*0.33, IF($K124=2, $F124*0.5+$G124*0.2, SUM(F124:G124)))), 0),"Non requis") -> 75540.3 | Q124: 0 | R124: 0 | S124: 1 | T124: 0 | V124: T3 (ALB/MBD) | Y124: 7529 | Z124: GAROUA I | AF124: ='T1'!M124 -> 0 | AG124: ='T2'!M124 -> 0 | AH124: =T3_R1!L124 -> 78027 | AI124: ='MDA3'!K124 -> 0 | AJ124: ='MDA3'!N124 -> 0 | AK124: 80765 | AL124: 96.60991766 | AN124: ='T1'!F124 -> 0 | AO124: =T3_R1!F124 -> 44896 | AP124: =AN124=AO124 -> FALSE | AS124: =_xlfn.XLOOKUP($Y124,[1]COUNTRY_INFO!$Y$9:$Y$197,[1]COUNTRY_INFO!H$9:H$197) -> 99 | AT124: =_xlfn.XLOOKUP($Y124,[1]COUNTRY_INFO!$Y$9:$Y$197,[1]COUNTRY_INFO!I$9:I$197) -> 4 | AU124: =_xlfn.XLOOKUP($Y124,[1]COUNTRY_INFO!$Y$9:$Y$197,[1]COUNTRY_INFO!J$9:J$197) -> 1 | AV124: =_xlfn.XLOOKUP($Y124,[1]COUNTRY_INFO!$Y$9:$Y$197,[1]COUNTRY_INFO!K$9:K$197) -> 2 | AW124: =_xlfn.XLOOKUP($Y124,[1]COUNTRY_INFO!$Y$9:$Y$197,[1]COUNTRY_INFO!L$9:L$197) -> 0 | AX124: TRUE | AY124: TRUE | AZ124: TRUE | BA124: TRUE | BB124: TRUE | BE124: 99 | BF124: 4 | BG124: 1 | BH124: 2 | BI124: TRUE | BJ124: TRUE | BK124: TRUE | BL124: TRUE
A125: =IF(INTRO!$E$34<>0,INTRO!$E$34,"") -> Cameroon | B125: Nord | C125: Garoua II | D125: 332999 | E125: 67602.33918 | F125: =IF(INTRO!$E$49="","",ROUND($D125*INTRO!$E$49,0)) -> 88078 | G125: =IF(INTRO!$E$50="","",ROUND($D125*INTRO!$E$50,0)) -> 191708 | H125: 99 | I125: 4 | J125: 0 | K125: 2 | L125: 0 | M125: =IF(INTRO!$E$38="Endémique", IF($H125>0, IF($H125=4,"Inconnu", IF($H125=99,"Interrompu", $D125)), 0),"Non requis") -> Interrompu | N125: 0 | O125: =IF(INTRO!$E$42="Endémique", IF(AND($J125>1,$J125<5), IF($J125=4, "Inconnu", E125+F125), 0),"Non requis") -> 0 | P125: =IF(INTRO!$E$44="Endémique", IF(AND($K125>0,$K125<5), IF($K125=4,"Inconnu", IF($K125=1, $F125*0.33, IF($K125=2, $F125*0.5+$G125*0.2, SUM(F125:G125)))), 0),"Non requis") -> 82380.6 | Q125: 0 | R125: 0 | S125: 1 | T125: 0 | V125: T3 (ALB/MBD) | Y125: 7530 | Z125: GAROUA II | AF125: ='T1'!M125 -> 0 | AG125: ='T2'!M125 -> 0 | AH125: =T3_R1!L125 -> 88819 | AI125: ='MDA3'!K125 -> 0 | AJ125: ='MDA3'!N125 -> 0 | AK125: 88078 | AL125: 100.8412998 | AN125: ='T1'!F125 -> 0 | AO125: =T3_R1!F125 -> 44896 | AP125: =AN125=AO125 -> FALSE | AS125: =_xlfn.XLOOKUP($Y125,[1]COUNTRY_INFO!$Y$9:$Y$197,[1]COUNTRY_INFO!H$9:H$197) -> 99 | AT125: =_xlfn.XLOOKUP($Y125,[1]COUNTRY_INFO!$Y$9:$Y$197,[1]COUNTRY_INFO!I$9:I$197) -> 4 | AU125: =_xlfn.XLOOKUP($Y125,[1]COUNTRY_INFO!$Y$9:$Y$197,[1]COUNTRY_INFO!J$9:J$197) -> 0 | AV125: =_xlfn.XLOOKUP($Y125,[1]COUNTRY_INFO!$Y$9:$Y$197,[1]COUNTRY_INFO!K$9:K$197) -> 2 | AW125: =_xlfn.XLOOKUP($Y125,[1]COUNTRY_INFO!$Y$9:$Y$197,[1]COUNTRY_INFO!L$9:L$197) -> 0 | AX125: TRUE | AY125: TRUE | AZ125: TRUE | BA125: TRUE | BB125: TRUE | BE125: 99 | BF125: 4 | BG125: 0 | BH125: 2 | BI125: TRUE | BJ125: TRUE | BK125: TRUE | BL125: TRUE
A126: =IF(INTRO!$E$34<>0,INTRO!$E$34,"") -> Cameroon | B126: Nord | C126: Gaschiga | D126: 156331 | E126: 33857.69981 | F126: =IF(INTRO!$E$49="","",ROUND($D126*INTRO!$E$49,0)) -> 41350 | G126: =IF(INTRO!$E$50="","",ROUND($D126*INTRO!$E$50,0)) -> 90000 | H126: 99 | I126: 4 | J126: 0 | K126: 1 | L126: 0 | M126: =IF(INTRO!$E$38="Endémique", IF($H126>0, IF($H126=4,"Inconnu", IF($H126=99,"Interrompu", $D126)), 0),"Non requis") -> Interrompu | N126: 0 | O126: =IF(INTRO!$E$42="Endémique", IF(AND($J126>1,$J126<5), IF($J126=4, "Inconnu", E126+F126), 0),"Non requis") -> 0 | P126: =IF(INTRO!$E$44="Endémique", IF(AND($K126>0,$K126<5), IF($K126=4,"Inconnu", IF($K126=1, $F126*0.33, IF($K126=2, $F126*0.5+$G126*0.2, SUM(F126:G126)))), 0),"Non requis") -> 13645.5 | Q126: 0 | R126: 0 | S126: 1 | T126: 0 | V126: T3 (ALB/MBD) | Y126: 7531 | Z126: GASCHIGA | AF126: ='T1'!M126 -> 0 | AG126: ='T2'!M126 -> 0 | AH126: =T3_R1!L126 -> 47991 | AI126: ='MDA3'!K126 -> 0 | AJ126: ='MDA3'!N126 -> 0 | AK126: 41350 | AL126: 116.0604595 | AN126: ='T1'!F126 -> 0 | AO126: =T3_R1!F126 -> 44896 | AS126: =_xlfn.XLOOKUP($Y126,[1]COUNTRY_INFO!$Y$9:$Y$197,[1]COUNTRY_INFO!H$9:H$197) -> 99 | AT126: =_xlfn.XLOOKUP($Y126,[1]COUNTRY_INFO!$Y$9:$Y$197,[1]COUNTRY_INFO!I$9:I$197) -> 4 | AU126: =_xlfn.XLOOKUP($Y126,[1]COUNTRY_INFO!$Y$9:$Y$197,[1]COUNTRY_INFO!J$9:J$197) -> 0 | AV126: =_xlfn.XLOOKUP($Y126,[1]COUNTRY_INFO!$Y$9:$Y$197,[1]COUNTRY_INFO!K$9:K$197) -> 1 | AW126: =_xlfn.XLOOKUP($Y126,[1]COUNTRY_INFO!$Y$9:$Y$197,[1]COUNTRY_INFO!L$9:L$197) -> 0 | AX126: TRUE | AY126: TRUE | AZ126: TRUE | BA126: TRUE | BB126: TRUE | BE126: 99 | BF126: 4 | BG126: 0 | BH126: 1 | BI126: TRUE | BJ126: TRUE | BK126: TRUE | BL126: TRUE
A127: =IF(INTRO!$E$34<>0,INTRO!$E$34,"") -> Cameroon | B127: Nord | C127: Golombe | D127: 70226 | E127: 23521.4425 | F127: =IF(INTRO!$E$49="","",ROUND($D127*INTRO!$E$49,0)) -> 18575 | G127: =IF(INTRO!$E$50="","",ROUND($D127*INTRO!$E$50,0)) -> 40429 | H127: 99 | I127: 4 | J127: 0 | K127: 2 | L127: 0 | M127: =IF(INTRO!$E$38="Endémique", IF($H127>0, IF($H127=4,"Inconnu", IF($H127=99,"Interrompu", $D127)), 0),"Non requis") -> Interrompu | N127: 0 | O127: =IF(INTRO!$E$42="Endémique", IF(AND($J127>1,$J127<5), IF($J127=4, "Inconnu", E127+F127), 0),"Non requis") -> 0 | P127: =IF(INTRO!$E$44="Endémique", IF(AND($K127>0,$K127<5), IF($K127=4,"Inconnu", IF($K127=1, $F127*0.33, IF($K127=2, $F127*0.5+$G127*0.2, SUM(F127:G127)))), 0),"Non requis") -> 17373.3 | Q127: 0 | R127: 0 | S127: 1 | T127: 1 | V127: T1 (PZQ+ALB/MBD) | Y127: 7532 | Z127: GOLOMBE | AF127: ='T1'!M127 -> 19329 | AG127: ='T2'!M127 -> 0 | AH127: =T3_R1!L127 -> 1107 | AI127: ='MDA3'!K127 -> 0 | AJ127: ='MDA3'!N127 -> 0 | AK127: 18575 | AL127: 110.0188425 | AN127: ='T1'!F127 -> DECEMBRE 2022 | AO127: =T3_R1!F127 -> 44896 | AP127: =AN127=AO127 -> FALSE | AS127: =_xlfn.XLOOKUP($Y127,[1]COUNTRY_INFO!$Y$9:$Y$197,[1]COUNTRY_INFO!H$9:H$197) -> 99 | AT127: =_xlfn.XLOOKUP($Y127,[1]COUNTRY_INFO!$Y$9:$Y$197,[1]COUNTRY_INFO!I$9:I$197) -> 4 | AU127: =_xlfn.XLOOKUP($Y127,[1]COUNTRY_INFO!$Y$9:$Y$197,[1]COUNTRY_INFO!J$9:J$197) -> 0 | AV127: =_xlfn.XLOOKUP($Y127,[1]COUNTRY_INFO!$Y$9:$Y$197,[1]COUNTRY_INFO!K$9:K$197) -> 2 | AW127: =_xlfn.XLOOKUP($Y127,[1]COUNTRY_INFO!$Y$9:$Y$197,[1]COUNTRY_INFO!L$9:L$197) -> 0 | AX127: TRUE | AY127: TRUE | AZ127: TRUE | BA127: TRUE | BB127: TRUE | BE127: 99 | BF127: 4 | BG127: 0 | BH127: 2 | BI127: TRUE | BJ127: TRUE | BK127: TRUE | BL127: TRUE
A128: =IF(INTRO!$E$34<>0,INTRO!$E$34,"") -> Cameroon | B128: Nord | C128: Guider | D128: 250562 | E128: 63490.25341 | F128: =IF(INTRO!$E$49="","",ROUND($D128*INTRO!$E$49,0)) -> 66274 | G128: =IF(INTRO!$E$50="","",ROUND($D128*INTRO!$E$50,0)) -> 144249 | H128: 99 | I128: 4 | J128: 0 | K128: 2 | L128: 0 | M128: =IF(INTRO!$E$38="Endémique", IF($H128>0, IF($H128=4,"Inconnu", IF($H128=99,"Interrompu", $D128)), 0),"Non requis") -> Interrompu | N128: 0 | O128: =IF(INTRO!$E$42="Endémique", IF(AND($J128>1,$J128<5), IF($J128=4, "Inconnu", E128+F128), 0),"Non requis") -> 0 | P128: =IF(INTRO!$E$44="Endémique", IF(AND($K128>0,$K128<5), IF($K128=4,"Inconnu", IF($K128=1, $F128*0.33, IF($K128=2, $F128*0.5+$G128*0.2, SUM(F128:G128)))), 0),"Non requis") -> 61986.8 | Q128: 0 | R128: 0 | S128: 1 | T128: 1 | V128: T1 (PZQ+ALB/MBD) | Y128: 7533 | Z128: GUIDER | AF128: ='T1'!M128 -> 56322 | AG128: ='T2'!M128 -> 0 | AH128: =T3_R1!L128 -> 3387 | AI128: ='MDA3'!K128 -> 0 | AJ128: ='MDA3'!N128 -> 0 | AK128: 66274 | AL128: 90.09415457 | AN128: ='T1'!F128 -> DECEMBRE 2022 | AO128: =T3_R1!F128 -> 44896 | AP128: FALSE | AS128: =_xlfn.XLOOKUP($Y128,[1]COUNTRY_INFO!$Y$9:$Y$197,[1]COUNTRY_INFO!H$9:H$197) -> 99 | AT128: =_xlfn.XLOOKUP($Y128,[1]COUNTRY_INFO!$Y$9:$Y$197,[1]COUNTRY_INFO!I$9:I$197) -> 4 | AU128: =_xlfn.XLOOKUP($Y128,[1]COUNTRY_INFO!$Y$9:$Y$197,[1]COUNTRY_INFO!J$9:J$197) -> 0 | AV128: =_xlfn.XLOOKUP($Y128,[1]COUNTRY_INFO!$Y$9:$Y$197,[1]COUNTRY_INFO!K$9:K$197) -> 2 | AW128: =_xlfn.XLOOKUP($Y128,[1]COUNTRY_INFO!$Y$9:$Y$197,[1]COUNTRY_INFO!L$9:L$197) -> 0 | AX128: TRUE | AY128: TRUE | AZ128: TRUE | BA128: TRUE | BB128: TRUE | BE128: 99 | BF128: 4 | BG128: 0 | BH128: 2 | BI128: TRUE | BJ128: TRUE | BK128: TRUE | BL128: TRUE
A129: =IF(INTRO!$E$34<>0,INTRO!$E$34,"") -> Cameroon | B129: Nord | C129: Lagdo | D129: 231598 | E129: 37091.61793 | F129: =IF(INTRO!$E$49="","",ROUND($D129*INTRO!$E$49,0)) -> 61258 | G129: =IF(INTRO!$E$50="","",ROUND($D129*INTRO!$E$50,0)) -> 133331 | H129: 99 | I129: 1 | J129: 0 | K129: 2 | L129: 0 | M129: =IF(INTRO!$E$38="Endémique", IF($H129>0, IF($H129=4,"Inconnu", IF($H129=99,"Interrompu", $D129)), 0),"Non requis") -> Interrompu | N129: 191026 | O129: =IF(INTRO!$E$42="Endémique", IF(AND($J129>1,$J129<5), IF($J129=4, "Inconnu", E129+F129), 0),"Non requis") -> 0 | P129: =IF(INTRO!$E$44="Endémique", IF(AND($K129>0,$K129<5), IF($K129=4,"Inconnu", IF($K129=1, $F129*0.33, IF($K129=2, $F129*0.5+$G129*0.2, SUM(F129:G129)))), 0),"Non requis") -> 57295.2 | Q129: 0 | R129: 1 | S129: 1 | T129: 1 | U129: MDA3 (IVM) | V129: T1 (PZQ+ALB/MBD) | Y129: 7534 | Z129: LAGDO | AF129: ='T1'!M129 -> 61930 | AG129: ='T2'!M129 -> 0 | AH129: =T3_R1!L129 -> 0 | AI129: ='MDA3'!K129 -> 119339 | AJ129: ='MDA3'!N129 -> 0 | AK129: 61258 | AL129: 101.0969996 | AN129: ='T1'!F129 -> DECEMBRE 2022 | AO129: =T3_R1!F129 -> 44896 | AP129: FALSE | AS129: =_xlfn.XLOOKUP($Y129,[1]COUNTRY_INFO!$Y$9:$Y$197,[1]COUNTRY_INFO!H$9:H$197) -> 99 | AT129: =_xlfn.XLOOKUP($Y129,[1]COUNTRY_INFO!$Y$9:$Y$197,[1]COUNTRY_INFO!I$9:I$197) -> 1 | AU129: =_xlfn.XLOOKUP($Y129,[1]COUNTRY_INFO!$Y$9:$Y$197,[1]COUNTRY_INFO!J$9:J$197) -> 0 | AV129: =_xlfn.XLOOKUP($Y129,[1]COUNTRY_INFO!$Y$9:$Y$197,[1]COUNTRY_INFO!K$9:K$197) -> 2 | AW129: =_xlfn.XLOOKUP($Y129,[1]COUNTRY_INFO!$Y$9:$Y$197,[1]COUNTRY_INFO!L$9:L$197) -> 0 | AX129: TRUE | AY129: TRUE | AZ129: TRUE | BA129: TRUE | BB129: TRUE | BE129: 99 | BF129: 1 | BG129: 0 | BH129: 2 | BI129: TRUE | BJ129: TRUE | BK129: TRUE | BL129: TRUE
A130: =IF(INTRO!$E$34<>0,INTRO!$E$34,"") -> Cameroon | B130: Nord | C130: Mayo Oulo | D130: 152493 | E130: 54264.13255 | F130: =IF(INTRO!$E$49="","",ROUND($D130*INTRO!$E$49,0)) -> 40334 | G130: =IF(INTRO!$E$50="","",ROUND($D130*INTRO!$E$50,0)) -> 87790 | H130: 99 | I130: 4 | J130: 0 | K130: 2 | L130: 0 | M130: =IF(INTRO!$E$38="Endémique", IF($H130>0, IF($H130=4,"Inconnu", IF($H130=99,"Interrompu", $D130)), 0),"Non requis") -> Interrompu | N130: 0 | O130: =IF(INTRO!$E$42="Endémique", IF(AND($J130>1,$J130<5), IF($J130=4, "Inconnu", E130+F130), 0),"Non requis") -> 0 | P130: =IF(INTRO!$E$44="Endémique", IF(AND($K130>0,$K130<5), IF($K130=4,"Inconnu", IF($K130=1, $F130*0.33, IF($K130=2, $F130*0.5+$G130*0.2, SUM(F130:G130)))), 0),"Non requis") -> 37725 | Q130: 0 | R130: 0 | S130: 1 | T130: 1 | V130: T1 (PZQ+ALB/MBD) | Y130: 7535 | Z130: MAYO OULO | AF130: ='T1'!M130 -> 34673 | AG130: ='T2'!M130 -> 0 | AH130: =T3_R1!L130 -> 4680 | AI130: ='MDA3'!K130 -> 0 | AJ130: ='MDA3'!N130 -> 0 | AK130: 40334 | AL130: 97.5678088 | AN130: ='T1'!F130 -> DECEMBRE 2022 | AO130: =T3_R1!F130 -> 44896 | AP130: FALSE | AS130: =_xlfn.XLOOKUP($Y130,[1]COUNTRY_INFO!$Y$9:$Y$197,[1]COUNTRY_INFO!H$9:H$197) -> 99 | AT130: =_xlfn.XLOOKUP($Y130,[1]COUNTRY_INFO!$Y$9:$Y$197,[1]COUNTRY_INFO!I$9:I$197) -> 4 | AU130: =_xlfn.XLOOKUP($Y130,[1]COUNTRY_INFO!$Y$9:$Y$197,[1]COUNTRY_INFO!J$9:J$197) -> 0 | AV130: =_xlfn.XLOOKUP($Y130,[1]COUNTRY_INFO!$Y$9:$Y$197,[1]COUNTRY_INFO!K$9:K$197) -> 2 | AW130: =_xlfn.XLOOKUP($Y130,[1]COUNTRY_INFO!$Y$9:$Y$197,[1]COUNTRY_INFO!L$9:L$197) -> 0 | AX130: TRUE | AY130: TRUE | AZ130: TRUE | BA130: TRUE | BB130: TRUE | BE130: 99 | BF130: 4 | BG130: 0 | BH130: 2 | BI130: TRUE | BJ130: TRUE | BK130: TRUE | BL130: TRUE
A131: =IF(INTRO!$E$34<>0,INTRO!$E$34,"") -> Cameroon | B131: Nord | C131: Ngong | D131: 288416 | E131: 75564.32749 | F131: =IF(INTRO!$E$49="","",ROUND($D131*INTRO!$E$49,0)) -> 76286 | G131: =IF(INTRO!$E$50="","",ROUND($D131*INTRO!$E$50,0)) -> 166041 | H131: 99 | I131: 1 | J131: 1 | K131: 1 | L131: 0 | M131: =IF(INTRO!$E$38="Endémique", IF($H131>0, IF($H131=4,"Inconnu", IF($H131=99,"Interrompu", $D131)), 0),"Non requis") -> Interrompu | N131: 237891 | O131: =IF(INTRO!$E$42="Endémique", IF(AND($J131>1,$J131<5), IF($J131=4, "Inconnu", E131+F131), 0),"Non requis") -> 0 | P131: =IF(INTRO!$E$44="Endémique", IF(AND($K131>0,$K131<5), IF($K131=4,"Inconnu", IF($K131=1, $F131*0.33, IF($K131=2, $F131*0.5+$G131*0.2, SUM(F131:G131)))), 0),"Non requis") -> 25174.38 | Q131: 0 | R131: 1 | S131: 1 | T131: 1 | U131: MDA3 (IVM) | V131: T1 (PZQ+ALB/MBD) | Y131: 7536 | Z131: NGONG | AF131: ='T1'!M131 -> 70011 | AG131: ='T2'!M131 -> 0 | AH131: =T3_R1!L131 -> 3147 | AI131: ='MDA3'!K131 -> 63523 | AJ131: ='MDA3'!N131 -> 0 | AK131: 76286 | AL131: 95.89964083 | AN131: ='T1'!F131 -> DECEMBRE 2022 | AO131: =T3_R1!F131 -> 44896 | AP131: FALSE | AS131: =_xlfn.XLOOKUP($Y131,[1]COUNTRY_INFO!$Y$9:$Y$197,[1]COUNTRY_INFO!H$9:H$197) -> 99 | AT131: =_xlfn.XLOOKUP($Y131,[1]COUNTRY_INFO!$Y$9:$Y$197,[1]COUNTRY_INFO!I$9:I$197) -> 1 | AU131: =_xlfn.XLOOKUP($Y131,[1]COUNTRY_INFO!$Y$9:$Y$197,[1]COUNTRY_INFO!J$9:J$197) -> 1 | AV131: =_xlfn.XLOOKUP($Y131,[1]COUNTRY_INFO!$Y$9:$Y$197,[1]COUNTRY_INFO!K$9:K$197) -> 1 | AW131: =_xlfn.XLOOKUP($Y131,[1]COUNTRY_INFO!$Y$9:$Y$197,[1]COUNTRY_INFO!L$9:L$197) -> 0 | AX131: TRUE | AY131: TRUE | AZ131: TRUE | BA131: TRUE | BB131: TRUE | BE131: 99 | BF131: 1 | BG131: 1 | BH131: 1 | BI131: TRUE | BJ131: TRUE | BK131: TRUE | BL131: TRUE
A132: =IF(INTRO!$E$34<>0,INTRO!$E$34,"") -> Cameroon | B132: Nord | C132: Pitoa | D132: 167298 | E132: 36941.52047 | F132: =IF(INTRO!$E$49="","",ROUND($D132*INTRO!$E$49,0)) -> 44250 | G132: =IF(INTRO!$E$50="","",ROUND($D132*INTRO!$E$50,0)) -> 96313 | H132: 99 | I132: 4 | J132: 0 | K132: 2 | L132: 0 | M132: =IF(INTRO!$E$38="Endémique", IF($H132>0, IF($H132=4,"Inconnu", IF($H132=99,"Interrompu", $D132)), 0),"Non requis") -> Interrompu | N132: 0 | O132: =IF(INTRO!$E$42="Endémique", IF(AND($J132>1,$J132<5), IF($J132=4, "Inconnu", E132+F132), 0),"Non requis") -> 0 | P132: =IF(INTRO!$E$44="Endémique", IF(AND($K132>0,$K132<5), IF($K132=4,"Inconnu", IF($K132=1, $F132*0.33, IF($K132=2, $F132*0.5+$G132*0.2, SUM(F132:G132)))), 0),"Non requis") -> 41387.6 | Q132: 0 | R132: 0 | S132: 1 | T132: 1 | V132: T1 (PZQ+ALB/MBD) | Y132: 7537 | Z132: PITOA | AF132: ='T1'!M132 -> 50502 | AG132: ='T2'!M132 -> 0 | AH132: =T3_R1!L132 -> 849 | AI132: ='MDA3'!K132 -> 0 | AJ132: ='MDA3'!N132 -> 0 | AK132: 44250 | AL132: 116.0474576 | AN132: ='T1'!F132 -> DECEMBRE 2022 | AO132: =T3_R1!F132 -> 44896 | AP132: FALSE | AS132: =_xlfn.XLOOKUP($Y132,[1]COUNTRY_INFO!$Y$9:$Y$197,[1]COUNTRY_INFO!H$9:H$197) -> 99 | AT132: =_xlfn.XLOOKUP($Y132,[1]COUNTRY_INFO!$Y$9:$Y$197,[1]COUNTRY_INFO!I$9:I$197) -> 4 | AU132: =_xlfn.XLOOKUP($Y132,[1]COUNTRY_INFO!$Y$9:$Y$197,[1]COUNTRY_INFO!J$9:J$197) -> 0 | AV132: =_xlfn.XLOOKUP($Y132,[1]COUNTRY_INFO!$Y$9:$Y$197,[1]COUNTRY_INFO!K$9:K$197) -> 2 | AW132: =_xlfn.XLOOKUP($Y132,[1]COUNTRY_INFO!$Y$9:$Y$197,[1]COUNTRY_INFO!L$9:L$197) -> 0 | AX132: TRUE | AY132: TRUE | AZ132: TRUE | BA132: TRUE | BB132: TRUE | BE132: 99 | BF132: 4 | BG132: 0 | BH132: 2 | BI132: TRUE | BJ132: TRUE | BK132: TRUE | BL132: TRUE
A133: =IF(INTRO!$E$34<>0,INTRO!$E$34,"") -> Cameroon | B133: Nord | C133: Poli | D133: 121074 | E133: 27249.51267 | F133: =IF(INTRO!$E$49="","",ROUND($D133*INTRO!$E$49,0)) -> 32024 | G133: =IF(INTRO!$E$50="","",ROUND($D133*INTRO!$E$50,0)) -> 69702 | H133: 99 | I133: 1 | J133: 1 | K133: 2 | L133: 0 | M133: =IF(INTRO!$E$38="Endémique", IF($H133>0, IF($H133=4,"Inconnu", IF($H133=99,"Interrompu", $D133)), 0),"Non requis") -> Interrompu | N133: 121660 | O133: =IF(INTRO!$E$42="Endémique", IF(AND($J133>1,$J133<5), IF($J133=4, "Inconnu", E133+F133), 0),"Non requis") -> 0 | P133: =IF(INTRO!$E$44="Endémique", IF(AND($K133>0,$K133<5), IF($K133=4,"Inconnu", IF($K133=1, $F133*0.33, IF($K133=2, $F133*0.5+$G133*0.2, SUM(F133:G133)))), 0),"Non requis") -> 29952.4 | Q133: 0 | R133: 1 | S133: 1 | T133: 1 | U133: MDA3 (IVM) | V133: T1 (PZQ+ALB/MBD) | Y133: 7538 | Z133: POLI | AF133: ='T1'!M133 -> 26753 | AG133: ='T2'!M133 -> 0 | AH133: =T3_R1!L133 -> 6051 | AI133: ='MDA3'!K133 -> 106666 | AJ133: ='MDA3'!N133 -> 0 | AK133: 32024 | AL133: 102.4356732 | AN133: ='T1'!F133 -> DECEMBRE 2022 | AO133: =T3_R1!F133 -> 44896 | AP133: FALSE | AS133: =_xlfn.XLOOKUP($Y133,[1]COUNTRY_INFO!$Y$9:$Y$197,[1]COUNTRY_INFO!H$9:H$197) -> 99 | AT133: =_xlfn.XLOOKUP($Y133,[1]COUNTRY_INFO!$Y$9:$Y$197,[1]COUNTRY_INFO!I$9:I$197) -> 1 | AU133: =_xlfn.XLOOKUP($Y133,[1]COUNTRY_INFO!$Y$9:$Y$197,[1]COUNTRY_INFO!J$9:J$197) -> 1 | AV133: =_xlfn.XLOOKUP($Y133,[1]COUNTRY_INFO!$Y$9:$Y$197,[1]COUNTRY_INFO!K$9:K$197) -> 2 | AW133: =_xlfn.XLOOKUP($Y133,[1]COUNTRY_INFO!$Y$9:$Y$197,[1]COUNTRY_INFO!L$9:L$197) -> 0 | AX133: TRUE | AY133: TRUE | AZ133: TRUE | BA133: TRUE | BB133: TRUE | BE133: 99 | BF133: 1 | BG133: 1 | BH133: 2 | BI133: TRUE | BJ133: TRUE | BK133: TRUE | BL133: TRUE
A134: =IF(INTRO!$E$34<>0,INTRO!$E$34,"") -> Cameroon | B134: Nord | C134: Rey Bouba | D134: 196345 | E134: 50493.17739 | F134: =IF(INTRO!$E$49="","",ROUND($D134*INTRO!$E$49,0)) -> 51933 | G134: =IF(INTRO!$E$50="","",ROUND($D134*INTRO!$E$50,0)) -> 113036 | H134: 99 | I134: 1 | J134: 1 | K134: 2 | L134: 1 | M134: =IF(INTRO!$E$38="Endémique", IF($H134>0, IF($H134=4,"Inconnu", IF($H134=99,"Interrompu", $D134)), 0),"Non requis") -> Interrompu | N134: 161949 | O134: =IF(INTRO!$E$42="Endémique", IF(AND($J134>1,$J134<5), IF($J134=4, "Inconnu", E134+F134), 0),"Non requis") -> 0 | P134: =IF(INTRO!$E$44="Endémique", IF(AND($K134>0,$K134<5), IF($K134=4,"Inconnu", IF($K134=1, $F134*0.33, IF($K134=2, $F134*0.5+$G134*0.2, SUM(F134:G134)))), 0),"Non requis") -> 48573.7 | Q134: 0 | R134: 1 | S134: 1 | T134: 1 | U134: MDA3 (IVM) | V134: T1 (PZQ+ALB/MBD) | Y134: 7539 | Z134: REY BOUBA | AF134: ='T1'!M134 -> 41689 | AG134: ='T2'!M134 -> 0 | AH134: =T3_R1!L134 -> 8287 | AI134: ='MDA3'!K134 -> 130548 | AJ134: ='MDA3'!N134 -> 0 | AK134: 51933 | AL134: 96.23168313 | AN134: ='T1'!F134 -> DECEMBRE 2022 | AO134: =T3_R1!F134 -> 44896 | AP134: FALSE | AS134: =_xlfn.XLOOKUP($Y134,[1]COUNTRY_INFO!$Y$9:$Y$197,[1]COUNTRY_INFO!H$9:H$197) -> 99 | AT134: =_xlfn.XLOOKUP($Y134,[1]COUNTRY_INFO!$Y$9:$Y$197,[1]COUNTRY_INFO!I$9:I$197) -> 1 | AU134: =_xlfn.XLOOKUP($Y134,[1]COUNTRY_INFO!$Y$9:$Y$197,[1]COUNTRY_INFO!J$9:J$197) -> 1 | AV134: =_xlfn.XLOOKUP($Y134,[1]COUNTRY_INFO!$Y$9:$Y$197,[1]COUNTRY_INFO!K$9:K$197) -> 2 | AW134: =_xlfn.XLOOKUP($Y134,[1]COUNTRY_INFO!$Y$9:$Y$197,[1]COUNTRY_INFO!L$9:L$197) -> 1 | AX134: TRUE | AY134: TRUE | AZ134: TRUE | BA134: TRUE | BB134: TRUE | BE134: 99 | BF134: 1 | BG134: 1 | BH134: 2 | BI134: TRUE | BJ134: TRUE | BK134: TRUE | BL134: TRUE
A135: =IF(INTRO!$E$34<>0,INTRO!$E$34,"") -> Cameroon | B135: Nord | C135: Tchollire | D135: 219665 | E135: 48907.40741 | F135: =IF(INTRO!$E$49="","",ROUND($D135*INTRO!$E$49,0)) -> 58101 | G135: =IF(INTRO!$E$50="","",ROUND($D135*INTRO!$E$50,0)) -> 126461 | H135: 99 | I135: 1 | J135: 1 | K135: 2 | L135: 1 | M135: =IF(INTRO!$E$38="Endémique", IF($H135>0, IF($H135=4,"Inconnu", IF($H135=99,"Interrompu", $D135)), 0),"Non requis") -> Interrompu | N135: 183249 | O135: =IF(INTRO!$E$42="Endémique", IF(AND($J135>1,$J135<5), IF($J135=4, "Inconnu", E135+F135), 0),"Non requis") -> 0 | P135: =IF(INTRO!$E$44="Endémique", IF(AND($K135>0,$K135<5), IF($K135=4,"Inconnu", IF($K135=1, $F135*0.33, IF($K135=2, $F135*0.5+$G135*0.2, SUM(F135:G135)))), 0),"Non requis") -> 54342.7 | Q135: 0 | R135: 1 | S135: 1 | T135: 1 | U135: MDA3 (IVM) | V135: T1 (PZQ+ALB/MBD) | Y135: 7540 | Z135: TCHOLLIRE | AF135: ='T1'!M135 -> 46356 | AG135: ='T2'!M135 -> 0 | AH135: =T3_R1!L135 -> 0 | AI135: ='MDA3'!K135 -> 181493 | AJ135: ='MDA3'!N135 -> 0 | AK135: 58101 | AL135: 79.78520163 | AN135: ='T1'!F135 -> DECEMBRE 2022 | AO135: =T3_R1!F135 -> 44896 | AP135: FALSE | AS135: =_xlfn.XLOOKUP($Y135,[1]COUNTRY_INFO!$Y$9:$Y$197,[1]COUNTRY_INFO!H$9:H$197) -> 99 | AT135: =_xlfn.XLOOKUP($Y135,[1]COUNTRY_INFO!$Y$9:$Y$197,[1]COUNTRY_INFO!I$9:I$197) -> 1 | AU135: =_xlfn.XLOOKUP($Y135,[1]COUNTRY_INFO!$Y$9:$Y$197,[1]COUNTRY_INFO!J$9:J$197) -> 1 | AV135: =_xlfn.XLOOKUP($Y135,[1]COUNTRY_INFO!$Y$9:$Y$197,[1]COUNTRY_INFO!K$9:K$197) -> 2 | AW135: =_xlfn.XLOOKUP($Y135,[1]COUNTRY_INFO!$Y$9:$Y$197,[1]COUNTRY_INFO!L$9:L$197) -> 1 | AX135: TRUE | AY135: TRUE | AZ135: TRUE | BA135: TRUE | BB135: TRUE | BE135: 99 | BF135: 1 | BG135: 1 | BH135: 2 | BI135: TRUE | BJ135: TRUE | BK135: TRUE | BL135: TRUE
A136: =IF(INTRO!$E$34<>0,INTRO!$E$34,"") -> Cameroon | B136: Nord | C136: Touboro | D136: 324700 | E136: 78727.09552 | F136: =IF(INTRO!$E$49="","",ROUND($D136*INTRO!$E$49,0)) -> 85883 | G136: =IF(INTRO!$E$50="","",ROUND($D136*INTRO!$E$50,0)) -> 186930 | H136: 99 | I136: 1 | J136: 1 | K136: 3 | L136: 1 | M136: =IF(INTRO!$E$38="Endémique", IF($H136>0, IF($H136=4,"Inconnu", IF($H136=99,"Interrompu", $D136)), 0),"Non requis") -> Interrompu | N136: 298025 | O136: =IF(INTRO!$E$42="Endémique", IF(AND($J136>1,$J136<5), IF($J136=4, "Inconnu", E136+F136), 0),"Non requis") -> 0 | P136: =IF(INTRO!$E$44="Endémique", IF(AND($K136>0,$K136<5), IF($K136=4,"Inconnu", IF($K136=1, $F136*0.33, IF($K136=2, $F136*0.5+$G136*0.2, SUM(F136:G136)))), 0),"Non requis") -> 272813 | Q136: 0 | R136: 1 | S136: 1 | T136: 1 | U136: MDA3 (IVM) | V136: T1 (PZQ+ALB/MBD) | Y136: 7541 | Z136: TOUBORO | AF136: ='T1'!M136 -> 80672 | AG136: ='T2'!M136 -> 0 | AH136: =T3_R1!L136 -> 3813 | AI136: ='MDA3'!K136 -> 256582 | AJ136: ='MDA3'!N136 -> 0 | AK136: 85883 | AL136: 98.37220405 | AN136: ='T1'!F136 -> DECEMBRE 2022 | AO136: =T3_R1!F136 -> 44896 | AP136: FALSE | AS136: =_xlfn.XLOOKUP($Y136,[1]COUNTRY_INFO!$Y$9:$Y$197,[1]COUNTRY_INFO!H$9:H$197) -> 99 | AT136: =_xlfn.XLOOKUP($Y136,[1]COUNTRY_INFO!$Y$9:$Y$197,[1]COUNTRY_INFO!I$9:I$197) -> 1 | AU136: =_xlfn.XLOOKUP($Y136,[1]COUNTRY_INFO!$Y$9:$Y$197,[1]COUNTRY_INFO!J$9:J$197) -> 1 | AV136: =_xlfn.XLOOKUP($Y136,[1]COUNTRY_INFO!$Y$9:$Y$197,[1]COUNTRY_INFO!K$9:K$197) -> 3 | AW136: =_xlfn.XLOOKUP($Y136,[1]COUNTRY_INFO!$Y$9:$Y$197,[1]COUNTRY_INFO!L$9:L$197) -> 1 | AX136: TRUE | AY136: TRUE | AZ136: TRUE | BA136: TRUE | BB136: TRUE | BE136: 99 | BF136: 1 | BG136: 1 | BH136: 3 | BI136: TRUE | BJ136: TRUE | BK136: TRUE | BL136: TRUE
A137: =IF(INTRO!$E$34<>0,INTRO!$E$34,"") -> Cameroon | B137: Nord Ouest | C137: Ako | D137: 65291 | E137: 8773.879142 | F137: =IF(INTRO!$E$49="","",ROUND($D137*INTRO!$E$49,0)) -> 17269 | G137: =IF(INTRO!$E$50="","",ROUND($D137*INTRO!$E$50,0)) -> 37588 | H137: 99 | I137: 1 | J137: 1 | K137: 2 | L137: 1 | M137: =IF(INTRO!$E$38="Endémique", IF($H137>0, IF($H137=4,"Inconnu", IF($H137=99,"Interrompu", $D137)), 0),"Non requis") -> Interrompu | N137: 54892 | O137: =IF(INTRO!$E$42="Endémique", IF(AND($J137>1,$J137<5), IF($J137=4, "Inconnu", E137+F137), 0),"Non requis") -> 0 | P137: =IF(INTRO!$E$44="Endémique", IF(AND($K137>0,$K137<5), IF($K137=4,"Inconnu", IF($K137=1, $F137*0.33, IF($K137=2, $F137*0.5+$G137*0.2, SUM(F137:G137)))), 0),"Non requis") -> 16152.1 | Q137: 0 | R137: 1 | S137: 0 | T137: 0 | U137: MDA3 (IVM) | V137: T3 (ALB/MBD) | Y137: 7542 | Z137: AKO | AF137: ='T1'!M137 -> 0 | AG137: ='T2'!M137 -> 0 | AH137: =T3_R1!L137 -> 0 | AI137: ='MDA3'!K137 -> 34532 | AJ137: ='MDA3'!N137 -> 0 | AK137: 17269 | AL137: 0 | AN137: ='T1'!F137 -> 0 | AO137: =T3_R1!F137 -> 44896 | AS137: =_xlfn.XLOOKUP($Y137,[1]COUNTRY_INFO!$Y$9:$Y$197,[1]COUNTRY_INFO!H$9:H$197) -> 99 | AT137: =_xlfn.XLOOKUP($Y137,[1]COUNTRY_INFO!$Y$9:$Y$197,[1]COUNTRY_INFO!I$9:I$197) -> 1 | AU137: =_xlfn.XLOOKUP($Y137,[1]COUNTRY_INFO!$Y$9:$Y$197,[1]COUNTRY_INFO!J$9:J$197) -> 1 | AV137: =_xlfn.XLOOKUP($Y137,[1]COUNTRY_INFO!$Y$9:$Y$197,[1]COUNTRY_INFO!K$9:K$197) -> 2 | AW137: =_xlfn.XLOOKUP($Y137,[1]COUNTRY_INFO!$Y$9:$Y$197,[1]COUNTRY_INFO!L$9:L$197) -> 1 | AX137: TRUE | AY137: TRUE | AZ137: TRUE | BA137: TRUE | BB137: TRUE | BE137: 99 | BF137: 1 | BG137: 1 | BH137: 2 | BI137: TRUE | BJ137: TRUE | BK137: TRUE | BL137: TRUE
A138: =IF(INTRO!$E$34<>0,INTRO!$E$34,"") -> Cameroon | B138: Nord Ouest | C138: Bafut | D138: 43058 | E138: 3795.321637 | F138: =IF(INTRO!$E$49="","",ROUND($D138*INTRO!$E$49,0)) -> 11389 | G138: =IF(INTRO!$E$50="","",ROUND($D138*INTRO!$E$50,0)) -> 24788 | H138: 99 | I138: 1 | J138: 3 | K138: 1 | L138: 1 | M138: =IF(INTRO!$E$38="Endémique", IF($H138>0, IF($H138=4,"Inconnu", IF($H138=99,"Interrompu", $D138)), 0),"Non requis") -> Interrompu | N138: 36200 | O138: =IF(INTRO!$E$42="Endémique", IF(AND($J138>1,$J138<5), IF($J138=4, "Inconnu", E138+F138), 0),"Non requis") -> 15184.32164 | P138: =IF(INTRO!$E$44="Endémique", IF(AND($K138>0,$K138<5), IF($K138=4,"Inconnu", IF($K138=1, $F138*0.33, IF($K138=2, $F138*0.5+$G138*0.2, SUM(F138:G138)))), 0),"Non requis") -> 3758.37 | Q138: 0 | R138: 1 | S138: 0 | T138: 0 | U138: MDA3 (IVM) | V138: T3 (ALB/MBD) | Y138: 7543 | Z138: BAFUT | AF138: ='T1'!M138 -> 0 | AG138: ='T2'!M138 -> 0 | AH138: =T3_R1!L138 -> 0 | AI138: ='MDA3'!K138 -> 29338 | AJ138: ='MDA3'!N138 -> 0 | AK138: =F138 -> 11389 | AL138: =(AF138+AH138)/AK138*100 -> 0 | AN138: ='T1'!F138 -> 0 | AO138: =T3_R1!F138 -> 44896 | AS138: =_xlfn.XLOOKUP($Y138,[1]COUNTRY_INFO!$Y$9:$Y$197,[1]COUNTRY_INFO!H$9:H$197) -> 99 | AT138: =_xlfn.XLOOKUP($Y138,[1]COUNTRY_INFO!$Y$9:$Y$197,[1]COUNTRY_INFO!I$9:I$197) -> 1 | AU138: =_xlfn.XLOOKUP($Y138,[1]COUNTRY_INFO!$Y$9:$Y$197,[1]COUNTRY_INFO!J$9:J$197) -> 3 | AV138: =_xlfn.XLOOKUP($Y138,[1]COUNTRY_INFO!$Y$9:$Y$197,[1]COUNTRY_INFO!K$9:K$197) -> 1 | AW138: =_xlfn.XLOOKUP($Y138,[1]COUNTRY_INFO!$Y$9:$Y$197,[1]COUNTRY_INFO!L$9:L$197) -> 1 | AX138: =AS138=H138 -> TRUE | AY138: =AT138=I138 -> TRUE | AZ138: =AU138=J138 -> TRUE | BA138: =AV138=K138 -> TRUE | BB138: =AW138=L138 -> TRUE | BE138: 99 | BF138: 1 | BG138: 3 | BH138: 1 | BI138: =BE138=H138 -> TRUE | BJ138: =BF138=I138 -> TRUE | BK138: =BG138=J138 -> TRUE | BL138: =BH138=K138 -> TRUE
A139: =IF(INTRO!$E$34<>0,INTRO!$E$34,"") -> Cameroon | B139: Nord Ouest | C139: Bali | D139: 28601 | E139: 3872.319688 | F139: =IF(INTRO!$E$49="","",ROUND($D139*INTRO!$E$49,0)) -> 7565 | G139: =IF(INTRO!$E$50="","",ROUND($D139*INTRO!$E$50,0)) -> 16466 | H139: 99 | I139: 1 | J139: 1 | K139: 0 | L139: 1 | M139: =IF(INTRO!$E$38="Endémique", IF($H139>0, IF($H139=4,"Inconnu", IF($H139=99,"Interrompu", $D139)), 0),"Non requis") -> Interrompu | N139: 24045 | O139: =IF(INTRO!$E$42="Endémique", IF(AND($J139>1,$J139<5), IF($J139=4, "Inconnu", E139+F139), 0),"Non requis") -> 0 | P139: =IF(INTRO!$E$44="Endémique", IF(AND($K139>0,$K139<5), IF($K139=4,"Inconnu", IF($K139=1, $F139*0.33, IF($K139=2, $F139*0.5+$G139*0.2, SUM(F139:G139)))), 0),"Non requis") -> 0 | Q139: 0 | R139: 1 | S139: 0 | T139: 0 | U139: MDA3 (IVM) | V139: T3 (ALB/MBD) | Y139: 7544 | Z139: BALI | AF139: ='T1'!M139 -> 0 | AG139: ='T2'!M139 -> 0 | AH139: =T3_R1!L139 -> 0 | AI139: ='MDA3'!K139 -> 21619 | AJ139: ='MDA3'!N139 -> 0 | AK139: 7565 | AL139: 0 | AN139: ='T1'!F139 -> 0 | AO139: =T3_R1!F139 -> 44896 | AS139: =_xlfn.XLOOKUP($Y139,[1]COUNTRY_INFO!$Y$9:$Y$197,[1]COUNTRY_INFO!H$9:H$197) -> 99 | AT139: =_xlfn.XLOOKUP($Y139,[1]COUNTRY_INFO!$Y$9:$Y$197,[1]COUNTRY_INFO!I$9:I$197) -> 1 | AU139: =_xlfn.XLOOKUP($Y139,[1]COUNTRY_INFO!$Y$9:$Y$197,[1]COUNTRY_INFO!J$9:J$197) -> 1 | AV139: =_xlfn.XLOOKUP($Y139,[1]COUNTRY_INFO!$Y$9:$Y$197,[1]COUNTRY_INFO!K$9:K$197) -> 0 | AW139: =_xlfn.XLOOKUP($Y139,[1]COUNTRY_INFO!$Y$9:$Y$197,[1]COUNTRY_INFO!L$9:L$197) -> 1 | AX139: TRUE | AY139: TRUE | AZ139: TRUE | BA139: TRUE | BB139: TRUE | BE139: 99 | BF139: 1 | BG139: 1 | BH139: 0 | BI139: TRUE | BJ139: TRUE | BK139: TRUE | BL139: TRUE
A140: =IF(INTRO!$E$34<>0,INTRO!$E$34,"") -> Cameroon | B140: Nord Ouest | C140: Bamenda | D140: 245266 | E140: 31818.71345 | F140: =IF(INTRO!$E$49="","",ROUND($D140*INTRO!$E$49,0)) -> 64873 | G140: =IF(INTRO!$E$50="","",ROUND($D140*INTRO!$E$50,0)) -> 141200 | H140: 99 | I140: 1 | J140: 1 | K140: 1 | L140: 1 | M140: =IF(INTRO!$E$38="Endémique", IF($H140>0, IF($H140=4,"Inconnu", IF($H140=99,"Interrompu", $D140)), 0),"Non requis") -> Interrompu | N140: 225457 | O140: =IF(INTRO!$E$42="Endémique", IF(AND($J140>1,$J140<5), IF($J140=4, "Inconnu", E140+F140), 0),"Non requis") -> 0 | P140: =IF(INTRO!$E$44="Endémique", IF(AND($K140>0,$K140<5), IF($K140=4,"Inconnu", IF($K140=1, $F140*0.33, IF($K140=2, $F140*0.5+$G140*0.2, SUM(F140:G140)))), 0),"Non requis") -> 21408.09 | Q140: 0 | R140: 1 | S140: 0 | T140: 0 | U140: MDA3 (IVM) | V140: T3 (ALB/MBD) | Y140: 7545 | Z140: BAMENDA | AF140: ='T1'!M140 -> 0 | AG140: ='T2'!M140 -> 0 | AH140: =T3_R1!L140 -> 0 | AI140: ='MDA3'!K140 -> 116459 | AJ140: ='MDA3'!N140 -> 0 | AK140: 64873 | AL140: 0 | AN140: ='T1'!F140 -> 0 | AO140: =T3_R1!F140 -> 44896 | AS140: =_xlfn.XLOOKUP($Y140,[1]COUNTRY_INFO!$Y$9:$Y$197,[1]COUNTRY_INFO!H$9:H$197) -> 99 | AT140: =_xlfn.XLOOKUP($Y140,[1]COUNTRY_INFO!$Y$9:$Y$197,[1]COUNTRY_INFO!I$9:I$197) -> 1 | AU140: =_xlfn.XLOOKUP($Y140,[1]COUNTRY_INFO!$Y$9:$Y$197,[1]COUNTRY_INFO!J$9:J$197) -> 1 | AV140: =_xlfn.XLOOKUP($Y140,[1]COUNTRY_INFO!$Y$9:$Y$197,[1]COUNTRY_INFO!K$9:K$197) -> 1 | AW140: =_xlfn.XLOOKUP($Y140,[1]COUNTRY_INFO!$Y$9:$Y$197,[1]COUNTRY_INFO!L$9:L$197) -> 1 | AX140: TRUE | AY140: TRUE | AZ140: TRUE | BA140: TRUE | BB140: TRUE | BE140: 99 | BF140: 1 | BG140: 1 | BH140: 1 | BI140: TRUE | BJ140: TRUE | BK140: TRUE | BL140: TRUE
A141: =IF(INTRO!$E$34<>0,INTRO!$E$34,"") -> Cameroon | B141: Nord Ouest | C141: Bamenda 3 | D141: 198973 | E141: 19062.37817 | F141: =IF(INTRO!$E$49="","",ROUND($D141*INTRO!$E$49,0)) -> 52628 | G141: =IF(INTRO!$E$50="","",ROUND($D141*INTRO!$E$50,0)) -> 114549 | H141: 99 | I141: 1 | J141: 1 | K141: 1 | L141: 1 | M141: =IF(INTRO!$E$38="Endémique", IF($H141>0, IF($H141=4,"Inconnu", IF($H141=99,"Interrompu", $D141)), 0),"Non requis") -> Interrompu | N141: 148023 | O141: =IF(INTRO!$E$42="Endémique", IF(AND($J141>1,$J141<5), IF($J141=4, "Inconnu", E141+F141), 0),"Non requis") -> 0 | P141: =IF(INTRO!$E$44="Endémique", IF(AND($K141>0,$K141<5), IF($K141=4,"Inconnu", IF($K141=1, $F141*0.33, IF($K141=2, $F141*0.5+$G141*0.2, SUM(F141:G141)))), 0),"Non requis") -> 17367.24 | Q141: 0 | R141: 1 | S141: 0 | T141: 0 | U141: MDA3 (IVM) | V141: T3 (ALB/MBD) | Y141: 7615 | Z141: Bamenda 3 | AF141: ='T1'!M141 -> 0 | AG141: ='T2'!M141 -> 0 | AH141: =T3_R1!L141 -> 0 | AI141: ='MDA3'!K141 -> 67373 | AJ141: ='MDA3'!N141 -> 0 | AK141: 52628 | AL141: 0 | AN141: ='T1'!F141 -> 0 | AO141: =T3_R1!F141 -> 44896 | AS141: =_xlfn.XLOOKUP($Y141,[1]COUNTRY_INFO!$Y$9:$Y$197,[1]COUNTRY_INFO!H$9:H$197) ->  | AT141: =_xlfn.XLOOKUP($Y141,[1]COUNTRY_INFO!$Y$9:$Y$197,[1]COUNTRY_INFO!I$9:I$197) ->  | AU141: =_xlfn.XLOOKUP($Y141,[1]COUNTRY_INFO!$Y$9:$Y$197,[1]COUNTRY_INFO!J$9:J$197) ->  | AV141: =_xlfn.XLOOKUP($Y141,[1]COUNTRY_INFO!$Y$9:$Y$197,[1]COUNTRY_INFO!K$9:K$197) ->  | AW141: =_xlfn.XLOOKUP($Y141,[1]COUNTRY_INFO!$Y$9:$Y$197,[1]COUNTRY_INFO!L$9:L$197) ->  | BE141: 99 | BF141: 1 | BG141: 1 | BH141: 1 | BI141: TRUE | BJ141: TRUE | BK141: TRUE | BL141: TRUE
A142: =IF(INTRO!$E$34<>0,INTRO!$E$34,"") -> Cameroon | B142: Nord Ouest | C142: Batibo | D142: 74143 | E142: 8261.208577 | F142: =IF(INTRO!$E$49="","",ROUND($D142*INTRO!$E$49,0)) -> 19611 | G142: =IF(INTRO!$E$50="","",ROUND($D142*INTRO!$E$50,0)) -> 42684 | H142: 99 | I142: 1 | J142: 3 | K142: 0 | L142: 1 | M142: =IF(INTRO!$E$38="Endémique", IF($H142>0, IF($H142=4,"Inconnu", IF($H142=99,"Interrompu", $D142)), 0),"Non requis") -> Interrompu | N142: 62334 | O142: =IF(INTRO!$E$42="Endémique", IF(AND($J142>1,$J142<5), IF($J142=4, "Inconnu", E142+F142), 0),"Non requis") -> 27872.20858 | P142: =IF(INTRO!$E$44="Endémique", IF(AND($K142>0,$K142<5), IF($K142=4,"Inconnu", IF($K142=1, $F142*0.33, IF($K142=2, $F142*0.5+$G142*0.2, SUM(F142:G142)))), 0),"Non requis") -> 0 | Q142: 0 | R142: 1 | S142: 0 | T142: 0 | U142: MDA3 (IVM) | V142: T3 (ALB/MBD) | Y142: 7546 | Z142: BATIBO | AF142: ='T1'!M142 -> 0 | AG142: ='T2'!M142 -> 0 | AH142: =T3_R1!L142 -> 0 | AI142: ='MDA3'!K142 -> 43015 | AJ142: ='MDA3'!N142 -> 0 | AK142: 19611 | AL142: 0 | AN142: ='T1'!F142 -> 0 | AO142: =T3_R1!F142 -> 44896 | AS142: =_xlfn.XLOOKUP($Y142,[1]COUNTRY_INFO!$Y$9:$Y$197,[1]COUNTRY_INFO!H$9:H$197) -> 99 | AT142: =_xlfn.XLOOKUP($Y142,[1]COUNTRY_INFO!$Y$9:$Y$197,[1]COUNTRY_INFO!I$9:I$197) -> 1 | AU142: =_xlfn.XLOOKUP($Y142,[1]COUNTRY_INFO!$Y$9:$Y$197,[1]COUNTRY_INFO!J$9:J$197) -> 3 | AV142: =_xlfn.XLOOKUP($Y142,[1]COUNTRY_INFO!$Y$9:$Y$197,[1]COUNTRY_INFO!K$9:K$197) -> 0 | AW142: =_xlfn.XLOOKUP($Y142,[1]COUNTRY_INFO!$Y$9:$Y$197,[1]COUNTRY_INFO!L$9:L$197) -> 1 | AX142: TRUE | AY142: TRUE | AZ142: TRUE | BA142: TRUE | BB142: TRUE | BE142: 99 | BF142: 1 | BG142: 3 | BH142: 0 | BI142: TRUE | BJ142: TRUE | BK142: TRUE | BL142: TRUE
A143: =IF(INTRO!$E$34<>0,INTRO!$E$34,"") -> Cameroon | B143: Nord Ouest | C143: Benakuma | D143: 52557 | E143: 13961.01365 | F143: =IF(INTRO!$E$49="","",ROUND($D143*INTRO!$E$49,0)) -> 13901 | G143: =IF(INTRO!$E$50="","",ROUND($D143*INTRO!$E$50,0)) -> 30257 | H143: 99 | I143: 1 | J143: 2 | K143: 1 | L143: 1 | M143: =IF(INTRO!$E$38="Endémique", IF($H143>0, IF($H143=4,"Inconnu", IF($H143=99,"Interrompu", $D143)), 0),"Non requis") -> Interrompu | N143: 44186 | O143: =IF(INTRO!$E$42="Endémique", IF(AND($J143>1,$J143<5), IF($J143=4, "Inconnu", E143+F143), 0),"Non requis") -> 27862.01365 | P143: =IF(INTRO!$E$44="Endémique", IF(AND($K143>0,$K143<5), IF($K143=4,"Inconnu", IF($K143=1, $F143*0.33, IF($K143=2, $F143*0.5+$G143*0.2, SUM(F143:G143)))), 0),"Non requis") -> 4587.33 | Q143: 0 | R143: 1 | S143: 0 | T143: 0 | U143: MDA3 (IVM) | V143: T3 (ALB/MBD) | Y143: 7547 | Z143: BENAKUMA | AF143: ='T1'!M143 -> 0 | AG143: ='T2'!M143 -> 0 | AH143: =T3_R1!L143 -> 0 | AI143: ='MDA3'!K143 -> 31337 | AJ143: ='MDA3'!N143 -> 0 | AK143: 13901 | AL143: 0 | AN143: ='T1'!F143 -> 0 | AO143: =T3_R1!F143 -> 44896 | AS143: =_xlfn.XLOOKUP($Y143,[1]COUNTRY_INFO!$Y$9:$Y$197,[1]COUNTRY_INFO!H$9:H$197) -> 99 | AT143: =_xlfn.XLOOKUP($Y143,[1]COUNTRY_INFO!$Y$9:$Y$197,[1]COUNTRY_INFO!I$9:I$197) -> 1 | AU143: =_xlfn.XLOOKUP($Y143,[1]COUNTRY_INFO!$Y$9:$Y$197,[1]COUNTRY_INFO!J$9:J$197) -> 2 | AV143: =_xlfn.XLOOKUP($Y143,[1]COUNTRY_INFO!$Y$9:$Y$197,[1]COUNTRY_INFO!K$9:K$197) -> 1 | AW143: =_xlfn.XLOOKUP($Y143,[1]COUNTRY_INFO!$Y$9:$Y$197,[1]COUNTRY_INFO!L$9:L$197) -> 1 | AX143: TRUE | AY143: TRUE | AZ143: TRUE | BA143: TRUE | BB143: TRUE | BE143: 99 | BF143: 1 | BG143: 2 | BH143: 1 | BI143: TRUE | BJ143: TRUE | BK143: TRUE | BL143: TRUE
A144: =IF(INTRO!$E$34<>0,INTRO!$E$34,"") -> Cameroon | B144: Nord Ouest | C144: Fundong | D144: 129318 | E144: 14975.63353 | F144: =IF(INTRO!$E$49="","",ROUND($D144*INTRO!$E$49,0)) -> 34205 | G144: =IF(INTRO!$E$50="","",ROUND($D144*INTRO!$E$50,0)) -> 74448 | H144: 99 | I144: 1 | J144: 2 | K144: 0 | L144: 1 | M144: =IF(INTRO!$E$38="Endémique", IF($H144>0, IF($H144=4,"Inconnu", IF($H144=99,"Interrompu", $D144)), 0),"Non requis") -> Interrompu | N144: 108719 | O144: =IF(INTRO!$E$42="Endémique", IF(AND($J144>1,$J144<5), IF($J144=4, "Inconnu", E144+F144), 0),"Non requis") -> 49180.63353 | P144: =IF(INTRO!$E$44="Endémique", IF(AND($K144>0,$K144<5), IF($K144=4,"Inconnu", IF($K144=1, $F144*0.33, IF($K144=2, $F144*0.5+$G144*0.2, SUM(F144:G144)))), 0),"Non requis") -> 0 | Q144: 0 | R144: 1 | S144: 0 | T144: 0 | U144: MDA3 (IVM) | V144: T3 (ALB/MBD) | Y144: 7548 | Z144: FUNDONG | AF144: ='T1'!M144 -> 0 | AG144: ='T2'!M144 -> 0 | AH144: =T3_R1!L144 -> 0 | AI144: ='MDA3'!K144 -> 71751 | AJ144: ='MDA3'!N144 -> 0 | AK144: 34205 | AL144: 0 | AN144: ='T1'!F144 -> 0 | AO144: =T3_R1!F144 -> 44896 | AS144: =_xlfn.XLOOKUP($Y144,[1]COUNTRY_INFO!$Y$9:$Y$197,[1]COUNTRY_INFO!H$9:H$197) -> 99 | AT144: =_xlfn.XLOOKUP($Y144,[1]COUNTRY_INFO!$Y$9:$Y$197,[1]COUNTRY_INFO!I$9:I$197) -> 1 | AU144: =_xlfn.XLOOKUP($Y144,[1]COUNTRY_INFO!$Y$9:$Y$197,[1]COUNTRY_INFO!J$9:J$197) -> 2 | AV144: =_xlfn.XLOOKUP($Y144,[1]COUNTRY_INFO!$Y$9:$Y$197,[1]COUNTRY_INFO!K$9:K$197) -> 0 | AW144: =_xlfn.XLOOKUP($Y144,[1]COUNTRY_INFO!$Y$9:$Y$197,[1]COUNTRY_INFO!L$9:L$197) -> 1 | AX144: TRUE | AY144: TRUE | AZ144: TRUE | BA144: TRUE | BB144: TRUE | BE144: 99 | BF144: 1 | BG144: 2 | BH144: 0 | BI144: TRUE | BJ144: TRUE | BK144: TRUE | BL144: TRUE
A145: =IF(INTRO!$E$34<>0,INTRO!$E$34,"") -> Cameroon | B145: Nord Ouest | C145: Kumbo East | D145: 118315 | E145: 13344.05458 | F145: =IF(INTRO!$E$49="","",ROUND($D145*INTRO!$E$49,0)) -> 31294 | G145: =IF(INTRO!$E$50="","",ROUND($D145*INTRO!$E$50,0)) -> 68114 | H145: 99 | I145: 1 | J145: 1 | K145: 1 | L145: 1 | M145: =IF(INTRO!$E$38="Endémique", IF($H145>0, IF($H145=4,"Inconnu", IF($H145=99,"Interrompu", $D145)), 0),"Non requis") -> Interrompu | N145: 99471 | O145: =IF(INTRO!$E$42="Endémique", IF(AND($J145>1,$J145<5), IF($J145=4, "Inconnu", E145+F145), 0),"Non requis") -> 0 | P145: =IF(INTRO!$E$44="Endémique", IF(AND($K145>0,$K145<5), IF($K145=4,"Inconnu", IF($K145=1, $F145*0.33, IF($K145=2, $F145*0.5+$G145*0.2, SUM(F145:G145)))), 0),"Non requis") -> 10327.02 | Q145: 0 | R145: 1 | S145: 0 | T145: 0 | U145: MDA3 (IVM) | V145: T3 (ALB/MBD) | Y145: 7549 | Z145: KUMBO EAST | AF145: ='T1'!M145 -> 0 | AG145: ='T2'!M145 -> 0 | AH145: =T3_R1!L145 -> 0 | AI145: ='MDA3'!K145 -> 75648 | AJ145: ='MDA3'!N145 -> 0 | AK145: 31294 | AL145: 0 | AN145: ='T1'!F145 -> 0 | AO145: =T3_R1!F145 -> 44896 | AS145: =_xlfn.XLOOKUP($Y145,[1]COUNTRY_INFO!$Y$9:$Y$197,[1]COUNTRY_INFO!H$9:H$197) -> 99 | AT145: =_xlfn.XLOOKUP($Y145,[1]COUNTRY_INFO!$Y$9:$Y$197,[1]COUNTRY_INFO!I$9:I$197) -> 1 | AU145: =_xlfn.XLOOKUP($Y145,[1]COUNTRY_INFO!$Y$9:$Y$197,[1]COUNTRY_INFO!J$9:J$197) -> 1 | AV145: =_xlfn.XLOOKUP($Y145,[1]COUNTRY_INFO!$Y$9:$Y$197,[1]COUNTRY_INFO!K$9:K$197) -> 1 | AW145: =_xlfn.XLOOKUP($Y145,[1]COUNTRY_INFO!$Y$9:$Y$197,[1]COUNTRY_INFO!L$9:L$197) -> 1 | AX145: TRUE | AY145: TRUE | AZ145: TRUE | BA145: TRUE | BB145: TRUE | BE145: 99 | BF145: 1 | BG145: 1 | BH145: 1 | BI145: TRUE | BJ145: TRUE | BK145: TRUE | BL145: TRUE
A146: =IF(INTRO!$E$34<>0,INTRO!$E$34,"") -> Cameroon | B146: Nord Ouest | C146: Kumbo West | D146: 107434 | E146: 9817.738791 | F146: =IF(INTRO!$E$49="","",ROUND($D146*INTRO!$E$49,0)) -> 28416 | G146: =IF(INTRO!$E$50="","",ROUND($D146*INTRO!$E$50,0)) -> 61850 | H146: 99 | I146: 1 | J146: 2 | K146: 0 | L146: 1 | M146: =IF(INTRO!$E$38="Endémique", IF($H146>0, IF($H146=4,"Inconnu", IF($H146=99,"Interrompu", $D146)), 0),"Non requis") -> Interrompu | N146: 90322 | O146: =IF(INTRO!$E$42="Endémique", IF(AND($J146>1,$J146<5), IF($J146=4, "Inconnu", E146+F146), 0),"Non requis") -> 38233.73879 | P146: =IF(INTRO!$E$44="Endémique", IF(AND($K146>0,$K146<5), IF($K146=4,"Inconnu", IF($K146=1, $F146*0.33, IF($K146=2, $F146*0.5+$G146*0.2, SUM(F146:G146)))), 0),"Non requis") -> 0 | Q146: 0 | R146: 1 | S146: 0 | T146: 0 | U146: MDA3 (IVM) | V146: T3 (ALB/MBD) | Y146: 7550 | Z146: KUMBO WEST | AF146: ='T1'!M146 -> 0 | AG146: ='T2'!M146 -> 0 | AH146: =T3_R1!L146 -> 0 | AI146: ='MDA3'!K146 -> 65184 | AJ146: ='MDA3'!N146 -> 0 | AK146: 28416 | AL146: 0 | AN146: ='T1'!F146 -> 0 | AO146: =T3_R1!F146 -> 44896 | AS146: =_xlfn.XLOOKUP($Y146,[1]COUNTRY_INFO!$Y$9:$Y$197,[1]COUNTRY_INFO!H$9:H$197) -> 99 | AT146: =_xlfn.XLOOKUP($Y146,[1]COUNTRY_INFO!$Y$9:$Y$197,[1]COUNTRY_INFO!I$9:I$197) -> 1 | AU146: =_xlfn.XLOOKUP($Y146,[1]COUNTRY_INFO!$Y$9:$Y$197,[1]COUNTRY_INFO!J$9:J$197) -> 2 | AV146: =_xlfn.XLOOKUP($Y146,[1]COUNTRY_INFO!$Y$9:$Y$197,[1]COUNTRY_INFO!K$9:K$197) -> 0 | AW146: =_xlfn.XLOOKUP($Y146,[1]COUNTRY_INFO!$Y$9:$Y$197,[1]COUNTRY_INFO!L$9:L$197) -> 1 | AX146: TRUE | AY146: TRUE | AZ146: TRUE | BA146: TRUE | BB146: TRUE | BE146: 99 | BF146: 1 | BG146: 2 | BH146: 0 | BI146: TRUE | BJ146: TRUE | BK146: TRUE | BL146: TRUE
A147: =IF(INTRO!$E$34<>0,INTRO!$E$34,"") -> Cameroon | B147: Nord Ouest | C147: Mbengwi | D147: 45729 | E147: 4454.191033 | F147: =IF(INTRO!$E$49="","",ROUND($D147*INTRO!$E$49,0)) -> 12095 | G147: =IF(INTRO!$E$50="","",ROUND($D147*INTRO!$E$50,0)) -> 26326 | H147: 99 | I147: 1 | J147: 1 | K147: 0 | L147: 1 | M147: =IF(INTRO!$E$38="Endémique", IF($H147>0, IF($H147=4,"Inconnu", IF($H147=99,"Interrompu", $D147)), 0),"Non requis") -> Interrompu | N147: 38443 | O147: =IF(INTRO!$E$42="Endémique", IF(AND($J147>1,$J147<5), IF($J147=4, "Inconnu", E147+F147), 0),"Non requis") -> 0 | P147: =IF(INTRO!$E$44="Endémique", IF(AND($K147>0,$K147<5), IF($K147=4,"Inconnu", IF($K147=1, $F147*0.33, IF($K147=2, $F147*0.5+$G147*0.2, SUM(F147:G147)))), 0),"Non requis") -> 0 | Q147: 0 | R147: 1 | S147: 0 | T147: 0 | U147: MDA3 (IVM) | V147: T3 (ALB/MBD) | Y147: 7551 | Z147: MBENGWI | AF147: ='T1'!M147 -> 0 | AG147: ='T2'!M147 -> 0 | AH147: =T3_R1!L147 -> 0 | AI147: ='MDA3'!K147 -> 25790 | AJ147: ='MDA3'!N147 -> 0 | AK147: 12095 | AL147: 0 | AN147: ='T1'!F147 -> 0 | AO147: =T3_R1!F147 -> 44896 | AS147: =_xlfn.XLOOKUP($Y147,[1]COUNTRY_INFO!$Y$9:$Y$197,[1]COUNTRY_INFO!H$9:H$197) -> 99 | AT147: =_xlfn.XLOOKUP($Y147,[1]COUNTRY_INFO!$Y$9:$Y$197,[1]COUNTRY_INFO!I$9:I$197) -> 1 | AU147: =_xlfn.XLOOKUP($Y147,[1]COUNTRY_INFO!$Y$9:$Y$197,[1]COUNTRY_INFO!J$9:J$197) -> 1 | AV147: =_xlfn.XLOOKUP($Y147,[1]COUNTRY_INFO!$Y$9:$Y$197,[1]COUNTRY_INFO!K$9:K$197) -> 0 | AW147: =_xlfn.XLOOKUP($Y147,[1]COUNTRY_INFO!$Y$9:$Y$197,[1]COUNTRY_INFO!L$9:L$197) -> 1 | AX147: TRUE | AY147: TRUE | AZ147: TRUE | BA147: TRUE | BB147: TRUE | BE147: 99 | BF147: 1 | BG147: 1 | BH147: 0 | BI147: TRUE | BJ147: TRUE | BK147: TRUE | BL147: TRUE
A148: =IF(INTRO!$E$34<>0,INTRO!$E$34,"") -> Cameroon | B148: Nord Ouest | C148: Ndop | D148: 190827 | E148: 21419.10331 | F148: =IF(INTRO!$E$49="","",ROUND($D148*INTRO!$E$49,0)) -> 50474 | G148: =IF(INTRO!$E$50="","",ROUND($D148*INTRO!$E$50,0)) -> 109859 | H148: 99 | I148: 1 | J148: 3 | K148: 0 | L148: 1 | M148: =IF(INTRO!$E$38="Endémique", IF($H148>0, IF($H148=4,"Inconnu", IF($H148=99,"Interrompu", $D148)), 0),"Non requis") -> Interrompu | N148: 160432 | O148: =IF(INTRO!$E$42="Endémique", IF(AND($J148>1,$J148<5), IF($J148=4, "Inconnu", E148+F148), 0),"Non requis") -> 71893.10331 | P148: =IF(INTRO!$E$44="Endémique", IF(AND($K148>0,$K148<5), IF($K148=4,"Inconnu", IF($K148=1, $F148*0.33, IF($K148=2, $F148*0.5+$G148*0.2, SUM(F148:G148)))), 0),"Non requis") -> 0 | Q148: 0 | R148: 1 | S148: 0 | T148: 0 | U148: MDA3 (IVM) | V148: T3 (ALB/MBD) | Y148: 7552 | Z148: NDOP | AF148: ='T1'!M148 -> 0 | AG148: ='T2'!M148 -> 0 | AH148: =T3_R1!L148 -> 0 | AI148: ='MDA3'!K148 -> 141518 | AJ148: ='MDA3'!N148 -> 0 | AK148: 50474 | AL148: 0 | AN148: ='T1'!F148 -> 0 | AO148: =T3_R1!F148 -> 44896 | AS148: =_xlfn.XLOOKUP($Y148,[1]COUNTRY_INFO!$Y$9:$Y$197,[1]COUNTRY_INFO!H$9:H$197) -> 99 | AT148: =_xlfn.XLOOKUP($Y148,[1]COUNTRY_INFO!$Y$9:$Y$197,[1]COUNTRY_INFO!I$9:I$197) -> 1 | AU148: =_xlfn.XLOOKUP($Y148,[1]COUNTRY_INFO!$Y$9:$Y$197,[1]COUNTRY_INFO!J$9:J$197) -> 3 | AV148: =_xlfn.XLOOKUP($Y148,[1]COUNTRY_INFO!$Y$9:$Y$197,[1]COUNTRY_INFO!K$9:K$197) -> 0 | AW148: =_xlfn.XLOOKUP($Y148,[1]COUNTRY_INFO!$Y$9:$Y$197,[1]COUNTRY_INFO!L$9:L$197) -> 1 | AX148: TRUE | AY148: TRUE | AZ148: TRUE | BA148: TRUE | BB148: TRUE | BE148: 99 | BF148: 1 | BG148: 3 | BH148: 0 | BI148: TRUE | BJ148: TRUE | BK148: TRUE | BL148: TRUE
A149: =IF(INTRO!$E$34<>0,INTRO!$E$34,"") -> Cameroon | B149: Nord Ouest | C149: Ndu | D149: 69440 | E149: 7405.45809 | F149: =IF(INTRO!$E$49="","",ROUND($D149*INTRO!$E$49,0)) -> 18367 | G149: =IF(INTRO!$E$50="","",ROUND($D149*INTRO!$E$50,0)) -> 39977 | H149: 99 | I149: 1 | J149: 1 | K149: 0 | L149: 1 | M149: =IF(INTRO!$E$38="Endémique", IF($H149>0, IF($H149=4,"Inconnu", IF($H149=99,"Interrompu", $D149)), 0),"Non requis") -> Interrompu | N149: 58379 | O149: =IF(INTRO!$E$42="Endémique", IF(AND($J149>1,$J149<5), IF($J149=4, "Inconnu", E149+F149), 0),"Non requis") -> 0 | P149: =IF(INTRO!$E$44="Endémique", IF(AND($K149>0,$K149<5), IF($K149=4,"Inconnu", IF($K149=1, $F149*0.33, IF($K149=2, $F149*0.5+$G149*0.2, SUM(F149:G149)))), 0),"Non requis") -> 0 | Q149: 0 | R149: 1 | S149: 0 | T149: 0 | U149: MDA3 (IVM) | V149: T3 (ALB/MBD) | Y149: 7553 | Z149: NDU | AF149: ='T1'!M149 -> 0 | AG149: ='T2'!M149 -> 0 | AH149: =T3_R1!L149 -> 0 | AI149: ='MDA3'!K149 -> 54877 | AJ149: ='MDA3'!N149 -> 0 | AK149: 18367 | AL149: 0 | AN149: ='T1'!F149 -> 0 | AO149: =T3_R1!F149 -> 44896 | AS149: =_xlfn.XLOOKUP($Y149,[1]COUNTRY_INFO!$Y$9:$Y$197,[1]COUNTRY_INFO!H$9:H$197) -> 99 | AT149: =_xlfn.XLOOKUP($Y149,[1]COUNTRY_INFO!$Y$9:$Y$197,[1]COUNTRY_INFO!I$9:I$197) -> 1 | AU149: =_xlfn.XLOOKUP($Y149,[1]COUNTRY_INFO!$Y$9:$Y$197,[1]COUNTRY_INFO!J$9:J$197) -> 1 | AV149: =_xlfn.XLOOKUP($Y149,[1]COUNTRY_INFO!$Y$9:$Y$197,[1]COUNTRY_INFO!K$9:K$197) -> 0 | AW149: =_xlfn.XLOOKUP($Y149,[1]COUNTRY_INFO!$Y$9:$Y$197,[1]COUNTRY_INFO!L$9:L$197) -> 1 | AX149: TRUE | AY149: TRUE | AZ149: TRUE | BA149: TRUE | BB149: TRUE | BE149: 99 | BF149: 1 | BG149: 1 | BH149: 0 | BI149: TRUE | BJ149: TRUE | BK149: TRUE | BL149: TRUE
A150: =IF(INTRO!$E$34<>0,INTRO!$E$34,"") -> Cameroon | B150: Nord Ouest | C150: Njikwa | D150: 22576 | E150: 2744.639376 | F150: =IF(INTRO!$E$49="","",ROUND($D150*INTRO!$E$49,0)) -> 5971 | G150: =IF(INTRO!$E$50="","",ROUND($D150*INTRO!$E$50,0)) -> 12997 | H150: 99 | I150: 1 | J150: 1 | K150: 0 | L150: 1 | M150: =IF(INTRO!$E$38="Endémique", IF($H150>0, IF($H150=4,"Inconnu", IF($H150=99,"Interrompu", $D150)), 0),"Non requis") -> Interrompu | N150: 18979 | O150: =IF(INTRO!$E$42="Endémique", IF(AND($J150>1,$J150<5), IF($J150=4, "Inconnu", E150+F150), 0),"Non requis") -> 0 | P150: =IF(INTRO!$E$44="Endémique", IF(AND($K150>0,$K150<5), IF($K150=4,"Inconnu", IF($K150=1, $F150*0.33, IF($K150=2, $F150*0.5+$G150*0.2, SUM(F150:G150)))), 0),"Non requis") -> 0 | Q150: 0 | R150: 1 | S150: 0 | T150: 0 | U150: MDA3 (IVM) | V150: T3 (ALB/MBD) | Y150: 7554 | Z150: NJIKWA | AF150: ='T1'!M150 -> 0 | AG150: ='T2'!M150 -> 0 | AH150: =T3_R1!L150 -> 0 | AI150: ='MDA3'!K150 -> 18329 | AJ150: ='MDA3'!N150 -> 0 | AK150: 5971 | AL150: 0 | AN150: ='T1'!F150 -> 0 | AO150: =T3_R1!F150 -> 44896 | AS150: =_xlfn.XLOOKUP($Y150,[1]COUNTRY_INFO!$Y$9:$Y$197,[1]COUNTRY_INFO!H$9:H$197) -> 99 | AT150: =_xlfn.XLOOKUP($Y150,[1]COUNTRY_INFO!$Y$9:$Y$197,[1]COUNTRY_INFO!I$9:I$197) -> 1 | AU150: =_xlfn.XLOOKUP($Y150,[1]COUNTRY_INFO!$Y$9:$Y$197,[1]COUNTRY_INFO!J$9:J$197) -> 1 | AV150: =_xlfn.XLOOKUP($Y150,[1]COUNTRY_INFO!$Y$9:$Y$197,[1]COUNTRY_INFO!K$9:K$197) -> 0 | AW150: =_xlfn.XLOOKUP($Y150,[1]COUNTRY_INFO!$Y$9:$Y$197,[1]COUNTRY_INFO!L$9:L$197) -> 1 | AX150: TRUE | AY150: TRUE | AZ150: TRUE | BA150: TRUE | BB150: TRUE | BE150: 99 | BF150: 1 | BG150: 1 | BH150: 0 | BI150: TRUE | BJ150: TRUE | BK150: TRUE | BL150: TRUE
A151: =IF(INTRO!$E$34<>0,INTRO!$E$34,"") -> Cameroon | B151: Nord Ouest | C151: Nkambe | D151: 125063 | E151: 20407.40741 | F151: =IF(INTRO!$E$49="","",ROUND($D151*INTRO!$E$49,0)) -> 33079 | G151: =IF(INTRO!$E$50="","",ROUND($D151*INTRO!$E$50,0)) -> 71999 | H151: 99 | I151: 1 | J151: 3 | K151: 1 | L151: 1 | M151: =IF(INTRO!$E$38="Endémique", IF($H151>0, IF($H151=4,"Inconnu", IF($H151=99,"Interrompu", $D151)), 0),"Non requis") -> Interrompu | N151: 105142 | O151: =IF(INTRO!$E$42="Endémique", IF(AND($J151>1,$J151<5), IF($J151=4, "Inconnu", E151+F151), 0),"Non requis") -> 53486.40741 | P151: =IF(INTRO!$E$44="Endémique", IF(AND($K151>0,$K151<5), IF($K151=4,"Inconnu", IF($K151=1, $F151*0.33, IF($K151=2, $F151*0.5+$G151*0.2, SUM(F151:G151)))), 0),"Non requis") -> 10916.07 | Q151: 0 | R151: 1 | S151: 0 | T151: 0 | U151: MDA3 (IVM) | V151: T3 (ALB/MBD) | Y151: 7555 | Z151: NKAMBE | AF151: ='T1'!M151 -> 0 | AG151: ='T2'!M151 -> 0 | AH151: =T3_R1!L151 -> 0 | AI151: ='MDA3'!K151 -> 80467 | AJ151: ='MDA3'!N151 -> 0 | AK151: 33079 | AL151: 0 | AN151: ='T1'!F151 -> 0 | AO151: =T3_R1!F151 -> 44896 | AS151: =_xlfn.XLOOKUP($Y151,[1]COUNTRY_INFO!$Y$9:$Y$197,[1]COUNTRY_INFO!H$9:H$197) -> 99 | AT151: =_xlfn.XLOOKUP($Y151,[1]COUNTRY_INFO!$Y$9:$Y$197,[1]COUNTRY_INFO!I$9:I$197) -> 1 | AU151: =_xlfn.XLOOKUP($Y151,[1]COUNTRY_INFO!$Y$9:$Y$197,[1]COUNTRY_INFO!J$9:J$197) -> 3 | AV151: =_xlfn.XLOOKUP($Y151,[1]COUNTRY_INFO!$Y$9:$Y$197,[1]COUNTRY_INFO!K$9:K$197) -> 1 | AW151: =_xlfn.XLOOKUP($Y151,[1]COUNTRY_INFO!$Y$9:$Y$197,[1]COUNTRY_INFO!L$9:L$197) -> 1 | AX151: TRUE | AY151: TRUE | AZ151: TRUE | BA151: TRUE | BB151: TRUE | BE151: 99 | BF151: 1 | BG151: 3 | BH151: 1 | BI151: TRUE | BJ151: TRUE | BK151: TRUE | BL151: TRUE
A152: =IF(INTRO!$E$34<>0,INTRO!$E$34,"") -> Cameroon | B152: Nord Ouest | C152: Nwa | D152: 60210 | E152: 7732.94347 | F152: =IF(INTRO!$E$49="","",ROUND($D152*INTRO!$E$49,0)) -> 15926 | G152: =IF(INTRO!$E$50="","",ROUND($D152*INTRO!$E$50,0)) -> 34663 | H152: 99 | I152: 1 | J152: 3 | K152: 0 | L152: 1 | M152: =IF(INTRO!$E$38="Endémique", IF($H152>0, IF($H152=4,"Inconnu", IF($H152=99,"Interrompu", $D152)), 0),"Non requis") -> Interrompu | N152: 50619 | O152: =IF(INTRO!$E$42="Endémique", IF(AND($J152>1,$J152<5), IF($J152=4, "Inconnu", E152+F152), 0),"Non requis") -> 23658.94347 | P152: =IF(INTRO!$E$44="Endémique", IF(AND($K152>0,$K152<5), IF($K152=4,"Inconnu", IF($K152=1, $F152*0.33, IF($K152=2, $F152*0.5+$G152*0.2, SUM(F152:G152)))), 0),"Non requis") -> 0 | Q152: 0 | R152: 1 | S152: 0 | T152: 0 | U152: MDA3 (IVM) | V152: T3 (ALB/MBD) | Y152: 7556 | Z152: NWA | AF152: ='T1'!M152 -> 0 | AG152: ='T2'!M152 -> 0 | AH152: =T3_R1!L152 -> 0 | AI152: ='MDA3'!K152 -> 47913 | AJ152: ='MDA3'!N152 -> 0 | AK152: 15926 | AL152: 0 | AN152: ='T1'!F152 -> 0 | AO152: =T3_R1!F152 -> 44896 | AS152: =_xlfn.XLOOKUP($Y152,[1]COUNTRY_INFO!$Y$9:$Y$197,[1]COUNTRY_INFO!H$9:H$197) -> 99 | AT152: =_xlfn.XLOOKUP($Y152,[1]COUNTRY_INFO!$Y$9:$Y$197,[1]COUNTRY_INFO!I$9:I$197) -> 1 | AU152: =_xlfn.XLOOKUP($Y152,[1]COUNTRY_INFO!$Y$9:$Y$197,[1]COUNTRY_INFO!J$9:J$197) -> 3 | AV152: =_xlfn.XLOOKUP($Y152,[1]COUNTRY_INFO!$Y$9:$Y$197,[1]COUNTRY_INFO!K$9:K$197) -> 0 | AW152: =_xlfn.XLOOKUP($Y152,[1]COUNTRY_INFO!$Y$9:$Y$197,[1]COUNTRY_INFO!L$9:L$197) -> 1 | AX152: TRUE | AY152: TRUE | AZ152: TRUE | BA152: TRUE | BB152: TRUE | BE152: 99 | BF152: 1 | BG152: 3 | BH152: 0 | BI152: TRUE | BJ152: TRUE | BK152: TRUE | BL152: TRUE
A153: =IF(INTRO!$E$34<>0,INTRO!$E$34,"") -> Cameroon | B153: Nord Ouest | C153: Oku | D153: 62366 | E153: 11471.73489 | F153: =IF(INTRO!$E$49="","",ROUND($D153*INTRO!$E$49,0)) -> 16496 | G153: =IF(INTRO!$E$50="","",ROUND($D153*INTRO!$E$50,0)) -> 35904 | H153: 99 | I153: 1 | J153: 2 | K153: 0 | L153: 1 | M153: =IF(INTRO!$E$38="Endémique", IF($H153>0, IF($H153=4,"Inconnu", IF($H153=99,"Interrompu", $D153)), 0),"Non requis") -> Interrompu | N153: 52431 | O153: =IF(INTRO!$E$42="Endémique", IF(AND($J153>1,$J153<5), IF($J153=4, "Inconnu", E153+F153), 0),"Non requis") -> 27967.73489 | P153: =IF(INTRO!$E$44="Endémique", IF(AND($K153>0,$K153<5), IF($K153=4,"Inconnu", IF($K153=1, $F153*0.33, IF($K153=2, $F153*0.5+$G153*0.2, SUM(F153:G153)))), 0),"Non requis") -> 0 | Q153: 0 | R153: 1 | S153: 0 | T153: 0 | U153: MDA3 (IVM) | V153: T3 (ALB/MBD) | Y153: 7557 | Z153: OKU | AF153: ='T1'!M153 -> 0 | AG153: ='T2'!M153 -> 0 | AH153: =T3_R1!L153 -> 0 | AI153: ='MDA3'!K153 -> 54608 | AJ153: ='MDA3'!N153 -> 0 | AK153: 16496 | AL153: 0 | AN153: ='T1'!F153 -> 0 | AO153: =T3_R1!F153 -> 44896 | AS153: =_xlfn.XLOOKUP($Y153,[1]COUNTRY_INFO!$Y$9:$Y$197,[1]COUNTRY_INFO!H$9:H$197) -> 99 | AT153: =_xlfn.XLOOKUP($Y153,[1]COUNTRY_INFO!$Y$9:$Y$197,[1]COUNTRY_INFO!I$9:I$197) -> 1 | AU153: =_xlfn.XLOOKUP($Y153,[1]COUNTRY_INFO!$Y$9:$Y$197,[1]COUNTRY_INFO!J$9:J$197) -> 2 | AV153: =_xlfn.XLOOKUP($Y153,[1]COUNTRY_INFO!$Y$9:$Y$197,[1]COUNTRY_INFO!K$9:K$197) -> 0 | AW153: =_xlfn.XLOOKUP($Y153,[1]COUNTRY_INFO!$Y$9:$Y$197,[1]COUNTRY_INFO!L$9:L$197) -> 1 | AX153: TRUE | AY153: TRUE | AZ153: TRUE | BA153: TRUE | BB153: TRUE | BE153: 99 | BF153: 1 | BG153: 2 | BH153: 0 | BI153: TRUE | BJ153: TRUE | BK153: TRUE | BL153: TRUE
A154: =IF(INTRO!$E$34<>0,INTRO!$E$34,"") -> Cameroon | B154: Nord Ouest | C154: Santa | D154: 77683 | E154: 12183.23587 | F154: =IF(INTRO!$E$49="","",ROUND($D154*INTRO!$E$49,0)) -> 20547 | G154: =IF(INTRO!$E$50="","",ROUND($D154*INTRO!$E$50,0)) -> 44722 | H154: 99 | I154: 1 | J154: 3 | K154: 1 | L154: 1 | M154: =IF(INTRO!$E$38="Endémique", IF($H154>0, IF($H154=4,"Inconnu", IF($H154=99,"Interrompu", $D154)), 0),"Non requis") -> Interrompu | N154: 65309 | O154: =IF(INTRO!$E$42="Endémique", IF(AND($J154>1,$J154<5), IF($J154=4, "Inconnu", E154+F154), 0),"Non requis") -> 32730.23587 | P154: =IF(INTRO!$E$44="Endémique", IF(AND($K154>0,$K154<5), IF($K154=4,"Inconnu", IF($K154=1, $F154*0.33, IF($K154=2, $F154*0.5+$G154*0.2, SUM(F154:G154)))), 0),"Non requis") -> 6780.51 | Q154: 0 | R154: 1 | S154: 0 | T154: 0 | U154: MDA3 (IVM) | V154: T3 (ALB/MBD) | Y154: 7558 | Z154: SANTA | AF154: ='T1'!M154 -> 0 | AG154: ='T2'!M154 -> 0 | AH154: =T3_R1!L154 -> 0 | AI154: ='MDA3'!K154 -> 47194 | AJ154: ='MDA3'!N154 -> 0 | AK154: 20547 | AL154: 0 | AN154: ='T1'!F154 -> 0 | AO154: =T3_R1!F154 -> 44896 | AS154: =_xlfn.XLOOKUP($Y154,[1]COUNTRY_INFO!$Y$9:$Y$197,[1]COUNTRY_INFO!H$9:H$197) -> 99 | AT154: =_xlfn.XLOOKUP($Y154,[1]COUNTRY_INFO!$Y$9:$Y$197,[1]COUNTRY_INFO!I$9:I$197) -> 1 | AU154: =_xlfn.XLOOKUP($Y154,[1]COUNTRY_INFO!$Y$9:$Y$197,[1]COUNTRY_INFO!J$9:J$197) -> 3 | AV154: =_xlfn.XLOOKUP($Y154,[1]COUNTRY_INFO!$Y$9:$Y$197,[1]COUNTRY_INFO!K$9:K$197) -> 1 | AW154: =_xlfn.XLOOKUP($Y154,[1]COUNTRY_INFO!$Y$9:$Y$197,[1]COUNTRY_INFO!L$9:L$197) -> 1 | AX154: TRUE | AY154: TRUE | AZ154: TRUE | BA154: TRUE | BB154: TRUE | BE154: 99 | BF154: 1 | BG154: 3 | BH154: 1 | BI154: TRUE | BJ154: TRUE | BK154: TRUE | BL154: TRUE
A155: =IF(INTRO!$E$34<>0,INTRO!$E$34,"") -> Cameroon | B155: Nord Ouest | C155: Tubah | D155: 61076 | E155: 5886.939571 | F155: =IF(INTRO!$E$49="","",ROUND($D155*INTRO!$E$49,0)) -> 16155 | G155: =IF(INTRO!$E$50="","",ROUND($D155*INTRO!$E$50,0)) -> 35161 | H155: 99 | I155: 1 | J155: 1 | K155: 0 | L155: 1 | M155: =IF(INTRO!$E$38="Endémique", IF($H155>0, IF($H155=4,"Inconnu", IF($H155=99,"Interrompu", $D155)), 0),"Non requis") -> Interrompu | N155: 51348 | O155: =IF(INTRO!$E$42="Endémique", IF(AND($J155>1,$J155<5), IF($J155=4, "Inconnu", E155+F155), 0),"Non requis") -> 0 | P155: =IF(INTRO!$E$44="Endémique", IF(AND($K155>0,$K155<5), IF($K155=4,"Inconnu", IF($K155=1, $F155*0.33, IF($K155=2, $F155*0.5+$G155*0.2, SUM(F155:G155)))), 0),"Non requis") -> 0 | Q155: 0 | R155: 1 | S155: 0 | T155: 0 | U155: MDA3 (IVM) | V155: T3 (ALB/MBD) | Y155: 7559 | Z155: TUBAH | AF155: ='T1'!M155 -> 0 | AG155: ='T2'!M155 -> 0 | AH155: =T3_R1!L155 -> 0 | AI155: ='MDA3'!K155 -> 39873 | AJ155: ='MDA3'!N155 -> 0 | AK155: 16155 | AL155: 0 | AN155: ='T1'!F155 -> 0 | AO155: =T3_R1!F155 -> 44896 | AS155: =_xlfn.XLOOKUP($Y155,[1]COUNTRY_INFO!$Y$9:$Y$197,[1]COUNTRY_INFO!H$9:H$197) -> 99 | AT155: =_xlfn.XLOOKUP($Y155,[1]COUNTRY_INFO!$Y$9:$Y$197,[1]COUNTRY_INFO!I$9:I$197) -> 1 | AU155: =_xlfn.XLOOKUP($Y155,[1]COUNTRY_INFO!$Y$9:$Y$197,[1]COUNTRY_INFO!J$9:J$197) -> 1 | AV155: =_xlfn.XLOOKUP($Y155,[1]COUNTRY_INFO!$Y$9:$Y$197,[1]COUNTRY_INFO!K$9:K$197) -> 0 | AW155: =_xlfn.XLOOKUP($Y155,[1]COUNTRY_INFO!$Y$9:$Y$197,[1]COUNTRY_INFO!L$9:L$197) -> 1 | AX155: TRUE | AY155: TRUE | AZ155: TRUE | BA155: TRUE | BB155: TRUE | BE155: 99 | BF155: 1 | BG155: 1 | BH155: 0 | BI155: TRUE | BJ155: TRUE | BK155: TRUE | BL155: TRUE
A156: =IF(INTRO!$E$34<>0,INTRO!$E$34,"") -> Cameroon | B156: Nord Ouest | C156: Wum | D156: 114239 | E156: 10884.01559 | F156: =IF(INTRO!$E$49="","",ROUND($D156*INTRO!$E$49,0)) -> 30216 | G156: =IF(INTRO!$E$50="","",ROUND($D156*INTRO!$E$50,0)) -> 65767 | H156: 99 | I156: 1 | J156: 3 | K156: 1 | L156: 1 | M156: =IF(INTRO!$E$38="Endémique", IF($H156>0, IF($H156=4,"Inconnu", IF($H156=99,"Interrompu", $D156)), 0),"Non requis") -> Interrompu | N156: 96044 | O156: =IF(INTRO!$E$42="Endémique", IF(AND($J156>1,$J156<5), IF($J156=4, "Inconnu", E156+F156), 0),"Non requis") -> 41100.01559 | P156: =IF(INTRO!$E$44="Endémique", IF(AND($K156>0,$K156<5), IF($K156=4,"Inconnu", IF($K156=1, $F156*0.33, IF($K156=2, $F156*0.5+$G156*0.2, SUM(F156:G156)))), 0),"Non requis") -> 9971.28 | Q156: 0 | R156: 1 | S156: 0 | T156: 0 | U156: MDA3 (IVM) | V156: T3 (ALB/MBD) | Y156: 7560 | Z156: WUM | AF156: ='T1'!M156 -> 0 | AG156: ='T2'!M156 -> 0 | AH156: =T3_R1!L156 -> 0 | AI156: ='MDA3'!K156 -> 64804 | AJ156: ='MDA3'!N156 -> 0 | AK156: 30216 | AL156: 0 | AN156: ='T1'!F156 -> 0 | AO156: =T3_R1!F156 -> 44896 | AS156: =_xlfn.XLOOKUP($Y156,[1]COUNTRY_INFO!$Y$9:$Y$197,[1]COUNTRY_INFO!H$9:H$197) -> 99 | AT156: =_xlfn.XLOOKUP($Y156,[1]COUNTRY_INFO!$Y$9:$Y$197,[1]COUNTRY_INFO!I$9:I$197) -> 1 | AU156: =_xlfn.XLOOKUP($Y156,[1]COUNTRY_INFO!$Y$9:$Y$197,[1]COUNTRY_INFO!J$9:J$197) -> 3 | AV156: =_xlfn.XLOOKUP($Y156,[1]COUNTRY_INFO!$Y$9:$Y$197,[1]COUNTRY_INFO!K$9:K$197) -> 1 | AW156: =_xlfn.XLOOKUP($Y156,[1]COUNTRY_INFO!$Y$9:$Y$197,[1]COUNTRY_INFO!L$9:L$197) -> 1 | AX156: TRUE | AY156: TRUE | AZ156: TRUE | BA156: TRUE | BB156: TRUE | BE156: 99 | BF156: 1 | BG156: 3 | BH156: 1 | BI156: TRUE | BJ156: TRUE | BK156: TRUE | BL156: TRUE
A157: =IF(INTRO!$E$34<>0,INTRO!$E$34,"") -> Cameroon | B157: Ouest | C157: Bafang | D157: 81972 | E157: 12071.1501 | F157: =IF(INTRO!$E$49="","",ROUND($D157*INTRO!$E$49,0)) -> 21682 | G157: =IF(INTRO!$E$50="","",ROUND($D157*INTRO!$E$50,0)) -> 47191 | H157: 99 | I157: 1 | J157: 1 | K157: 1 | L157: 1 | M157: =IF(INTRO!$E$38="Endémique", IF($H157>0, IF($H157=4,"Inconnu", IF($H157=99,"Interrompu", $D157)), 0),"Non requis") -> Interrompu | N157: 116166 | O157: =IF(INTRO!$E$42="Endémique", IF(AND($J157>1,$J157<5), IF($J157=4, "Inconnu", E157+F157), 0),"Non requis") -> 0 | P157: =IF(INTRO!$E$44="Endémique", IF(AND($K157>0,$K157<5), IF($K157=4,"Inconnu", IF($K157=1, $F157*0.33, IF($K157=2, $F157*0.5+$G157*0.2, SUM(F157:G157)))), 0),"Non requis") -> 7155.06 | Q157: 0 | R157: 1 | S157: 0 | T157: 0 | U157: MDA3 (IVM) | V157: T3 (ALB/MBD) | Y157: 7561 | Z157: BAFANG | AF157: ='T1'!M157 -> 0 | AG157: ='T2'!M157 -> 0 | AH157: =T3_R1!L157 -> 0 | AI157: ='MDA3'!K157 -> 92296 | AJ157: ='MDA3'!N157 -> 0 | AK157: 21682 | AL157: 0 | AN157: ='T1'!F157 -> 0 | AO157: =T3_R1!F157 -> 44896 | AS157: =_xlfn.XLOOKUP($Y157,[1]COUNTRY_INFO!$Y$9:$Y$197,[1]COUNTRY_INFO!H$9:H$197) -> 99 | AT157: =_xlfn.XLOOKUP($Y157,[1]COUNTRY_INFO!$Y$9:$Y$197,[1]COUNTRY_INFO!I$9:I$197) -> 1 | AU157: =_xlfn.XLOOKUP($Y157,[1]COUNTRY_INFO!$Y$9:$Y$197,[1]COUNTRY_INFO!J$9:J$197) -> 1 | AV157: =_xlfn.XLOOKUP($Y157,[1]COUNTRY_INFO!$Y$9:$Y$197,[1]COUNTRY_INFO!K$9:K$197) -> 1 | AW157: =_xlfn.XLOOKUP($Y157,[1]COUNTRY_INFO!$Y$9:$Y$197,[1]COUNTRY_INFO!L$9:L$197) -> 1 | AX157: TRUE | AY157: TRUE | AZ157: TRUE | BA157: TRUE | BB157: TRUE | BE157: 99 | BF157: 1 | BG157: 1 | BH157: 1 | BI157: TRUE | BJ157: TRUE | BK157: TRUE | BL157: TRUE
A158: =IF(INTRO!$E$34<>0,INTRO!$E$34,"") -> Cameroon | B158: Ouest | C158: Baham | D158: 46762 | E158: 7477.582846 | F158: =IF(INTRO!$E$49="","",ROUND($D158*INTRO!$E$49,0)) -> 12369 | G158: =IF(INTRO!$E$50="","",ROUND($D158*INTRO!$E$50,0)) -> 26921 | H158: 99 | I158: 1 | J158: 1 | K158: 1 | L158: 1 | M158: =IF(INTRO!$E$38="Endémique", IF($H158>0, IF($H158=4,"Inconnu", IF($H158=99,"Interrompu", $D158)), 0),"Non requis") -> Interrompu | N158: 62875 | O158: =IF(INTRO!$E$42="Endémique", IF(AND($J158>1,$J158<5), IF($J158=4, "Inconnu", E158+F158), 0),"Non requis") -> 0 | P158: =IF(INTRO!$E$44="Endémique", IF(AND($K158>0,$K158<5), IF($K158=4,"Inconnu", IF($K158=1, $F158*0.33, IF($K158=2, $F158*0.5+$G158*0.2, SUM(F158:G158)))), 0),"Non requis") -> 4081.77 | Q158: 0 | R158: 1 | S158: 0 | T158: 0 | U158: MDA3 (IVM) | V158: T3 (ALB/MBD) | Y158: 7562 | Z158: BAHAM | AF158: ='T1'!M158 -> 0 | AG158: ='T2'!M158 -> 0 | AH158: =T3_R1!L158 -> 0 | AI158: ='MDA3'!K158 -> 48953 | AJ158: ='MDA3'!N158 -> 0 | AK158: 12369 | AL158: 0 | AN158: ='T1'!F158 -> 0 | AO158: =T3_R1!F158 -> 44896 | AS158: =_xlfn.XLOOKUP($Y158,[1]COUNTRY_INFO!$Y$9:$Y$197,[1]COUNTRY_INFO!H$9:H$197) -> 99 | AT158: =_xlfn.XLOOKUP($Y158,[1]COUNTRY_INFO!$Y$9:$Y$197,[1]COUNTRY_INFO!I$9:I$197) -> 1 | AU158: =_xlfn.XLOOKUP($Y158,[1]COUNTRY_INFO!$Y$9:$Y$197,[1]COUNTRY_INFO!J$9:J$197) -> 1 | AV158: =_xlfn.XLOOKUP($Y158,[1]COUNTRY_INFO!$Y$9:$Y$197,[1]COUNTRY_INFO!K$9:K$197) -> 1 | AW158: =_xlfn.XLOOKUP($Y158,[1]COUNTRY_INFO!$Y$9:$Y$197,[1]COUNTRY_INFO!L$9:L$197) -> 1 | AX158: TRUE | AY158: TRUE | AZ158: TRUE | BA158: TRUE | BB158: TRUE | BE158: 99 | BF158: 1 | BG158: 1 | BH158: 1 | BI158: TRUE | BJ158: TRUE | BK158: TRUE | BL158: TRUE
A159: =IF(INTRO!$E$34<>0,INTRO!$E$34,"") -> Cameroon | B159: Ouest | C159: Bamendjou | D159: 42952 | E159: 7113.060429 | F159: =IF(INTRO!$E$49="","",ROUND($D159*INTRO!$E$49,0)) -> 11361 | G159: =IF(INTRO!$E$50="","",ROUND($D159*INTRO!$E$50,0)) -> 24727 | H159: 99 | I159: 1 | J159: 2 | K159: 0 | L159: 1 | M159: =IF(INTRO!$E$38="Endémique", IF($H159>0, IF($H159=4,"Inconnu", IF($H159=99,"Interrompu", $D159)), 0),"Non requis") -> Interrompu | N159: 55895 | O159: =IF(INTRO!$E$42="Endémique", IF(AND($J159>1,$J159<5), IF($J159=4, "Inconnu", E159+F159), 0),"Non requis") -> 18474.06043 | P159: =IF(INTRO!$E$44="Endémique", IF(AND($K159>0,$K159<5), IF($K159=4,"Inconnu", IF($K159=1, $F159*0.33, IF($K159=2, $F159*0.5+$G159*0.2, SUM(F159:G159)))), 0),"Non requis") -> 0 | Q159: 0 | R159: 1 | S159: 1 | T159: 0 | U159: MDA3 (IVM) | V159: T3 (ALB/MBD) | Y159: 7563 | Z159: BAMENDJOU | AF159: ='T1'!M159 -> 0 | AG159: ='T2'!M159 -> 0 | AH159: =T3_R1!L159 -> 14965 | AI159: ='MDA3'!K159 -> 23178 | AJ159: ='MDA3'!N159 -> 0 | AK159: 11361 | AL159: 131.7225596 | AN159: ='T1'!F159 -> 0 | AO159: =T3_R1!F159 -> 44896 | AS159: =_xlfn.XLOOKUP($Y159,[1]COUNTRY_INFO!$Y$9:$Y$197,[1]COUNTRY_INFO!H$9:H$197) -> 99 | AT159: =_xlfn.XLOOKUP($Y159,[1]COUNTRY_INFO!$Y$9:$Y$197,[1]COUNTRY_INFO!I$9:I$197) -> 1 | AU159: =_xlfn.XLOOKUP($Y159,[1]COUNTRY_INFO!$Y$9:$Y$197,[1]COUNTRY_INFO!J$9:J$197) -> 2 | AV159: =_xlfn.XLOOKUP($Y159,[1]COUNTRY_INFO!$Y$9:$Y$197,[1]COUNTRY_INFO!K$9:K$197) -> 0 | AW159: =_xlfn.XLOOKUP($Y159,[1]COUNTRY_INFO!$Y$9:$Y$197,[1]COUNTRY_INFO!L$9:L$197) -> 1 | AX159: TRUE | AY159: TRUE | AZ159: TRUE | BA159: TRUE | BB159: TRUE | BE159: 99 | BF159: 1 | BG159: 2 | BH159: 0 | BI159: TRUE | BJ159: TRUE | BK159: TRUE | BL159: TRUE
A160: =IF(INTRO!$E$34<>0,INTRO!$E$34,"") -> Cameroon | B160: Ouest | C160: Bandja | D160: 28606 | E160: 5003.898635 | F160: =IF(INTRO!$E$49="","",ROUND($D160*INTRO!$E$49,0)) -> 7566 | G160: =IF(INTRO!$E$50="","",ROUND($D160*INTRO!$E$50,0)) -> 16468 | H160: 99 | I160: 1 | J160: 1 | K160: 1 | L160: 1 | M160: =IF(INTRO!$E$38="Endémique", IF($H160>0, IF($H160=4,"Inconnu", IF($H160=99,"Interrompu", $D160)), 0),"Non requis") -> Interrompu | N160: 133491 | O160: =IF(INTRO!$E$42="Endémique", IF(AND($J160>1,$J160<5), IF($J160=4, "Inconnu", E160+F160), 0),"Non requis") -> 0 | P160: =IF(INTRO!$E$44="Endémique", IF(AND($K160>0,$K160<5), IF($K160=4,"Inconnu", IF($K160=1, $F160*0.33, IF($K160=2, $F160*0.5+$G160*0.2, SUM(F160:G160)))), 0),"Non requis") -> 2496.78 | Q160: 0 | R160: 1 | S160: 0 | T160: 0 | U160: MDA3 (IVM) | V160: T3 (ALB/MBD) | Y160: 7564 | Z160: BANDJA | AF160: ='T1'!M160 -> 0 | AG160: ='T2'!M160 -> 0 | AH160: =T3_R1!L160 -> 0 | AI160: ='MDA3'!K160 -> 31978 | AJ160: ='MDA3'!N160 -> 0 | AK160: 7566 | AL160: 0 | AN160: ='T1'!F160 -> 0 | AO160: =T3_R1!F160 -> 44896 | AS160: =_xlfn.XLOOKUP($Y160,[1]COUNTRY_INFO!$Y$9:$Y$197,[1]COUNTRY_INFO!H$9:H$197) -> 99 | AT160: =_xlfn.XLOOKUP($Y160,[1]COUNTRY_INFO!$Y$9:$Y$197,[1]COUNTRY_INFO!I$9:I$197) -> 1 | AU160: =_xlfn.XLOOKUP($Y160,[1]COUNTRY_INFO!$Y$9:$Y$197,[1]COUNTRY_INFO!J$9:J$197) -> 1 | AV160: =_xlfn.XLOOKUP($Y160,[1]COUNTRY_INFO!$Y$9:$Y$197,[1]COUNTRY_INFO!K$9:K$197) -> 1 | AW160: =_xlfn.XLOOKUP($Y160,[1]COUNTRY_INFO!$Y$9:$Y$197,[1]COUNTRY_INFO!L$9:L$197) -> 1 | AX160: TRUE | AY160: TRUE | AZ160: TRUE | BA160: TRUE | BB160: TRUE | BE160: 99 | BF160: 1 | BG160: 1 | BH160: 1 | BI160: TRUE | BJ160: TRUE | BK160: TRUE | BL160: TRUE
A161: =IF(INTRO!$E$34<>0,INTRO!$E$34,"") -> Cameroon | B161: Ouest | C161: Bandjoun | D161: 98277 | E161: 21176.41326 | F161: =IF(INTRO!$E$49="","",ROUND($D161*INTRO!$E$49,0)) -> 25994 | G161: =IF(INTRO!$E$50="","",ROUND($D161*INTRO!$E$50,0)) -> 56578 | H161: 99 | I161: 1 | J161: 1 | K161: 0 | L161: 1 | M161: =IF(INTRO!$E$38="Endémique", IF($H161>0, IF($H161=4,"Inconnu", IF($H161=99,"Interrompu", $D161)), 0),"Non requis") -> Interrompu | N161: 109370 | O161: =IF(INTRO!$E$42="Endémique", IF(AND($J161>1,$J161<5), IF($J161=4, "Inconnu", E161+F161), 0),"Non requis") -> 0 | P161: =IF(INTRO!$E$44="Endémique", IF(AND($K161>0,$K161<5), IF($K161=4,"Inconnu", IF($K161=1, $F161*0.33, IF($K161=2, $F161*0.5+$G161*0.2, SUM(F161:G161)))), 0),"Non requis") -> 0 | Q161: 0 | R161: 1 | S161: 0 | T161: 0 | U161: MDA3 (IVM) | V161: T3 (ALB/MBD) | Y161: 7565 | Z161: BANDJOUN | AF161: ='T1'!M161 -> 0 | AG161: ='T2'!M161 -> 0 | AH161: =T3_R1!L161 -> 0 | AI161: ='MDA3'!K161 -> 110300 | AJ161: ='MDA3'!N161 -> 0 | AK161: 25994 | AL161: 0 | AN161: ='T1'!F161 -> 0 | AO161: =T3_R1!F161 -> 44896 | AS161: =_xlfn.XLOOKUP($Y161,[1]COUNTRY_INFO!$Y$9:$Y$197,[1]COUNTRY_INFO!H$9:H$197) -> 99 | AT161: =_xlfn.XLOOKUP($Y161,[1]COUNTRY_INFO!$Y$9:$Y$197,[1]COUNTRY_INFO!I$9:I$197) -> 1 | AU161: =_xlfn.XLOOKUP($Y161,[1]COUNTRY_INFO!$Y$9:$Y$197,[1]COUNTRY_INFO!J$9:J$197) -> 1 | AV161: =_xlfn.XLOOKUP($Y161,[1]COUNTRY_INFO!$Y$9:$Y$197,[1]COUNTRY_INFO!K$9:K$197) -> 0 | AW161: =_xlfn.XLOOKUP($Y161,[1]COUNTRY_INFO!$Y$9:$Y$197,[1]COUNTRY_INFO!L$9:L$197) -> 1 | AX161: TRUE | AY161: TRUE | AZ161: TRUE | BA161: TRUE | BB161: TRUE | BE161: 99 | BF161: 1 | BG161: 1 | BH161: 0 | BI161: TRUE | BJ161: TRUE | BK161: TRUE | BL161: TRUE
A162: =IF(INTRO!$E$34<>0,INTRO!$E$34,"") -> Cameroon | B162: Ouest | C162: Bangangte | D162: 120415 | E162: 17874.26901 | F162: =IF(INTRO!$E$49="","",ROUND($D162*INTRO!$E$49,0)) -> 31850 | G162: =IF(INTRO!$E$50="","",ROUND($D162*INTRO!$E$50,0)) -> 69323 | H162: 99 | I162: 1 | J162: 1 | K162: 1 | L162: 1 | M162: =IF(INTRO!$E$38="Endémique", IF($H162>0, IF($H162=4,"Inconnu", IF($H162=99,"Interrompu", $D162)), 0),"Non requis") -> Interrompu | N162: 101389 | O162: =IF(INTRO!$E$42="Endémique", IF(AND($J162>1,$J162<5), IF($J162=4, "Inconnu", E162+F162), 0),"Non requis") -> 0 | P162: =IF(INTRO!$E$44="Endémique", IF(AND($K162>0,$K162<5), IF($K162=4,"Inconnu", IF($K162=1, $F162*0.33, IF($K162=2, $F162*0.5+$G162*0.2, SUM(F162:G162)))), 0),"Non requis") -> 10510.5 | Q162: 0 | R162: 1 | S162: 1 | T162: 1 | U162: MDA3 (IVM) | V162: T1 (PZQ+ALB/MBD) | Y162: 7566 | Z162: BANGANGTE | AF162: ='T1'!M162 -> 13351 | AG162: ='T2'!M162 -> 0 | AH162: =T3_R1!L162 -> 22492 | AI162: ='MDA3'!K162 -> 89901 | AJ162: ='MDA3'!N162 -> 0 | AK162: 31850 | AL162: 112.5368917 | AN162: ='T1'!F162 -> DECEMBRE 2022 | AO162: =T3_R1!F162 -> 44896 | AS162: =_xlfn.XLOOKUP($Y162,[1]COUNTRY_INFO!$Y$9:$Y$197,[1]COUNTRY_INFO!H$9:H$197) -> 99 | AT162: =_xlfn.XLOOKUP($Y162,[1]COUNTRY_INFO!$Y$9:$Y$197,[1]COUNTRY_INFO!I$9:I$197) -> 1 | AU162: =_xlfn.XLOOKUP($Y162,[1]COUNTRY_INFO!$Y$9:$Y$197,[1]COUNTRY_INFO!J$9:J$197) -> 1 | AV162: =_xlfn.XLOOKUP($Y162,[1]COUNTRY_INFO!$Y$9:$Y$197,[1]COUNTRY_INFO!K$9:K$197) -> 1 | AW162: =_xlfn.XLOOKUP($Y162,[1]COUNTRY_INFO!$Y$9:$Y$197,[1]COUNTRY_INFO!L$9:L$197) -> 1 | AX162: TRUE | AY162: TRUE | AZ162: TRUE | BA162: TRUE | BB162: TRUE | BE162: 99 | BF162: 1 | BG162: 1 | BH162: 1 | BI162: TRUE | BJ162: TRUE | BK162: TRUE | BL162: TRUE
A163: =IF(INTRO!$E$34<>0,INTRO!$E$34,"") -> Cameroon | B163: Ouest | C163: Bangourain | D163: 52737 | E163: 9505.847953 | F163: =IF(INTRO!$E$49="","",ROUND($D163*INTRO!$E$49,0)) -> 13949 | G163: =IF(INTRO!$E$50="","",ROUND($D163*INTRO!$E$50,0)) -> 30361 | H163: 99 | I163: 1 | J163: 1 | K163: 1 | L163: 1 | M163: =IF(INTRO!$E$38="Endémique", IF($H163>0, IF($H163=4,"Inconnu", IF($H163=99,"Interrompu", $D163)), 0),"Non requis") -> Interrompu | N163: 44404 | O163: =IF(INTRO!$E$42="Endémique", IF(AND($J163>1,$J163<5), IF($J163=4, "Inconnu", E163+F163), 0),"Non requis") -> 0 | P163: =IF(INTRO!$E$44="Endémique", IF(AND($K163>0,$K163<5), IF($K163=4,"Inconnu", IF($K163=1, $F163*0.33, IF($K163=2, $F163*0.5+$G163*0.2, SUM(F163:G163)))), 0),"Non requis") -> 4603.17 | Q163: 0 | R163: 1 | S163: 0 | T163: 0 | U163: MDA3 (IVM) | V163: T3 (ALB/MBD) | Y163: 7567 | Z163: BANGOURAIN | AF163: ='T1'!M163 -> 0 | AG163: ='T2'!M163 -> 0 | AH163: =T3_R1!L163 -> 0 | AI163: ='MDA3'!K163 -> 37434 | AJ163: ='MDA3'!N163 -> 0 | AK163: 13949 | AL163: 0 | AN163: ='T1'!F163 -> 0 | AO163: =T3_R1!F163 -> 44896 | AS163: =_xlfn.XLOOKUP($Y163,[1]COUNTRY_INFO!$Y$9:$Y$197,[1]COUNTRY_INFO!H$9:H$197) -> 99 | AT163: =_xlfn.XLOOKUP($Y163,[1]COUNTRY_INFO!$Y$9:$Y$197,[1]COUNTRY_INFO!I$9:I$197) -> 1 | AU163: =_xlfn.XLOOKUP($Y163,[1]COUNTRY_INFO!$Y$9:$Y$197,[1]COUNTRY_INFO!J$9:J$197) -> 1 | AV163: =_xlfn.XLOOKUP($Y163,[1]COUNTRY_INFO!$Y$9:$Y$197,[1]COUNTRY_INFO!K$9:K$197) -> 1 | AW163: =_xlfn.XLOOKUP($Y163,[1]COUNTRY_INFO!$Y$9:$Y$197,[1]COUNTRY_INFO!L$9:L$197) -> 1 | AX163: TRUE | AY163: TRUE | AZ163: TRUE | BA163: TRUE | BB163: TRUE | BE163: 99 | BF163: 1 | BG163: 1 | BH163: 1 | BI163: TRUE | BJ163: TRUE | BK163: TRUE | BL163: TRUE
A164: =IF(INTRO!$E$34<>0,INTRO!$E$34,"") -> Cameroon | B164: Ouest | C164: Batcham | D164: 91718 | E164: 11749.51267 | F164: =IF(INTRO!$E$49="","",ROUND($D164*INTRO!$E$49,0)) -> 24259 | G164: =IF(INTRO!$E$50="","",ROUND($D164*INTRO!$E$50,0)) -> 52802 | H164: 99 | I164: 1 | J164: 1 | K164: 1 | L164: 1 | M164: =IF(INTRO!$E$38="Endémique", IF($H164>0, IF($H164=4,"Inconnu", IF($H164=99,"Interrompu", $D164)), 0),"Non requis") -> Interrompu | N164: 107394 | O164: =IF(INTRO!$E$42="Endémique", IF(AND($J164>1,$J164<5), IF($J164=4, "Inconnu", E164+F164), 0),"Non requis") -> 0 | P164: =IF(INTRO!$E$44="Endémique", IF(AND($K164>0,$K164<5), IF($K164=4,"Inconnu", IF($K164=1, $F164*0.33, IF($K164=2, $F164*0.5+$G164*0.2, SUM(F164:G164)))), 0),"Non requis") -> 8005.47 | Q164: 0 | R164: 1 | S164: 1 | T164: 0 | U164: MDA3 (IVM) | V164: T3 (ALB/MBD) | Y164: 7568 | Z164: BATCHAM | AF164: ='T1'!M164 -> 0 | AG164: ='T2'!M164 -> 0 | AH164: =T3_R1!L164 -> 130 | AI164: ='MDA3'!K164 -> 86140 | AJ164: ='MDA3'!N164 -> 0 | AK164: 24259 | AL164: 0.5358835896 | AN164: ='T1'!F164 -> 0 | AO164: =T3_R1!F164 -> 44896 | AS164: =_xlfn.XLOOKUP($Y164,[1]COUNTRY_INFO!$Y$9:$Y$197,[1]COUNTRY_INFO!H$9:H$197) -> 99 | AT164: =_xlfn.XLOOKUP($Y164,[1]COUNTRY_INFO!$Y$9:$Y$197,[1]COUNTRY_INFO!I$9:I$197) -> 1 | AU164: =_xlfn.XLOOKUP($Y164,[1]COUNTRY_INFO!$Y$9:$Y$197,[1]COUNTRY_INFO!J$9:J$197) -> 1 | AV164: =_xlfn.XLOOKUP($Y164,[1]COUNTRY_INFO!$Y$9:$Y$197,[1]COUNTRY_INFO!K$9:K$197) -> 1 | AW164: =_xlfn.XLOOKUP($Y164,[1]COUNTRY_INFO!$Y$9:$Y$197,[1]COUNTRY_INFO!L$9:L$197) -> 1 | AX164: TRUE | AY164: TRUE | AZ164: TRUE | BA164: TRUE | BB164: TRUE | BE164: 99 | BF164: 1 | BG164: 1 | BH164: 1 | BI164: TRUE | BJ164: TRUE | BK164: TRUE | BL164: TRUE
A165: =IF(INTRO!$E$34<>0,INTRO!$E$34,"") -> Cameroon | B165: Ouest | C165: Dschang | D165: 240537 | E165: 39284.60039 | F165: =IF(INTRO!$E$49="","",ROUND($D165*INTRO!$E$49,0)) -> 63622 | G165: =IF(INTRO!$E$50="","",ROUND($D165*INTRO!$E$50,0)) -> 138477 | H165: 99 | I165: 1 | J165: 1 | K165: 0 | L165: 1 | M165: =IF(INTRO!$E$38="Endémique", IF($H165>0, IF($H165=4,"Inconnu", IF($H165=99,"Interrompu", $D165)), 0),"Non requis") -> Interrompu | N165: 267371 | O165: =IF(INTRO!$E$42="Endémique", IF(AND($J165>1,$J165<5), IF($J165=4, "Inconnu", E165+F165), 0),"Non requis") -> 0 | P165: =IF(INTRO!$E$44="Endémique", IF(AND($K165>0,$K165<5), IF($K165=4,"Inconnu", IF($K165=1, $F165*0.33, IF($K165=2, $F165*0.5+$G165*0.2, SUM(F165:G165)))), 0),"Non requis") -> 0 | Q165: 0 | R165: 1 | S165: 1 | T165: 0 | U165: MDA3 (IVM) | V165: T3 (ALB/MBD) | Y165: 7569 | Z165: DSCHANG | AF165: ='T1'!M165 -> 0 | AG165: ='T2'!M165 -> 0 | AH165: =T3_R1!L165 -> 459 | AI165: ='MDA3'!K165 -> 231011 | AJ165: ='MDA3'!N165 -> 0 | AK165: 63622 | AL165: 0.7214485555 | AN165: ='T1'!F165 -> 0 | AO165: =T3_R1!F165 -> 44896 | AS165: =_xlfn.XLOOKUP($Y165,[1]COUNTRY_INFO!$Y$9:$Y$197,[1]COUNTRY_INFO!H$9:H$197) -> 99 | AT165: =_xlfn.XLOOKUP($Y165,[1]COUNTRY_INFO!$Y$9:$Y$197,[1]COUNTRY_INFO!I$9:I$197) -> 1 | AU165: =_xlfn.XLOOKUP($Y165,[1]COUNTRY_INFO!$Y$9:$Y$197,[1]COUNTRY_INFO!J$9:J$197) -> 1 | AV165: =_xlfn.XLOOKUP($Y165,[1]COUNTRY_INFO!$Y$9:$Y$197,[1]COUNTRY_INFO!K$9:K$197) -> 0 | AW165: =_xlfn.XLOOKUP($Y165,[1]COUNTRY_INFO!$Y$9:$Y$197,[1]COUNTRY_INFO!L$9:L$197) -> 1 | AX165: TRUE | AY165: TRUE | AZ165: TRUE | BA165: TRUE | BB165: TRUE | BE165: 99 | BF165: 1 | BG165: 1 | BH165: 0 | BI165: TRUE | BJ165: TRUE | BK165: TRUE | BL165: TRUE
A166: =IF(INTRO!$E$34<>0,INTRO!$E$34,"") -> Cameroon | B166: Ouest | C166: Foumban | D166: 257429 | E166: 51321.63743 | F166: =IF(INTRO!$E$49="","",ROUND($D166*INTRO!$E$49,0)) -> 68090 | G166: =IF(INTRO!$E$50="","",ROUND($D166*INTRO!$E$50,0)) -> 148202 | H166: 0 | I166: 1 | J166: 1 | K166: 2 | L166: 1 | M166: =IF(INTRO!$E$38="Endémique", IF($H166>0, IF($H166=4,"Inconnu", IF($H166=99,"Interrompu", $D166)), 0),"Non requis") -> 0 | N166: 252660 | O166: =IF(INTRO!$E$42="Endémique", IF(AND($J166>1,$J166<5), IF($J166=4, "Inconnu", E166+F166), 0),"Non requis") -> 0 | P166: =IF(INTRO!$E$44="Endémique", IF(AND($K166>0,$K166<5), IF($K166=4,"Inconnu", IF($K166=1, $F166*0.33, IF($K166=2, $F166*0.5+$G166*0.2, SUM(F166:G166)))), 0),"Non requis") -> 63685.4 | Q166: 0 | R166: 1 | S166: 0 | T166: 0 | U166: MDA3 (IVM) | V166: T3 (ALB/MBD) | Y166: 7570 | Z166: FOUMBAN | AF166: ='T1'!M166 -> 0 | AG166: ='T2'!M166 -> 0 | AH166: =T3_R1!L166 -> 0 | AI166: ='MDA3'!K166 -> 189285 | AJ166: ='MDA3'!N166 -> 0 | AK166: 68090 | AL166: 0 | AN166: ='T1'!F166 -> 0 | AO166: =T3_R1!F166 -> 44896 | AS166: =_xlfn.XLOOKUP($Y166,[1]COUNTRY_INFO!$Y$9:$Y$197,[1]COUNTRY_INFO!H$9:H$197) -> 0 | AT166: =_xlfn.XLOOKUP($Y166,[1]COUNTRY_INFO!$Y$9:$Y$197,[1]COUNTRY_INFO!I$9:I$197) -> 1 | AU166: =_xlfn.XLOOKUP($Y166,[1]COUNTRY_INFO!$Y$9:$Y$197,[1]COUNTRY_INFO!J$9:J$197) -> 1 | AV166: =_xlfn.XLOOKUP($Y166,[1]COUNTRY_INFO!$Y$9:$Y$197,[1]COUNTRY_INFO!K$9:K$197) -> 2 | AW166: =_xlfn.XLOOKUP($Y166,[1]COUNTRY_INFO!$Y$9:$Y$197,[1]COUNTRY_INFO!L$9:L$197) -> 1 | AX166: TRUE | AY166: TRUE | AZ166: TRUE | BA166: TRUE | BB166: TRUE | BE166: 0 | BF166: 1 | BG166: 1 | BH166: 2 | BI166: TRUE | BJ166: TRUE | BK166: TRUE | BL166: TRUE
A167: =IF(INTRO!$E$34<>0,INTRO!$E$34,"") -> Cameroon | B167: Ouest | C167: Foumbot | D167: 136760 | E167: 23995.12671 | F167: =IF(INTRO!$E$49="","",ROUND($D167*INTRO!$E$49,0)) -> 36173 | G167: =IF(INTRO!$E$50="","",ROUND($D167*INTRO!$E$50,0)) -> 78733 | H167: 0 | I167: 1 | J167: 1 | K167: 2 | L167: 1 | M167: =IF(INTRO!$E$38="Endémique", IF($H167>0, IF($H167=4,"Inconnu", IF($H167=99,"Interrompu", $D167)), 0),"Non requis") -> 0 | N167: 116221 | O167: =IF(INTRO!$E$42="Endémique", IF(AND($J167>1,$J167<5), IF($J167=4, "Inconnu", E167+F167), 0),"Non requis") -> 0 | P167: =IF(INTRO!$E$44="Endémique", IF(AND($K167>0,$K167<5), IF($K167=4,"Inconnu", IF($K167=1, $F167*0.33, IF($K167=2, $F167*0.5+$G167*0.2, SUM(F167:G167)))), 0),"Non requis") -> 33833.1 | Q167: 0 | R167: 1 | S167: 1 | T167: 1 | U167: MDA3 (IVM) | V167: T1 (PZQ+ALB/MBD) | Y167: 7571 | Z167: FOUMBOT | AF167: ='T1'!M167 -> 22688 | AG167: ='T2'!M167 -> 0 | AH167: =T3_R1!L167 -> 9655 | AI167: ='MDA3'!K167 -> 95999 | AJ167: ='MDA3'!N167 -> 0 | AK167: 36173 | AL167: 89.41199237 | AN167: ='T1'!F167 -> DECEMBRE 2022 | AO167: =T3_R1!F167 -> 44896 | AS167: =_xlfn.XLOOKUP($Y167,[1]COUNTRY_INFO!$Y$9:$Y$197,[1]COUNTRY_INFO!H$9:H$197) -> 0 | AT167: =_xlfn.XLOOKUP($Y167,[1]COUNTRY_INFO!$Y$9:$Y$197,[1]COUNTRY_INFO!I$9:I$197) -> 1 | AU167: =_xlfn.XLOOKUP($Y167,[1]COUNTRY_INFO!$Y$9:$Y$197,[1]COUNTRY_INFO!J$9:J$197) -> 1 | AV167: =_xlfn.XLOOKUP($Y167,[1]COUNTRY_INFO!$Y$9:$Y$197,[1]COUNTRY_INFO!K$9:K$197) -> 2 | AW167: =_xlfn.XLOOKUP($Y167,[1]COUNTRY_INFO!$Y$9:$Y$197,[1]COUNTRY_INFO!L$9:L$197) -> 1 | AX167: TRUE | AY167: TRUE | AZ167: TRUE | BA167: TRUE | BB167: TRUE | BE167: 0 | BF167: 1 | BG167: 1 | BH167: 2 | BI167: TRUE | BJ167: TRUE | BK167: TRUE | BL167: TRUE
A168: =IF(INTRO!$E$34<>0,INTRO!$E$34,"") -> Cameroon | B168: Ouest | C168: Galim | D168: 67351 | E168: 11837.23197 | F168: =IF(INTRO!$E$49="","",ROUND($D168*INTRO!$E$49,0)) -> 17814 | G168: =IF(INTRO!$E$50="","",ROUND($D168*INTRO!$E$50,0)) -> 38774 | H168: 99 | I168: 1 | J168: 1 | K168: 1 | L168: 1 | M168: =IF(INTRO!$E$38="Endémique", IF($H168>0, IF($H168=4,"Inconnu", IF($H168=99,"Interrompu", $D168)), 0),"Non requis") -> Interrompu | N168: 73416 | O168: =IF(INTRO!$E$42="Endémique", IF(AND($J168>1,$J168<5), IF($J168=4, "Inconnu", E168+F168), 0),"Non requis") -> 0 | P168: =IF(INTRO!$E$44="Endémique", IF(AND($K168>0,$K168<5), IF($K168=4,"Inconnu", IF($K168=1, $F168*0.33, IF($K168=2, $F168*0.5+$G168*0.2, SUM(F168:G168)))), 0),"Non requis") -> 5878.62 | Q168: 0 | R168: 1 | S168: 1 | T168: 1 | U168: MDA3 (IVM) | V168: T1 (PZQ+ALB/MBD) | Y168: 7572 | Z168: GALIM | AF168: ='T1'!M168 -> 13654 | AG168: ='T2'!M168 -> 0 | AH168: =T3_R1!L168 -> 6852 | AI168: ='MDA3'!K168 -> 86140 | AJ168: ='MDA3'!N168 -> 0 | AK168: 17814 | AL168: 115.1117099 | AN168: ='T1'!F168 -> DECEMBRE 2022 | AO168: =T3_R1!F168 -> 44896 | AP168: =AN168=AO168 -> FALSE | AS168: =_xlfn.XLOOKUP($Y168,[1]COUNTRY_INFO!$Y$9:$Y$197,[1]COUNTRY_INFO!H$9:H$197) -> 99 | AT168: =_xlfn.XLOOKUP($Y168,[1]COUNTRY_INFO!$Y$9:$Y$197,[1]COUNTRY_INFO!I$9:I$197) -> 1 | AU168: =_xlfn.XLOOKUP($Y168,[1]COUNTRY_INFO!$Y$9:$Y$197,[1]COUNTRY_INFO!J$9:J$197) -> 1 | AV168: =_xlfn.XLOOKUP($Y168,[1]COUNTRY_INFO!$Y$9:$Y$197,[1]COUNTRY_INFO!K$9:K$197) -> 1 | AW168: =_xlfn.XLOOKUP($Y168,[1]COUNTRY_INFO!$Y$9:$Y$197,[1]COUNTRY_INFO!L$9:L$197) -> 1 | AX168: TRUE | AY168: TRUE | AZ168: TRUE | BA168: TRUE | BB168: TRUE | BE168: 99 | BF168: 1 | BG168: 1 | BH168: 1 | BI168: TRUE | BJ168: TRUE | BK168: TRUE | BL168: TRUE
A169: =IF(INTRO!$E$34<>0,INTRO!$E$34,"") -> Cameroon | B169: Ouest | C169: Kekem | D169: 48601 | E169: 5914.230019 | F169: =IF(INTRO!$E$49="","",ROUND($D169*INTRO!$E$49,0)) -> 12855 | G169: =IF(INTRO!$E$50="","",ROUND($D169*INTRO!$E$50,0)) -> 27980 | H169: 99 | I169: 1 | J169: 2 | K169: 1 | L169: 1 | M169: =IF(INTRO!$E$38="Endémique", IF($H169>0, IF($H169=4,"Inconnu", IF($H169=99,"Interrompu", $D169)), 0),"Non requis") -> Interrompu | N169: 44620 | O169: =IF(INTRO!$E$42="Endémique", IF(AND($J169>1,$J169<5), IF($J169=4, "Inconnu", E169+F169), 0),"Non requis") -> 18769.23002 | P169: =IF(INTRO!$E$44="Endémique", IF(AND($K169>0,$K169<5), IF($K169=4,"Inconnu", IF($K169=1, $F169*0.33, IF($K169=2, $F169*0.5+$G169*0.2, SUM(F169:G169)))), 0),"Non requis") -> 4242.15 | Q169: 0 | R169: 1 | S169: 1 | T169: 0 | U169: MDA3 (IVM) | V169: T3 (ALB/MBD) | Y169: 7573 | Z169: KEKEM | AF169: ='T1'!M169 -> 0 | AG169: ='T2'!M169 -> 0 | AH169: =T3_R1!L169 -> 12635 | AI169: ='MDA3'!K169 -> 33698 | AJ169: ='MDA3'!N169 -> 0 | AK169: 12855 | AL169: 98.28860366 | AN169: ='T1'!F169 -> 0 | AO169: =T3_R1!F169 -> 44896 | AS169: =_xlfn.XLOOKUP($Y169,[1]COUNTRY_INFO!$Y$9:$Y$197,[1]COUNTRY_INFO!H$9:H$197) -> 99 | AT169: =_xlfn.XLOOKUP($Y169,[1]COUNTRY_INFO!$Y$9:$Y$197,[1]COUNTRY_INFO!I$9:I$197) -> 1 | AU169: =_xlfn.XLOOKUP($Y169,[1]COUNTRY_INFO!$Y$9:$Y$197,[1]COUNTRY_INFO!J$9:J$197) -> 2 | AV169: =_xlfn.XLOOKUP($Y169,[1]COUNTRY_INFO!$Y$9:$Y$197,[1]COUNTRY_INFO!K$9:K$197) -> 1 | AW169: =_xlfn.XLOOKUP($Y169,[1]COUNTRY_INFO!$Y$9:$Y$197,[1]COUNTRY_INFO!L$9:L$197) -> 1 | AX169: TRUE | AY169: TRUE | AZ169: TRUE | BA169: TRUE | BB169: TRUE | BE169: 99 | BF169: 1 | BG169: 2 | BH169: 1 | BI169: TRUE | BJ169: TRUE | BK169: TRUE | BL169: TRUE
A170: =IF(INTRO!$E$34<>0,INTRO!$E$34,"") -> Cameroon | B170: Ouest | C170: Kouoptamo | D170: 71068 | E170: 12752.43665 | F170: =IF(INTRO!$E$49="","",ROUND($D170*INTRO!$E$49,0)) -> 18797 | G170: =IF(INTRO!$E$50="","",ROUND($D170*INTRO!$E$50,0)) -> 40914 | H170: 0 | I170: 1 | J170: 1 | K170: 2 | L170: 1 | M170: =IF(INTRO!$E$38="Endémique", IF($H170>0, IF($H170=4,"Inconnu", IF($H170=99,"Interrompu", $D170)), 0),"Non requis") -> 0 | N170: 77537 | O170: =IF(INTRO!$E$42="Endémique", IF(AND($J170>1,$J170<5), IF($J170=4, "Inconnu", E170+F170), 0),"Non requis") -> 0 | P170: =IF(INTRO!$E$44="Endémique", IF(AND($K170>0,$K170<5), IF($K170=4,"Inconnu", IF($K170=1, $F170*0.33, IF($K170=2, $F170*0.5+$G170*0.2, SUM(F170:G170)))), 0),"Non requis") -> 17581.3 | Q170: 0 | R170: 1 | S170: 1 | T170: 1 | U170: MDA3 (IVM) | V170: T1 (PZQ+ALB/MBD) | Y170: 7574 | Z170: KOUOPTAMO | AF170: ='T1'!M170 -> 16194 | AG170: ='T2'!M170 -> 0 | AH170: =T3_R1!L170 -> 5008 | AI170: ='MDA3'!K170 -> 67099 | AJ170: ='MDA3'!N170 -> 0 | AK170: 18797 | AL170: 112.7945949 | AN170: ='T1'!F170 -> DECEMBRE 2022 | AO170: =T3_R1!F170 -> 44896 | AS170: =_xlfn.XLOOKUP($Y170,[1]COUNTRY_INFO!$Y$9:$Y$197,[1]COUNTRY_INFO!H$9:H$197) -> 0 | AT170: =_xlfn.XLOOKUP($Y170,[1]COUNTRY_INFO!$Y$9:$Y$197,[1]COUNTRY_INFO!I$9:I$197) -> 1 | AU170: =_xlfn.XLOOKUP($Y170,[1]COUNTRY_INFO!$Y$9:$Y$197,[1]COUNTRY_INFO!J$9:J$197) -> 1 | AV170: =_xlfn.XLOOKUP($Y170,[1]COUNTRY_INFO!$Y$9:$Y$197,[1]COUNTRY_INFO!K$9:K$197) -> 2 | AW170: =_xlfn.XLOOKUP($Y170,[1]COUNTRY_INFO!$Y$9:$Y$197,[1]COUNTRY_INFO!L$9:L$197) -> 1 | AX170: TRUE | AY170: TRUE | AZ170: TRUE | BA170: TRUE | BB170: TRUE | BE170: 0 | BF170: 1 | BG170: 1 | BH170: 2 | BI170: TRUE | BJ170: TRUE | BK170: TRUE | BL170: TRUE
A171: =IF(INTRO!$E$34<>0,INTRO!$E$34,"") -> Cameroon | B171: Ouest | C171: Malantouen | D171: 151572 | E171: 29893.76218 | F171: =IF(INTRO!$E$49="","",ROUND($D171*INTRO!$E$49,0)) -> 40091 | G171: =IF(INTRO!$E$50="","",ROUND($D171*INTRO!$E$50,0)) -> 87260 | H171: 99 | I171: 1 | J171: 1 | K171: 3 | L171: 1 | M171: =IF(INTRO!$E$38="Endémique", IF($H171>0, IF($H171=4,"Inconnu", IF($H171=99,"Interrompu", $D171)), 0),"Non requis") -> Interrompu | N171: 180988 | O171: =IF(INTRO!$E$42="Endémique", IF(AND($J171>1,$J171<5), IF($J171=4, "Inconnu", E171+F171), 0),"Non requis") -> 0 | P171: =IF(INTRO!$E$44="Endémique", IF(AND($K171>0,$K171<5), IF($K171=4,"Inconnu", IF($K171=1, $F171*0.33, IF($K171=2, $F171*0.5+$G171*0.2, SUM(F171:G171)))), 0),"Non requis") -> 127351 | Q171: 0 | R171: 1 | S171: 1 | T171: 1 | U171: MDA3 (IVM) | V171: T1 (PZQ+ALB/MBD) | Y171: 7575 | Z171: MALENTOUEN | AF171: ='T1'!M171 -> 30411 | AG171: ='T2'!M171 -> 0 | AH171: =T3_R1!L171 -> 14313 | AI171: ='MDA3'!K171 -> 181455 | AJ171: ='MDA3'!N171 -> 0 | AK171: 40091 | AL171: 111.5562096 | AN171: ='T1'!F171 -> DECEMBRE 2022 | AO171: =T3_R1!F171 -> 44896 | AP171: =AN171=AO171 -> FALSE | AS171: =_xlfn.XLOOKUP($Y171,[1]COUNTRY_INFO!$Y$9:$Y$197,[1]COUNTRY_INFO!H$9:H$197) -> 99 | AT171: =_xlfn.XLOOKUP($Y171,[1]COUNTRY_INFO!$Y$9:$Y$197,[1]COUNTRY_INFO!I$9:I$197) -> 1 | AU171: =_xlfn.XLOOKUP($Y171,[1]COUNTRY_INFO!$Y$9:$Y$197,[1]COUNTRY_INFO!J$9:J$197) -> 1 | AV171: =_xlfn.XLOOKUP($Y171,[1]COUNTRY_INFO!$Y$9:$Y$197,[1]COUNTRY_INFO!K$9:K$197) -> 3 | AW171: =_xlfn.XLOOKUP($Y171,[1]COUNTRY_INFO!$Y$9:$Y$197,[1]COUNTRY_INFO!L$9:L$197) -> 1 | AX171: TRUE | AY171: TRUE | AZ171: TRUE | BA171: TRUE | BB171: TRUE | BE171: 99 | BF171: 1 | BG171: 1 | BH171: 3 | BI171: TRUE | BJ171: TRUE | BK171: TRUE | BL171: TRUE
A172: =IF(INTRO!$E$34<>0,INTRO!$E$34,"") -> Cameroon | B172: Ouest | C172: Massangam | D172: 50956 | E172: 9228.070175 | F172: =IF(INTRO!$E$49="","",ROUND($D172*INTRO!$E$49,0)) -> 13478 | G172: =IF(INTRO!$E$50="","",ROUND($D172*INTRO!$E$50,0)) -> 29335 | H172: 99 | I172: 1 | J172: 1 | K172: 1 | L172: 1 | M172: =IF(INTRO!$E$38="Endémique", IF($H172>0, IF($H172=4,"Inconnu", IF($H172=99,"Interrompu", $D172)), 0),"Non requis") -> Interrompu | N172: 54936 | O172: =IF(INTRO!$E$42="Endémique", IF(AND($J172>1,$J172<5), IF($J172=4, "Inconnu", E172+F172), 0),"Non requis") -> 0 | P172: =IF(INTRO!$E$44="Endémique", IF(AND($K172>0,$K172<5), IF($K172=4,"Inconnu", IF($K172=1, $F172*0.33, IF($K172=2, $F172*0.5+$G172*0.2, SUM(F172:G172)))), 0),"Non requis") -> 4447.74 | Q172: 0 | R172: 1 | S172: 0 | T172: 0 | U172: MDA3 (IVM) | V172: T3 (ALB/MBD) | Y172: 7576 | Z172: MASSANGAM | AF172: ='T1'!M172 -> 0 | AG172: ='T2'!M172 -> 0 | AH172: =T3_R1!L172 -> 0 | AI172: ='MDA3'!K172 -> 47311 | AJ172: ='MDA3'!N172 -> 0 | AK172: 13478 | AL172: 0 | AN172: ='T1'!F172 -> 0 | AO172: =T3_R1!F172 -> 44896 | AS172: =_xlfn.XLOOKUP($Y172,[1]COUNTRY_INFO!$Y$9:$Y$197,[1]COUNTRY_INFO!H$9:H$197) -> 99 | AT172: =_xlfn.XLOOKUP($Y172,[1]COUNTRY_INFO!$Y$9:$Y$197,[1]COUNTRY_INFO!I$9:I$197) -> 1 | AU172: =_xlfn.XLOOKUP($Y172,[1]COUNTRY_INFO!$Y$9:$Y$197,[1]COUNTRY_INFO!J$9:J$197) -> 1 | AV172: =_xlfn.XLOOKUP($Y172,[1]COUNTRY_INFO!$Y$9:$Y$197,[1]COUNTRY_INFO!K$9:K$197) -> 1 | AW172: =_xlfn.XLOOKUP($Y172,[1]COUNTRY_INFO!$Y$9:$Y$197,[1]COUNTRY_INFO!L$9:L$197) -> 1 | AX172: TRUE | AY172: TRUE | AZ172: TRUE | BA172: TRUE | BB172: TRUE | BE172: 99 | BF172: 1 | BG172: 1 | BH172: 1 | BI172: TRUE | BJ172: TRUE | BK172: TRUE | BL172: TRUE
A173: =IF(INTRO!$E$34<>0,INTRO!$E$34,"") -> Cameroon | B173: Ouest | C173: Mbouda | D173: 194931 | E173: 29296.2963 | F173: =IF(INTRO!$E$49="","",ROUND($D173*INTRO!$E$49,0)) -> 51559 | G173: =IF(INTRO!$E$50="","",ROUND($D173*INTRO!$E$50,0)) -> 112222 | H173: 99 | I173: 1 | J173: 1 | K173: 1 | L173: 1 | M173: =IF(INTRO!$E$38="Endémique", IF($H173>0, IF($H173=4,"Inconnu", IF($H173=99,"Interrompu", $D173)), 0),"Non requis") -> Interrompu | N173: 221740 | O173: =IF(INTRO!$E$42="Endémique", IF(AND($J173>1,$J173<5), IF($J173=4, "Inconnu", E173+F173), 0),"Non requis") -> 0 | P173: =IF(INTRO!$E$44="Endémique", IF(AND($K173>0,$K173<5), IF($K173=4,"Inconnu", IF($K173=1, $F173*0.33, IF($K173=2, $F173*0.5+$G173*0.2, SUM(F173:G173)))), 0),"Non requis") -> 17014.47 | Q173: 0 | R173: 1 | S173: 0 | T173: 0 | U173: MDA3 (IVM) | V173: T3 (ALB/MBD) | Y173: 7577 | Z173: MBOUDA | AF173: ='T1'!M173 -> 0 | AG173: ='T2'!M173 -> 0 | AH173: =T3_R1!L173 -> 0 | AI173: ='MDA3'!K173 -> 180733 | AJ173: ='MDA3'!N173 -> 0 | AK173: 51559 | AL173: 0 | AN173: ='T1'!F173 -> 0 | AO173: =T3_R1!F173 -> 44896 | AS173: =_xlfn.XLOOKUP($Y173,[1]COUNTRY_INFO!$Y$9:$Y$197,[1]COUNTRY_INFO!H$9:H$197) -> 99 | AT173: =_xlfn.XLOOKUP($Y173,[1]COUNTRY_INFO!$Y$9:$Y$197,[1]COUNTRY_INFO!I$9:I$197) -> 1 | AU173: =_xlfn.XLOOKUP($Y173,[1]COUNTRY_INFO!$Y$9:$Y$197,[1]COUNTRY_INFO!J$9:J$197) -> 1 | AV173: =_xlfn.XLOOKUP($Y173,[1]COUNTRY_INFO!$Y$9:$Y$197,[1]COUNTRY_INFO!K$9:K$197) -> 1 | AW173: =_xlfn.XLOOKUP($Y173,[1]COUNTRY_INFO!$Y$9:$Y$197,[1]COUNTRY_INFO!L$9:L$197) -> 1 | AX173: TRUE | AY173: TRUE | AZ173: TRUE | BA173: TRUE | BB173: TRUE | BE173: 99 | BF173: 1 | BG173: 1 | BH173: 1 | BI173: TRUE | BJ173: TRUE | BK173: TRUE | BL173: TRUE
A174: =IF(INTRO!$E$34<>0,INTRO!$E$34,"") -> Cameroon | B174: Ouest | C174: Mifi | D174: 446158 | E174: 76204.67836 | F174: =IF(INTRO!$E$49="","",ROUND($D174*INTRO!$E$49,0)) -> 118009 | G174: =IF(INTRO!$E$50="","",ROUND($D174*INTRO!$E$50,0)) -> 256853 | H174: 99 | I174: 1 | J174: 1 | K174: 1 | L174: 1 | M174: =IF(INTRO!$E$38="Endémique", IF($H174>0, IF($H174=4,"Inconnu", IF($H174=99,"Interrompu", $D174)), 0),"Non requis") -> Interrompu | N174: 386066 | O174: =IF(INTRO!$E$42="Endémique", IF(AND($J174>1,$J174<5), IF($J174=4, "Inconnu", E174+F174), 0),"Non requis") -> 0 | P174: =IF(INTRO!$E$44="Endémique", IF(AND($K174>0,$K174<5), IF($K174=4,"Inconnu", IF($K174=1, $F174*0.33, IF($K174=2, $F174*0.5+$G174*0.2, SUM(F174:G174)))), 0),"Non requis") -> 38942.97 | Q174: 0 | R174: 1 | S174: 0 | T174: 0 | U174: MDA3 (IVM) | V174: T3 (ALB/MBD) | Y174: 7578 | Z174: MIFI | AF174: ='T1'!M174 -> 0 | AG174: ='T2'!M174 -> 0 | AH174: =T3_R1!L174 -> 0 | AI174: ='MDA3'!K174 -> 323036 | AJ174: ='MDA3'!N174 -> 0 | AK174: 118009 | AL174: 0 | AN174: ='T1'!F174 -> 0 | AO174: =T3_R1!F174 -> 44896 | AS174: =_xlfn.XLOOKUP($Y174,[1]COUNTRY_INFO!$Y$9:$Y$197,[1]COUNTRY_INFO!H$9:H$197) -> 99 | AT174: =_xlfn.XLOOKUP($Y174,[1]COUNTRY_INFO!$Y$9:$Y$197,[1]COUNTRY_INFO!I$9:I$197) -> 1 | AU174: =_xlfn.XLOOKUP($Y174,[1]COUNTRY_INFO!$Y$9:$Y$197,[1]COUNTRY_INFO!J$9:J$197) -> 1 | AV174: =_xlfn.XLOOKUP($Y174,[1]COUNTRY_INFO!$Y$9:$Y$197,[1]COUNTRY_INFO!K$9:K$197) -> 1 | AW174: =_xlfn.XLOOKUP($Y174,[1]COUNTRY_INFO!$Y$9:$Y$197,[1]COUNTRY_INFO!L$9:L$197) -> 1 | AX174: TRUE | AY174: TRUE | AZ174: TRUE | BA174: TRUE | BB174: TRUE | BE174: 99 | BF174: 1 | BG174: 1 | BH174: 1 | BI174: TRUE | BJ174: TRUE | BK174: TRUE | BL174: TRUE
A175: =IF(INTRO!$E$34<>0,INTRO!$E$34,"") -> Cameroon | B175: Ouest | C175: Penka Michel | D175: 86998 | E175: 12940.54581 | F175: =IF(INTRO!$E$49="","",ROUND($D175*INTRO!$E$49,0)) -> 23011 | G175: =IF(INTRO!$E$50="","",ROUND($D175*INTRO!$E$50,0)) -> 50085 | H175: 99 | I175: 1 | J175: 2 | K175: 1 | L175: 1 | M175: =IF(INTRO!$E$38="Endémique", IF($H175>0, IF($H175=4,"Inconnu", IF($H175=99,"Interrompu", $D175)), 0),"Non requis") -> Interrompu | N175: 102307 | O175: =IF(INTRO!$E$42="Endémique", IF(AND($J175>1,$J175<5), IF($J175=4, "Inconnu", E175+F175), 0),"Non requis") -> 35951.54581 | P175: =IF(INTRO!$E$44="Endémique", IF(AND($K175>0,$K175<5), IF($K175=4,"Inconnu", IF($K175=1, $F175*0.33, IF($K175=2, $F175*0.5+$G175*0.2, SUM(F175:G175)))), 0),"Non requis") -> 7593.63 | Q175: 0 | R175: 1 | S175: 1 | T175: 0 | U175: MDA3 (IVM) | V175: T3 (ALB/MBD) | Y175: 7579 | Z175: PENKA MICHEL | AF175: ='T1'!M175 -> 0 | AG175: ='T2'!M175 -> 0 | AH175: =T3_R1!L175 -> 32430 | AI175: ='MDA3'!K175 -> 82775 | AJ175: ='MDA3'!N175 -> 0 | AK175: 23011 | AL175: 140.9325975 | AN175: ='T1'!F175 -> 0 | AO175: =T3_R1!F175 -> 44896 | AS175: =_xlfn.XLOOKUP($Y175,[1]COUNTRY_INFO!$Y$9:$Y$197,[1]COUNTRY_INFO!H$9:H$197) -> 99 | AT175: =_xlfn.XLOOKUP($Y175,[1]COUNTRY_INFO!$Y$9:$Y$197,[1]COUNTRY_INFO!I$9:I$197) -> 1 | AU175: =_xlfn.XLOOKUP($Y175,[1]COUNTRY_INFO!$Y$9:$Y$197,[1]COUNTRY_INFO!J$9:J$197) -> 2 | AV175: =_xlfn.XLOOKUP($Y175,[1]COUNTRY_INFO!$Y$9:$Y$197,[1]COUNTRY_INFO!K$9:K$197) -> 1 | AW175: =_xlfn.XLOOKUP($Y175,[1]COUNTRY_INFO!$Y$9:$Y$197,[1]COUNTRY_INFO!L$9:L$197) -> 1 | AX175: TRUE | AY175: TRUE | AZ175: TRUE | BA175: TRUE | BB175: TRUE | BE175: 99 | BF175: 1 | BG175: 2 | BH175: 1 | BI175: TRUE | BJ175: TRUE | BK175: TRUE | BL175: TRUE
A176: =IF(INTRO!$E$34<>0,INTRO!$E$34,"") -> Cameroon | B176: Ouest | C176: Santchou | D176: 38511 | E176: 5908.382066 | F176: =IF(INTRO!$E$49="","",ROUND($D176*INTRO!$E$49,0)) -> 10186 | G176: =IF(INTRO!$E$50="","",ROUND($D176*INTRO!$E$50,0)) -> 22171 | H176: 0 | I176: 1 | J176: 1 | K176: 0 | L176: 1 | M176: =IF(INTRO!$E$38="Endémique", IF($H176>0, IF($H176=4,"Inconnu", IF($H176=99,"Interrompu", $D176)), 0),"Non requis") -> 0 | N176: 34676 | O176: =IF(INTRO!$E$42="Endémique", IF(AND($J176>1,$J176<5), IF($J176=4, "Inconnu", E176+F176), 0),"Non requis") -> 0 | P176: =IF(INTRO!$E$44="Endémique", IF(AND($K176>0,$K176<5), IF($K176=4,"Inconnu", IF($K176=1, $F176*0.33, IF($K176=2, $F176*0.5+$G176*0.2, SUM(F176:G176)))), 0),"Non requis") -> 0 | Q176: 0 | R176: 1 | S176: 0 | T176: 0 | U176: MDA3 (IVM) | V176: T3 (ALB/MBD) | Y176: 7580 | Z176: SANTCHOU | AF176: ='T1'!M176 -> 0 | AG176: ='T2'!M176 -> 0 | AH176: =T3_R1!L176 -> 0 | AI176: ='MDA3'!K176 -> 28769 | AJ176: ='MDA3'!N176 -> 0 | AK176: 10186 | AL176: 0 | AN176: ='T1'!F176 -> 0 | AO176: =T3_R1!F176 -> 44896 | AS176: =_xlfn.XLOOKUP($Y176,[1]COUNTRY_INFO!$Y$9:$Y$197,[1]COUNTRY_INFO!H$9:H$197) -> 0 | AT176: =_xlfn.XLOOKUP($Y176,[1]COUNTRY_INFO!$Y$9:$Y$197,[1]COUNTRY_INFO!I$9:I$197) -> 1 | AU176: =_xlfn.XLOOKUP($Y176,[1]COUNTRY_INFO!$Y$9:$Y$197,[1]COUNTRY_INFO!J$9:J$197) -> 1 | AV176: =_xlfn.XLOOKUP($Y176,[1]COUNTRY_INFO!$Y$9:$Y$197,[1]COUNTRY_INFO!K$9:K$197) -> 0 | AW176: =_xlfn.XLOOKUP($Y176,[1]COUNTRY_INFO!$Y$9:$Y$197,[1]COUNTRY_INFO!L$9:L$197) -> 1 | AX176: TRUE | AY176: TRUE | AZ176: TRUE | BA176: TRUE | BB176: TRUE | BE176: 0 | BF176: 1 | BG176: 1 | BH176: 0 | BI176: TRUE | BJ176: TRUE | BK176: TRUE | BL176: TRUE
A177: =IF(INTRO!$E$34<>0,INTRO!$E$34,"") -> Cameroon | B177: Sud | C177: Ambam | D177: 121687 | E177: 11807.01754 | F177: =IF(INTRO!$E$49="","",ROUND($D177*INTRO!$E$49,0)) -> 32186 | G177: =IF(INTRO!$E$50="","",ROUND($D177*INTRO!$E$50,0)) -> 70055 | H177: 99 | I177: 1 | J177: 3 | K177: 0 | L177: 1 | M177: =IF(INTRO!$E$38="Endémique", IF($H177>0, IF($H177=4,"Inconnu", IF($H177=99,"Interrompu", $D177)), 0),"Non requis") -> Interrompu | N177: 101995 | O177: =IF(INTRO!$E$42="Endémique", IF(AND($J177>1,$J177<5), IF($J177=4, "Inconnu", E177+F177), 0),"Non requis") -> 43993.01754 | P177: =IF(INTRO!$E$44="Endémique", IF(AND($K177>0,$K177<5), IF($K177=4,"Inconnu", IF($K177=1, $F177*0.33, IF($K177=2, $F177*0.5+$G177*0.2, SUM(F177:G177)))), 0),"Non requis") -> 0 | Q177: 0 | R177: 1 | S177: 1 | T177: 0 | U177: MDA3 (IVM) | V177: T3 (ALB/MBD) | Y177: 7581 | Z177: AMBAM | AF177: ='T1'!M177 -> 0 | AG177: ='T2'!M177 -> 0 | AH177: =T3_R1!L177 -> 34250 | AI177: ='MDA3'!K177 -> 74890 | AJ177: ='MDA3'!N177 -> 0 | AK177: 32186 | AL177: 106.412726 | AN177: ='T1'!F177 -> 0 | AO177: =T3_R1!F177 -> 44896 | AS177: =_xlfn.XLOOKUP($Y177,[1]COUNTRY_INFO!$Y$9:$Y$197,[1]COUNTRY_INFO!H$9:H$197) -> 99 | AT177: =_xlfn.XLOOKUP($Y177,[1]COUNTRY_INFO!$Y$9:$Y$197,[1]COUNTRY_INFO!I$9:I$197) -> 1 | AU177: =_xlfn.XLOOKUP($Y177,[1]COUNTRY_INFO!$Y$9:$Y$197,[1]COUNTRY_INFO!J$9:J$197) -> 3 | AV177: =_xlfn.XLOOKUP($Y177,[1]COUNTRY_INFO!$Y$9:$Y$197,[1]COUNTRY_INFO!K$9:K$197) -> 0 | AW177: =_xlfn.XLOOKUP($Y177,[1]COUNTRY_INFO!$Y$9:$Y$197,[1]COUNTRY_INFO!L$9:L$197) -> 1 | AX177: TRUE | AY177: TRUE | AZ177: TRUE | BA177: TRUE | BB177: TRUE | BE177: 99 | BF177: 1 | BG177: 3 | BH177: 0 | BI177: TRUE | BJ177: TRUE | BK177: TRUE | BL177: TRUE
A178: =IF(INTRO!$E$34<>0,INTRO!$E$34,"") -> Cameroon | B178: Sud | C178: Djoum | D178: 43142 | E178: 5699.805068 | F178: =IF(INTRO!$E$49="","",ROUND($D178*INTRO!$E$49,0)) -> 11411 | G178: =IF(INTRO!$E$50="","",ROUND($D178*INTRO!$E$50,0)) -> 24837 | H178: 99 | I178: 1 | J178: 3 | K178: 0 | L178: 1 | M178: =IF(INTRO!$E$38="Endémique", IF($H178>0, IF($H178=4,"Inconnu", IF($H178=99,"Interrompu", $D178)), 0),"Non requis") -> Interrompu | N178: 36160 | O178: =IF(INTRO!$E$42="Endémique", IF(AND($J178>1,$J178<5), IF($J178=4, "Inconnu", E178+F178), 0),"Non requis") -> 17110.80507 | P178: =IF(INTRO!$E$44="Endémique", IF(AND($K178>0,$K178<5), IF($K178=4,"Inconnu", IF($K178=1, $F178*0.33, IF($K178=2, $F178*0.5+$G178*0.2, SUM(F178:G178)))), 0),"Non requis") -> 0 | Q178: 0 | R178: 1 | S178: 1 | T178: 0 | U178: MDA3 (IVM) | V178: T3 (ALB/MBD) | Y178: 7582 | Z178: DJOUM | AF178: ='T1'!M178 -> 0 | AG178: ='T2'!M178 -> 0 | AH178: =T3_R1!L178 -> 11276 | AI178: ='MDA3'!K178 -> 33722 | AJ178: ='MDA3'!N178 -> 0 | AK178: 11411 | AL178: 98.81693103 | AN178: ='T1'!F178 -> 0 | AO178: =T3_R1!F178 -> 44896 | AS178: =_xlfn.XLOOKUP($Y178,[1]COUNTRY_INFO!$Y$9:$Y$197,[1]COUNTRY_INFO!H$9:H$197) -> 99 | AT178: =_xlfn.XLOOKUP($Y178,[1]COUNTRY_INFO!$Y$9:$Y$197,[1]COUNTRY_INFO!I$9:I$197) -> 1 | AU178: =_xlfn.XLOOKUP($Y178,[1]COUNTRY_INFO!$Y$9:$Y$197,[1]COUNTRY_INFO!J$9:J$197) -> 3 | AV178: =_xlfn.XLOOKUP($Y178,[1]COUNTRY_INFO!$Y$9:$Y$197,[1]COUNTRY_INFO!K$9:K$197) -> 0 | AW178: =_xlfn.XLOOKUP($Y178,[1]COUNTRY_INFO!$Y$9:$Y$197,[1]COUNTRY_INFO!L$9:L$197) -> 1 | AX178: TRUE | AY178: TRUE | AZ178: TRUE | BA178: TRUE | BB178: TRUE | BE178: 99 | BF178: 1 | BG178: 3 | BH178: 0 | BI178: TRUE | BJ178: TRUE | BK178: TRUE | BL178: TRUE
A179: =IF(INTRO!$E$34<>0,INTRO!$E$34,"") -> Cameroon | B179: Sud | C179: Ebolowa | D179: 238842 | E179: 33242.69006 | F179: =IF(INTRO!$E$49="","",ROUND($D179*INTRO!$E$49,0)) -> 63174 | G179: =IF(INTRO!$E$50="","",ROUND($D179*INTRO!$E$50,0)) -> 137501 | H179: 0 | I179: 4 | J179: 2 | K179: 1 | L179: 1 | M179: =IF(INTRO!$E$38="Endémique", IF($H179>0, IF($H179=4,"Inconnu", IF($H179=99,"Interrompu", $D179)), 0),"Non requis") -> 0 | N179: 0 | O179: =IF(INTRO!$E$42="Endémique", IF(AND($J179>1,$J179<5), IF($J179=4, "Inconnu", E179+F179), 0),"Non requis") -> 96416.69006 | P179: =IF(INTRO!$E$44="Endémique", IF(AND($K179>0,$K179<5), IF($K179=4,"Inconnu", IF($K179=1, $F179*0.33, IF($K179=2, $F179*0.5+$G179*0.2, SUM(F179:G179)))), 0),"Non requis") -> 20847.42 | Q179: 0 | R179: 0 | S179: 1 | T179: 0 | V179: T3 (ALB/MBD) | Y179: 7583 | Z179: EBOLOWA | AF179: ='T1'!M179 -> 0 | AG179: ='T2'!M179 -> 0 | AH179: =T3_R1!L179 -> 64211 | AI179: ='MDA3'!K179 -> 0 | AJ179: ='MDA3'!N179 -> 0 | AK179: 63174 | AL179: 101.6414981 | AN179: ='T1'!F179 -> 0 | AO179: =T3_R1!F179 -> 44896 | AS179: =_xlfn.XLOOKUP($Y179,[1]COUNTRY_INFO!$Y$9:$Y$197,[1]COUNTRY_INFO!H$9:H$197) -> 0 | AT179: =_xlfn.XLOOKUP($Y179,[1]COUNTRY_INFO!$Y$9:$Y$197,[1]COUNTRY_INFO!I$9:I$197) -> 4 | AU179: =_xlfn.XLOOKUP($Y179,[1]COUNTRY_INFO!$Y$9:$Y$197,[1]COUNTRY_INFO!J$9:J$197) -> 2 | AV179: =_xlfn.XLOOKUP($Y179,[1]COUNTRY_INFO!$Y$9:$Y$197,[1]COUNTRY_INFO!K$9:K$197) -> 1 | AW179: =_xlfn.XLOOKUP($Y179,[1]COUNTRY_INFO!$Y$9:$Y$197,[1]COUNTRY_INFO!L$9:L$197) -> 1 | AX179: TRUE | AY179: TRUE | AZ179: TRUE | BA179: TRUE | BB179: TRUE | BE179: 0 | BF179: 4 | BG179: 2 | BH179: 1 | BI179: TRUE | BJ179: TRUE | BK179: TRUE | BL179: TRUE
A180: =IF(INTRO!$E$34<>0,INTRO!$E$34,"") -> Cameroon | B180: Sud | C180: Kribi | D180: 177321 | E180: 14757.30994 | F180: =IF(INTRO!$E$49="","",ROUND($D180*INTRO!$E$49,0)) -> 46901 | G180: =IF(INTRO!$E$50="","",ROUND($D180*INTRO!$E$50,0)) -> 102084 | H180: 0 | I180: 4 | J180: 2 | K180: 0 | L180: 1 | M180: =IF(INTRO!$E$38="Endémique", IF($H180>0, IF($H180=4,"Inconnu", IF($H180=99,"Interrompu", $D180)), 0),"Non requis") -> 0 | N180: 0 | O180: =IF(INTRO!$E$42="Endémique", IF(AND($J180>1,$J180<5), IF($J180=4, "Inconnu", E180+F180), 0),"Non requis") -> 61658.30994 | P180: =IF(INTRO!$E$44="Endémique", IF(AND($K180>0,$K180<5), IF($K180=4,"Inconnu", IF($K180=1, $F180*0.33, IF($K180=2, $F180*0.5+$G180*0.2, SUM(F180:G180)))), 0),"Non requis") -> 0 | Q180: 0 | R180: 0 | S180: 1 | T180: 0 | V180: T3 (ALB/MBD) | Y180: 7584 | Z180: KRIBI | AF180: ='T1'!M180 -> 0 | AG180: ='T2'!M180 -> 0 | AH180: =T3_R1!L180 -> 60484 | AI180: ='MDA3'!K180 -> 0 | AJ180: ='MDA3'!N180 -> 0 | AK180: 46901 | AL180: 128.961003 | AN180: ='T1'!F180 -> 0 | AO180: =T3_R1!F180 -> 44896 | AS180: =_xlfn.XLOOKUP($Y180,[1]COUNTRY_INFO!$Y$9:$Y$197,[1]COUNTRY_INFO!H$9:H$197) -> 0 | AT180: =_xlfn.XLOOKUP($Y180,[1]COUNTRY_INFO!$Y$9:$Y$197,[1]COUNTRY_INFO!I$9:I$197) -> 4 | AU180: =_xlfn.XLOOKUP($Y180,[1]COUNTRY_INFO!$Y$9:$Y$197,[1]COUNTRY_INFO!J$9:J$197) -> 2 | AV180: =_xlfn.XLOOKUP($Y180,[1]COUNTRY_INFO!$Y$9:$Y$197,[1]COUNTRY_INFO!K$9:K$197) -> 0 | AW180: =_xlfn.XLOOKUP($Y180,[1]COUNTRY_INFO!$Y$9:$Y$197,[1]COUNTRY_INFO!L$9:L$197) -> 1 | AX180: TRUE | AY180: TRUE | AZ180: TRUE | BA180: TRUE | BB180: TRUE | BE180: 0 | BF180: 4 | BG180: 2 | BH180: 0 | BI180: TRUE | BJ180: TRUE | BK180: TRUE | BL180: TRUE
A181: =IF(INTRO!$E$34<>0,INTRO!$E$34,"") -> Cameroon | B181: Sud | C181: Lolodorf | D181: 43446 | E181: 5174.463938 | F181: =IF(INTRO!$E$49="","",ROUND($D181*INTRO!$E$49,0)) -> 11491 | G181: =IF(INTRO!$E$50="","",ROUND($D181*INTRO!$E$50,0)) -> 25012 | H181: 0 | I181: 4 | J181: 3 | K181: 0 | L181: 1 | M181: =IF(INTRO!$E$38="Endémique", IF($H181>0, IF($H181=4,"Inconnu", IF($H181=99,"Interrompu", $D181)), 0),"Non requis") -> 0 | N181: 0 | O181: =IF(INTRO!$E$42="Endémique", IF(AND($J181>1,$J181<5), IF($J181=4, "Inconnu", E181+F181), 0),"Non requis") -> 16665.46394 | P181: =IF(INTRO!$E$44="Endémique", IF(AND($K181>0,$K181<5), IF($K181=4,"Inconnu", IF($K181=1, $F181*0.33, IF($K181=2, $F181*0.5+$G181*0.2, SUM(F181:G181)))), 0),"Non requis") -> 0 | Q181: 0 | R181: 0 | S181: 1 | T181: 0 | V181: T3 (ALB/MBD) | Y181: 7585 | Z181: LOLODORF | AF181: ='T1'!M181 -> 0 | AG181: ='T2'!M181 -> 0 | AH181: =T3_R1!L181 -> 9921 | AI181: ='MDA3'!K181 -> 0 | AJ181: ='MDA3'!N181 -> 0 | AK181: 11491 | AL181: 86.33713341 | AN181: ='T1'!F181 -> 0 | AO181: =T3_R1!F181 -> 44896 | AS181: =_xlfn.XLOOKUP($Y181,[1]COUNTRY_INFO!$Y$9:$Y$197,[1]COUNTRY_INFO!H$9:H$197) -> 0 | AT181: =_xlfn.XLOOKUP($Y181,[1]COUNTRY_INFO!$Y$9:$Y$197,[1]COUNTRY_INFO!I$9:I$197) -> 4 | AU181: =_xlfn.XLOOKUP($Y181,[1]COUNTRY_INFO!$Y$9:$Y$197,[1]COUNTRY_INFO!J$9:J$197) -> 3 | AV181: =_xlfn.XLOOKUP($Y181,[1]COUNTRY_INFO!$Y$9:$Y$197,[1]COUNTRY_INFO!K$9:K$197) -> 0 | AW181: =_xlfn.XLOOKUP($Y181,[1]COUNTRY_INFO!$Y$9:$Y$197,[1]COUNTRY_INFO!L$9:L$197) -> 1 | AX181: TRUE | AY181: TRUE | AZ181: TRUE | BA181: TRUE | BB181: TRUE | BE181: 0 | BF181: 4 | BG181: 3 | BH181: 0 | BI181: TRUE | BJ181: TRUE | BK181: TRUE | BL181: TRUE
A182: =IF(INTRO!$E$34<>0,INTRO!$E$34,"") -> Cameroon | B182: Sud | C182: Meyomessala | D182: 71073 | E182: 7039.961014 | F182: =IF(INTRO!$E$49="","",ROUND($D182*INTRO!$E$49,0)) -> 18799 | G182: =IF(INTRO!$E$50="","",ROUND($D182*INTRO!$E$50,0)) -> 40917 | H182: 99 | I182: 1 | J182: 3 | K182: 1 | L182: 1 | M182: =IF(INTRO!$E$38="Endémique", IF($H182>0, IF($H182=4,"Inconnu", IF($H182=99,"Interrompu", $D182)), 0),"Non requis") -> Interrompu | N182: 59571 | O182: =IF(INTRO!$E$42="Endémique", IF(AND($J182>1,$J182<5), IF($J182=4, "Inconnu", E182+F182), 0),"Non requis") -> 25838.96101 | P182: =IF(INTRO!$E$44="Endémique", IF(AND($K182>0,$K182<5), IF($K182=4,"Inconnu", IF($K182=1, $F182*0.33, IF($K182=2, $F182*0.5+$G182*0.2, SUM(F182:G182)))), 0),"Non requis") -> 6203.67 | Q182: 0 | R182: 1 | S182: 1 | T182: 0 | U182: MDA3 (IVM) | V182: T3 (ALB/MBD) | Y182: 7586 | Z182: MEYOMESSALA | AF182: ='T1'!M182 -> 0 | AG182: ='T2'!M182 -> 0 | AH182: =T3_R1!L182 -> 15771 | AI182: ='MDA3'!K182 -> 54231 | AJ182: ='MDA3'!N182 -> 0 | AK182: 18799 | AL182: 83.89276025 | AN182: ='T1'!F182 -> 0 | AO182: =T3_R1!F182 -> 44896 | AS182: =_xlfn.XLOOKUP($Y182,[1]COUNTRY_INFO!$Y$9:$Y$197,[1]COUNTRY_INFO!H$9:H$197) -> 99 | AT182: =_xlfn.XLOOKUP($Y182,[1]COUNTRY_INFO!$Y$9:$Y$197,[1]COUNTRY_INFO!I$9:I$197) -> 1 | AU182: =_xlfn.XLOOKUP($Y182,[1]COUNTRY_INFO!$Y$9:$Y$197,[1]COUNTRY_INFO!J$9:J$197) -> 3 | AV182: =_xlfn.XLOOKUP($Y182,[1]COUNTRY_INFO!$Y$9:$Y$197,[1]COUNTRY_INFO!K$9:K$197) -> 1 | AW182: =_xlfn.XLOOKUP($Y182,[1]COUNTRY_INFO!$Y$9:$Y$197,[1]COUNTRY_INFO!L$9:L$197) -> 1 | AX182: TRUE | AY182: TRUE | AZ182: TRUE | BA182: TRUE | BB182: TRUE | BE182: 99 | BF182: 1 | BG182: 3 | BH182: 1 | BI182: TRUE | BJ182: TRUE | BK182: TRUE | BL182: TRUE
